{"text_format":"1","workbook":"xlsx","n_sheets":6,"sheets":["Flowchart","システムフロー作成用情報登録","引継選択","作業","標準ファイル名称","STEP_ALL"],"not_rendered":{"charts":0,"images":0,"macros":1,"external_links":0,"defined_names":1,"comments":2,"pivot_tables":0},"unopened":[],"bounds":{"document_bytes":16777216,"sheet_cells":100000,"rows_first":2000,"rows_last":500,"rows_between":2000,"halvings":0,"cell_chars":16384,"cell_head_chars":4096},"cells_cut":0,"cells_raw":0,"read":"whole","date_system":"1900"}

{"sheet":"Flowchart","index":0,"n_rows":1,"n_cols":65,"rows_kept":1,"cut":false,"hidden":false,"merged":[[0,64,0,67],[1,0,1,11],[1,12,1,24],[1,25,1,38],[1,39,1,50],[1,51,1,58],[1,59,1,63],[1,64,1,67],[0,0,0,11],[0,12,0,24],[0,25,0,38],[0,40,0,50],[0,51,0,58],[0,59,0,63]]}
["会社名",null,null,null,null,null,null,null,null,null,null,null,"システム名",null,null,null,null,null,null,null,null,null,null,null,null,"サブシステム名",null,null,null,null,null,null,null,null,null,null,null,null,null,null,"機能名・他",null,null,null,null,null,null,null,null,null,null,"作成日",null,null,null,null,null,null,null,"作成者",null,null,null,null,"頁"]

{"sheet":"システムフロー作成用情報登録","index":1,"n_rows":60,"n_cols":47,"rows_kept":60,"cut":false,"hidden":false,"merged":[[6,2,6,4],[7,2,7,4],[0,5,0,6],[2,1,2,4],[3,1,3,4],[6,6,6,8],[0,8,0,10],[0,2,0,4],[2,9,2,10],[3,9,3,10],[2,6,2,8],[3,6,3,8],[8,35,8,36],[8,29,8,34],[9,15,9,16],[9,9,9,10],[7,6,7,8],[9,22,9,23]]}
[null,"会社名",null,null,null,"【システムフロー作成用情報登録】",null,null,{"$f":"TODAY()","v":"2020-04-21"}]
[]
[null,"システム名",null,null,null,"サブシステム名","機能名・他",null,null,"作成者"]
[]
[]
[null,"新規","更新",null,null,null,null,null,null,{"$f":"IF(AND(C8=\"\",D11=\"\"),\"\",IF(AND(B6=\"更新\",AJ9=0),\"※更新済\",\"※未更新\"))","v":""}]
[null,"step","プログラム名",null,null,"機能内容","その他情報",null,null,null,null,"引継数","最大№",null,"開始行"]
[{"$f":"STEP_ALL!J2-1","v":0},1,null,null,null,null,null,null,null,null,null,{"$f":"COUNTIF(P:P,\">0\")","v":0},{"$f":"MAX(V:V)","v":0}]
[null,null,null,null,null,null,null,null,null,null,null,null,null,null,null,null,null,null,null,null,null,null,null,null,null,null,null,null,null,"比較",null,null,null,null,null,{"$f":"COUNTIF(AN:AU,\"×\")","v":0}]
[null,null,"引継","アクセス名","媒体","ファイル名","FORM名等","備考1","備考２","引継№",null,"順1","順2","順3","有効","既存引継№",null,"対応行","新規行","引継選択行","№","№","引継№保存",null,null,null,null,null,null,null,null,null,null,null,null,null,null,null,null,{"$f":"IF(SUBSTITUTE(C1,CHAR(10),\"\")=AD10,\"\",\"×\")","v":""},{"$f":"IF(SUBSTITUTE(B4,CHAR(10),\"\")=AE10,\"\",\"×\")","v":""},{"$f":"IF(SUBSTITUTE(F4,CHAR(10),\"\")=AF10,\"\",\"×\")","v":""},{"$f":"IF(SUBSTITUTE(G4,CHAR(10),\"\")=AG10,\"\",\"×\")","v":""},{"$f":"IF(SUBSTITUTE(J4,CHAR(10),\"\")=AH10,\"\",\"×\")","v":""},{"$f":"IF(SUBSTITUTE(C8,CHAR(10),\"\")=AI10,\"\",\"×\")","v":""},{"$f":"IF(SUBSTITUTE(F8,CHAR(10),\"\")=AJ10,\"\",\"×\")","v":""},{"$f":"IF(SUBSTITUTE(G8,CHAR(10),\"\")=AK10,\"\",\"×\")","v":""}]
[null,1,null,null,null,null,null,null,null,null,null,{"$f":"IF($E11=\"\",\"\",VLOOKUP($E11,作業!$AP$8:$AZ$18,10,FALSE))","v":""},{"$f":"IF($E11=\"\",\"\",IF(U11=\"\",9,IF(ABS($B$8-J11)=1,1,9)))","v":""},{"$f":"IF($E11=\"\",\"\",VLOOKUP($E11,作業!$AP$8:$AZ$18,11,FALSE))","v":""},{"$f":"IF(AND($B$8>1,OR(E11=\"DISK-IN\",E11=\"\")),\"○\",\"\")","v":""},null,null,null,null,{"$f":"IF(K11=\"\",\"\",IFERROR(MATCH(K11,引継選択!I:I,0),\"\"))","v":""},null,{"$f":"IF(S11=\"\",\"\",U11)","v":""},"","",null,null,null,null,null,null,null,null,null,null,null,null,null,null,null,{"$f":"IF(D11=AD11,\"\",\"×\")","v":""},{"$f":"IF(E11=AE11,\"\",\"×\")","v":""},"","","","","",""]
[null,{"$f":"B11+1","v":2},null,null,null,null,null,null,null,null,null,{"$f":"IF($E12=\"\",\"\",VLOOKUP($E12,作業!$AP$8:$AZ$18,10,FALSE))","v":""},"",{"$f":"IF($E12=\"\",\"\",VLOOKUP($E12,作業!$AP$8:$AZ$18,11,FALSE))","v":""},"",null,null,null,null,{"$f":"IF(K12=\"\",\"\",IFERROR(MATCH(K12,引継選択!I:I,0),\"\"))","v":""},null,{"$f":"IF(S12=\"\",\"\",U12)","v":""},"","",null,null,null,null,null,null,null,null,null,null,null,null,null,null,null,{"$f":"IF(D12=AD12,\"\",\"×\")","v":""},{"$f":"IF(E12=AE12,\"\",\"×\")","v":""},{"$f":"IF(F12=AF12,\"\",\"×\")","v":""},{"$f":"IF(G12=AG12,\"\",\"×\")","v":""},{"$f":"IF(H12=AH12,\"\",\"×\")","v":""},{"$f":"IF(I12=AI12,\"\",\"×\")","v":""},{"$f":"IF(J12=AJ12,\"\",\"×\")","v":""},{"$f":"IF(K12=AK12,\"\",\"×\")","v":""}]
[null,{"$f":"B12+1","v":3},null,null,null,null,null,null,null,null,null,{"$f":"IF($E13=\"\",\"\",VLOOKUP($E13,作業!$AP$8:$AZ$18,10,FALSE))","v":""},"",{"$f":"IF($E13=\"\",\"\",VLOOKUP($E13,作業!$AP$8:$AZ$18,11,FALSE))","v":""},"",null,null,null,null,{"$f":"IF(K13=\"\",\"\",IFERROR(MATCH(K13,引継選択!I:I,0),\"\"))","v":""},null,"","","",null,null,null,null,null,null,null,null,null,null,null,null,null,null,null,"","","","","","","",""]
[null,4,null,null,null,null,null,null,null,null,null,{"$f":"IF($E14=\"\",\"\",VLOOKUP($E14,作業!$AP$8:$AZ$18,10,FALSE))","v":""},"",{"$f":"IF($E14=\"\",\"\",VLOOKUP($E14,作業!$AP$8:$AZ$18,11,FALSE))","v":""},"",null,null,null,null,{"$f":"IF(K14=\"\",\"\",IFERROR(MATCH(K14,引継選択!I:I,0),\"\"))","v":""},null,"",null,null,null,null,null,null,null,null,null,null,null,null,null,null,null,null,null,"","","","","","","",""]
[null,5,null,null,null,null,null,null,null,null,null,{"$f":"IF($E15=\"\",\"\",VLOOKUP($E15,作業!$AP$8:$AZ$18,10,FALSE))","v":""},"",{"$f":"IF($E15=\"\",\"\",VLOOKUP($E15,作業!$AP$8:$AZ$18,11,FALSE))","v":""},"",null,null,null,null,{"$f":"IF(K15=\"\",\"\",IFERROR(MATCH(K15,引継選択!I:I,0),\"\"))","v":""},null,"",null,null,null,null,null,null,null,null,null,null,null,null,null,null,null,null,null,"","","","","","","",""]
[null,6,null,null,null,null,null,null,null,null,null,{"$f":"IF($E16=\"\",\"\",VLOOKUP($E16,作業!$AP$8:$AZ$18,10,FALSE))","v":""},"",{"$f":"IF($E16=\"\",\"\",VLOOKUP($E16,作業!$AP$8:$AZ$18,11,FALSE))","v":""},"",null,null,null,null,{"$f":"IF(K16=\"\",\"\",IFERROR(MATCH(K16,引継選択!I:I,0),\"\"))","v":""},null,"",null,null,null,null,null,null,null,null,null,null,null,null,null,null,null,null,null,"","","","","","","",""]
[null,7,null,null,null,null,null,null,null,null,null,{"$f":"IF($E17=\"\",\"\",VLOOKUP($E17,作業!$AP$8:$AZ$18,10,FALSE))","v":""},"",{"$f":"IF($E17=\"\",\"\",VLOOKUP($E17,作業!$AP$8:$AZ$18,11,FALSE))","v":""},"",null,null,null,null,{"$f":"IF(K17=\"\",\"\",IFERROR(MATCH(K17,引継選択!I:I,0),\"\"))","v":""},null,"",null,null,null,null,null,null,null,null,null,null,null,null,null,null,null,null,null,"","","","","","","",""]
[null,8,null,null,null,null,null,null,null,null,null,{"$f":"IF($E18=\"\",\"\",VLOOKUP($E18,作業!$AP$8:$AZ$18,10,FALSE))","v":""},"",{"$f":"IF($E18=\"\",\"\",VLOOKUP($E18,作業!$AP$8:$AZ$18,11,FALSE))","v":""},"",null,null,null,null,{"$f":"IF(K18=\"\",\"\",IFERROR(MATCH(K18,引継選択!I:I,0),\"\"))","v":""},null,"",null,null,null,null,null,null,null,null,null,null,null,null,null,null,null,null,null,"","","","","","","",""]
[null,9,null,null,null,null,null,null,null,null,null,{"$f":"IF($E19=\"\",\"\",VLOOKUP($E19,作業!$AP$8:$AZ$18,10,FALSE))","v":""},"",{"$f":"IF($E19=\"\",\"\",VLOOKUP($E19,作業!$AP$8:$AZ$18,11,FALSE))","v":""},"",null,null,null,null,{"$f":"IF(K19=\"\",\"\",IFERROR(MATCH(K19,引継選択!I:I,0),\"\"))","v":""},null,"",null,null,null,null,null,null,null,null,null,null,null,null,null,null,null,null,null,"","","","","","","",""]
[null,10,null,null,null,null,null,null,null,null,null,{"$f":"IF($E20=\"\",\"\",VLOOKUP($E20,作業!$AP$8:$AZ$18,10,FALSE))","v":""},"",{"$f":"IF($E20=\"\",\"\",VLOOKUP($E20,作業!$AP$8:$AZ$18,11,FALSE))","v":""},"",null,null,null,null,{"$f":"IF(K20=\"\",\"\",IFERROR(MATCH(K20,引継選択!I:I,0),\"\"))","v":""},null,"",null,null,null,null,null,null,null,null,null,null,null,null,null,null,null,null,null,"","","","","","","",""]
[null,11,null,null,null,null,null,null,null,null,null,{"$f":"IF($E21=\"\",\"\",VLOOKUP($E21,作業!$AP$8:$AZ$18,10,FALSE))","v":""},"",{"$f":"IF($E21=\"\",\"\",VLOOKUP($E21,作業!$AP$8:$AZ$18,11,FALSE))","v":""},"",null,null,null,null,{"$f":"IF(K21=\"\",\"\",IFERROR(MATCH(K21,引継選択!I:I,0),\"\"))","v":""},null,"",null,null,null,null,null,null,null,null,null,null,null,null,null,null,null,null,null,"","","","","","","",""]
[null,12,null,null,null,null,null,null,null,null,null,{"$f":"IF($E22=\"\",\"\",VLOOKUP($E22,作業!$AP$8:$AZ$18,10,FALSE))","v":""},"",{"$f":"IF($E22=\"\",\"\",VLOOKUP($E22,作業!$AP$8:$AZ$18,11,FALSE))","v":""},"",null,null,null,null,{"$f":"IF(K22=\"\",\"\",IFERROR(MATCH(K22,引継選択!I:I,0),\"\"))","v":""},null,"",null,null,null,null,null,null,null,null,null,null,null,null,null,null,null,null,null,"","","","","","","",""]
[null,13,null,null,null,null,null,null,null,null,null,{"$f":"IF($E23=\"\",\"\",VLOOKUP($E23,作業!$AP$8:$AZ$18,10,FALSE))","v":""},"",{"$f":"IF($E23=\"\",\"\",VLOOKUP($E23,作業!$AP$8:$AZ$18,11,FALSE))","v":""},"",null,null,null,null,{"$f":"IF(K23=\"\",\"\",IFERROR(MATCH(K23,引継選択!I:I,0),\"\"))","v":""},null,"",null,null,null,null,null,null,null,null,null,null,null,null,null,null,null,null,null,"","","","","","","",""]
[null,14,null,null,null,null,null,null,null,null,null,{"$f":"IF($E24=\"\",\"\",VLOOKUP($E24,作業!$AP$8:$AZ$18,10,FALSE))","v":""},"",{"$f":"IF($E24=\"\",\"\",VLOOKUP($E24,作業!$AP$8:$AZ$18,11,FALSE))","v":""},"",null,null,null,null,{"$f":"IF(K24=\"\",\"\",IFERROR(MATCH(K24,引継選択!I:I,0),\"\"))","v":""},null,"",null,null,null,null,null,null,null,null,null,null,null,null,null,null,null,null,null,"","","","","","","",""]
[null,15,null,null,null,null,null,null,null,null,null,{"$f":"IF($E25=\"\",\"\",VLOOKUP($E25,作業!$AP$8:$AZ$18,10,FALSE))","v":""},"",{"$f":"IF($E25=\"\",\"\",VLOOKUP($E25,作業!$AP$8:$AZ$18,11,FALSE))","v":""},"",null,null,null,null,{"$f":"IF(K25=\"\",\"\",IFERROR(MATCH(K25,引継選択!I:I,0),\"\"))","v":""},null,"",null,null,null,null,null,null,null,null,null,null,null,null,null,null,null,null,null,"","","","","","","",""]
[null,16,null,null,null,null,null,null,null,null,null,{"$f":"IF($E26=\"\",\"\",VLOOKUP($E26,作業!$AP$8:$AZ$18,10,FALSE))","v":""},"",{"$f":"IF($E26=\"\",\"\",VLOOKUP($E26,作業!$AP$8:$AZ$18,11,FALSE))","v":""},"",null,null,null,null,{"$f":"IF(K26=\"\",\"\",IFERROR(MATCH(K26,引継選択!I:I,0),\"\"))","v":""},null,"",null,null,null,null,null,null,null,null,null,null,null,null,null,null,null,null,null,"","","","","","","",""]
[null,17,null,null,null,null,null,null,null,null,null,{"$f":"IF($E27=\"\",\"\",VLOOKUP($E27,作業!$AP$8:$AZ$18,10,FALSE))","v":""},"",{"$f":"IF($E27=\"\",\"\",VLOOKUP($E27,作業!$AP$8:$AZ$18,11,FALSE))","v":""},"",null,null,null,null,{"$f":"IF(K27=\"\",\"\",IFERROR(MATCH(K27,引継選択!I:I,0),\"\"))","v":""},null,"",null,null,null,null,null,null,null,null,null,null,null,null,null,null,null,null,null,"","","","","","","",""]
[null,18,null,null,null,null,null,null,null,null,null,{"$f":"IF($E28=\"\",\"\",VLOOKUP($E28,作業!$AP$8:$AZ$18,10,FALSE))","v":""},"",{"$f":"IF($E28=\"\",\"\",VLOOKUP($E28,作業!$AP$8:$AZ$18,11,FALSE))","v":""},"",null,null,null,null,{"$f":"IF(K28=\"\",\"\",IFERROR(MATCH(K28,引継選択!I:I,0),\"\"))","v":""},null,"",null,null,null,null,null,null,null,null,null,null,null,null,null,null,null,null,null,"","","","","","","",""]
[null,19,null,null,null,null,null,null,null,null,null,{"$f":"IF($E29=\"\",\"\",VLOOKUP($E29,作業!$AP$8:$AZ$18,10,FALSE))","v":""},"",{"$f":"IF($E29=\"\",\"\",VLOOKUP($E29,作業!$AP$8:$AZ$18,11,FALSE))","v":""},"",null,null,null,null,{"$f":"IF(K29=\"\",\"\",IFERROR(MATCH(K29,引継選択!I:I,0),\"\"))","v":""},null,"",null,null,null,null,null,null,null,null,null,null,null,null,null,null,null,null,null,"","","","","","","",""]
[null,20,null,null,null,null,null,null,null,null,null,{"$f":"IF($E30=\"\",\"\",VLOOKUP($E30,作業!$AP$8:$AZ$18,10,FALSE))","v":""},"",{"$f":"IF($E30=\"\",\"\",VLOOKUP($E30,作業!$AP$8:$AZ$18,11,FALSE))","v":""},"",null,null,null,null,{"$f":"IF(K30=\"\",\"\",IFERROR(MATCH(K30,引継選択!I:I,0),\"\"))","v":""},null,"",null,null,null,null,null,null,null,null,null,null,null,null,null,null,null,null,null,"","","","","","","",""]
[null,21,null,null,null,null,null,null,null,null,null,{"$f":"IF($E31=\"\",\"\",VLOOKUP($E31,作業!$AP$8:$AZ$18,10,FALSE))","v":""},"",{"$f":"IF($E31=\"\",\"\",VLOOKUP($E31,作業!$AP$8:$AZ$18,11,FALSE))","v":""},"",null,null,null,null,{"$f":"IF(K31=\"\",\"\",IFERROR(MATCH(K31,引継選択!I:I,0),\"\"))","v":""},null,"",null,null,null,null,null,null,null,null,null,null,null,null,null,null,null,null,null,"","","","","","","",""]
[null,{"$f":"B31+1","v":22},null,null,null,null,null,null,null,null,null,{"$f":"IF($E32=\"\",\"\",VLOOKUP($E32,作業!$AP$8:$AZ$18,10,FALSE))","v":""},"",{"$f":"IF($E32=\"\",\"\",VLOOKUP($E32,作業!$AP$8:$AZ$18,11,FALSE))","v":""},"",null,null,null,null,{"$f":"IF(K32=\"\",\"\",IFERROR(MATCH(K32,引継選択!I:I,0),\"\"))","v":""},null,"",null,null,null,null,null,null,null,null,null,null,null,null,null,null,null,null,null,"","","","","","","",""]
[null,23,null,null,null,null,null,null,null,null,null,{"$f":"IF($E33=\"\",\"\",VLOOKUP($E33,作業!$AP$8:$AZ$18,10,FALSE))","v":""},"",{"$f":"IF($E33=\"\",\"\",VLOOKUP($E33,作業!$AP$8:$AZ$18,11,FALSE))","v":""},"",null,null,null,null,{"$f":"IF(K33=\"\",\"\",IFERROR(MATCH(K33,引継選択!I:I,0),\"\"))","v":""},null,"",null,null,null,null,null,null,null,null,null,null,null,null,null,null,null,null,null,"","","","","","","",""]
[null,24,null,null,null,null,null,null,null,null,null,{"$f":"IF($E34=\"\",\"\",VLOOKUP($E34,作業!$AP$8:$AZ$18,10,FALSE))","v":""},"",{"$f":"IF($E34=\"\",\"\",VLOOKUP($E34,作業!$AP$8:$AZ$18,11,FALSE))","v":""},"",null,null,null,null,{"$f":"IF(K34=\"\",\"\",IFERROR(MATCH(K34,引継選択!I:I,0),\"\"))","v":""},null,"",null,null,null,null,null,null,null,null,null,null,null,null,null,null,null,null,null,"","","","","","","",""]
[null,25,null,null,null,null,null,null,null,null,null,{"$f":"IF($E35=\"\",\"\",VLOOKUP($E35,作業!$AP$8:$AZ$18,10,FALSE))","v":""},"",{"$f":"IF($E35=\"\",\"\",VLOOKUP($E35,作業!$AP$8:$AZ$18,11,FALSE))","v":""},"",null,null,null,null,{"$f":"IF(K35=\"\",\"\",IFERROR(MATCH(K35,引継選択!I:I,0),\"\"))","v":""},null,"",null,null,null,null,null,null,null,null,null,null,null,null,null,null,null,null,null,"","","","","","","",""]
[null,26,null,null,null,null,null,null,null,null,null,{"$f":"IF($E36=\"\",\"\",VLOOKUP($E36,作業!$AP$8:$AZ$18,10,FALSE))","v":""},"",{"$f":"IF($E36=\"\",\"\",VLOOKUP($E36,作業!$AP$8:$AZ$18,11,FALSE))","v":""},"",null,null,null,null,{"$f":"IF(K36=\"\",\"\",IFERROR(MATCH(K36,引継選択!I:I,0),\"\"))","v":""},null,"",null,null,null,null,null,null,null,null,null,null,null,null,null,null,null,null,null,"","","","","","","",""]
[null,27,null,null,null,null,null,null,null,null,null,{"$f":"IF($E37=\"\",\"\",VLOOKUP($E37,作業!$AP$8:$AZ$18,10,FALSE))","v":""},"",{"$f":"IF($E37=\"\",\"\",VLOOKUP($E37,作業!$AP$8:$AZ$18,11,FALSE))","v":""},"",null,null,null,null,{"$f":"IF(K37=\"\",\"\",IFERROR(MATCH(K37,引継選択!I:I,0),\"\"))","v":""},null,"",null,null,null,null,null,null,null,null,null,null,null,null,null,null,null,null,null,"","","","","","","",""]
[null,28,null,null,null,null,null,null,null,null,null,{"$f":"IF($E38=\"\",\"\",VLOOKUP($E38,作業!$AP$8:$AZ$18,10,FALSE))","v":""},"",{"$f":"IF($E38=\"\",\"\",VLOOKUP($E38,作業!$AP$8:$AZ$18,11,FALSE))","v":""},"",null,null,null,null,{"$f":"IF(K38=\"\",\"\",IFERROR(MATCH(K38,引継選択!I:I,0),\"\"))","v":""},null,"",null,null,null,null,null,null,null,null,null,null,null,null,null,null,null,null,null,"","","","","","","",""]
[null,29,null,null,null,null,null,null,null,null,null,{"$f":"IF($E39=\"\",\"\",VLOOKUP($E39,作業!$AP$8:$AZ$18,10,FALSE))","v":""},"",{"$f":"IF($E39=\"\",\"\",VLOOKUP($E39,作業!$AP$8:$AZ$18,11,FALSE))","v":""},"",null,null,null,null,{"$f":"IF(K39=\"\",\"\",IFERROR(MATCH(K39,引継選択!I:I,0),\"\"))","v":""},null,"",null,null,null,null,null,null,null,null,null,null,null,null,null,null,null,null,null,"","","","","","","",""]
[null,30,null,null,null,null,null,null,null,null,null,{"$f":"IF($E40=\"\",\"\",VLOOKUP($E40,作業!$AP$8:$AZ$18,10,FALSE))","v":""},"",{"$f":"IF($E40=\"\",\"\",VLOOKUP($E40,作業!$AP$8:$AZ$18,11,FALSE))","v":""},"",null,null,null,null,{"$f":"IF(K40=\"\",\"\",IFERROR(MATCH(K40,引継選択!I:I,0),\"\"))","v":""},null,"",null,null,null,null,null,null,null,null,null,null,null,null,null,null,null,null,null,"","","","","","","",""]
[null,31,null,null,null,null,null,null,null,null,null,{"$f":"IF($E41=\"\",\"\",VLOOKUP($E41,作業!$AP$8:$AZ$18,10,FALSE))","v":""},"",{"$f":"IF($E41=\"\",\"\",VLOOKUP($E41,作業!$AP$8:$AZ$18,11,FALSE))","v":""},"",null,null,null,null,{"$f":"IF(K41=\"\",\"\",IFERROR(MATCH(K41,引継選択!I:I,0),\"\"))","v":""},null,{"$f":"IF(S41=\"\",\"\",U41)","v":""},null,null,null,null,null,null,null,null,null,null,null,null,null,null,null,null,null,"","","","","","","",""]
[null,32,null,null,null,null,null,null,null,null,null,{"$f":"IF($E42=\"\",\"\",VLOOKUP($E42,作業!$AP$8:$AZ$18,10,FALSE))","v":""},"",{"$f":"IF($E42=\"\",\"\",VLOOKUP($E42,作業!$AP$8:$AZ$18,11,FALSE))","v":""},"",null,null,null,null,{"$f":"IF(K42=\"\",\"\",IFERROR(MATCH(K42,引継選択!I:I,0),\"\"))","v":""},null,"",null,null,null,null,null,null,null,null,null,null,null,null,null,null,null,null,null,"","","","","","","",""]
[null,33,null,null,null,null,null,null,null,null,null,{"$f":"IF($E43=\"\",\"\",VLOOKUP($E43,作業!$AP$8:$AZ$18,10,FALSE))","v":""},{"$f":"IF($E43=\"\",\"\",IF(U43=\"\",9,IF(ABS($B$8-J43)=1,1,9)))","v":""},{"$f":"IF($E43=\"\",\"\",VLOOKUP($E43,作業!$AP$8:$AZ$18,11,FALSE))","v":""},{"$f":"IF(AND($B$8>1,OR(E43=\"DISK-IN\",E43=\"\")),\"○\",\"\")","v":""},null,null,null,null,{"$f":"IF(K43=\"\",\"\",IFERROR(MATCH(K43,引継選択!I:I,0),\"\"))","v":""},null,"",null,null,null,null,null,null,null,null,null,null,null,null,null,null,null,null,null,"","","","","","","",""]
[null,34,null,null,null,null,null,null,null,null,null,{"$f":"IF($E44=\"\",\"\",VLOOKUP($E44,作業!$AP$8:$AZ$18,10,FALSE))","v":""},"",{"$f":"IF($E44=\"\",\"\",VLOOKUP($E44,作業!$AP$8:$AZ$18,11,FALSE))","v":""},"",null,null,null,null,{"$f":"IF(K44=\"\",\"\",IFERROR(MATCH(K44,引継選択!I:I,0),\"\"))","v":""},null,"",null,null,null,null,null,null,null,null,null,null,null,null,null,null,null,null,null,"","","","","","","",""]
[null,35,null,null,null,null,null,null,null,null,null,{"$f":"IF($E45=\"\",\"\",VLOOKUP($E45,作業!$AP$8:$AZ$18,10,FALSE))","v":""},"",{"$f":"IF($E45=\"\",\"\",VLOOKUP($E45,作業!$AP$8:$AZ$18,11,FALSE))","v":""},"",null,null,null,null,{"$f":"IF(K45=\"\",\"\",IFERROR(MATCH(K45,引継選択!I:I,0),\"\"))","v":""},null,"",null,null,null,null,null,null,null,null,null,null,null,null,null,null,null,null,null,"","","","","","","",""]
[null,36,null,null,null,null,null,null,null,null,null,{"$f":"IF($E46=\"\",\"\",VLOOKUP($E46,作業!$AP$8:$AZ$18,10,FALSE))","v":""},"",{"$f":"IF($E46=\"\",\"\",VLOOKUP($E46,作業!$AP$8:$AZ$18,11,FALSE))","v":""},"",null,null,null,null,{"$f":"IF(K46=\"\",\"\",IFERROR(MATCH(K46,引継選択!I:I,0),\"\"))","v":""},null,"",null,null,null,null,null,null,null,null,null,null,null,null,null,null,null,null,null,"","","","","","","",""]
[null,37,null,null,null,null,null,null,null,null,null,{"$f":"IF($E47=\"\",\"\",VLOOKUP($E47,作業!$AP$8:$AZ$18,10,FALSE))","v":""},"",{"$f":"IF($E47=\"\",\"\",VLOOKUP($E47,作業!$AP$8:$AZ$18,11,FALSE))","v":""},"",null,null,null,null,{"$f":"IF(K47=\"\",\"\",IFERROR(MATCH(K47,引継選択!I:I,0),\"\"))","v":""},null,"",null,null,null,null,null,null,null,null,null,null,null,null,null,null,null,null,null,"","","","","","","",""]
[null,38,null,null,null,null,null,null,null,null,null,{"$f":"IF($E48=\"\",\"\",VLOOKUP($E48,作業!$AP$8:$AZ$18,10,FALSE))","v":""},"",{"$f":"IF($E48=\"\",\"\",VLOOKUP($E48,作業!$AP$8:$AZ$18,11,FALSE))","v":""},"",null,null,null,null,{"$f":"IF(K48=\"\",\"\",IFERROR(MATCH(K48,引継選択!I:I,0),\"\"))","v":""},null,"",null,null,null,null,null,null,null,null,null,null,null,null,null,null,null,null,null,"","","","","","","",""]
[null,39,null,null,null,null,null,null,null,null,null,{"$f":"IF($E49=\"\",\"\",VLOOKUP($E49,作業!$AP$8:$AZ$18,10,FALSE))","v":""},"",{"$f":"IF($E49=\"\",\"\",VLOOKUP($E49,作業!$AP$8:$AZ$18,11,FALSE))","v":""},"",null,null,null,null,{"$f":"IF(K49=\"\",\"\",IFERROR(MATCH(K49,引継選択!I:I,0),\"\"))","v":""},null,"",null,null,null,null,null,null,null,null,null,null,null,null,null,null,null,null,null,"","","","","","","",""]
[null,40,null,null,null,null,null,null,null,null,null,{"$f":"IF($E50=\"\",\"\",VLOOKUP($E50,作業!$AP$8:$AZ$18,10,FALSE))","v":""},"",{"$f":"IF($E50=\"\",\"\",VLOOKUP($E50,作業!$AP$8:$AZ$18,11,FALSE))","v":""},"",null,null,null,null,{"$f":"IF(K50=\"\",\"\",IFERROR(MATCH(K50,引継選択!I:I,0),\"\"))","v":""},null,"",null,null,null,null,null,null,null,null,null,null,null,null,null,null,null,null,null,"","","","","","","",""]
[null,41,null,null,null,null,null,null,null,null,null,{"$f":"IF($E51=\"\",\"\",VLOOKUP($E51,作業!$AP$8:$AZ$18,10,FALSE))","v":""},"",{"$f":"IF($E51=\"\",\"\",VLOOKUP($E51,作業!$AP$8:$AZ$18,11,FALSE))","v":""},"",null,null,null,null,{"$f":"IF(K51=\"\",\"\",IFERROR(MATCH(K51,引継選択!I:I,0),\"\"))","v":""},null,{"$f":"IF(S51=\"\",\"\",U51)","v":""},null,null,null,null,null,null,null,null,null,null,null,null,null,null,null,null,null,"","","","","","","",""]
[null,42,null,null,null,null,null,null,null,null,null,{"$f":"IF($E52=\"\",\"\",VLOOKUP($E52,作業!$AP$8:$AZ$18,10,FALSE))","v":""},"",{"$f":"IF($E52=\"\",\"\",VLOOKUP($E52,作業!$AP$8:$AZ$18,11,FALSE))","v":""},"",null,null,null,null,{"$f":"IF(K52=\"\",\"\",IFERROR(MATCH(K52,引継選択!I:I,0),\"\"))","v":""},null,"",null,null,null,null,null,null,null,null,null,null,null,null,null,null,null,null,null,"","","","","","","",""]
[null,43,null,null,null,null,null,null,null,null,null,{"$f":"IF($E53=\"\",\"\",VLOOKUP($E53,作業!$AP$8:$AZ$18,10,FALSE))","v":""},"",{"$f":"IF($E53=\"\",\"\",VLOOKUP($E53,作業!$AP$8:$AZ$18,11,FALSE))","v":""},"",null,null,null,null,{"$f":"IF(K53=\"\",\"\",IFERROR(MATCH(K53,引継選択!I:I,0),\"\"))","v":""},null,"",null,null,null,null,null,null,null,null,null,null,null,null,null,null,null,null,null,"","","","","","","",""]
[null,44,null,null,null,null,null,null,null,null,null,{"$f":"IF($E54=\"\",\"\",VLOOKUP($E54,作業!$AP$8:$AZ$18,10,FALSE))","v":""},"",{"$f":"IF($E54=\"\",\"\",VLOOKUP($E54,作業!$AP$8:$AZ$18,11,FALSE))","v":""},"",null,null,null,null,{"$f":"IF(K54=\"\",\"\",IFERROR(MATCH(K54,引継選択!I:I,0),\"\"))","v":""},null,"",null,null,null,null,null,null,null,null,null,null,null,null,null,null,null,null,null,"","","","","","","",""]
[null,45,null,null,null,null,null,null,null,null,null,{"$f":"IF($E55=\"\",\"\",VLOOKUP($E55,作業!$AP$8:$AZ$18,10,FALSE))","v":""},"",{"$f":"IF($E55=\"\",\"\",VLOOKUP($E55,作業!$AP$8:$AZ$18,11,FALSE))","v":""},"",null,null,null,null,{"$f":"IF(K55=\"\",\"\",IFERROR(MATCH(K55,引継選択!I:I,0),\"\"))","v":""},null,"",null,null,null,null,null,null,null,null,null,null,null,null,null,null,null,null,null,"","","","","","","",""]
[null,46,null,null,null,null,null,null,null,null,null,{"$f":"IF($E56=\"\",\"\",VLOOKUP($E56,作業!$AP$8:$AZ$18,10,FALSE))","v":""},"",{"$f":"IF($E56=\"\",\"\",VLOOKUP($E56,作業!$AP$8:$AZ$18,11,FALSE))","v":""},"",null,null,null,null,{"$f":"IF(K56=\"\",\"\",IFERROR(MATCH(K56,引継選択!I:I,0),\"\"))","v":""},null,"",null,null,null,null,null,null,null,null,null,null,null,null,null,null,null,null,null,"","","","","","","",""]
[null,47,null,null,null,null,null,null,null,null,null,{"$f":"IF($E57=\"\",\"\",VLOOKUP($E57,作業!$AP$8:$AZ$18,10,FALSE))","v":""},"",{"$f":"IF($E57=\"\",\"\",VLOOKUP($E57,作業!$AP$8:$AZ$18,11,FALSE))","v":""},"",null,null,null,null,{"$f":"IF(K57=\"\",\"\",IFERROR(MATCH(K57,引継選択!I:I,0),\"\"))","v":""},null,"",null,null,null,null,null,null,null,null,null,null,null,null,null,null,null,null,null,"","","","","","","",""]
[null,48,null,null,null,null,null,null,null,null,null,{"$f":"IF($E58=\"\",\"\",VLOOKUP($E58,作業!$AP$8:$AZ$18,10,FALSE))","v":""},"",{"$f":"IF($E58=\"\",\"\",VLOOKUP($E58,作業!$AP$8:$AZ$18,11,FALSE))","v":""},"",null,null,null,null,{"$f":"IF(K58=\"\",\"\",IFERROR(MATCH(K58,引継選択!I:I,0),\"\"))","v":""},null,"",null,null,null,null,null,null,null,null,null,null,null,null,null,null,null,null,null,"","","","","","","",""]
[null,49,null,null,null,null,null,null,null,null,null,{"$f":"IF($E59=\"\",\"\",VLOOKUP($E59,作業!$AP$8:$AZ$18,10,FALSE))","v":""},"",{"$f":"IF($E59=\"\",\"\",VLOOKUP($E59,作業!$AP$8:$AZ$18,11,FALSE))","v":""},"",null,null,null,null,{"$f":"IF(K59=\"\",\"\",IFERROR(MATCH(K59,引継選択!I:I,0),\"\"))","v":""},null,"",null,null,null,null,null,null,null,null,null,null,null,null,null,null,null,null,null,"","","","","","","",""]
[null,50,null,null,null,null,null,null,null,null,null,{"$f":"IF($E60=\"\",\"\",VLOOKUP($E60,作業!$AP$8:$AZ$18,10,FALSE))","v":""},"",{"$f":"IF($E60=\"\",\"\",VLOOKUP($E60,作業!$AP$8:$AZ$18,11,FALSE))","v":""},"",null,null,null,null,{"$f":"IF(K60=\"\",\"\",IFERROR(MATCH(K60,引継選択!I:I,0),\"\"))","v":""},null,"",null,null,null,null,null,null,null,null,null,null,null,null,null,null,null,null,null,"","","","","","","",""]

{"sheet":"引継選択","index":2,"n_rows":55,"n_cols":32,"rows_kept":55,"cut":false,"hidden":false,"merged":[[4,27,4,28],[4,11,4,12],[0,23,0,24],[2,27,2,28],[1,4,1,5],[2,4,2,5],[3,30,3,31],[3,15,3,16],[1,2,1,3],[2,2,2,3],[0,4,0,5],[0,8,0,9]]}
[null,null,null,null,"《引継ファイル選択処理》",null,null,null,{"$f":"TODAY()","v":"2020-04-21"}]
[{"$f":"IF(B3=0,\"\",システムフロー作成用情報登録!B8)","v":""},"step","プログラム名",null,"機能内容"]
[{"$f":"IF(B3=0,\"\",IF(B3=システムフロー作成用情報登録!B8-1,\"フロー連結あり\",\"フロー連結なし\"))","v":""},0,{"$f":"IFERROR(VLOOKUP(B3&\"-0\",STEP_ALL!A:G,7,FALSE),\"\")","v":""},null,{"$f":"IFERROR(VLOOKUP(B3&\"-0\",STEP_ALL!A:G,6,FALSE),\"\")","v":""},null,null,null,null,null,null,null,null,null,null,null,null,null,null,null,null,null,null,null,null,null,null,"ｽﾃｯﾌﾟ範囲"]
[null,null,null,null,null,null,null,null,null,null,null,null,null,null,null,"引継仮選択",null,null,null,null,null,null,null,null,null,null,null,{"$f":"AD6","v":""},{"$f":"MAX(AD:AD)","v":0},null,"引継仮選択"]
[null,"№","アクセス名","媒体","ファイル名","FORM名等","備考1","備考２","引継№","選択","№","既存引継№",null,"step","解除なし","№","キー",null,"№","キー","№","ｱｸｾｽ名","媒体","ファイル名","MED名","備考1","備考２","引継№",null,"step","№","キー"]
[1,{"$f":"IFERROR(VLOOKUP($A6,$S:$AD,3,FALSE),\"\")","v":""},{"$f":"IFERROR(VLOOKUP($A6,$S:$AD,4,FALSE),\"\")","v":""},{"$f":"IFERROR(VLOOKUP($A6,$S:$AD,5,FALSE),\"\")","v":""},{"$f":"IFERROR(VLOOKUP($A6,$S:$AD,6,FALSE),\"\")","v":""},{"$f":"IF(IFERROR(VLOOKUP($A6,$S:$AD,7,FALSE),\"\")=0,\"\",IFERROR(VLOOKUP($A6,$S:$AD,7,FALSE),\"\"))","v":""},{"$f":"IF(IFERROR(VLOOKUP($A6,$S:$AD,8,FALSE),\"\")=0,\"\",IFERROR(VLOOKUP($A6,$S:$AD,8,FALSE),\"\"))","v":""},{"$f":"IF(IFERROR(VLOOKUP($A6,$S:$AD,9,FALSE),\"\")=0,\"\",IFERROR(VLOOKUP($A6,$S:$AD,9,FALSE),\"\"))","v":""},null,{"$f":"IF(I6=\"\",\"\",\"選択済\")","v":""},null,{"$f":"IFERROR(VLOOKUP($A6,$S:$AD,10,FALSE),\"\")","v":""},{"$f":"IFERROR(VLOOKUP($A6,$S:$AD,11,FALSE),\"\")","v":""},{"$f":"IFERROR(VLOOKUP($A6,$S:$AD,12,FALSE),\"\")","v":""},{"$f":"IF(I6=\"\",IF(M6=\"\",\"\",IF(システムフロー作成用情報登録!$B$8-$B$3<>1,\"○\",IF(ISERROR(MATCH(M6,システムフロー作成用情報登録!K:K,0))=TRUE,\"\",\"○\"))),IF(ISERROR(MATCH(I6,システムフロー作成用情報登録!K:K,0))=TRUE,\"\",\"○\"))","v":""},{"$f":"IFERROR(VLOOKUP($A6,$S:$AF,13,FALSE),\"\")","v":""},{"$f":"IFERROR(VLOOKUP($A6,$S:$AF,14,FALSE),\"\")","v":""},null,{"$f":"IF(W6=\"DISK-OUT\",IF(W5<>W6,1,S5+1),\"\")","v":""},{"$f":"$B$3&\"-\"&U6","v":"0-1"},1,{"$f":"IFERROR(VLOOKUP($T6,STEP_ALL!$A:$AH,4,FALSE),\"\")","v":""},{"$f":"IFERROR(VLOOKUP($T6,STEP_ALL!$A:$AH,5,FALSE),\"\")","v":""},{"$f":"IFERROR(VLOOKUP($T6,STEP_ALL!$A:$AH,6,FALSE),\"\")","v":""},{"$f":"IFERROR(VLOOKUP($T6,STEP_ALL!$A:$AH,7,FALSE),\"\")","v":""},{"$f":"IFERROR(VLOOKUP($T6,STEP_ALL!$A:$AH,8,FALSE),\"\")","v":""},{"$f":"IFERROR(VLOOKUP($T6,STEP_ALL!$A:$AH,9,FALSE),\"\")","v":""},{"$f":"IF(IFERROR(VLOOKUP($T6,STEP_ALL!$A:$AH,30,FALSE),\"\")=0,\"\",IFERROR(VLOOKUP($T6,STEP_ALL!$A:$AH,30,FALSE),\"\"))","v":""},{"$f":"IF(IFERROR(VLOOKUP($T6,STEP_ALL!$A:$AH,31,FALSE),\"\")=0,\"\",IFERROR(VLOOKUP($T6,STEP_ALL!$A:$AH,31,FALSE),\"\"))","v":""},{"$f":"IFERROR(MATCH(T6,STEP_ALL!A:A,0),\"\")","v":""},{"$f":"IF(IFERROR(VLOOKUP($T6,STEP_ALL!$A:$AK,36,FALSE),\"\")=0,\"\",IFERROR(VLOOKUP($T6,STEP_ALL!$A:$AK,36,FALSE),\"\"))","v":""},{"$f":"IF(IFERROR(VLOOKUP($T6,STEP_ALL!$A:$AK,37,FALSE),\"\")=0,\"\",IFERROR(VLOOKUP($T6,STEP_ALL!$A:$AK,37,FALSE),\"\"))","v":""}]
[{"$f":"A6+1","v":2},"","","","","","","",null,{"$f":"IF(I7=\"\",\"\",\"選択済\")","v":""},null,"","","",{"$f":"IF(I7=\"\",IF(M7=\"\",\"\",IF(システムフロー作成用情報登録!$B$8-$B$3<>1,\"○\",IF(ISERROR(MATCH(M7,システムフロー作成用情報登録!K:K,0))=TRUE,\"\",\"○\"))),IF(ISERROR(MATCH(I7,システムフロー作成用情報登録!K:K,0))=TRUE,\"\",\"○\"))","v":""},"","",null,"","0-2",{"$f":"U6+1","v":2},{"$f":"IFERROR(VLOOKUP($T7,STEP_ALL!$A:$AH,4,FALSE),\"\")","v":""},{"$f":"IFERROR(VLOOKUP($T7,STEP_ALL!$A:$AH,5,FALSE),\"\")","v":""},{"$f":"IFERROR(VLOOKUP($T7,STEP_ALL!$A:$AH,6,FALSE),\"\")","v":""},{"$f":"IFERROR(VLOOKUP($T7,STEP_ALL!$A:$AH,7,FALSE),\"\")","v":""},{"$f":"IFERROR(VLOOKUP($T7,STEP_ALL!$A:$AH,8,FALSE),\"\")","v":""},{"$f":"IFERROR(VLOOKUP($T7,STEP_ALL!$A:$AH,9,FALSE),\"\")","v":""},{"$f":"IF(IFERROR(VLOOKUP($T7,STEP_ALL!$A:$AH,30,FALSE),\"\")=0,\"\",IFERROR(VLOOKUP($T7,STEP_ALL!$A:$AH,30,FALSE),\"\"))","v":""},{"$f":"IF(IFERROR(VLOOKUP($T7,STEP_ALL!$A:$AH,31,FALSE),\"\")=0,\"\",IFERROR(VLOOKUP($T7,STEP_ALL!$A:$AH,31,FALSE),\"\"))","v":""},{"$f":"IFERROR(MATCH(T7,STEP_ALL!A:A,0),\"\")","v":""},{"$f":"IF(IFERROR(VLOOKUP($T7,STEP_ALL!$A:$AK,36,FALSE),\"\")=0,\"\",IFERROR(VLOOKUP($T7,STEP_ALL!$A:$AK,36,FALSE),\"\"))","v":""},{"$f":"IF(IFERROR(VLOOKUP($T7,STEP_ALL!$A:$AK,37,FALSE),\"\")=0,\"\",IFERROR(VLOOKUP($T7,STEP_ALL!$A:$AK,37,FALSE),\"\"))","v":""}]
[{"$f":"A7+1","v":3},"","","","","","","",null,{"$f":"IF(I8=\"\",\"\",\"選択済\")","v":""},null,"","","",{"$f":"IF(I8=\"\",IF(M8=\"\",\"\",IF(システムフロー作成用情報登録!$B$8-$B$3<>1,\"○\",IF(ISERROR(MATCH(M8,システムフロー作成用情報登録!K:K,0))=TRUE,\"\",\"○\"))),IF(ISERROR(MATCH(I8,システムフロー作成用情報登録!K:K,0))=TRUE,\"\",\"○\"))","v":""},"","",null,"","0-3",{"$f":"U7+1","v":3},{"$f":"IFERROR(VLOOKUP($T8,STEP_ALL!$A:$AH,4,FALSE),\"\")","v":""},{"$f":"IFERROR(VLOOKUP($T8,STEP_ALL!$A:$AH,5,FALSE),\"\")","v":""},{"$f":"IFERROR(VLOOKUP($T8,STEP_ALL!$A:$AH,6,FALSE),\"\")","v":""},{"$f":"IFERROR(VLOOKUP($T8,STEP_ALL!$A:$AH,7,FALSE),\"\")","v":""},{"$f":"IFERROR(VLOOKUP($T8,STEP_ALL!$A:$AH,8,FALSE),\"\")","v":""},{"$f":"IFERROR(VLOOKUP($T8,STEP_ALL!$A:$AH,9,FALSE),\"\")","v":""},{"$f":"IF(IFERROR(VLOOKUP($T8,STEP_ALL!$A:$AH,30,FALSE),\"\")=0,\"\",IFERROR(VLOOKUP($T8,STEP_ALL!$A:$AH,30,FALSE),\"\"))","v":""},{"$f":"IF(IFERROR(VLOOKUP($T8,STEP_ALL!$A:$AH,31,FALSE),\"\")=0,\"\",IFERROR(VLOOKUP($T8,STEP_ALL!$A:$AH,31,FALSE),\"\"))","v":""},{"$f":"IFERROR(MATCH(T8,STEP_ALL!A:A,0),\"\")","v":""},{"$f":"IF(IFERROR(VLOOKUP($T8,STEP_ALL!$A:$AK,36,FALSE),\"\")=0,\"\",IFERROR(VLOOKUP($T8,STEP_ALL!$A:$AK,36,FALSE),\"\"))","v":""},{"$f":"IF(IFERROR(VLOOKUP($T8,STEP_ALL!$A:$AK,37,FALSE),\"\")=0,\"\",IFERROR(VLOOKUP($T8,STEP_ALL!$A:$AK,37,FALSE),\"\"))","v":""}]
[4,"","","","","","","",null,{"$f":"IF(I9=\"\",\"\",\"選択済\")","v":""},null,"","","",{"$f":"IF(I9=\"\",IF(M9=\"\",\"\",IF(システムフロー作成用情報登録!$B$8-$B$3<>1,\"○\",IF(ISERROR(MATCH(M9,システムフロー作成用情報登録!K:K,0))=TRUE,\"\",\"○\"))),IF(ISERROR(MATCH(I9,システムフロー作成用情報登録!K:K,0))=TRUE,\"\",\"○\"))","v":""},"","",null,"","0-4",4,{"$f":"IFERROR(VLOOKUP($T9,STEP_ALL!$A:$AH,4,FALSE),\"\")","v":""},{"$f":"IFERROR(VLOOKUP($T9,STEP_ALL!$A:$AH,5,FALSE),\"\")","v":""},{"$f":"IFERROR(VLOOKUP($T9,STEP_ALL!$A:$AH,6,FALSE),\"\")","v":""},{"$f":"IFERROR(VLOOKUP($T9,STEP_ALL!$A:$AH,7,FALSE),\"\")","v":""},{"$f":"IFERROR(VLOOKUP($T9,STEP_ALL!$A:$AH,8,FALSE),\"\")","v":""},{"$f":"IFERROR(VLOOKUP($T9,STEP_ALL!$A:$AH,9,FALSE),\"\")","v":""},{"$f":"IF(IFERROR(VLOOKUP($T9,STEP_ALL!$A:$AH,30,FALSE),\"\")=0,\"\",IFERROR(VLOOKUP($T9,STEP_ALL!$A:$AH,30,FALSE),\"\"))","v":""},{"$f":"IF(IFERROR(VLOOKUP($T9,STEP_ALL!$A:$AH,31,FALSE),\"\")=0,\"\",IFERROR(VLOOKUP($T9,STEP_ALL!$A:$AH,31,FALSE),\"\"))","v":""},{"$f":"IFERROR(MATCH(T9,STEP_ALL!A:A,0),\"\")","v":""},{"$f":"IF(IFERROR(VLOOKUP($T9,STEP_ALL!$A:$AK,36,FALSE),\"\")=0,\"\",IFERROR(VLOOKUP($T9,STEP_ALL!$A:$AK,36,FALSE),\"\"))","v":""},{"$f":"IF(IFERROR(VLOOKUP($T9,STEP_ALL!$A:$AK,37,FALSE),\"\")=0,\"\",IFERROR(VLOOKUP($T9,STEP_ALL!$A:$AK,37,FALSE),\"\"))","v":""}]
[5,"","","","","","","",null,{"$f":"IF(I10=\"\",\"\",\"選択済\")","v":""},null,"","","",{"$f":"IF(I10=\"\",IF(M10=\"\",\"\",IF(システムフロー作成用情報登録!$B$8-$B$3<>1,\"○\",IF(ISERROR(MATCH(M10,システムフロー作成用情報登録!K:K,0))=TRUE,\"\",\"○\"))),IF(ISERROR(MATCH(I10,システムフロー作成用情報登録!K:K,0))=TRUE,\"\",\"○\"))","v":""},"","",null,"","0-5",5,{"$f":"IFERROR(VLOOKUP($T10,STEP_ALL!$A:$AH,4,FALSE),\"\")","v":""},{"$f":"IFERROR(VLOOKUP($T10,STEP_ALL!$A:$AH,5,FALSE),\"\")","v":""},{"$f":"IFERROR(VLOOKUP($T10,STEP_ALL!$A:$AH,6,FALSE),\"\")","v":""},{"$f":"IFERROR(VLOOKUP($T10,STEP_ALL!$A:$AH,7,FALSE),\"\")","v":""},{"$f":"IFERROR(VLOOKUP($T10,STEP_ALL!$A:$AH,8,FALSE),\"\")","v":""},{"$f":"IFERROR(VLOOKUP($T10,STEP_ALL!$A:$AH,9,FALSE),\"\")","v":""},{"$f":"IF(IFERROR(VLOOKUP($T10,STEP_ALL!$A:$AH,30,FALSE),\"\")=0,\"\",IFERROR(VLOOKUP($T10,STEP_ALL!$A:$AH,30,FALSE),\"\"))","v":""},{"$f":"IF(IFERROR(VLOOKUP($T10,STEP_ALL!$A:$AH,31,FALSE),\"\")=0,\"\",IFERROR(VLOOKUP($T10,STEP_ALL!$A:$AH,31,FALSE),\"\"))","v":""},{"$f":"IFERROR(MATCH(T10,STEP_ALL!A:A,0),\"\")","v":""},{"$f":"IF(IFERROR(VLOOKUP($T10,STEP_ALL!$A:$AK,36,FALSE),\"\")=0,\"\",IFERROR(VLOOKUP($T10,STEP_ALL!$A:$AK,36,FALSE),\"\"))","v":""},{"$f":"IF(IFERROR(VLOOKUP($T10,STEP_ALL!$A:$AK,37,FALSE),\"\")=0,\"\",IFERROR(VLOOKUP($T10,STEP_ALL!$A:$AK,37,FALSE),\"\"))","v":""}]
[6,"","","","","","","",null,{"$f":"IF(I11=\"\",\"\",\"選択済\")","v":""},null,"","","",{"$f":"IF(I11=\"\",IF(M11=\"\",\"\",IF(システムフロー作成用情報登録!$B$8-$B$3<>1,\"○\",IF(ISERROR(MATCH(M11,システムフロー作成用情報登録!K:K,0))=TRUE,\"\",\"○\"))),IF(ISERROR(MATCH(I11,システムフロー作成用情報登録!K:K,0))=TRUE,\"\",\"○\"))","v":""},"","",null,"","0-6",6,{"$f":"IFERROR(VLOOKUP($T11,STEP_ALL!$A:$AH,4,FALSE),\"\")","v":""},{"$f":"IFERROR(VLOOKUP($T11,STEP_ALL!$A:$AH,5,FALSE),\"\")","v":""},{"$f":"IFERROR(VLOOKUP($T11,STEP_ALL!$A:$AH,6,FALSE),\"\")","v":""},{"$f":"IFERROR(VLOOKUP($T11,STEP_ALL!$A:$AH,7,FALSE),\"\")","v":""},{"$f":"IFERROR(VLOOKUP($T11,STEP_ALL!$A:$AH,8,FALSE),\"\")","v":""},{"$f":"IFERROR(VLOOKUP($T11,STEP_ALL!$A:$AH,9,FALSE),\"\")","v":""},{"$f":"IF(IFERROR(VLOOKUP($T11,STEP_ALL!$A:$AH,30,FALSE),\"\")=0,\"\",IFERROR(VLOOKUP($T11,STEP_ALL!$A:$AH,30,FALSE),\"\"))","v":""},{"$f":"IF(IFERROR(VLOOKUP($T11,STEP_ALL!$A:$AH,31,FALSE),\"\")=0,\"\",IFERROR(VLOOKUP($T11,STEP_ALL!$A:$AH,31,FALSE),\"\"))","v":""},{"$f":"IFERROR(MATCH(T11,STEP_ALL!A:A,0),\"\")","v":""},{"$f":"IF(IFERROR(VLOOKUP($T11,STEP_ALL!$A:$AK,36,FALSE),\"\")=0,\"\",IFERROR(VLOOKUP($T11,STEP_ALL!$A:$AK,36,FALSE),\"\"))","v":""},{"$f":"IF(IFERROR(VLOOKUP($T11,STEP_ALL!$A:$AK,37,FALSE),\"\")=0,\"\",IFERROR(VLOOKUP($T11,STEP_ALL!$A:$AK,37,FALSE),\"\"))","v":""}]
[7,"","","","","","","",null,{"$f":"IF(I12=\"\",\"\",\"選択済\")","v":""},null,"","","",{"$f":"IF(I12=\"\",IF(M12=\"\",\"\",IF(システムフロー作成用情報登録!$B$8-$B$3<>1,\"○\",IF(ISERROR(MATCH(M12,システムフロー作成用情報登録!K:K,0))=TRUE,\"\",\"○\"))),IF(ISERROR(MATCH(I12,システムフロー作成用情報登録!K:K,0))=TRUE,\"\",\"○\"))","v":""},"","",null,"","0-7",7,{"$f":"IFERROR(VLOOKUP($T12,STEP_ALL!$A:$AH,4,FALSE),\"\")","v":""},{"$f":"IFERROR(VLOOKUP($T12,STEP_ALL!$A:$AH,5,FALSE),\"\")","v":""},{"$f":"IFERROR(VLOOKUP($T12,STEP_ALL!$A:$AH,6,FALSE),\"\")","v":""},{"$f":"IFERROR(VLOOKUP($T12,STEP_ALL!$A:$AH,7,FALSE),\"\")","v":""},{"$f":"IFERROR(VLOOKUP($T12,STEP_ALL!$A:$AH,8,FALSE),\"\")","v":""},{"$f":"IFERROR(VLOOKUP($T12,STEP_ALL!$A:$AH,9,FALSE),\"\")","v":""},{"$f":"IF(IFERROR(VLOOKUP($T12,STEP_ALL!$A:$AH,30,FALSE),\"\")=0,\"\",IFERROR(VLOOKUP($T12,STEP_ALL!$A:$AH,30,FALSE),\"\"))","v":""},{"$f":"IF(IFERROR(VLOOKUP($T12,STEP_ALL!$A:$AH,31,FALSE),\"\")=0,\"\",IFERROR(VLOOKUP($T12,STEP_ALL!$A:$AH,31,FALSE),\"\"))","v":""},{"$f":"IFERROR(MATCH(T12,STEP_ALL!A:A,0),\"\")","v":""},{"$f":"IF(IFERROR(VLOOKUP($T12,STEP_ALL!$A:$AK,36,FALSE),\"\")=0,\"\",IFERROR(VLOOKUP($T12,STEP_ALL!$A:$AK,36,FALSE),\"\"))","v":""},{"$f":"IF(IFERROR(VLOOKUP($T12,STEP_ALL!$A:$AK,37,FALSE),\"\")=0,\"\",IFERROR(VLOOKUP($T12,STEP_ALL!$A:$AK,37,FALSE),\"\"))","v":""}]
[8,"","","","","","","",null,{"$f":"IF(I13=\"\",\"\",\"選択済\")","v":""},null,"","","",{"$f":"IF(I13=\"\",IF(M13=\"\",\"\",IF(システムフロー作成用情報登録!$B$8-$B$3<>1,\"○\",IF(ISERROR(MATCH(M13,システムフロー作成用情報登録!K:K,0))=TRUE,\"\",\"○\"))),IF(ISERROR(MATCH(I13,システムフロー作成用情報登録!K:K,0))=TRUE,\"\",\"○\"))","v":""},"","",null,"","0-8",8,{"$f":"IFERROR(VLOOKUP($T13,STEP_ALL!$A:$AH,4,FALSE),\"\")","v":""},{"$f":"IFERROR(VLOOKUP($T13,STEP_ALL!$A:$AH,5,FALSE),\"\")","v":""},{"$f":"IFERROR(VLOOKUP($T13,STEP_ALL!$A:$AH,6,FALSE),\"\")","v":""},{"$f":"IFERROR(VLOOKUP($T13,STEP_ALL!$A:$AH,7,FALSE),\"\")","v":""},{"$f":"IFERROR(VLOOKUP($T13,STEP_ALL!$A:$AH,8,FALSE),\"\")","v":""},{"$f":"IFERROR(VLOOKUP($T13,STEP_ALL!$A:$AH,9,FALSE),\"\")","v":""},{"$f":"IF(IFERROR(VLOOKUP($T13,STEP_ALL!$A:$AH,30,FALSE),\"\")=0,\"\",IFERROR(VLOOKUP($T13,STEP_ALL!$A:$AH,30,FALSE),\"\"))","v":""},{"$f":"IF(IFERROR(VLOOKUP($T13,STEP_ALL!$A:$AH,31,FALSE),\"\")=0,\"\",IFERROR(VLOOKUP($T13,STEP_ALL!$A:$AH,31,FALSE),\"\"))","v":""},{"$f":"IFERROR(MATCH(T13,STEP_ALL!A:A,0),\"\")","v":""},{"$f":"IF(IFERROR(VLOOKUP($T13,STEP_ALL!$A:$AK,36,FALSE),\"\")=0,\"\",IFERROR(VLOOKUP($T13,STEP_ALL!$A:$AK,36,FALSE),\"\"))","v":""},{"$f":"IF(IFERROR(VLOOKUP($T13,STEP_ALL!$A:$AK,37,FALSE),\"\")=0,\"\",IFERROR(VLOOKUP($T13,STEP_ALL!$A:$AK,37,FALSE),\"\"))","v":""}]
[9,"","","","","","","",null,"",null,"","","",{"$f":"IF(I14=\"\",IF(M14=\"\",\"\",IF(システムフロー作成用情報登録!$B$8-$B$3<>1,\"○\",IF(ISERROR(MATCH(M14,システムフロー作成用情報登録!K:K,0))=TRUE,\"\",\"○\"))),IF(ISERROR(MATCH(I14,システムフロー作成用情報登録!K:K,0))=TRUE,\"\",\"○\"))","v":""},"","",null,"","0-9",9,{"$f":"IFERROR(VLOOKUP($T14,STEP_ALL!$A:$AH,4,FALSE),\"\")","v":""},{"$f":"IFERROR(VLOOKUP($T14,STEP_ALL!$A:$AH,5,FALSE),\"\")","v":""},{"$f":"IFERROR(VLOOKUP($T14,STEP_ALL!$A:$AH,6,FALSE),\"\")","v":""},{"$f":"IFERROR(VLOOKUP($T14,STEP_ALL!$A:$AH,7,FALSE),\"\")","v":""},{"$f":"IFERROR(VLOOKUP($T14,STEP_ALL!$A:$AH,8,FALSE),\"\")","v":""},{"$f":"IFERROR(VLOOKUP($T14,STEP_ALL!$A:$AH,9,FALSE),\"\")","v":""},{"$f":"IF(IFERROR(VLOOKUP($T14,STEP_ALL!$A:$AH,30,FALSE),\"\")=0,\"\",IFERROR(VLOOKUP($T14,STEP_ALL!$A:$AH,30,FALSE),\"\"))","v":""},{"$f":"IF(IFERROR(VLOOKUP($T14,STEP_ALL!$A:$AH,31,FALSE),\"\")=0,\"\",IFERROR(VLOOKUP($T14,STEP_ALL!$A:$AH,31,FALSE),\"\"))","v":""},{"$f":"IFERROR(MATCH(T14,STEP_ALL!A:A,0),\"\")","v":""},{"$f":"IF(IFERROR(VLOOKUP($T14,STEP_ALL!$A:$AK,36,FALSE),\"\")=0,\"\",IFERROR(VLOOKUP($T14,STEP_ALL!$A:$AK,36,FALSE),\"\"))","v":""},{"$f":"IF(IFERROR(VLOOKUP($T14,STEP_ALL!$A:$AK,37,FALSE),\"\")=0,\"\",IFERROR(VLOOKUP($T14,STEP_ALL!$A:$AK,37,FALSE),\"\"))","v":""}]
[10,"","","","","","","",null,{"$f":"IF(I15=\"\",\"\",\"選択済\")","v":""},null,"","","",{"$f":"IF(I15=\"\",IF(M15=\"\",\"\",IF(システムフロー作成用情報登録!$B$8-$B$3<>1,\"○\",IF(ISERROR(MATCH(M15,システムフロー作成用情報登録!K:K,0))=TRUE,\"\",\"○\"))),IF(ISERROR(MATCH(I15,システムフロー作成用情報登録!K:K,0))=TRUE,\"\",\"○\"))","v":""},"","",null,"","0-10",10,{"$f":"IFERROR(VLOOKUP($T15,STEP_ALL!$A:$AH,4,FALSE),\"\")","v":""},{"$f":"IFERROR(VLOOKUP($T15,STEP_ALL!$A:$AH,5,FALSE),\"\")","v":""},{"$f":"IFERROR(VLOOKUP($T15,STEP_ALL!$A:$AH,6,FALSE),\"\")","v":""},{"$f":"IFERROR(VLOOKUP($T15,STEP_ALL!$A:$AH,7,FALSE),\"\")","v":""},{"$f":"IFERROR(VLOOKUP($T15,STEP_ALL!$A:$AH,8,FALSE),\"\")","v":""},{"$f":"IFERROR(VLOOKUP($T15,STEP_ALL!$A:$AH,9,FALSE),\"\")","v":""},{"$f":"IF(IFERROR(VLOOKUP($T15,STEP_ALL!$A:$AH,30,FALSE),\"\")=0,\"\",IFERROR(VLOOKUP($T15,STEP_ALL!$A:$AH,30,FALSE),\"\"))","v":""},{"$f":"IF(IFERROR(VLOOKUP($T15,STEP_ALL!$A:$AH,31,FALSE),\"\")=0,\"\",IFERROR(VLOOKUP($T15,STEP_ALL!$A:$AH,31,FALSE),\"\"))","v":""},{"$f":"IFERROR(MATCH(T15,STEP_ALL!A:A,0),\"\")","v":""},{"$f":"IF(IFERROR(VLOOKUP($T15,STEP_ALL!$A:$AK,36,FALSE),\"\")=0,\"\",IFERROR(VLOOKUP($T15,STEP_ALL!$A:$AK,36,FALSE),\"\"))","v":""},{"$f":"IF(IFERROR(VLOOKUP($T15,STEP_ALL!$A:$AK,37,FALSE),\"\")=0,\"\",IFERROR(VLOOKUP($T15,STEP_ALL!$A:$AK,37,FALSE),\"\"))","v":""}]
[11,"","","","","","","",null,"",null,"","","",{"$f":"IF(I16=\"\",IF(M16=\"\",\"\",IF(システムフロー作成用情報登録!$B$8-$B$3<>1,\"○\",IF(ISERROR(MATCH(M16,システムフロー作成用情報登録!K:K,0))=TRUE,\"\",\"○\"))),IF(ISERROR(MATCH(I16,システムフロー作成用情報登録!K:K,0))=TRUE,\"\",\"○\"))","v":""},"","",null,"","0-11",11,{"$f":"IFERROR(VLOOKUP($T16,STEP_ALL!$A:$AH,4,FALSE),\"\")","v":""},{"$f":"IFERROR(VLOOKUP($T16,STEP_ALL!$A:$AH,5,FALSE),\"\")","v":""},{"$f":"IFERROR(VLOOKUP($T16,STEP_ALL!$A:$AH,6,FALSE),\"\")","v":""},{"$f":"IFERROR(VLOOKUP($T16,STEP_ALL!$A:$AH,7,FALSE),\"\")","v":""},{"$f":"IFERROR(VLOOKUP($T16,STEP_ALL!$A:$AH,8,FALSE),\"\")","v":""},{"$f":"IFERROR(VLOOKUP($T16,STEP_ALL!$A:$AH,9,FALSE),\"\")","v":""},{"$f":"IF(IFERROR(VLOOKUP($T16,STEP_ALL!$A:$AH,30,FALSE),\"\")=0,\"\",IFERROR(VLOOKUP($T16,STEP_ALL!$A:$AH,30,FALSE),\"\"))","v":""},{"$f":"IF(IFERROR(VLOOKUP($T16,STEP_ALL!$A:$AH,31,FALSE),\"\")=0,\"\",IFERROR(VLOOKUP($T16,STEP_ALL!$A:$AH,31,FALSE),\"\"))","v":""},{"$f":"IFERROR(MATCH(T16,STEP_ALL!A:A,0),\"\")","v":""},{"$f":"IF(IFERROR(VLOOKUP($T16,STEP_ALL!$A:$AK,36,FALSE),\"\")=0,\"\",IFERROR(VLOOKUP($T16,STEP_ALL!$A:$AK,36,FALSE),\"\"))","v":""},{"$f":"IF(IFERROR(VLOOKUP($T16,STEP_ALL!$A:$AK,37,FALSE),\"\")=0,\"\",IFERROR(VLOOKUP($T16,STEP_ALL!$A:$AK,37,FALSE),\"\"))","v":""}]
[12,"","","","","","","",null,"",null,"","","",{"$f":"IF(I17=\"\",IF(M17=\"\",\"\",IF(システムフロー作成用情報登録!$B$8-$B$3<>1,\"○\",IF(ISERROR(MATCH(M17,システムフロー作成用情報登録!K:K,0))=TRUE,\"\",\"○\"))),IF(ISERROR(MATCH(I17,システムフロー作成用情報登録!K:K,0))=TRUE,\"\",\"○\"))","v":""},"","",null,"","0-12",12,{"$f":"IFERROR(VLOOKUP($T17,STEP_ALL!$A:$AH,4,FALSE),\"\")","v":""},{"$f":"IFERROR(VLOOKUP($T17,STEP_ALL!$A:$AH,5,FALSE),\"\")","v":""},{"$f":"IFERROR(VLOOKUP($T17,STEP_ALL!$A:$AH,6,FALSE),\"\")","v":""},{"$f":"IFERROR(VLOOKUP($T17,STEP_ALL!$A:$AH,7,FALSE),\"\")","v":""},{"$f":"IFERROR(VLOOKUP($T17,STEP_ALL!$A:$AH,8,FALSE),\"\")","v":""},{"$f":"IFERROR(VLOOKUP($T17,STEP_ALL!$A:$AH,9,FALSE),\"\")","v":""},{"$f":"IF(IFERROR(VLOOKUP($T17,STEP_ALL!$A:$AH,30,FALSE),\"\")=0,\"\",IFERROR(VLOOKUP($T17,STEP_ALL!$A:$AH,30,FALSE),\"\"))","v":""},{"$f":"IF(IFERROR(VLOOKUP($T17,STEP_ALL!$A:$AH,31,FALSE),\"\")=0,\"\",IFERROR(VLOOKUP($T17,STEP_ALL!$A:$AH,31,FALSE),\"\"))","v":""},{"$f":"IFERROR(MATCH(T17,STEP_ALL!A:A,0),\"\")","v":""},{"$f":"IF(IFERROR(VLOOKUP($T17,STEP_ALL!$A:$AK,36,FALSE),\"\")=0,\"\",IFERROR(VLOOKUP($T17,STEP_ALL!$A:$AK,36,FALSE),\"\"))","v":""},{"$f":"IF(IFERROR(VLOOKUP($T17,STEP_ALL!$A:$AK,37,FALSE),\"\")=0,\"\",IFERROR(VLOOKUP($T17,STEP_ALL!$A:$AK,37,FALSE),\"\"))","v":""}]
[13,"","","","","","","",null,"",null,"","","",{"$f":"IF(I18=\"\",IF(M18=\"\",\"\",IF(システムフロー作成用情報登録!$B$8-$B$3<>1,\"○\",IF(ISERROR(MATCH(M18,システムフロー作成用情報登録!K:K,0))=TRUE,\"\",\"○\"))),IF(ISERROR(MATCH(I18,システムフロー作成用情報登録!K:K,0))=TRUE,\"\",\"○\"))","v":""},"","",null,"","0-13",13,{"$f":"IFERROR(VLOOKUP($T18,STEP_ALL!$A:$AH,4,FALSE),\"\")","v":""},{"$f":"IFERROR(VLOOKUP($T18,STEP_ALL!$A:$AH,5,FALSE),\"\")","v":""},{"$f":"IFERROR(VLOOKUP($T18,STEP_ALL!$A:$AH,6,FALSE),\"\")","v":""},{"$f":"IFERROR(VLOOKUP($T18,STEP_ALL!$A:$AH,7,FALSE),\"\")","v":""},{"$f":"IFERROR(VLOOKUP($T18,STEP_ALL!$A:$AH,8,FALSE),\"\")","v":""},{"$f":"IFERROR(VLOOKUP($T18,STEP_ALL!$A:$AH,9,FALSE),\"\")","v":""},{"$f":"IF(IFERROR(VLOOKUP($T18,STEP_ALL!$A:$AH,30,FALSE),\"\")=0,\"\",IFERROR(VLOOKUP($T18,STEP_ALL!$A:$AH,30,FALSE),\"\"))","v":""},{"$f":"IF(IFERROR(VLOOKUP($T18,STEP_ALL!$A:$AH,31,FALSE),\"\")=0,\"\",IFERROR(VLOOKUP($T18,STEP_ALL!$A:$AH,31,FALSE),\"\"))","v":""},{"$f":"IFERROR(MATCH(T18,STEP_ALL!A:A,0),\"\")","v":""},{"$f":"IF(IFERROR(VLOOKUP($T18,STEP_ALL!$A:$AK,36,FALSE),\"\")=0,\"\",IFERROR(VLOOKUP($T18,STEP_ALL!$A:$AK,36,FALSE),\"\"))","v":""},{"$f":"IF(IFERROR(VLOOKUP($T18,STEP_ALL!$A:$AK,37,FALSE),\"\")=0,\"\",IFERROR(VLOOKUP($T18,STEP_ALL!$A:$AK,37,FALSE),\"\"))","v":""}]
[14,"","","","","","","",null,"",null,"","","",{"$f":"IF(I19=\"\",IF(M19=\"\",\"\",IF(システムフロー作成用情報登録!$B$8-$B$3<>1,\"○\",IF(ISERROR(MATCH(M19,システムフロー作成用情報登録!K:K,0))=TRUE,\"\",\"○\"))),IF(ISERROR(MATCH(I19,システムフロー作成用情報登録!K:K,0))=TRUE,\"\",\"○\"))","v":""},"","",null,"","0-14",14,{"$f":"IFERROR(VLOOKUP($T19,STEP_ALL!$A:$AH,4,FALSE),\"\")","v":""},{"$f":"IFERROR(VLOOKUP($T19,STEP_ALL!$A:$AH,5,FALSE),\"\")","v":""},{"$f":"IFERROR(VLOOKUP($T19,STEP_ALL!$A:$AH,6,FALSE),\"\")","v":""},{"$f":"IFERROR(VLOOKUP($T19,STEP_ALL!$A:$AH,7,FALSE),\"\")","v":""},{"$f":"IFERROR(VLOOKUP($T19,STEP_ALL!$A:$AH,8,FALSE),\"\")","v":""},{"$f":"IFERROR(VLOOKUP($T19,STEP_ALL!$A:$AH,9,FALSE),\"\")","v":""},{"$f":"IF(IFERROR(VLOOKUP($T19,STEP_ALL!$A:$AH,30,FALSE),\"\")=0,\"\",IFERROR(VLOOKUP($T19,STEP_ALL!$A:$AH,30,FALSE),\"\"))","v":""},{"$f":"IF(IFERROR(VLOOKUP($T19,STEP_ALL!$A:$AH,31,FALSE),\"\")=0,\"\",IFERROR(VLOOKUP($T19,STEP_ALL!$A:$AH,31,FALSE),\"\"))","v":""},{"$f":"IFERROR(MATCH(T19,STEP_ALL!A:A,0),\"\")","v":""},{"$f":"IF(IFERROR(VLOOKUP($T19,STEP_ALL!$A:$AK,36,FALSE),\"\")=0,\"\",IFERROR(VLOOKUP($T19,STEP_ALL!$A:$AK,36,FALSE),\"\"))","v":""},{"$f":"IF(IFERROR(VLOOKUP($T19,STEP_ALL!$A:$AK,37,FALSE),\"\")=0,\"\",IFERROR(VLOOKUP($T19,STEP_ALL!$A:$AK,37,FALSE),\"\"))","v":""}]
[15,"","","","","","","",null,"",null,"","","",{"$f":"IF(I20=\"\",IF(M20=\"\",\"\",IF(システムフロー作成用情報登録!$B$8-$B$3<>1,\"○\",IF(ISERROR(MATCH(M20,システムフロー作成用情報登録!K:K,0))=TRUE,\"\",\"○\"))),IF(ISERROR(MATCH(I20,システムフロー作成用情報登録!K:K,0))=TRUE,\"\",\"○\"))","v":""},"","",null,"","0-15",15,{"$f":"IFERROR(VLOOKUP($T20,STEP_ALL!$A:$AH,4,FALSE),\"\")","v":""},{"$f":"IFERROR(VLOOKUP($T20,STEP_ALL!$A:$AH,5,FALSE),\"\")","v":""},{"$f":"IFERROR(VLOOKUP($T20,STEP_ALL!$A:$AH,6,FALSE),\"\")","v":""},{"$f":"IFERROR(VLOOKUP($T20,STEP_ALL!$A:$AH,7,FALSE),\"\")","v":""},{"$f":"IFERROR(VLOOKUP($T20,STEP_ALL!$A:$AH,8,FALSE),\"\")","v":""},{"$f":"IFERROR(VLOOKUP($T20,STEP_ALL!$A:$AH,9,FALSE),\"\")","v":""},{"$f":"IF(IFERROR(VLOOKUP($T20,STEP_ALL!$A:$AH,30,FALSE),\"\")=0,\"\",IFERROR(VLOOKUP($T20,STEP_ALL!$A:$AH,30,FALSE),\"\"))","v":""},{"$f":"IF(IFERROR(VLOOKUP($T20,STEP_ALL!$A:$AH,31,FALSE),\"\")=0,\"\",IFERROR(VLOOKUP($T20,STEP_ALL!$A:$AH,31,FALSE),\"\"))","v":""},{"$f":"IFERROR(MATCH(T20,STEP_ALL!A:A,0),\"\")","v":""},{"$f":"IF(IFERROR(VLOOKUP($T20,STEP_ALL!$A:$AK,36,FALSE),\"\")=0,\"\",IFERROR(VLOOKUP($T20,STEP_ALL!$A:$AK,36,FALSE),\"\"))","v":""},{"$f":"IF(IFERROR(VLOOKUP($T20,STEP_ALL!$A:$AK,37,FALSE),\"\")=0,\"\",IFERROR(VLOOKUP($T20,STEP_ALL!$A:$AK,37,FALSE),\"\"))","v":""}]
[16,"","","","","","","",null,{"$f":"IF(I21=\"\",\"\",\"選択済\")","v":""},null,"","","",{"$f":"IF(I21=\"\",IF(M21=\"\",\"\",IF(システムフロー作成用情報登録!$B$8-$B$3<>1,\"○\",IF(ISERROR(MATCH(M21,システムフロー作成用情報登録!K:K,0))=TRUE,\"\",\"○\"))),IF(ISERROR(MATCH(I21,システムフロー作成用情報登録!K:K,0))=TRUE,\"\",\"○\"))","v":""},"","",null,"","0-16",16,{"$f":"IFERROR(VLOOKUP($T21,STEP_ALL!$A:$AH,4,FALSE),\"\")","v":""},{"$f":"IFERROR(VLOOKUP($T21,STEP_ALL!$A:$AH,5,FALSE),\"\")","v":""},{"$f":"IFERROR(VLOOKUP($T21,STEP_ALL!$A:$AH,6,FALSE),\"\")","v":""},{"$f":"IFERROR(VLOOKUP($T21,STEP_ALL!$A:$AH,7,FALSE),\"\")","v":""},{"$f":"IFERROR(VLOOKUP($T21,STEP_ALL!$A:$AH,8,FALSE),\"\")","v":""},{"$f":"IFERROR(VLOOKUP($T21,STEP_ALL!$A:$AH,9,FALSE),\"\")","v":""},{"$f":"IF(IFERROR(VLOOKUP($T21,STEP_ALL!$A:$AH,30,FALSE),\"\")=0,\"\",IFERROR(VLOOKUP($T21,STEP_ALL!$A:$AH,30,FALSE),\"\"))","v":""},{"$f":"IF(IFERROR(VLOOKUP($T21,STEP_ALL!$A:$AH,31,FALSE),\"\")=0,\"\",IFERROR(VLOOKUP($T21,STEP_ALL!$A:$AH,31,FALSE),\"\"))","v":""},{"$f":"IFERROR(MATCH(T21,STEP_ALL!A:A,0),\"\")","v":""},{"$f":"IF(IFERROR(VLOOKUP($T21,STEP_ALL!$A:$AK,36,FALSE),\"\")=0,\"\",IFERROR(VLOOKUP($T21,STEP_ALL!$A:$AK,36,FALSE),\"\"))","v":""},{"$f":"IF(IFERROR(VLOOKUP($T21,STEP_ALL!$A:$AK,37,FALSE),\"\")=0,\"\",IFERROR(VLOOKUP($T21,STEP_ALL!$A:$AK,37,FALSE),\"\"))","v":""}]
[17,"","","","","","","",null,"",null,"","","",{"$f":"IF(I22=\"\",IF(M22=\"\",\"\",IF(システムフロー作成用情報登録!$B$8-$B$3<>1,\"○\",IF(ISERROR(MATCH(M22,システムフロー作成用情報登録!K:K,0))=TRUE,\"\",\"○\"))),IF(ISERROR(MATCH(I22,システムフロー作成用情報登録!K:K,0))=TRUE,\"\",\"○\"))","v":""},"","",null,"","0-17",17,{"$f":"IFERROR(VLOOKUP($T22,STEP_ALL!$A:$AH,4,FALSE),\"\")","v":""},{"$f":"IFERROR(VLOOKUP($T22,STEP_ALL!$A:$AH,5,FALSE),\"\")","v":""},{"$f":"IFERROR(VLOOKUP($T22,STEP_ALL!$A:$AH,6,FALSE),\"\")","v":""},{"$f":"IFERROR(VLOOKUP($T22,STEP_ALL!$A:$AH,7,FALSE),\"\")","v":""},{"$f":"IFERROR(VLOOKUP($T22,STEP_ALL!$A:$AH,8,FALSE),\"\")","v":""},{"$f":"IFERROR(VLOOKUP($T22,STEP_ALL!$A:$AH,9,FALSE),\"\")","v":""},{"$f":"IF(IFERROR(VLOOKUP($T22,STEP_ALL!$A:$AH,30,FALSE),\"\")=0,\"\",IFERROR(VLOOKUP($T22,STEP_ALL!$A:$AH,30,FALSE),\"\"))","v":""},{"$f":"IF(IFERROR(VLOOKUP($T22,STEP_ALL!$A:$AH,31,FALSE),\"\")=0,\"\",IFERROR(VLOOKUP($T22,STEP_ALL!$A:$AH,31,FALSE),\"\"))","v":""},{"$f":"IFERROR(MATCH(T22,STEP_ALL!A:A,0),\"\")","v":""},{"$f":"IF(IFERROR(VLOOKUP($T22,STEP_ALL!$A:$AK,36,FALSE),\"\")=0,\"\",IFERROR(VLOOKUP($T22,STEP_ALL!$A:$AK,36,FALSE),\"\"))","v":""},{"$f":"IF(IFERROR(VLOOKUP($T22,STEP_ALL!$A:$AK,37,FALSE),\"\")=0,\"\",IFERROR(VLOOKUP($T22,STEP_ALL!$A:$AK,37,FALSE),\"\"))","v":""}]
[18,"","","","","","","",null,"",null,"","","",{"$f":"IF(I23=\"\",IF(M23=\"\",\"\",IF(システムフロー作成用情報登録!$B$8-$B$3<>1,\"○\",IF(ISERROR(MATCH(M23,システムフロー作成用情報登録!K:K,0))=TRUE,\"\",\"○\"))),IF(ISERROR(MATCH(I23,システムフロー作成用情報登録!K:K,0))=TRUE,\"\",\"○\"))","v":""},"","",null,"","0-18",18,{"$f":"IFERROR(VLOOKUP($T23,STEP_ALL!$A:$AH,4,FALSE),\"\")","v":""},{"$f":"IFERROR(VLOOKUP($T23,STEP_ALL!$A:$AH,5,FALSE),\"\")","v":""},{"$f":"IFERROR(VLOOKUP($T23,STEP_ALL!$A:$AH,6,FALSE),\"\")","v":""},{"$f":"IFERROR(VLOOKUP($T23,STEP_ALL!$A:$AH,7,FALSE),\"\")","v":""},{"$f":"IFERROR(VLOOKUP($T23,STEP_ALL!$A:$AH,8,FALSE),\"\")","v":""},{"$f":"IFERROR(VLOOKUP($T23,STEP_ALL!$A:$AH,9,FALSE),\"\")","v":""},{"$f":"IF(IFERROR(VLOOKUP($T23,STEP_ALL!$A:$AH,30,FALSE),\"\")=0,\"\",IFERROR(VLOOKUP($T23,STEP_ALL!$A:$AH,30,FALSE),\"\"))","v":""},{"$f":"IF(IFERROR(VLOOKUP($T23,STEP_ALL!$A:$AH,31,FALSE),\"\")=0,\"\",IFERROR(VLOOKUP($T23,STEP_ALL!$A:$AH,31,FALSE),\"\"))","v":""},{"$f":"IFERROR(MATCH(T23,STEP_ALL!A:A,0),\"\")","v":""},{"$f":"IF(IFERROR(VLOOKUP($T23,STEP_ALL!$A:$AK,36,FALSE),\"\")=0,\"\",IFERROR(VLOOKUP($T23,STEP_ALL!$A:$AK,36,FALSE),\"\"))","v":""},{"$f":"IF(IFERROR(VLOOKUP($T23,STEP_ALL!$A:$AK,37,FALSE),\"\")=0,\"\",IFERROR(VLOOKUP($T23,STEP_ALL!$A:$AK,37,FALSE),\"\"))","v":""}]
[19,"","","","","","","",null,"",null,"","","",{"$f":"IF(I24=\"\",IF(M24=\"\",\"\",IF(システムフロー作成用情報登録!$B$8-$B$3<>1,\"○\",IF(ISERROR(MATCH(M24,システムフロー作成用情報登録!K:K,0))=TRUE,\"\",\"○\"))),IF(ISERROR(MATCH(I24,システムフロー作成用情報登録!K:K,0))=TRUE,\"\",\"○\"))","v":""},"","",null,"","0-19",19,{"$f":"IFERROR(VLOOKUP($T24,STEP_ALL!$A:$AH,4,FALSE),\"\")","v":""},{"$f":"IFERROR(VLOOKUP($T24,STEP_ALL!$A:$AH,5,FALSE),\"\")","v":""},{"$f":"IFERROR(VLOOKUP($T24,STEP_ALL!$A:$AH,6,FALSE),\"\")","v":""},{"$f":"IFERROR(VLOOKUP($T24,STEP_ALL!$A:$AH,7,FALSE),\"\")","v":""},{"$f":"IFERROR(VLOOKUP($T24,STEP_ALL!$A:$AH,8,FALSE),\"\")","v":""},{"$f":"IFERROR(VLOOKUP($T24,STEP_ALL!$A:$AH,9,FALSE),\"\")","v":""},{"$f":"IF(IFERROR(VLOOKUP($T24,STEP_ALL!$A:$AH,30,FALSE),\"\")=0,\"\",IFERROR(VLOOKUP($T24,STEP_ALL!$A:$AH,30,FALSE),\"\"))","v":""},{"$f":"IF(IFERROR(VLOOKUP($T24,STEP_ALL!$A:$AH,31,FALSE),\"\")=0,\"\",IFERROR(VLOOKUP($T24,STEP_ALL!$A:$AH,31,FALSE),\"\"))","v":""},{"$f":"IFERROR(MATCH(T24,STEP_ALL!A:A,0),\"\")","v":""},{"$f":"IF(IFERROR(VLOOKUP($T24,STEP_ALL!$A:$AK,36,FALSE),\"\")=0,\"\",IFERROR(VLOOKUP($T24,STEP_ALL!$A:$AK,36,FALSE),\"\"))","v":""},{"$f":"IF(IFERROR(VLOOKUP($T24,STEP_ALL!$A:$AK,37,FALSE),\"\")=0,\"\",IFERROR(VLOOKUP($T24,STEP_ALL!$A:$AK,37,FALSE),\"\"))","v":""}]
[20,"","","","","","","",null,"",null,"","","",{"$f":"IF(I25=\"\",IF(M25=\"\",\"\",IF(システムフロー作成用情報登録!$B$8-$B$3<>1,\"○\",IF(ISERROR(MATCH(M25,システムフロー作成用情報登録!K:K,0))=TRUE,\"\",\"○\"))),IF(ISERROR(MATCH(I25,システムフロー作成用情報登録!K:K,0))=TRUE,\"\",\"○\"))","v":""},"","",null,"","0-20",20,{"$f":"IFERROR(VLOOKUP($T25,STEP_ALL!$A:$AH,4,FALSE),\"\")","v":""},{"$f":"IFERROR(VLOOKUP($T25,STEP_ALL!$A:$AH,5,FALSE),\"\")","v":""},{"$f":"IFERROR(VLOOKUP($T25,STEP_ALL!$A:$AH,6,FALSE),\"\")","v":""},{"$f":"IFERROR(VLOOKUP($T25,STEP_ALL!$A:$AH,7,FALSE),\"\")","v":""},{"$f":"IFERROR(VLOOKUP($T25,STEP_ALL!$A:$AH,8,FALSE),\"\")","v":""},{"$f":"IFERROR(VLOOKUP($T25,STEP_ALL!$A:$AH,9,FALSE),\"\")","v":""},{"$f":"IF(IFERROR(VLOOKUP($T25,STEP_ALL!$A:$AH,30,FALSE),\"\")=0,\"\",IFERROR(VLOOKUP($T25,STEP_ALL!$A:$AH,30,FALSE),\"\"))","v":""},{"$f":"IF(IFERROR(VLOOKUP($T25,STEP_ALL!$A:$AH,31,FALSE),\"\")=0,\"\",IFERROR(VLOOKUP($T25,STEP_ALL!$A:$AH,31,FALSE),\"\"))","v":""},{"$f":"IFERROR(MATCH(T25,STEP_ALL!A:A,0),\"\")","v":""},{"$f":"IF(IFERROR(VLOOKUP($T25,STEP_ALL!$A:$AK,36,FALSE),\"\")=0,\"\",IFERROR(VLOOKUP($T25,STEP_ALL!$A:$AK,36,FALSE),\"\"))","v":""},{"$f":"IF(IFERROR(VLOOKUP($T25,STEP_ALL!$A:$AK,37,FALSE),\"\")=0,\"\",IFERROR(VLOOKUP($T25,STEP_ALL!$A:$AK,37,FALSE),\"\"))","v":""}]
[21,"","","","","","","",null,"",null,"","","",{"$f":"IF(I26=\"\",IF(M26=\"\",\"\",IF(システムフロー作成用情報登録!$B$8-$B$3<>1,\"○\",IF(ISERROR(MATCH(M26,システムフロー作成用情報登録!K:K,0))=TRUE,\"\",\"○\"))),IF(ISERROR(MATCH(I26,システムフロー作成用情報登録!K:K,0))=TRUE,\"\",\"○\"))","v":""},"","",null,"","0-21",21,{"$f":"IFERROR(VLOOKUP($T26,STEP_ALL!$A:$AH,4,FALSE),\"\")","v":""},{"$f":"IFERROR(VLOOKUP($T26,STEP_ALL!$A:$AH,5,FALSE),\"\")","v":""},{"$f":"IFERROR(VLOOKUP($T26,STEP_ALL!$A:$AH,6,FALSE),\"\")","v":""},{"$f":"IFERROR(VLOOKUP($T26,STEP_ALL!$A:$AH,7,FALSE),\"\")","v":""},{"$f":"IFERROR(VLOOKUP($T26,STEP_ALL!$A:$AH,8,FALSE),\"\")","v":""},{"$f":"IFERROR(VLOOKUP($T26,STEP_ALL!$A:$AH,9,FALSE),\"\")","v":""},{"$f":"IF(IFERROR(VLOOKUP($T26,STEP_ALL!$A:$AH,30,FALSE),\"\")=0,\"\",IFERROR(VLOOKUP($T26,STEP_ALL!$A:$AH,30,FALSE),\"\"))","v":""},{"$f":"IF(IFERROR(VLOOKUP($T26,STEP_ALL!$A:$AH,31,FALSE),\"\")=0,\"\",IFERROR(VLOOKUP($T26,STEP_ALL!$A:$AH,31,FALSE),\"\"))","v":""},{"$f":"IFERROR(MATCH(T26,STEP_ALL!A:A,0),\"\")","v":""},{"$f":"IF(IFERROR(VLOOKUP($T26,STEP_ALL!$A:$AK,36,FALSE),\"\")=0,\"\",IFERROR(VLOOKUP($T26,STEP_ALL!$A:$AK,36,FALSE),\"\"))","v":""},{"$f":"IF(IFERROR(VLOOKUP($T26,STEP_ALL!$A:$AK,37,FALSE),\"\")=0,\"\",IFERROR(VLOOKUP($T26,STEP_ALL!$A:$AK,37,FALSE),\"\"))","v":""}]
[22,"","","","","","","",null,"",null,"","","",{"$f":"IF(I27=\"\",IF(M27=\"\",\"\",IF(システムフロー作成用情報登録!$B$8-$B$3<>1,\"○\",IF(ISERROR(MATCH(M27,システムフロー作成用情報登録!K:K,0))=TRUE,\"\",\"○\"))),IF(ISERROR(MATCH(I27,システムフロー作成用情報登録!K:K,0))=TRUE,\"\",\"○\"))","v":""},"","",null,"","0-22",22,{"$f":"IFERROR(VLOOKUP($T27,STEP_ALL!$A:$AH,4,FALSE),\"\")","v":""},{"$f":"IFERROR(VLOOKUP($T27,STEP_ALL!$A:$AH,5,FALSE),\"\")","v":""},{"$f":"IFERROR(VLOOKUP($T27,STEP_ALL!$A:$AH,6,FALSE),\"\")","v":""},{"$f":"IFERROR(VLOOKUP($T27,STEP_ALL!$A:$AH,7,FALSE),\"\")","v":""},{"$f":"IFERROR(VLOOKUP($T27,STEP_ALL!$A:$AH,8,FALSE),\"\")","v":""},{"$f":"IFERROR(VLOOKUP($T27,STEP_ALL!$A:$AH,9,FALSE),\"\")","v":""},{"$f":"IF(IFERROR(VLOOKUP($T27,STEP_ALL!$A:$AH,30,FALSE),\"\")=0,\"\",IFERROR(VLOOKUP($T27,STEP_ALL!$A:$AH,30,FALSE),\"\"))","v":""},{"$f":"IF(IFERROR(VLOOKUP($T27,STEP_ALL!$A:$AH,31,FALSE),\"\")=0,\"\",IFERROR(VLOOKUP($T27,STEP_ALL!$A:$AH,31,FALSE),\"\"))","v":""},{"$f":"IFERROR(MATCH(T27,STEP_ALL!A:A,0),\"\")","v":""},{"$f":"IF(IFERROR(VLOOKUP($T27,STEP_ALL!$A:$AK,36,FALSE),\"\")=0,\"\",IFERROR(VLOOKUP($T27,STEP_ALL!$A:$AK,36,FALSE),\"\"))","v":""},{"$f":"IF(IFERROR(VLOOKUP($T27,STEP_ALL!$A:$AK,37,FALSE),\"\")=0,\"\",IFERROR(VLOOKUP($T27,STEP_ALL!$A:$AK,37,FALSE),\"\"))","v":""}]
[23,"","","","","","","",null,"",null,"","","",{"$f":"IF(I28=\"\",IF(M28=\"\",\"\",IF(システムフロー作成用情報登録!$B$8-$B$3<>1,\"○\",IF(ISERROR(MATCH(M28,システムフロー作成用情報登録!K:K,0))=TRUE,\"\",\"○\"))),IF(ISERROR(MATCH(I28,システムフロー作成用情報登録!K:K,0))=TRUE,\"\",\"○\"))","v":""},"","",null,"","0-23",23,{"$f":"IFERROR(VLOOKUP($T28,STEP_ALL!$A:$AH,4,FALSE),\"\")","v":""},{"$f":"IFERROR(VLOOKUP($T28,STEP_ALL!$A:$AH,5,FALSE),\"\")","v":""},{"$f":"IFERROR(VLOOKUP($T28,STEP_ALL!$A:$AH,6,FALSE),\"\")","v":""},{"$f":"IFERROR(VLOOKUP($T28,STEP_ALL!$A:$AH,7,FALSE),\"\")","v":""},{"$f":"IFERROR(VLOOKUP($T28,STEP_ALL!$A:$AH,8,FALSE),\"\")","v":""},{"$f":"IFERROR(VLOOKUP($T28,STEP_ALL!$A:$AH,9,FALSE),\"\")","v":""},{"$f":"IF(IFERROR(VLOOKUP($T28,STEP_ALL!$A:$AH,30,FALSE),\"\")=0,\"\",IFERROR(VLOOKUP($T28,STEP_ALL!$A:$AH,30,FALSE),\"\"))","v":""},{"$f":"IF(IFERROR(VLOOKUP($T28,STEP_ALL!$A:$AH,31,FALSE),\"\")=0,\"\",IFERROR(VLOOKUP($T28,STEP_ALL!$A:$AH,31,FALSE),\"\"))","v":""},{"$f":"IFERROR(MATCH(T28,STEP_ALL!A:A,0),\"\")","v":""},{"$f":"IF(IFERROR(VLOOKUP($T28,STEP_ALL!$A:$AK,36,FALSE),\"\")=0,\"\",IFERROR(VLOOKUP($T28,STEP_ALL!$A:$AK,36,FALSE),\"\"))","v":""},{"$f":"IF(IFERROR(VLOOKUP($T28,STEP_ALL!$A:$AK,37,FALSE),\"\")=0,\"\",IFERROR(VLOOKUP($T28,STEP_ALL!$A:$AK,37,FALSE),\"\"))","v":""}]
[24,"","","","","","","",null,"",null,"","","",{"$f":"IF(I29=\"\",IF(M29=\"\",\"\",IF(システムフロー作成用情報登録!$B$8-$B$3<>1,\"○\",IF(ISERROR(MATCH(M29,システムフロー作成用情報登録!K:K,0))=TRUE,\"\",\"○\"))),IF(ISERROR(MATCH(I29,システムフロー作成用情報登録!K:K,0))=TRUE,\"\",\"○\"))","v":""},"","",null,"","0-24",24,{"$f":"IFERROR(VLOOKUP($T29,STEP_ALL!$A:$AH,4,FALSE),\"\")","v":""},{"$f":"IFERROR(VLOOKUP($T29,STEP_ALL!$A:$AH,5,FALSE),\"\")","v":""},{"$f":"IFERROR(VLOOKUP($T29,STEP_ALL!$A:$AH,6,FALSE),\"\")","v":""},{"$f":"IFERROR(VLOOKUP($T29,STEP_ALL!$A:$AH,7,FALSE),\"\")","v":""},{"$f":"IFERROR(VLOOKUP($T29,STEP_ALL!$A:$AH,8,FALSE),\"\")","v":""},{"$f":"IFERROR(VLOOKUP($T29,STEP_ALL!$A:$AH,9,FALSE),\"\")","v":""},{"$f":"IF(IFERROR(VLOOKUP($T29,STEP_ALL!$A:$AH,30,FALSE),\"\")=0,\"\",IFERROR(VLOOKUP($T29,STEP_ALL!$A:$AH,30,FALSE),\"\"))","v":""},{"$f":"IF(IFERROR(VLOOKUP($T29,STEP_ALL!$A:$AH,31,FALSE),\"\")=0,\"\",IFERROR(VLOOKUP($T29,STEP_ALL!$A:$AH,31,FALSE),\"\"))","v":""},{"$f":"IFERROR(MATCH(T29,STEP_ALL!A:A,0),\"\")","v":""},{"$f":"IF(IFERROR(VLOOKUP($T29,STEP_ALL!$A:$AK,36,FALSE),\"\")=0,\"\",IFERROR(VLOOKUP($T29,STEP_ALL!$A:$AK,36,FALSE),\"\"))","v":""},{"$f":"IF(IFERROR(VLOOKUP($T29,STEP_ALL!$A:$AK,37,FALSE),\"\")=0,\"\",IFERROR(VLOOKUP($T29,STEP_ALL!$A:$AK,37,FALSE),\"\"))","v":""}]
[25,"","","","","","","",null,"",null,"","","",{"$f":"IF(I30=\"\",IF(M30=\"\",\"\",IF(システムフロー作成用情報登録!$B$8-$B$3<>1,\"○\",IF(ISERROR(MATCH(M30,システムフロー作成用情報登録!K:K,0))=TRUE,\"\",\"○\"))),IF(ISERROR(MATCH(I30,システムフロー作成用情報登録!K:K,0))=TRUE,\"\",\"○\"))","v":""},"","",null,"",{"$f":"$B$3&\"-\"&U30","v":"0-25"},25,{"$f":"IFERROR(VLOOKUP($T30,STEP_ALL!$A:$AH,4,FALSE),\"\")","v":""},{"$f":"IFERROR(VLOOKUP($T30,STEP_ALL!$A:$AH,5,FALSE),\"\")","v":""},{"$f":"IFERROR(VLOOKUP($T30,STEP_ALL!$A:$AH,6,FALSE),\"\")","v":""},{"$f":"IFERROR(VLOOKUP($T30,STEP_ALL!$A:$AH,7,FALSE),\"\")","v":""},{"$f":"IFERROR(VLOOKUP($T30,STEP_ALL!$A:$AH,8,FALSE),\"\")","v":""},{"$f":"IFERROR(VLOOKUP($T30,STEP_ALL!$A:$AH,9,FALSE),\"\")","v":""},{"$f":"IF(IFERROR(VLOOKUP($T30,STEP_ALL!$A:$AH,30,FALSE),\"\")=0,\"\",IFERROR(VLOOKUP($T30,STEP_ALL!$A:$AH,30,FALSE),\"\"))","v":""},{"$f":"IF(IFERROR(VLOOKUP($T30,STEP_ALL!$A:$AH,31,FALSE),\"\")=0,\"\",IFERROR(VLOOKUP($T30,STEP_ALL!$A:$AH,31,FALSE),\"\"))","v":""},{"$f":"IFERROR(MATCH(T30,STEP_ALL!A:A,0),\"\")","v":""},{"$f":"IF(IFERROR(VLOOKUP($T30,STEP_ALL!$A:$AK,36,FALSE),\"\")=0,\"\",IFERROR(VLOOKUP($T30,STEP_ALL!$A:$AK,36,FALSE),\"\"))","v":""},{"$f":"IF(IFERROR(VLOOKUP($T30,STEP_ALL!$A:$AK,37,FALSE),\"\")=0,\"\",IFERROR(VLOOKUP($T30,STEP_ALL!$A:$AK,37,FALSE),\"\"))","v":""}]
[26,"","","","","","","",null,"",null,"","","",{"$f":"IF(I31=\"\",IF(M31=\"\",\"\",IF(システムフロー作成用情報登録!$B$8-$B$3<>1,\"○\",IF(ISERROR(MATCH(M31,システムフロー作成用情報登録!K:K,0))=TRUE,\"\",\"○\"))),IF(ISERROR(MATCH(I31,システムフロー作成用情報登録!K:K,0))=TRUE,\"\",\"○\"))","v":""},"","",null,"","0-26",26,{"$f":"IFERROR(VLOOKUP($T31,STEP_ALL!$A:$AH,4,FALSE),\"\")","v":""},{"$f":"IFERROR(VLOOKUP($T31,STEP_ALL!$A:$AH,5,FALSE),\"\")","v":""},{"$f":"IFERROR(VLOOKUP($T31,STEP_ALL!$A:$AH,6,FALSE),\"\")","v":""},{"$f":"IFERROR(VLOOKUP($T31,STEP_ALL!$A:$AH,7,FALSE),\"\")","v":""},{"$f":"IFERROR(VLOOKUP($T31,STEP_ALL!$A:$AH,8,FALSE),\"\")","v":""},{"$f":"IFERROR(VLOOKUP($T31,STEP_ALL!$A:$AH,9,FALSE),\"\")","v":""},{"$f":"IF(IFERROR(VLOOKUP($T31,STEP_ALL!$A:$AH,30,FALSE),\"\")=0,\"\",IFERROR(VLOOKUP($T31,STEP_ALL!$A:$AH,30,FALSE),\"\"))","v":""},{"$f":"IF(IFERROR(VLOOKUP($T31,STEP_ALL!$A:$AH,31,FALSE),\"\")=0,\"\",IFERROR(VLOOKUP($T31,STEP_ALL!$A:$AH,31,FALSE),\"\"))","v":""},{"$f":"IFERROR(MATCH(T31,STEP_ALL!A:A,0),\"\")","v":""},{"$f":"IF(IFERROR(VLOOKUP($T31,STEP_ALL!$A:$AK,36,FALSE),\"\")=0,\"\",IFERROR(VLOOKUP($T31,STEP_ALL!$A:$AK,36,FALSE),\"\"))","v":""},{"$f":"IF(IFERROR(VLOOKUP($T31,STEP_ALL!$A:$AK,37,FALSE),\"\")=0,\"\",IFERROR(VLOOKUP($T31,STEP_ALL!$A:$AK,37,FALSE),\"\"))","v":""}]
[27,"","","","","","","",null,"",null,"","","",{"$f":"IF(I32=\"\",IF(M32=\"\",\"\",IF(システムフロー作成用情報登録!$B$8-$B$3<>1,\"○\",IF(ISERROR(MATCH(M32,システムフロー作成用情報登録!K:K,0))=TRUE,\"\",\"○\"))),IF(ISERROR(MATCH(I32,システムフロー作成用情報登録!K:K,0))=TRUE,\"\",\"○\"))","v":""},"","",null,"","0-27",27,{"$f":"IFERROR(VLOOKUP($T32,STEP_ALL!$A:$AH,4,FALSE),\"\")","v":""},{"$f":"IFERROR(VLOOKUP($T32,STEP_ALL!$A:$AH,5,FALSE),\"\")","v":""},{"$f":"IFERROR(VLOOKUP($T32,STEP_ALL!$A:$AH,6,FALSE),\"\")","v":""},{"$f":"IFERROR(VLOOKUP($T32,STEP_ALL!$A:$AH,7,FALSE),\"\")","v":""},{"$f":"IFERROR(VLOOKUP($T32,STEP_ALL!$A:$AH,8,FALSE),\"\")","v":""},{"$f":"IFERROR(VLOOKUP($T32,STEP_ALL!$A:$AH,9,FALSE),\"\")","v":""},{"$f":"IF(IFERROR(VLOOKUP($T32,STEP_ALL!$A:$AH,30,FALSE),\"\")=0,\"\",IFERROR(VLOOKUP($T32,STEP_ALL!$A:$AH,30,FALSE),\"\"))","v":""},{"$f":"IF(IFERROR(VLOOKUP($T32,STEP_ALL!$A:$AH,31,FALSE),\"\")=0,\"\",IFERROR(VLOOKUP($T32,STEP_ALL!$A:$AH,31,FALSE),\"\"))","v":""},{"$f":"IFERROR(MATCH(T32,STEP_ALL!A:A,0),\"\")","v":""},{"$f":"IF(IFERROR(VLOOKUP($T32,STEP_ALL!$A:$AK,36,FALSE),\"\")=0,\"\",IFERROR(VLOOKUP($T32,STEP_ALL!$A:$AK,36,FALSE),\"\"))","v":""},{"$f":"IF(IFERROR(VLOOKUP($T32,STEP_ALL!$A:$AK,37,FALSE),\"\")=0,\"\",IFERROR(VLOOKUP($T32,STEP_ALL!$A:$AK,37,FALSE),\"\"))","v":""}]
[28,"","","","","","","",null,"",null,"","","",{"$f":"IF(I33=\"\",IF(M33=\"\",\"\",IF(システムフロー作成用情報登録!$B$8-$B$3<>1,\"○\",IF(ISERROR(MATCH(M33,システムフロー作成用情報登録!K:K,0))=TRUE,\"\",\"○\"))),IF(ISERROR(MATCH(I33,システムフロー作成用情報登録!K:K,0))=TRUE,\"\",\"○\"))","v":""},"","",null,"","0-28",28,{"$f":"IFERROR(VLOOKUP($T33,STEP_ALL!$A:$AH,4,FALSE),\"\")","v":""},{"$f":"IFERROR(VLOOKUP($T33,STEP_ALL!$A:$AH,5,FALSE),\"\")","v":""},{"$f":"IFERROR(VLOOKUP($T33,STEP_ALL!$A:$AH,6,FALSE),\"\")","v":""},{"$f":"IFERROR(VLOOKUP($T33,STEP_ALL!$A:$AH,7,FALSE),\"\")","v":""},{"$f":"IFERROR(VLOOKUP($T33,STEP_ALL!$A:$AH,8,FALSE),\"\")","v":""},{"$f":"IFERROR(VLOOKUP($T33,STEP_ALL!$A:$AH,9,FALSE),\"\")","v":""},{"$f":"IF(IFERROR(VLOOKUP($T33,STEP_ALL!$A:$AH,30,FALSE),\"\")=0,\"\",IFERROR(VLOOKUP($T33,STEP_ALL!$A:$AH,30,FALSE),\"\"))","v":""},{"$f":"IF(IFERROR(VLOOKUP($T33,STEP_ALL!$A:$AH,31,FALSE),\"\")=0,\"\",IFERROR(VLOOKUP($T33,STEP_ALL!$A:$AH,31,FALSE),\"\"))","v":""},{"$f":"IFERROR(MATCH(T33,STEP_ALL!A:A,0),\"\")","v":""},{"$f":"IF(IFERROR(VLOOKUP($T33,STEP_ALL!$A:$AK,36,FALSE),\"\")=0,\"\",IFERROR(VLOOKUP($T33,STEP_ALL!$A:$AK,36,FALSE),\"\"))","v":""},{"$f":"IF(IFERROR(VLOOKUP($T33,STEP_ALL!$A:$AK,37,FALSE),\"\")=0,\"\",IFERROR(VLOOKUP($T33,STEP_ALL!$A:$AK,37,FALSE),\"\"))","v":""}]
[29,"","","","","","","",null,"",null,"","","",{"$f":"IF(I34=\"\",IF(M34=\"\",\"\",IF(システムフロー作成用情報登録!$B$8-$B$3<>1,\"○\",IF(ISERROR(MATCH(M34,システムフロー作成用情報登録!K:K,0))=TRUE,\"\",\"○\"))),IF(ISERROR(MATCH(I34,システムフロー作成用情報登録!K:K,0))=TRUE,\"\",\"○\"))","v":""},"","",null,"","0-29",29,{"$f":"IFERROR(VLOOKUP($T34,STEP_ALL!$A:$AH,4,FALSE),\"\")","v":""},{"$f":"IFERROR(VLOOKUP($T34,STEP_ALL!$A:$AH,5,FALSE),\"\")","v":""},{"$f":"IFERROR(VLOOKUP($T34,STEP_ALL!$A:$AH,6,FALSE),\"\")","v":""},{"$f":"IFERROR(VLOOKUP($T34,STEP_ALL!$A:$AH,7,FALSE),\"\")","v":""},{"$f":"IFERROR(VLOOKUP($T34,STEP_ALL!$A:$AH,8,FALSE),\"\")","v":""},{"$f":"IFERROR(VLOOKUP($T34,STEP_ALL!$A:$AH,9,FALSE),\"\")","v":""},{"$f":"IF(IFERROR(VLOOKUP($T34,STEP_ALL!$A:$AH,30,FALSE),\"\")=0,\"\",IFERROR(VLOOKUP($T34,STEP_ALL!$A:$AH,30,FALSE),\"\"))","v":""},{"$f":"IF(IFERROR(VLOOKUP($T34,STEP_ALL!$A:$AH,31,FALSE),\"\")=0,\"\",IFERROR(VLOOKUP($T34,STEP_ALL!$A:$AH,31,FALSE),\"\"))","v":""},{"$f":"IFERROR(MATCH(T34,STEP_ALL!A:A,0),\"\")","v":""},{"$f":"IF(IFERROR(VLOOKUP($T34,STEP_ALL!$A:$AK,36,FALSE),\"\")=0,\"\",IFERROR(VLOOKUP($T34,STEP_ALL!$A:$AK,36,FALSE),\"\"))","v":""},{"$f":"IF(IFERROR(VLOOKUP($T34,STEP_ALL!$A:$AK,37,FALSE),\"\")=0,\"\",IFERROR(VLOOKUP($T34,STEP_ALL!$A:$AK,37,FALSE),\"\"))","v":""}]
[30,"","","","","","","",null,"",null,"","","",{"$f":"IF(I35=\"\",IF(M35=\"\",\"\",IF(システムフロー作成用情報登録!$B$8-$B$3<>1,\"○\",IF(ISERROR(MATCH(M35,システムフロー作成用情報登録!K:K,0))=TRUE,\"\",\"○\"))),IF(ISERROR(MATCH(I35,システムフロー作成用情報登録!K:K,0))=TRUE,\"\",\"○\"))","v":""},"","",null,"","0-30",30,{"$f":"IFERROR(VLOOKUP($T35,STEP_ALL!$A:$AH,4,FALSE),\"\")","v":""},{"$f":"IFERROR(VLOOKUP($T35,STEP_ALL!$A:$AH,5,FALSE),\"\")","v":""},{"$f":"IFERROR(VLOOKUP($T35,STEP_ALL!$A:$AH,6,FALSE),\"\")","v":""},{"$f":"IFERROR(VLOOKUP($T35,STEP_ALL!$A:$AH,7,FALSE),\"\")","v":""},{"$f":"IFERROR(VLOOKUP($T35,STEP_ALL!$A:$AH,8,FALSE),\"\")","v":""},{"$f":"IFERROR(VLOOKUP($T35,STEP_ALL!$A:$AH,9,FALSE),\"\")","v":""},{"$f":"IF(IFERROR(VLOOKUP($T35,STEP_ALL!$A:$AH,30,FALSE),\"\")=0,\"\",IFERROR(VLOOKUP($T35,STEP_ALL!$A:$AH,30,FALSE),\"\"))","v":""},{"$f":"IF(IFERROR(VLOOKUP($T35,STEP_ALL!$A:$AH,31,FALSE),\"\")=0,\"\",IFERROR(VLOOKUP($T35,STEP_ALL!$A:$AH,31,FALSE),\"\"))","v":""},{"$f":"IFERROR(MATCH(T35,STEP_ALL!A:A,0),\"\")","v":""},{"$f":"IF(IFERROR(VLOOKUP($T35,STEP_ALL!$A:$AK,36,FALSE),\"\")=0,\"\",IFERROR(VLOOKUP($T35,STEP_ALL!$A:$AK,36,FALSE),\"\"))","v":""},{"$f":"IF(IFERROR(VLOOKUP($T35,STEP_ALL!$A:$AK,37,FALSE),\"\")=0,\"\",IFERROR(VLOOKUP($T35,STEP_ALL!$A:$AK,37,FALSE),\"\"))","v":""}]
[31,"","","","","","","",null,"",null,"","","",{"$f":"IF(I36=\"\",IF(M36=\"\",\"\",IF(システムフロー作成用情報登録!$B$8-$B$3<>1,\"○\",IF(ISERROR(MATCH(M36,システムフロー作成用情報登録!K:K,0))=TRUE,\"\",\"○\"))),IF(ISERROR(MATCH(I36,システムフロー作成用情報登録!K:K,0))=TRUE,\"\",\"○\"))","v":""},"","",null,{"$f":"IF(W36=\"DISK-OUT\",IF(W35<>W36,1,S35+1),\"\")","v":""},{"$f":"$B$3&\"-\"&U36","v":"0-31"},31,{"$f":"IFERROR(VLOOKUP($T36,STEP_ALL!$A:$AH,4,FALSE),\"\")","v":""},{"$f":"IFERROR(VLOOKUP($T36,STEP_ALL!$A:$AH,5,FALSE),\"\")","v":""},{"$f":"IFERROR(VLOOKUP($T36,STEP_ALL!$A:$AH,6,FALSE),\"\")","v":""},{"$f":"IFERROR(VLOOKUP($T36,STEP_ALL!$A:$AH,7,FALSE),\"\")","v":""},{"$f":"IFERROR(VLOOKUP($T36,STEP_ALL!$A:$AH,8,FALSE),\"\")","v":""},{"$f":"IFERROR(VLOOKUP($T36,STEP_ALL!$A:$AH,9,FALSE),\"\")","v":""},{"$f":"IF(IFERROR(VLOOKUP($T36,STEP_ALL!$A:$AH,30,FALSE),\"\")=0,\"\",IFERROR(VLOOKUP($T36,STEP_ALL!$A:$AH,30,FALSE),\"\"))","v":""},{"$f":"IF(IFERROR(VLOOKUP($T36,STEP_ALL!$A:$AH,31,FALSE),\"\")=0,\"\",IFERROR(VLOOKUP($T36,STEP_ALL!$A:$AH,31,FALSE),\"\"))","v":""},{"$f":"IFERROR(MATCH(T36,STEP_ALL!A:A,0),\"\")","v":""},{"$f":"IF(IFERROR(VLOOKUP($T36,STEP_ALL!$A:$AK,36,FALSE),\"\")=0,\"\",IFERROR(VLOOKUP($T36,STEP_ALL!$A:$AK,36,FALSE),\"\"))","v":""},{"$f":"IF(IFERROR(VLOOKUP($T36,STEP_ALL!$A:$AK,37,FALSE),\"\")=0,\"\",IFERROR(VLOOKUP($T36,STEP_ALL!$A:$AK,37,FALSE),\"\"))","v":""}]
[32,"","","","","","","",null,"",null,"","","",{"$f":"IF(I37=\"\",IF(M37=\"\",\"\",IF(システムフロー作成用情報登録!$B$8-$B$3<>1,\"○\",IF(ISERROR(MATCH(M37,システムフロー作成用情報登録!K:K,0))=TRUE,\"\",\"○\"))),IF(ISERROR(MATCH(I37,システムフロー作成用情報登録!K:K,0))=TRUE,\"\",\"○\"))","v":""},"","",null,"","0-32",32,{"$f":"IFERROR(VLOOKUP($T37,STEP_ALL!$A:$AH,4,FALSE),\"\")","v":""},{"$f":"IFERROR(VLOOKUP($T37,STEP_ALL!$A:$AH,5,FALSE),\"\")","v":""},{"$f":"IFERROR(VLOOKUP($T37,STEP_ALL!$A:$AH,6,FALSE),\"\")","v":""},{"$f":"IFERROR(VLOOKUP($T37,STEP_ALL!$A:$AH,7,FALSE),\"\")","v":""},{"$f":"IFERROR(VLOOKUP($T37,STEP_ALL!$A:$AH,8,FALSE),\"\")","v":""},{"$f":"IFERROR(VLOOKUP($T37,STEP_ALL!$A:$AH,9,FALSE),\"\")","v":""},{"$f":"IF(IFERROR(VLOOKUP($T37,STEP_ALL!$A:$AH,30,FALSE),\"\")=0,\"\",IFERROR(VLOOKUP($T37,STEP_ALL!$A:$AH,30,FALSE),\"\"))","v":""},{"$f":"IF(IFERROR(VLOOKUP($T37,STEP_ALL!$A:$AH,31,FALSE),\"\")=0,\"\",IFERROR(VLOOKUP($T37,STEP_ALL!$A:$AH,31,FALSE),\"\"))","v":""},{"$f":"IFERROR(MATCH(T37,STEP_ALL!A:A,0),\"\")","v":""},{"$f":"IF(IFERROR(VLOOKUP($T37,STEP_ALL!$A:$AK,36,FALSE),\"\")=0,\"\",IFERROR(VLOOKUP($T37,STEP_ALL!$A:$AK,36,FALSE),\"\"))","v":""},{"$f":"IF(IFERROR(VLOOKUP($T37,STEP_ALL!$A:$AK,37,FALSE),\"\")=0,\"\",IFERROR(VLOOKUP($T37,STEP_ALL!$A:$AK,37,FALSE),\"\"))","v":""}]
[33,"","","","","","","",null,"",null,"","","",{"$f":"IF(I38=\"\",IF(M38=\"\",\"\",IF(システムフロー作成用情報登録!$B$8-$B$3<>1,\"○\",IF(ISERROR(MATCH(M38,システムフロー作成用情報登録!K:K,0))=TRUE,\"\",\"○\"))),IF(ISERROR(MATCH(I38,システムフロー作成用情報登録!K:K,0))=TRUE,\"\",\"○\"))","v":""},"","",null,"","0-33",33,{"$f":"IFERROR(VLOOKUP($T38,STEP_ALL!$A:$AH,4,FALSE),\"\")","v":""},{"$f":"IFERROR(VLOOKUP($T38,STEP_ALL!$A:$AH,5,FALSE),\"\")","v":""},{"$f":"IFERROR(VLOOKUP($T38,STEP_ALL!$A:$AH,6,FALSE),\"\")","v":""},{"$f":"IFERROR(VLOOKUP($T38,STEP_ALL!$A:$AH,7,FALSE),\"\")","v":""},{"$f":"IFERROR(VLOOKUP($T38,STEP_ALL!$A:$AH,8,FALSE),\"\")","v":""},{"$f":"IFERROR(VLOOKUP($T38,STEP_ALL!$A:$AH,9,FALSE),\"\")","v":""},{"$f":"IF(IFERROR(VLOOKUP($T38,STEP_ALL!$A:$AH,30,FALSE),\"\")=0,\"\",IFERROR(VLOOKUP($T38,STEP_ALL!$A:$AH,30,FALSE),\"\"))","v":""},{"$f":"IF(IFERROR(VLOOKUP($T38,STEP_ALL!$A:$AH,31,FALSE),\"\")=0,\"\",IFERROR(VLOOKUP($T38,STEP_ALL!$A:$AH,31,FALSE),\"\"))","v":""},{"$f":"IFERROR(MATCH(T38,STEP_ALL!A:A,0),\"\")","v":""},{"$f":"IF(IFERROR(VLOOKUP($T38,STEP_ALL!$A:$AK,36,FALSE),\"\")=0,\"\",IFERROR(VLOOKUP($T38,STEP_ALL!$A:$AK,36,FALSE),\"\"))","v":""},{"$f":"IF(IFERROR(VLOOKUP($T38,STEP_ALL!$A:$AK,37,FALSE),\"\")=0,\"\",IFERROR(VLOOKUP($T38,STEP_ALL!$A:$AK,37,FALSE),\"\"))","v":""}]
[34,"","","","","","","",null,"",null,"","","",{"$f":"IF(I39=\"\",IF(M39=\"\",\"\",IF(システムフロー作成用情報登録!$B$8-$B$3<>1,\"○\",IF(ISERROR(MATCH(M39,システムフロー作成用情報登録!K:K,0))=TRUE,\"\",\"○\"))),IF(ISERROR(MATCH(I39,システムフロー作成用情報登録!K:K,0))=TRUE,\"\",\"○\"))","v":""},"","",null,"","0-34",34,{"$f":"IFERROR(VLOOKUP($T39,STEP_ALL!$A:$AH,4,FALSE),\"\")","v":""},{"$f":"IFERROR(VLOOKUP($T39,STEP_ALL!$A:$AH,5,FALSE),\"\")","v":""},{"$f":"IFERROR(VLOOKUP($T39,STEP_ALL!$A:$AH,6,FALSE),\"\")","v":""},{"$f":"IFERROR(VLOOKUP($T39,STEP_ALL!$A:$AH,7,FALSE),\"\")","v":""},{"$f":"IFERROR(VLOOKUP($T39,STEP_ALL!$A:$AH,8,FALSE),\"\")","v":""},{"$f":"IFERROR(VLOOKUP($T39,STEP_ALL!$A:$AH,9,FALSE),\"\")","v":""},{"$f":"IF(IFERROR(VLOOKUP($T39,STEP_ALL!$A:$AH,30,FALSE),\"\")=0,\"\",IFERROR(VLOOKUP($T39,STEP_ALL!$A:$AH,30,FALSE),\"\"))","v":""},{"$f":"IF(IFERROR(VLOOKUP($T39,STEP_ALL!$A:$AH,31,FALSE),\"\")=0,\"\",IFERROR(VLOOKUP($T39,STEP_ALL!$A:$AH,31,FALSE),\"\"))","v":""},{"$f":"IFERROR(MATCH(T39,STEP_ALL!A:A,0),\"\")","v":""},{"$f":"IF(IFERROR(VLOOKUP($T39,STEP_ALL!$A:$AK,36,FALSE),\"\")=0,\"\",IFERROR(VLOOKUP($T39,STEP_ALL!$A:$AK,36,FALSE),\"\"))","v":""},{"$f":"IF(IFERROR(VLOOKUP($T39,STEP_ALL!$A:$AK,37,FALSE),\"\")=0,\"\",IFERROR(VLOOKUP($T39,STEP_ALL!$A:$AK,37,FALSE),\"\"))","v":""}]
[35,"","","","","","","",null,"",null,"","","",{"$f":"IF(I40=\"\",IF(M40=\"\",\"\",IF(システムフロー作成用情報登録!$B$8-$B$3<>1,\"○\",IF(ISERROR(MATCH(M40,システムフロー作成用情報登録!K:K,0))=TRUE,\"\",\"○\"))),IF(ISERROR(MATCH(I40,システムフロー作成用情報登録!K:K,0))=TRUE,\"\",\"○\"))","v":""},"","",null,"","0-35",35,{"$f":"IFERROR(VLOOKUP($T40,STEP_ALL!$A:$AH,4,FALSE),\"\")","v":""},{"$f":"IFERROR(VLOOKUP($T40,STEP_ALL!$A:$AH,5,FALSE),\"\")","v":""},{"$f":"IFERROR(VLOOKUP($T40,STEP_ALL!$A:$AH,6,FALSE),\"\")","v":""},{"$f":"IFERROR(VLOOKUP($T40,STEP_ALL!$A:$AH,7,FALSE),\"\")","v":""},{"$f":"IFERROR(VLOOKUP($T40,STEP_ALL!$A:$AH,8,FALSE),\"\")","v":""},{"$f":"IFERROR(VLOOKUP($T40,STEP_ALL!$A:$AH,9,FALSE),\"\")","v":""},{"$f":"IF(IFERROR(VLOOKUP($T40,STEP_ALL!$A:$AH,30,FALSE),\"\")=0,\"\",IFERROR(VLOOKUP($T40,STEP_ALL!$A:$AH,30,FALSE),\"\"))","v":""},{"$f":"IF(IFERROR(VLOOKUP($T40,STEP_ALL!$A:$AH,31,FALSE),\"\")=0,\"\",IFERROR(VLOOKUP($T40,STEP_ALL!$A:$AH,31,FALSE),\"\"))","v":""},{"$f":"IFERROR(MATCH(T40,STEP_ALL!A:A,0),\"\")","v":""},{"$f":"IF(IFERROR(VLOOKUP($T40,STEP_ALL!$A:$AK,36,FALSE),\"\")=0,\"\",IFERROR(VLOOKUP($T40,STEP_ALL!$A:$AK,36,FALSE),\"\"))","v":""},{"$f":"IF(IFERROR(VLOOKUP($T40,STEP_ALL!$A:$AK,37,FALSE),\"\")=0,\"\",IFERROR(VLOOKUP($T40,STEP_ALL!$A:$AK,37,FALSE),\"\"))","v":""}]
[36,"","","","","","","",null,"",null,"","","",{"$f":"IF(I41=\"\",IF(M41=\"\",\"\",IF(システムフロー作成用情報登録!$B$8-$B$3<>1,\"○\",IF(ISERROR(MATCH(M41,システムフロー作成用情報登録!K:K,0))=TRUE,\"\",\"○\"))),IF(ISERROR(MATCH(I41,システムフロー作成用情報登録!K:K,0))=TRUE,\"\",\"○\"))","v":""},"","",null,"","0-36",36,{"$f":"IFERROR(VLOOKUP($T41,STEP_ALL!$A:$AH,4,FALSE),\"\")","v":""},{"$f":"IFERROR(VLOOKUP($T41,STEP_ALL!$A:$AH,5,FALSE),\"\")","v":""},{"$f":"IFERROR(VLOOKUP($T41,STEP_ALL!$A:$AH,6,FALSE),\"\")","v":""},{"$f":"IFERROR(VLOOKUP($T41,STEP_ALL!$A:$AH,7,FALSE),\"\")","v":""},{"$f":"IFERROR(VLOOKUP($T41,STEP_ALL!$A:$AH,8,FALSE),\"\")","v":""},{"$f":"IFERROR(VLOOKUP($T41,STEP_ALL!$A:$AH,9,FALSE),\"\")","v":""},{"$f":"IF(IFERROR(VLOOKUP($T41,STEP_ALL!$A:$AH,30,FALSE),\"\")=0,\"\",IFERROR(VLOOKUP($T41,STEP_ALL!$A:$AH,30,FALSE),\"\"))","v":""},{"$f":"IF(IFERROR(VLOOKUP($T41,STEP_ALL!$A:$AH,31,FALSE),\"\")=0,\"\",IFERROR(VLOOKUP($T41,STEP_ALL!$A:$AH,31,FALSE),\"\"))","v":""},{"$f":"IFERROR(MATCH(T41,STEP_ALL!A:A,0),\"\")","v":""},{"$f":"IF(IFERROR(VLOOKUP($T41,STEP_ALL!$A:$AK,36,FALSE),\"\")=0,\"\",IFERROR(VLOOKUP($T41,STEP_ALL!$A:$AK,36,FALSE),\"\"))","v":""},{"$f":"IF(IFERROR(VLOOKUP($T41,STEP_ALL!$A:$AK,37,FALSE),\"\")=0,\"\",IFERROR(VLOOKUP($T41,STEP_ALL!$A:$AK,37,FALSE),\"\"))","v":""}]
[37,"","","","","","","",null,"",null,"","","",{"$f":"IF(I42=\"\",IF(M42=\"\",\"\",IF(システムフロー作成用情報登録!$B$8-$B$3<>1,\"○\",IF(ISERROR(MATCH(M42,システムフロー作成用情報登録!K:K,0))=TRUE,\"\",\"○\"))),IF(ISERROR(MATCH(I42,システムフロー作成用情報登録!K:K,0))=TRUE,\"\",\"○\"))","v":""},"","",null,"","0-37",37,{"$f":"IFERROR(VLOOKUP($T42,STEP_ALL!$A:$AH,4,FALSE),\"\")","v":""},{"$f":"IFERROR(VLOOKUP($T42,STEP_ALL!$A:$AH,5,FALSE),\"\")","v":""},{"$f":"IFERROR(VLOOKUP($T42,STEP_ALL!$A:$AH,6,FALSE),\"\")","v":""},{"$f":"IFERROR(VLOOKUP($T42,STEP_ALL!$A:$AH,7,FALSE),\"\")","v":""},{"$f":"IFERROR(VLOOKUP($T42,STEP_ALL!$A:$AH,8,FALSE),\"\")","v":""},{"$f":"IFERROR(VLOOKUP($T42,STEP_ALL!$A:$AH,9,FALSE),\"\")","v":""},{"$f":"IF(IFERROR(VLOOKUP($T42,STEP_ALL!$A:$AH,30,FALSE),\"\")=0,\"\",IFERROR(VLOOKUP($T42,STEP_ALL!$A:$AH,30,FALSE),\"\"))","v":""},{"$f":"IF(IFERROR(VLOOKUP($T42,STEP_ALL!$A:$AH,31,FALSE),\"\")=0,\"\",IFERROR(VLOOKUP($T42,STEP_ALL!$A:$AH,31,FALSE),\"\"))","v":""},{"$f":"IFERROR(MATCH(T42,STEP_ALL!A:A,0),\"\")","v":""},{"$f":"IF(IFERROR(VLOOKUP($T42,STEP_ALL!$A:$AK,36,FALSE),\"\")=0,\"\",IFERROR(VLOOKUP($T42,STEP_ALL!$A:$AK,36,FALSE),\"\"))","v":""},{"$f":"IF(IFERROR(VLOOKUP($T42,STEP_ALL!$A:$AK,37,FALSE),\"\")=0,\"\",IFERROR(VLOOKUP($T42,STEP_ALL!$A:$AK,37,FALSE),\"\"))","v":""}]
[38,"","","","","","","",null,{"$f":"IF(I43=\"\",\"\",\"選択済\")","v":""},null,"","","",{"$f":"IF(I43=\"\",IF(M43=\"\",\"\",IF(システムフロー作成用情報登録!$B$8-$B$3<>1,\"○\",IF(ISERROR(MATCH(M43,システムフロー作成用情報登録!K:K,0))=TRUE,\"\",\"○\"))),IF(ISERROR(MATCH(I43,システムフロー作成用情報登録!K:K,0))=TRUE,\"\",\"○\"))","v":""},"","",null,"","0-38",38,{"$f":"IFERROR(VLOOKUP($T43,STEP_ALL!$A:$AH,4,FALSE),\"\")","v":""},{"$f":"IFERROR(VLOOKUP($T43,STEP_ALL!$A:$AH,5,FALSE),\"\")","v":""},{"$f":"IFERROR(VLOOKUP($T43,STEP_ALL!$A:$AH,6,FALSE),\"\")","v":""},{"$f":"IFERROR(VLOOKUP($T43,STEP_ALL!$A:$AH,7,FALSE),\"\")","v":""},{"$f":"IFERROR(VLOOKUP($T43,STEP_ALL!$A:$AH,8,FALSE),\"\")","v":""},{"$f":"IFERROR(VLOOKUP($T43,STEP_ALL!$A:$AH,9,FALSE),\"\")","v":""},{"$f":"IF(IFERROR(VLOOKUP($T43,STEP_ALL!$A:$AH,30,FALSE),\"\")=0,\"\",IFERROR(VLOOKUP($T43,STEP_ALL!$A:$AH,30,FALSE),\"\"))","v":""},{"$f":"IF(IFERROR(VLOOKUP($T43,STEP_ALL!$A:$AH,31,FALSE),\"\")=0,\"\",IFERROR(VLOOKUP($T43,STEP_ALL!$A:$AH,31,FALSE),\"\"))","v":""},{"$f":"IFERROR(MATCH(T43,STEP_ALL!A:A,0),\"\")","v":""},{"$f":"IF(IFERROR(VLOOKUP($T43,STEP_ALL!$A:$AK,36,FALSE),\"\")=0,\"\",IFERROR(VLOOKUP($T43,STEP_ALL!$A:$AK,36,FALSE),\"\"))","v":""},{"$f":"IF(IFERROR(VLOOKUP($T43,STEP_ALL!$A:$AK,37,FALSE),\"\")=0,\"\",IFERROR(VLOOKUP($T43,STEP_ALL!$A:$AK,37,FALSE),\"\"))","v":""}]
[39,"","","","","","","",null,"",null,"","","",{"$f":"IF(I44=\"\",IF(M44=\"\",\"\",IF(システムフロー作成用情報登録!$B$8-$B$3<>1,\"○\",IF(ISERROR(MATCH(M44,システムフロー作成用情報登録!K:K,0))=TRUE,\"\",\"○\"))),IF(ISERROR(MATCH(I44,システムフロー作成用情報登録!K:K,0))=TRUE,\"\",\"○\"))","v":""},"","",null,"","0-39",39,{"$f":"IFERROR(VLOOKUP($T44,STEP_ALL!$A:$AH,4,FALSE),\"\")","v":""},{"$f":"IFERROR(VLOOKUP($T44,STEP_ALL!$A:$AH,5,FALSE),\"\")","v":""},{"$f":"IFERROR(VLOOKUP($T44,STEP_ALL!$A:$AH,6,FALSE),\"\")","v":""},{"$f":"IFERROR(VLOOKUP($T44,STEP_ALL!$A:$AH,7,FALSE),\"\")","v":""},{"$f":"IFERROR(VLOOKUP($T44,STEP_ALL!$A:$AH,8,FALSE),\"\")","v":""},{"$f":"IFERROR(VLOOKUP($T44,STEP_ALL!$A:$AH,9,FALSE),\"\")","v":""},{"$f":"IF(IFERROR(VLOOKUP($T44,STEP_ALL!$A:$AH,30,FALSE),\"\")=0,\"\",IFERROR(VLOOKUP($T44,STEP_ALL!$A:$AH,30,FALSE),\"\"))","v":""},{"$f":"IF(IFERROR(VLOOKUP($T44,STEP_ALL!$A:$AH,31,FALSE),\"\")=0,\"\",IFERROR(VLOOKUP($T44,STEP_ALL!$A:$AH,31,FALSE),\"\"))","v":""},{"$f":"IFERROR(MATCH(T44,STEP_ALL!A:A,0),\"\")","v":""},{"$f":"IF(IFERROR(VLOOKUP($T44,STEP_ALL!$A:$AK,36,FALSE),\"\")=0,\"\",IFERROR(VLOOKUP($T44,STEP_ALL!$A:$AK,36,FALSE),\"\"))","v":""},{"$f":"IF(IFERROR(VLOOKUP($T44,STEP_ALL!$A:$AK,37,FALSE),\"\")=0,\"\",IFERROR(VLOOKUP($T44,STEP_ALL!$A:$AK,37,FALSE),\"\"))","v":""}]
[40,"","","","","","","",null,"",null,"","","",{"$f":"IF(I45=\"\",IF(M45=\"\",\"\",IF(システムフロー作成用情報登録!$B$8-$B$3<>1,\"○\",IF(ISERROR(MATCH(M45,システムフロー作成用情報登録!K:K,0))=TRUE,\"\",\"○\"))),IF(ISERROR(MATCH(I45,システムフロー作成用情報登録!K:K,0))=TRUE,\"\",\"○\"))","v":""},"","",null,"","0-40",40,{"$f":"IFERROR(VLOOKUP($T45,STEP_ALL!$A:$AH,4,FALSE),\"\")","v":""},{"$f":"IFERROR(VLOOKUP($T45,STEP_ALL!$A:$AH,5,FALSE),\"\")","v":""},{"$f":"IFERROR(VLOOKUP($T45,STEP_ALL!$A:$AH,6,FALSE),\"\")","v":""},{"$f":"IFERROR(VLOOKUP($T45,STEP_ALL!$A:$AH,7,FALSE),\"\")","v":""},{"$f":"IFERROR(VLOOKUP($T45,STEP_ALL!$A:$AH,8,FALSE),\"\")","v":""},{"$f":"IFERROR(VLOOKUP($T45,STEP_ALL!$A:$AH,9,FALSE),\"\")","v":""},{"$f":"IF(IFERROR(VLOOKUP($T45,STEP_ALL!$A:$AH,30,FALSE),\"\")=0,\"\",IFERROR(VLOOKUP($T45,STEP_ALL!$A:$AH,30,FALSE),\"\"))","v":""},{"$f":"IF(IFERROR(VLOOKUP($T45,STEP_ALL!$A:$AH,31,FALSE),\"\")=0,\"\",IFERROR(VLOOKUP($T45,STEP_ALL!$A:$AH,31,FALSE),\"\"))","v":""},{"$f":"IFERROR(MATCH(T45,STEP_ALL!A:A,0),\"\")","v":""},{"$f":"IF(IFERROR(VLOOKUP($T45,STEP_ALL!$A:$AK,36,FALSE),\"\")=0,\"\",IFERROR(VLOOKUP($T45,STEP_ALL!$A:$AK,36,FALSE),\"\"))","v":""},{"$f":"IF(IFERROR(VLOOKUP($T45,STEP_ALL!$A:$AK,37,FALSE),\"\")=0,\"\",IFERROR(VLOOKUP($T45,STEP_ALL!$A:$AK,37,FALSE),\"\"))","v":""}]
[41,{"$f":"IFERROR(VLOOKUP($A46,$S:$AD,3,FALSE),\"\")","v":""},{"$f":"IFERROR(VLOOKUP($A46,$S:$AD,4,FALSE),\"\")","v":""},{"$f":"IFERROR(VLOOKUP($A46,$S:$AD,5,FALSE),\"\")","v":""},{"$f":"IFERROR(VLOOKUP($A46,$S:$AD,6,FALSE),\"\")","v":""},{"$f":"IF(IFERROR(VLOOKUP($A46,$S:$AD,7,FALSE),\"\")=0,\"\",IFERROR(VLOOKUP($A46,$S:$AD,7,FALSE),\"\"))","v":""},{"$f":"IF(IFERROR(VLOOKUP($A46,$S:$AD,8,FALSE),\"\")=0,\"\",IFERROR(VLOOKUP($A46,$S:$AD,8,FALSE),\"\"))","v":""},{"$f":"IF(IFERROR(VLOOKUP($A46,$S:$AD,9,FALSE),\"\")=0,\"\",IFERROR(VLOOKUP($A46,$S:$AD,9,FALSE),\"\"))","v":""},null,"",null,{"$f":"IFERROR(VLOOKUP($A46,$S:$AD,10,FALSE),\"\")","v":""},{"$f":"IFERROR(VLOOKUP($A46,$S:$AD,11,FALSE),\"\")","v":""},{"$f":"IFERROR(VLOOKUP($A46,$S:$AD,12,FALSE),\"\")","v":""},{"$f":"IF(I46=\"\",IF(M46=\"\",\"\",IF(システムフロー作成用情報登録!$B$8-$B$3<>1,\"○\",IF(ISERROR(MATCH(M46,システムフロー作成用情報登録!K:K,0))=TRUE,\"\",\"○\"))),IF(ISERROR(MATCH(I46,システムフロー作成用情報登録!K:K,0))=TRUE,\"\",\"○\"))","v":""},{"$f":"IFERROR(VLOOKUP($A46,$S:$AF,13,FALSE),\"\")","v":""},{"$f":"IFERROR(VLOOKUP($A46,$S:$AF,14,FALSE),\"\")","v":""},null,{"$f":"IF(W46=\"DISK-OUT\",IF(W45<>W46,1,S45+1),\"\")","v":""},{"$f":"$B$3&\"-\"&U46","v":"0-41"},41,{"$f":"IFERROR(VLOOKUP($T46,STEP_ALL!$A:$AH,4,FALSE),\"\")","v":""},{"$f":"IFERROR(VLOOKUP($T46,STEP_ALL!$A:$AH,5,FALSE),\"\")","v":""},{"$f":"IFERROR(VLOOKUP($T46,STEP_ALL!$A:$AH,6,FALSE),\"\")","v":""},{"$f":"IFERROR(VLOOKUP($T46,STEP_ALL!$A:$AH,7,FALSE),\"\")","v":""},{"$f":"IFERROR(VLOOKUP($T46,STEP_ALL!$A:$AH,8,FALSE),\"\")","v":""},{"$f":"IFERROR(VLOOKUP($T46,STEP_ALL!$A:$AH,9,FALSE),\"\")","v":""},{"$f":"IF(IFERROR(VLOOKUP($T46,STEP_ALL!$A:$AH,30,FALSE),\"\")=0,\"\",IFERROR(VLOOKUP($T46,STEP_ALL!$A:$AH,30,FALSE),\"\"))","v":""},{"$f":"IF(IFERROR(VLOOKUP($T46,STEP_ALL!$A:$AH,31,FALSE),\"\")=0,\"\",IFERROR(VLOOKUP($T46,STEP_ALL!$A:$AH,31,FALSE),\"\"))","v":""},{"$f":"IFERROR(MATCH(T46,STEP_ALL!A:A,0),\"\")","v":""},{"$f":"IF(IFERROR(VLOOKUP($T46,STEP_ALL!$A:$AK,36,FALSE),\"\")=0,\"\",IFERROR(VLOOKUP($T46,STEP_ALL!$A:$AK,36,FALSE),\"\"))","v":""},{"$f":"IF(IFERROR(VLOOKUP($T46,STEP_ALL!$A:$AK,37,FALSE),\"\")=0,\"\",IFERROR(VLOOKUP($T46,STEP_ALL!$A:$AK,37,FALSE),\"\"))","v":""}]
[42,"","","","","","","",null,"",null,"","","",{"$f":"IF(I47=\"\",IF(M47=\"\",\"\",IF(システムフロー作成用情報登録!$B$8-$B$3<>1,\"○\",IF(ISERROR(MATCH(M47,システムフロー作成用情報登録!K:K,0))=TRUE,\"\",\"○\"))),IF(ISERROR(MATCH(I47,システムフロー作成用情報登録!K:K,0))=TRUE,\"\",\"○\"))","v":""},"","",null,"","0-42",42,{"$f":"IFERROR(VLOOKUP($T47,STEP_ALL!$A:$AH,4,FALSE),\"\")","v":""},{"$f":"IFERROR(VLOOKUP($T47,STEP_ALL!$A:$AH,5,FALSE),\"\")","v":""},{"$f":"IFERROR(VLOOKUP($T47,STEP_ALL!$A:$AH,6,FALSE),\"\")","v":""},{"$f":"IFERROR(VLOOKUP($T47,STEP_ALL!$A:$AH,7,FALSE),\"\")","v":""},{"$f":"IFERROR(VLOOKUP($T47,STEP_ALL!$A:$AH,8,FALSE),\"\")","v":""},{"$f":"IFERROR(VLOOKUP($T47,STEP_ALL!$A:$AH,9,FALSE),\"\")","v":""},{"$f":"IF(IFERROR(VLOOKUP($T47,STEP_ALL!$A:$AH,30,FALSE),\"\")=0,\"\",IFERROR(VLOOKUP($T47,STEP_ALL!$A:$AH,30,FALSE),\"\"))","v":""},{"$f":"IF(IFERROR(VLOOKUP($T47,STEP_ALL!$A:$AH,31,FALSE),\"\")=0,\"\",IFERROR(VLOOKUP($T47,STEP_ALL!$A:$AH,31,FALSE),\"\"))","v":""},{"$f":"IFERROR(MATCH(T47,STEP_ALL!A:A,0),\"\")","v":""},{"$f":"IF(IFERROR(VLOOKUP($T47,STEP_ALL!$A:$AK,36,FALSE),\"\")=0,\"\",IFERROR(VLOOKUP($T47,STEP_ALL!$A:$AK,36,FALSE),\"\"))","v":""},{"$f":"IF(IFERROR(VLOOKUP($T47,STEP_ALL!$A:$AK,37,FALSE),\"\")=0,\"\",IFERROR(VLOOKUP($T47,STEP_ALL!$A:$AK,37,FALSE),\"\"))","v":""}]
[43,"","","","","","","",null,"",null,"","","",{"$f":"IF(I48=\"\",IF(M48=\"\",\"\",IF(システムフロー作成用情報登録!$B$8-$B$3<>1,\"○\",IF(ISERROR(MATCH(M48,システムフロー作成用情報登録!K:K,0))=TRUE,\"\",\"○\"))),IF(ISERROR(MATCH(I48,システムフロー作成用情報登録!K:K,0))=TRUE,\"\",\"○\"))","v":""},"","",null,"","0-43",43,{"$f":"IFERROR(VLOOKUP($T48,STEP_ALL!$A:$AH,4,FALSE),\"\")","v":""},{"$f":"IFERROR(VLOOKUP($T48,STEP_ALL!$A:$AH,5,FALSE),\"\")","v":""},{"$f":"IFERROR(VLOOKUP($T48,STEP_ALL!$A:$AH,6,FALSE),\"\")","v":""},{"$f":"IFERROR(VLOOKUP($T48,STEP_ALL!$A:$AH,7,FALSE),\"\")","v":""},{"$f":"IFERROR(VLOOKUP($T48,STEP_ALL!$A:$AH,8,FALSE),\"\")","v":""},{"$f":"IFERROR(VLOOKUP($T48,STEP_ALL!$A:$AH,9,FALSE),\"\")","v":""},{"$f":"IF(IFERROR(VLOOKUP($T48,STEP_ALL!$A:$AH,30,FALSE),\"\")=0,\"\",IFERROR(VLOOKUP($T48,STEP_ALL!$A:$AH,30,FALSE),\"\"))","v":""},{"$f":"IF(IFERROR(VLOOKUP($T48,STEP_ALL!$A:$AH,31,FALSE),\"\")=0,\"\",IFERROR(VLOOKUP($T48,STEP_ALL!$A:$AH,31,FALSE),\"\"))","v":""},{"$f":"IFERROR(MATCH(T48,STEP_ALL!A:A,0),\"\")","v":""},{"$f":"IF(IFERROR(VLOOKUP($T48,STEP_ALL!$A:$AK,36,FALSE),\"\")=0,\"\",IFERROR(VLOOKUP($T48,STEP_ALL!$A:$AK,36,FALSE),\"\"))","v":""},{"$f":"IF(IFERROR(VLOOKUP($T48,STEP_ALL!$A:$AK,37,FALSE),\"\")=0,\"\",IFERROR(VLOOKUP($T48,STEP_ALL!$A:$AK,37,FALSE),\"\"))","v":""}]
[44,"","","","","","","",null,"",null,"","","",{"$f":"IF(I49=\"\",IF(M49=\"\",\"\",IF(システムフロー作成用情報登録!$B$8-$B$3<>1,\"○\",IF(ISERROR(MATCH(M49,システムフロー作成用情報登録!K:K,0))=TRUE,\"\",\"○\"))),IF(ISERROR(MATCH(I49,システムフロー作成用情報登録!K:K,0))=TRUE,\"\",\"○\"))","v":""},"","",null,"","0-44",44,{"$f":"IFERROR(VLOOKUP($T49,STEP_ALL!$A:$AH,4,FALSE),\"\")","v":""},{"$f":"IFERROR(VLOOKUP($T49,STEP_ALL!$A:$AH,5,FALSE),\"\")","v":""},{"$f":"IFERROR(VLOOKUP($T49,STEP_ALL!$A:$AH,6,FALSE),\"\")","v":""},{"$f":"IFERROR(VLOOKUP($T49,STEP_ALL!$A:$AH,7,FALSE),\"\")","v":""},{"$f":"IFERROR(VLOOKUP($T49,STEP_ALL!$A:$AH,8,FALSE),\"\")","v":""},{"$f":"IFERROR(VLOOKUP($T49,STEP_ALL!$A:$AH,9,FALSE),\"\")","v":""},{"$f":"IF(IFERROR(VLOOKUP($T49,STEP_ALL!$A:$AH,30,FALSE),\"\")=0,\"\",IFERROR(VLOOKUP($T49,STEP_ALL!$A:$AH,30,FALSE),\"\"))","v":""},{"$f":"IF(IFERROR(VLOOKUP($T49,STEP_ALL!$A:$AH,31,FALSE),\"\")=0,\"\",IFERROR(VLOOKUP($T49,STEP_ALL!$A:$AH,31,FALSE),\"\"))","v":""},{"$f":"IFERROR(MATCH(T49,STEP_ALL!A:A,0),\"\")","v":""},{"$f":"IF(IFERROR(VLOOKUP($T49,STEP_ALL!$A:$AK,36,FALSE),\"\")=0,\"\",IFERROR(VLOOKUP($T49,STEP_ALL!$A:$AK,36,FALSE),\"\"))","v":""},{"$f":"IF(IFERROR(VLOOKUP($T49,STEP_ALL!$A:$AK,37,FALSE),\"\")=0,\"\",IFERROR(VLOOKUP($T49,STEP_ALL!$A:$AK,37,FALSE),\"\"))","v":""}]
[45,"","","","","","","",null,"",null,"","","",{"$f":"IF(I50=\"\",IF(M50=\"\",\"\",IF(システムフロー作成用情報登録!$B$8-$B$3<>1,\"○\",IF(ISERROR(MATCH(M50,システムフロー作成用情報登録!K:K,0))=TRUE,\"\",\"○\"))),IF(ISERROR(MATCH(I50,システムフロー作成用情報登録!K:K,0))=TRUE,\"\",\"○\"))","v":""},"","",null,"","0-45",45,{"$f":"IFERROR(VLOOKUP($T50,STEP_ALL!$A:$AH,4,FALSE),\"\")","v":""},{"$f":"IFERROR(VLOOKUP($T50,STEP_ALL!$A:$AH,5,FALSE),\"\")","v":""},{"$f":"IFERROR(VLOOKUP($T50,STEP_ALL!$A:$AH,6,FALSE),\"\")","v":""},{"$f":"IFERROR(VLOOKUP($T50,STEP_ALL!$A:$AH,7,FALSE),\"\")","v":""},{"$f":"IFERROR(VLOOKUP($T50,STEP_ALL!$A:$AH,8,FALSE),\"\")","v":""},{"$f":"IFERROR(VLOOKUP($T50,STEP_ALL!$A:$AH,9,FALSE),\"\")","v":""},{"$f":"IF(IFERROR(VLOOKUP($T50,STEP_ALL!$A:$AH,30,FALSE),\"\")=0,\"\",IFERROR(VLOOKUP($T50,STEP_ALL!$A:$AH,30,FALSE),\"\"))","v":""},{"$f":"IF(IFERROR(VLOOKUP($T50,STEP_ALL!$A:$AH,31,FALSE),\"\")=0,\"\",IFERROR(VLOOKUP($T50,STEP_ALL!$A:$AH,31,FALSE),\"\"))","v":""},{"$f":"IFERROR(MATCH(T50,STEP_ALL!A:A,0),\"\")","v":""},{"$f":"IF(IFERROR(VLOOKUP($T50,STEP_ALL!$A:$AK,36,FALSE),\"\")=0,\"\",IFERROR(VLOOKUP($T50,STEP_ALL!$A:$AK,36,FALSE),\"\"))","v":""},{"$f":"IF(IFERROR(VLOOKUP($T50,STEP_ALL!$A:$AK,37,FALSE),\"\")=0,\"\",IFERROR(VLOOKUP($T50,STEP_ALL!$A:$AK,37,FALSE),\"\"))","v":""}]
[46,"","","","","","","",null,"",null,"","","",{"$f":"IF(I51=\"\",IF(M51=\"\",\"\",IF(システムフロー作成用情報登録!$B$8-$B$3<>1,\"○\",IF(ISERROR(MATCH(M51,システムフロー作成用情報登録!K:K,0))=TRUE,\"\",\"○\"))),IF(ISERROR(MATCH(I51,システムフロー作成用情報登録!K:K,0))=TRUE,\"\",\"○\"))","v":""},"","",null,"","0-46",46,{"$f":"IFERROR(VLOOKUP($T51,STEP_ALL!$A:$AH,4,FALSE),\"\")","v":""},{"$f":"IFERROR(VLOOKUP($T51,STEP_ALL!$A:$AH,5,FALSE),\"\")","v":""},{"$f":"IFERROR(VLOOKUP($T51,STEP_ALL!$A:$AH,6,FALSE),\"\")","v":""},{"$f":"IFERROR(VLOOKUP($T51,STEP_ALL!$A:$AH,7,FALSE),\"\")","v":""},{"$f":"IFERROR(VLOOKUP($T51,STEP_ALL!$A:$AH,8,FALSE),\"\")","v":""},{"$f":"IFERROR(VLOOKUP($T51,STEP_ALL!$A:$AH,9,FALSE),\"\")","v":""},{"$f":"IF(IFERROR(VLOOKUP($T51,STEP_ALL!$A:$AH,30,FALSE),\"\")=0,\"\",IFERROR(VLOOKUP($T51,STEP_ALL!$A:$AH,30,FALSE),\"\"))","v":""},{"$f":"IF(IFERROR(VLOOKUP($T51,STEP_ALL!$A:$AH,31,FALSE),\"\")=0,\"\",IFERROR(VLOOKUP($T51,STEP_ALL!$A:$AH,31,FALSE),\"\"))","v":""},{"$f":"IFERROR(MATCH(T51,STEP_ALL!A:A,0),\"\")","v":""},{"$f":"IF(IFERROR(VLOOKUP($T51,STEP_ALL!$A:$AK,36,FALSE),\"\")=0,\"\",IFERROR(VLOOKUP($T51,STEP_ALL!$A:$AK,36,FALSE),\"\"))","v":""},{"$f":"IF(IFERROR(VLOOKUP($T51,STEP_ALL!$A:$AK,37,FALSE),\"\")=0,\"\",IFERROR(VLOOKUP($T51,STEP_ALL!$A:$AK,37,FALSE),\"\"))","v":""}]
[47,"","","","","","","",null,"",null,"","","",{"$f":"IF(I52=\"\",IF(M52=\"\",\"\",IF(システムフロー作成用情報登録!$B$8-$B$3<>1,\"○\",IF(ISERROR(MATCH(M52,システムフロー作成用情報登録!K:K,0))=TRUE,\"\",\"○\"))),IF(ISERROR(MATCH(I52,システムフロー作成用情報登録!K:K,0))=TRUE,\"\",\"○\"))","v":""},"","",null,"","0-47",47,{"$f":"IFERROR(VLOOKUP($T52,STEP_ALL!$A:$AH,4,FALSE),\"\")","v":""},{"$f":"IFERROR(VLOOKUP($T52,STEP_ALL!$A:$AH,5,FALSE),\"\")","v":""},{"$f":"IFERROR(VLOOKUP($T52,STEP_ALL!$A:$AH,6,FALSE),\"\")","v":""},{"$f":"IFERROR(VLOOKUP($T52,STEP_ALL!$A:$AH,7,FALSE),\"\")","v":""},{"$f":"IFERROR(VLOOKUP($T52,STEP_ALL!$A:$AH,8,FALSE),\"\")","v":""},{"$f":"IFERROR(VLOOKUP($T52,STEP_ALL!$A:$AH,9,FALSE),\"\")","v":""},{"$f":"IF(IFERROR(VLOOKUP($T52,STEP_ALL!$A:$AH,30,FALSE),\"\")=0,\"\",IFERROR(VLOOKUP($T52,STEP_ALL!$A:$AH,30,FALSE),\"\"))","v":""},{"$f":"IF(IFERROR(VLOOKUP($T52,STEP_ALL!$A:$AH,31,FALSE),\"\")=0,\"\",IFERROR(VLOOKUP($T52,STEP_ALL!$A:$AH,31,FALSE),\"\"))","v":""},{"$f":"IFERROR(MATCH(T52,STEP_ALL!A:A,0),\"\")","v":""},{"$f":"IF(IFERROR(VLOOKUP($T52,STEP_ALL!$A:$AK,36,FALSE),\"\")=0,\"\",IFERROR(VLOOKUP($T52,STEP_ALL!$A:$AK,36,FALSE),\"\"))","v":""},{"$f":"IF(IFERROR(VLOOKUP($T52,STEP_ALL!$A:$AK,37,FALSE),\"\")=0,\"\",IFERROR(VLOOKUP($T52,STEP_ALL!$A:$AK,37,FALSE),\"\"))","v":""}]
[48,"","","","","","","",null,"",null,"","","",{"$f":"IF(I53=\"\",IF(M53=\"\",\"\",IF(システムフロー作成用情報登録!$B$8-$B$3<>1,\"○\",IF(ISERROR(MATCH(M53,システムフロー作成用情報登録!K:K,0))=TRUE,\"\",\"○\"))),IF(ISERROR(MATCH(I53,システムフロー作成用情報登録!K:K,0))=TRUE,\"\",\"○\"))","v":""},"","",null,"","0-48",48,{"$f":"IFERROR(VLOOKUP($T53,STEP_ALL!$A:$AH,4,FALSE),\"\")","v":""},{"$f":"IFERROR(VLOOKUP($T53,STEP_ALL!$A:$AH,5,FALSE),\"\")","v":""},{"$f":"IFERROR(VLOOKUP($T53,STEP_ALL!$A:$AH,6,FALSE),\"\")","v":""},{"$f":"IFERROR(VLOOKUP($T53,STEP_ALL!$A:$AH,7,FALSE),\"\")","v":""},{"$f":"IFERROR(VLOOKUP($T53,STEP_ALL!$A:$AH,8,FALSE),\"\")","v":""},{"$f":"IFERROR(VLOOKUP($T53,STEP_ALL!$A:$AH,9,FALSE),\"\")","v":""},{"$f":"IF(IFERROR(VLOOKUP($T53,STEP_ALL!$A:$AH,30,FALSE),\"\")=0,\"\",IFERROR(VLOOKUP($T53,STEP_ALL!$A:$AH,30,FALSE),\"\"))","v":""},{"$f":"IF(IFERROR(VLOOKUP($T53,STEP_ALL!$A:$AH,31,FALSE),\"\")=0,\"\",IFERROR(VLOOKUP($T53,STEP_ALL!$A:$AH,31,FALSE),\"\"))","v":""},{"$f":"IFERROR(MATCH(T53,STEP_ALL!A:A,0),\"\")","v":""},{"$f":"IF(IFERROR(VLOOKUP($T53,STEP_ALL!$A:$AK,36,FALSE),\"\")=0,\"\",IFERROR(VLOOKUP($T53,STEP_ALL!$A:$AK,36,FALSE),\"\"))","v":""},{"$f":"IF(IFERROR(VLOOKUP($T53,STEP_ALL!$A:$AK,37,FALSE),\"\")=0,\"\",IFERROR(VLOOKUP($T53,STEP_ALL!$A:$AK,37,FALSE),\"\"))","v":""}]
[49,"","","","","","","",null,"",null,"","","",{"$f":"IF(I54=\"\",IF(M54=\"\",\"\",IF(システムフロー作成用情報登録!$B$8-$B$3<>1,\"○\",IF(ISERROR(MATCH(M54,システムフロー作成用情報登録!K:K,0))=TRUE,\"\",\"○\"))),IF(ISERROR(MATCH(I54,システムフロー作成用情報登録!K:K,0))=TRUE,\"\",\"○\"))","v":""},"","",null,"","0-49",49,{"$f":"IFERROR(VLOOKUP($T54,STEP_ALL!$A:$AH,4,FALSE),\"\")","v":""},{"$f":"IFERROR(VLOOKUP($T54,STEP_ALL!$A:$AH,5,FALSE),\"\")","v":""},{"$f":"IFERROR(VLOOKUP($T54,STEP_ALL!$A:$AH,6,FALSE),\"\")","v":""},{"$f":"IFERROR(VLOOKUP($T54,STEP_ALL!$A:$AH,7,FALSE),\"\")","v":""},{"$f":"IFERROR(VLOOKUP($T54,STEP_ALL!$A:$AH,8,FALSE),\"\")","v":""},{"$f":"IFERROR(VLOOKUP($T54,STEP_ALL!$A:$AH,9,FALSE),\"\")","v":""},{"$f":"IF(IFERROR(VLOOKUP($T54,STEP_ALL!$A:$AH,30,FALSE),\"\")=0,\"\",IFERROR(VLOOKUP($T54,STEP_ALL!$A:$AH,30,FALSE),\"\"))","v":""},{"$f":"IF(IFERROR(VLOOKUP($T54,STEP_ALL!$A:$AH,31,FALSE),\"\")=0,\"\",IFERROR(VLOOKUP($T54,STEP_ALL!$A:$AH,31,FALSE),\"\"))","v":""},{"$f":"IFERROR(MATCH(T54,STEP_ALL!A:A,0),\"\")","v":""},{"$f":"IF(IFERROR(VLOOKUP($T54,STEP_ALL!$A:$AK,36,FALSE),\"\")=0,\"\",IFERROR(VLOOKUP($T54,STEP_ALL!$A:$AK,36,FALSE),\"\"))","v":""},{"$f":"IF(IFERROR(VLOOKUP($T54,STEP_ALL!$A:$AK,37,FALSE),\"\")=0,\"\",IFERROR(VLOOKUP($T54,STEP_ALL!$A:$AK,37,FALSE),\"\"))","v":""}]
[50,"","","","","","","",null,"",null,"","","",{"$f":"IF(I55=\"\",IF(M55=\"\",\"\",IF(システムフロー作成用情報登録!$B$8-$B$3<>1,\"○\",IF(ISERROR(MATCH(M55,システムフロー作成用情報登録!K:K,0))=TRUE,\"\",\"○\"))),IF(ISERROR(MATCH(I55,システムフロー作成用情報登録!K:K,0))=TRUE,\"\",\"○\"))","v":""},"","",null,"","0-50",50,{"$f":"IFERROR(VLOOKUP($T55,STEP_ALL!$A:$AH,4,FALSE),\"\")","v":""},{"$f":"IFERROR(VLOOKUP($T55,STEP_ALL!$A:$AH,5,FALSE),\"\")","v":""},{"$f":"IFERROR(VLOOKUP($T55,STEP_ALL!$A:$AH,6,FALSE),\"\")","v":""},{"$f":"IFERROR(VLOOKUP($T55,STEP_ALL!$A:$AH,7,FALSE),\"\")","v":""},{"$f":"IFERROR(VLOOKUP($T55,STEP_ALL!$A:$AH,8,FALSE),\"\")","v":""},{"$f":"IFERROR(VLOOKUP($T55,STEP_ALL!$A:$AH,9,FALSE),\"\")","v":""},{"$f":"IF(IFERROR(VLOOKUP($T55,STEP_ALL!$A:$AH,30,FALSE),\"\")=0,\"\",IFERROR(VLOOKUP($T55,STEP_ALL!$A:$AH,30,FALSE),\"\"))","v":""},{"$f":"IF(IFERROR(VLOOKUP($T55,STEP_ALL!$A:$AH,31,FALSE),\"\")=0,\"\",IFERROR(VLOOKUP($T55,STEP_ALL!$A:$AH,31,FALSE),\"\"))","v":""},{"$f":"IFERROR(MATCH(T55,STEP_ALL!A:A,0),\"\")","v":""},{"$f":"IF(IFERROR(VLOOKUP($T55,STEP_ALL!$A:$AK,36,FALSE),\"\")=0,\"\",IFERROR(VLOOKUP($T55,STEP_ALL!$A:$AK,36,FALSE),\"\"))","v":""},{"$f":"IF(IFERROR(VLOOKUP($T55,STEP_ALL!$A:$AK,37,FALSE),\"\")=0,\"\",IFERROR(VLOOKUP($T55,STEP_ALL!$A:$AK,37,FALSE),\"\"))","v":""}]

{"sheet":"作業","index":3,"n_rows":57,"n_cols":77,"rows_kept":57,"cut":false,"hidden":true,"merged":[[4,50,4,51],[3,9,4,9],[3,10,4,10],[0,0,0,2],[0,3,0,4],[1,0,1,2],[1,3,1,4],[3,8,4,8],[3,0,4,0],[3,1,4,1],[3,2,4,2],[3,4,4,4],[0,6,0,7],[1,6,1,7],[4,44,4,45],[4,46,4,47],[4,48,4,49],[3,11,4,11],[3,12,4,12],[3,13,3,16],[3,32,4,32],[3,33,4,33],[3,28,3,31],[3,17,3,19],[3,20,3,23],[3,24,3,27]]}
["会社名",null,null,"システム名",null,"サブシステム名","機能名・他",null,"作成者",null,"step_all","開始行","行数","終了行"]
[{"$f":"IF(STEP_ALL!A2=\"\",\"\",STEP_ALL!A2)","v":""},null,null,{"$f":"IF(STEP_ALL!D2=\"\",\"\",STEP_ALL!D2)","v":""},null,{"$f":"IF(STEP_ALL!F2=\"\",\"\",STEP_ALL!F2)","v":""},{"$f":"IF(STEP_ALL!H2=\"\",\"\",STEP_ALL!H2)","v":""},null,{"$f":"IF(STEP_ALL!I2=\"\",\"\",STEP_ALL!I2)","v":""},null,4,{"$f":"IFERROR(MATCH(A6,STEP_ALL!A:A,0),0)","v":0},{"$f":"IF(L2=0,0,COUNTIF(E:E,\">\"\"\"\"\")-1)","v":0},{"$f":"IF(M2=0,0,L2+M2-1)","v":0},null,null,null,null,null,null,null,null,null,null,null,null,null,null,null,null,null,null,null,null,null,null,null,null,null,null,null,"ファイル制限数"]
[null,null,null,null,null,null,null,null,null,null,null,null,null,null,null,null,null,null,null,null,null,null,null,null,null,null,null,null,null,null,null,null,null,null,null,null,null,null,null,null,null,50]
["検索キー","STEP","№","開始行","媒体","PG内容","PG名","その他情報","備考2","I/O","定義順","区切","段目","縦",null,null,null,"PG縦",null,null,"横",null,null,null,"引継(OUT)",null,null,null,"引継(IN)",null,null,null,"引継","１段目",null,null,null,null,null,null,null,null,null,null,null,null,null,null,null,null,null,null,null,null,null,null,null,null,null,null,null,null,null,null,null,null,null,null,null,null,null,null,2]
[null,null,null,"アクセス名",null,"ファイル名","MED名","備考1",null,null,null,null,null,"位置","縦ｻｲｽﾞ","下位置","最下位","位置","縦ｻｲｽﾞ","下位置","位置","横ｻｲｽﾞ","基準位置","移動値","STEP","№","キー","相手行","STEP","№","キー","相手行",null,null,null,null,null,null,null,null,null,{"$f":"\"作業!AP8:AP\"&COUNTA(AP8:AP16)+7","v":"作業!AP8:AP12"},null,null,"サイズ",null,"標準位置",null,"移動幅",null,"順位"]
[{"$f":"B6&\"-\"&C6","v":"1-0"},{"$f":"システムフロー作成用情報登録!B8","v":1},0,{"$f":"IF(IFERROR(VLOOKUP($A6,STEP_ALL!$A:$AH,COLUMN(),FALSE),\"\")=0,\"\",IFERROR(VLOOKUP($A6,STEP_ALL!$A:$AH,COLUMN(),FALSE),\"\"))","v":""},{"$f":"IF(IFERROR(VLOOKUP($A6,STEP_ALL!$A:$AH,COLUMN(),FALSE),\"\")=0,\"\",IFERROR(VLOOKUP($A6,STEP_ALL!$A:$AH,COLUMN(),FALSE),\"\"))","v":""},{"$f":"IF(IFERROR(VLOOKUP($A6,STEP_ALL!$A:$AH,COLUMN(),FALSE),\"\")=0,\"\",IFERROR(VLOOKUP($A6,STEP_ALL!$A:$AH,COLUMN(),FALSE),\"\"))","v":""},{"$f":"IF(IFERROR(VLOOKUP($A6,STEP_ALL!$A:$AH,COLUMN(),FALSE),\"\")=0,\"\",IFERROR(VLOOKUP($A6,STEP_ALL!$A:$AH,COLUMN(),FALSE),\"\"))","v":""},{"$f":"IF(IFERROR(VLOOKUP($A6,STEP_ALL!$A:$AH,COLUMN(),FALSE),\"\")=0,\"\",IFERROR(VLOOKUP($A6,STEP_ALL!$A:$AH,COLUMN(),FALSE),\"\"))","v":""},{"$f":"IF(IFERROR(VLOOKUP($A6,STEP_ALL!$A:$AH,COLUMN(),FALSE),\"\")=0,\"\",IFERROR(VLOOKUP($A6,STEP_ALL!$A:$AH,COLUMN(),FALSE),\"\"))","v":""},{"$f":"IF(IFERROR(VLOOKUP($A6,STEP_ALL!$A:$AH,COLUMN(),FALSE),\"\")=0,\"\",IFERROR(VLOOKUP($A6,STEP_ALL!$A:$AH,COLUMN(),FALSE),\"\"))","v":""},{"$f":"IF(IFERROR(VLOOKUP($A6,STEP_ALL!$A:$AH,COLUMN(),FALSE),\"\")=0,\"\",IFERROR(VLOOKUP($A6,STEP_ALL!$A:$AH,COLUMN(),FALSE),\"\"))","v":""},{"$f":"IF(IFERROR(VLOOKUP($A6,STEP_ALL!$A:$AH,COLUMN(),FALSE),\"\")=0,\"\",IFERROR(VLOOKUP($A6,STEP_ALL!$A:$AH,COLUMN(),FALSE),\"\"))","v":""},{"$f":"IF(IFERROR(VLOOKUP($A6,STEP_ALL!$A:$AH,COLUMN(),FALSE),\"\")=0,\"\",IFERROR(VLOOKUP($A6,STEP_ALL!$A:$AH,COLUMN(),FALSE),\"\"))","v":""},{"$f":"IF(IFERROR(VLOOKUP($A6,STEP_ALL!$A:$AH,COLUMN(),FALSE),\"\")=0,\"\",IFERROR(VLOOKUP($A6,STEP_ALL!$A:$AH,COLUMN(),FALSE),\"\"))","v":""},{"$f":"IF(IFERROR(VLOOKUP($A6,STEP_ALL!$A:$AH,COLUMN(),FALSE),\"\")=0,\"\",IFERROR(VLOOKUP($A6,STEP_ALL!$A:$AH,COLUMN(),FALSE),\"\"))","v":""},{"$f":"IF(IFERROR(VLOOKUP($A6,STEP_ALL!$A:$AH,COLUMN(),FALSE),\"\")=0,\"\",IFERROR(VLOOKUP($A6,STEP_ALL!$A:$AH,COLUMN(),FALSE),\"\"))","v":""},{"$f":"IF(IFERROR(VLOOKUP($A6,STEP_ALL!$A:$AH,COLUMN(),FALSE),\"\")=0,\"\",IFERROR(VLOOKUP($A6,STEP_ALL!$A:$AH,COLUMN(),FALSE),\"\"))","v":""},{"$f":"IF(IFERROR(VLOOKUP($A6,STEP_ALL!$A:$AH,COLUMN(),FALSE),\"\")=0,\"\",IFERROR(VLOOKUP($A6,STEP_ALL!$A:$AH,COLUMN(),FALSE),\"\"))","v":""},{"$f":"IF(IFERROR(VLOOKUP($A6,STEP_ALL!$A:$AH,COLUMN(),FALSE),\"\")=0,\"\",IFERROR(VLOOKUP($A6,STEP_ALL!$A:$AH,COLUMN(),FALSE),\"\"))","v":""},{"$f":"IF(IFERROR(VLOOKUP($A6,STEP_ALL!$A:$AH,COLUMN(),FALSE),\"\")=0,\"\",IFERROR(VLOOKUP($A6,STEP_ALL!$A:$AH,COLUMN(),FALSE),\"\"))","v":""},{"$f":"IF(IFERROR(VLOOKUP($A6,STEP_ALL!$A:$AH,COLUMN(),FALSE),\"\")=0,\"\",IFERROR(VLOOKUP($A6,STEP_ALL!$A:$AH,COLUMN(),FALSE),\"\"))","v":""},{"$f":"IF(IFERROR(VLOOKUP($A6,STEP_ALL!$A:$AH,COLUMN(),FALSE),\"\")=0,\"\",IFERROR(VLOOKUP($A6,STEP_ALL!$A:$AH,COLUMN(),FALSE),\"\"))","v":""},{"$f":"IF(IFERROR(VLOOKUP($A6,STEP_ALL!$A:$AH,COLUMN(),FALSE),\"\")=0,\"\",IFERROR(VLOOKUP($A6,STEP_ALL!$A:$AH,COLUMN(),FALSE),\"\"))","v":""},{"$f":"IF(IFERROR(VLOOKUP($A6,STEP_ALL!$A:$AH,COLUMN(),FALSE),\"\")=0,\"\",IFERROR(VLOOKUP($A6,STEP_ALL!$A:$AH,COLUMN(),FALSE),\"\"))","v":""},{"$f":"IF(IFERROR(VLOOKUP($A6,STEP_ALL!$A:$AH,COLUMN(),FALSE),\"\")=0,\"\",IFERROR(VLOOKUP($A6,STEP_ALL!$A:$AH,COLUMN(),FALSE),\"\"))","v":""},{"$f":"IF(IFERROR(VLOOKUP($A6,STEP_ALL!$A:$AH,COLUMN(),FALSE),\"\")=0,\"\",IFERROR(VLOOKUP($A6,STEP_ALL!$A:$AH,COLUMN(),FALSE),\"\"))","v":""},{"$f":"IF(IFERROR(VLOOKUP($A6,STEP_ALL!$A:$AH,COLUMN(),FALSE),\"\")=0,\"\",IFERROR(VLOOKUP($A6,STEP_ALL!$A:$AH,COLUMN(),FALSE),\"\"))","v":""},{"$f":"IF(IFERROR(VLOOKUP($A6,STEP_ALL!$A:$AH,COLUMN(),FALSE),\"\")=0,\"\",IFERROR(VLOOKUP($A6,STEP_ALL!$A:$AH,COLUMN(),FALSE),\"\"))","v":""},{"$f":"IF(IFERROR(VLOOKUP($A6,STEP_ALL!$A:$AH,COLUMN(),FALSE),\"\")=0,\"\",IFERROR(VLOOKUP($A6,STEP_ALL!$A:$AH,COLUMN(),FALSE),\"\"))","v":""},{"$f":"IF(IFERROR(VLOOKUP($A6,STEP_ALL!$A:$AH,COLUMN(),FALSE),\"\")=0,\"\",IFERROR(VLOOKUP($A6,STEP_ALL!$A:$AH,COLUMN(),FALSE),\"\"))","v":""},{"$f":"IF(IFERROR(VLOOKUP($A6,STEP_ALL!$A:$AH,COLUMN(),FALSE),\"\")=0,\"\",IFERROR(VLOOKUP($A6,STEP_ALL!$A:$AH,COLUMN(),FALSE),\"\"))","v":""},{"$f":"IF(IFERROR(VLOOKUP($A6,STEP_ALL!$A:$AH,COLUMN(),FALSE),\"\")=0,\"\",IFERROR(VLOOKUP($A6,STEP_ALL!$A:$AH,COLUMN(),FALSE),\"\"))","v":""},{"$f":"IF(IFERROR(VLOOKUP($A6,STEP_ALL!$A:$AH,COLUMN(),FALSE),\"\")=0,\"\",IFERROR(VLOOKUP($A6,STEP_ALL!$A:$AH,COLUMN(),FALSE),\"\"))","v":""},{"$f":"IF(IFERROR(VLOOKUP($A6,STEP_ALL!$A:$AH,COLUMN(),FALSE),\"\")=0,\"\",IFERROR(VLOOKUP($A6,STEP_ALL!$A:$AH,COLUMN(),FALSE),\"\"))","v":""},null,null,null,null,null,null,null,"種別","種別","標準図形名","縦","横","縦移動","横","縦","横","IO","種別"]
[{"$f":"B7&\"-\"&C7","v":"1-1"},{"$f":"B6","v":1},{"$f":"C5+1","v":1},{"$f":"IF(IFERROR(VLOOKUP($A7,STEP_ALL!$A:$AH,COLUMN(),FALSE),\"\")=0,\"\",IFERROR(VLOOKUP($A7,STEP_ALL!$A:$AH,COLUMN(),FALSE),\"\"))","v":""},{"$f":"IF(IFERROR(VLOOKUP($A7,STEP_ALL!$A:$AH,COLUMN(),FALSE),\"\")=0,\"\",IFERROR(VLOOKUP($A7,STEP_ALL!$A:$AH,COLUMN(),FALSE),\"\"))","v":""},{"$f":"IF(IFERROR(VLOOKUP($A7,STEP_ALL!$A:$AH,COLUMN(),FALSE),\"\")=0,\"\",IFERROR(VLOOKUP($A7,STEP_ALL!$A:$AH,COLUMN(),FALSE),\"\"))","v":""},{"$f":"IF(IFERROR(VLOOKUP($A7,STEP_ALL!$A:$AH,COLUMN(),FALSE),\"\")=0,\"\",IFERROR(VLOOKUP($A7,STEP_ALL!$A:$AH,COLUMN(),FALSE),\"\"))","v":""},{"$f":"IF(IFERROR(VLOOKUP($A7,STEP_ALL!$A:$AH,COLUMN(),FALSE),\"\")=0,\"\",IFERROR(VLOOKUP($A7,STEP_ALL!$A:$AH,COLUMN(),FALSE),\"\"))","v":""},{"$f":"IF(IFERROR(VLOOKUP($A7,STEP_ALL!$A:$AH,COLUMN(),FALSE),\"\")=0,\"\",IFERROR(VLOOKUP($A7,STEP_ALL!$A:$AH,COLUMN(),FALSE),\"\"))","v":""},{"$f":"IF(IFERROR(VLOOKUP($A7,STEP_ALL!$A:$AH,COLUMN(),FALSE),\"\")=0,\"\",IFERROR(VLOOKUP($A7,STEP_ALL!$A:$AH,COLUMN(),FALSE),\"\"))","v":""},{"$f":"IF(IFERROR(VLOOKUP($A7,STEP_ALL!$A:$AH,COLUMN(),FALSE),\"\")=0,\"\",IFERROR(VLOOKUP($A7,STEP_ALL!$A:$AH,COLUMN(),FALSE),\"\"))","v":""},{"$f":"IF(IFERROR(VLOOKUP($A7,STEP_ALL!$A:$AH,COLUMN(),FALSE),\"\")=0,\"\",IFERROR(VLOOKUP($A7,STEP_ALL!$A:$AH,COLUMN(),FALSE),\"\"))","v":""},{"$f":"IF(IFERROR(VLOOKUP($A7,STEP_ALL!$A:$AH,COLUMN(),FALSE),\"\")=0,\"\",IFERROR(VLOOKUP($A7,STEP_ALL!$A:$AH,COLUMN(),FALSE),\"\"))","v":""},{"$f":"IF(IFERROR(VLOOKUP($A7,STEP_ALL!$A:$AH,COLUMN(),FALSE),\"\")=0,\"\",IFERROR(VLOOKUP($A7,STEP_ALL!$A:$AH,COLUMN(),FALSE),\"\"))","v":""},{"$f":"IF(IFERROR(VLOOKUP($A7,STEP_ALL!$A:$AH,COLUMN(),FALSE),\"\")=0,\"\",IFERROR(VLOOKUP($A7,STEP_ALL!$A:$AH,COLUMN(),FALSE),\"\"))","v":""},{"$f":"IF(IFERROR(VLOOKUP($A7,STEP_ALL!$A:$AH,COLUMN(),FALSE),\"\")=0,\"\",IFERROR(VLOOKUP($A7,STEP_ALL!$A:$AH,COLUMN(),FALSE),\"\"))","v":""},{"$f":"IF(IFERROR(VLOOKUP($A7,STEP_ALL!$A:$AH,COLUMN(),FALSE),\"\")=0,\"\",IFERROR(VLOOKUP($A7,STEP_ALL!$A:$AH,COLUMN(),FALSE),\"\"))","v":""},{"$f":"IF(IFERROR(VLOOKUP($A7,STEP_ALL!$A:$AH,COLUMN(),FALSE),\"\")=0,\"\",IFERROR(VLOOKUP($A7,STEP_ALL!$A:$AH,COLUMN(),FALSE),\"\"))","v":""},{"$f":"IF(IFERROR(VLOOKUP($A7,STEP_ALL!$A:$AH,COLUMN(),FALSE),\"\")=0,\"\",IFERROR(VLOOKUP($A7,STEP_ALL!$A:$AH,COLUMN(),FALSE),\"\"))","v":""},{"$f":"IF(IFERROR(VLOOKUP($A7,STEP_ALL!$A:$AH,COLUMN(),FALSE),\"\")=0,\"\",IFERROR(VLOOKUP($A7,STEP_ALL!$A:$AH,COLUMN(),FALSE),\"\"))","v":""},{"$f":"IF(IFERROR(VLOOKUP($A7,STEP_ALL!$A:$AH,COLUMN(),FALSE),\"\")=0,\"\",IFERROR(VLOOKUP($A7,STEP_ALL!$A:$AH,COLUMN(),FALSE),\"\"))","v":""},{"$f":"IF(IFERROR(VLOOKUP($A7,STEP_ALL!$A:$AH,COLUMN(),FALSE),\"\")=0,\"\",IFERROR(VLOOKUP($A7,STEP_ALL!$A:$AH,COLUMN(),FALSE),\"\"))","v":""},{"$f":"IF(IFERROR(VLOOKUP($A7,STEP_ALL!$A:$AH,COLUMN(),FALSE),\"\")=0,\"\",IFERROR(VLOOKUP($A7,STEP_ALL!$A:$AH,COLUMN(),FALSE),\"\"))","v":""},{"$f":"IF(IFERROR(VLOOKUP($A7,STEP_ALL!$A:$AH,COLUMN(),FALSE),\"\")=0,\"\",IFERROR(VLOOKUP($A7,STEP_ALL!$A:$AH,COLUMN(),FALSE),\"\"))","v":""},{"$f":"IF(IFERROR(VLOOKUP($A7,STEP_ALL!$A:$AH,COLUMN(),FALSE),\"\")=0,\"\",IFERROR(VLOOKUP($A7,STEP_ALL!$A:$AH,COLUMN(),FALSE),\"\"))","v":""},{"$f":"IF(IFERROR(VLOOKUP($A7,STEP_ALL!$A:$AH,COLUMN(),FALSE),\"\")=0,\"\",IFERROR(VLOOKUP($A7,STEP_ALL!$A:$AH,COLUMN(),FALSE),\"\"))","v":""},{"$f":"IF(IFERROR(VLOOKUP($A7,STEP_ALL!$A:$AH,COLUMN(),FALSE),\"\")=0,\"\",IFERROR(VLOOKUP($A7,STEP_ALL!$A:$AH,COLUMN(),FALSE),\"\"))","v":""},{"$f":"IF(IFERROR(VLOOKUP($A7,STEP_ALL!$A:$AH,COLUMN(),FALSE),\"\")=0,\"\",IFERROR(VLOOKUP($A7,STEP_ALL!$A:$AH,COLUMN(),FALSE),\"\"))","v":""},{"$f":"IF(IFERROR(VLOOKUP($A7,STEP_ALL!$A:$AH,COLUMN(),FALSE),\"\")=0,\"\",IFERROR(VLOOKUP($A7,STEP_ALL!$A:$AH,COLUMN(),FALSE),\"\"))","v":""},{"$f":"IF(IFERROR(VLOOKUP($A7,STEP_ALL!$A:$AH,COLUMN(),FALSE),\"\")=0,\"\",IFERROR(VLOOKUP($A7,STEP_ALL!$A:$AH,COLUMN(),FALSE),\"\"))","v":""},{"$f":"IF(IFERROR(VLOOKUP($A7,STEP_ALL!$A:$AH,COLUMN(),FALSE),\"\")=0,\"\",IFERROR(VLOOKUP($A7,STEP_ALL!$A:$AH,COLUMN(),FALSE),\"\"))","v":""},{"$f":"IF(IFERROR(VLOOKUP($A7,STEP_ALL!$A:$AH,COLUMN(),FALSE),\"\")=0,\"\",IFERROR(VLOOKUP($A7,STEP_ALL!$A:$AH,COLUMN(),FALSE),\"\"))","v":""},{"$f":"IF(IFERROR(VLOOKUP($A7,STEP_ALL!$A:$AH,COLUMN(),FALSE),\"\")=0,\"\",IFERROR(VLOOKUP($A7,STEP_ALL!$A:$AH,COLUMN(),FALSE),\"\"))","v":""},{"$f":"IF(IFERROR(VLOOKUP($A7,STEP_ALL!$A:$AH,COLUMN(),FALSE),\"\")=0,\"\",IFERROR(VLOOKUP($A7,STEP_ALL!$A:$AH,COLUMN(),FALSE),\"\"))","v":""},null,null,null,null,null,null,null,"PG",null,"PG_GRP",8,10,1,30,4,11,0,0]
["1-2",1,{"$f":"C7+1","v":2},{"$f":"IF(IFERROR(VLOOKUP($A8,STEP_ALL!$A:$AH,COLUMN(),FALSE),\"\")=0,\"\",IFERROR(VLOOKUP($A8,STEP_ALL!$A:$AH,COLUMN(),FALSE),\"\"))","v":""},{"$f":"IF(IFERROR(VLOOKUP($A8,STEP_ALL!$A:$AH,COLUMN(),FALSE),\"\")=0,\"\",IFERROR(VLOOKUP($A8,STEP_ALL!$A:$AH,COLUMN(),FALSE),\"\"))","v":""},{"$f":"IF(IFERROR(VLOOKUP($A8,STEP_ALL!$A:$AH,COLUMN(),FALSE),\"\")=0,\"\",IFERROR(VLOOKUP($A8,STEP_ALL!$A:$AH,COLUMN(),FALSE),\"\"))","v":""},{"$f":"IF(IFERROR(VLOOKUP($A8,STEP_ALL!$A:$AH,COLUMN(),FALSE),\"\")=0,\"\",IFERROR(VLOOKUP($A8,STEP_ALL!$A:$AH,COLUMN(),FALSE),\"\"))","v":""},{"$f":"IF(IFERROR(VLOOKUP($A8,STEP_ALL!$A:$AH,COLUMN(),FALSE),\"\")=0,\"\",IFERROR(VLOOKUP($A8,STEP_ALL!$A:$AH,COLUMN(),FALSE),\"\"))","v":""},{"$f":"IF(IFERROR(VLOOKUP($A8,STEP_ALL!$A:$AH,COLUMN(),FALSE),\"\")=0,\"\",IFERROR(VLOOKUP($A8,STEP_ALL!$A:$AH,COLUMN(),FALSE),\"\"))","v":""},{"$f":"IF(IFERROR(VLOOKUP($A8,STEP_ALL!$A:$AH,COLUMN(),FALSE),\"\")=0,\"\",IFERROR(VLOOKUP($A8,STEP_ALL!$A:$AH,COLUMN(),FALSE),\"\"))","v":""},{"$f":"IF(IFERROR(VLOOKUP($A8,STEP_ALL!$A:$AH,COLUMN(),FALSE),\"\")=0,\"\",IFERROR(VLOOKUP($A8,STEP_ALL!$A:$AH,COLUMN(),FALSE),\"\"))","v":""},{"$f":"IF(IFERROR(VLOOKUP($A8,STEP_ALL!$A:$AH,COLUMN(),FALSE),\"\")=0,\"\",IFERROR(VLOOKUP($A8,STEP_ALL!$A:$AH,COLUMN(),FALSE),\"\"))","v":""},{"$f":"IF(IFERROR(VLOOKUP($A8,STEP_ALL!$A:$AH,COLUMN(),FALSE),\"\")=0,\"\",IFERROR(VLOOKUP($A8,STEP_ALL!$A:$AH,COLUMN(),FALSE),\"\"))","v":""},{"$f":"IF(IFERROR(VLOOKUP($A8,STEP_ALL!$A:$AH,COLUMN(),FALSE),\"\")=0,\"\",IFERROR(VLOOKUP($A8,STEP_ALL!$A:$AH,COLUMN(),FALSE),\"\"))","v":""},{"$f":"IF(IFERROR(VLOOKUP($A8,STEP_ALL!$A:$AH,COLUMN(),FALSE),\"\")=0,\"\",IFERROR(VLOOKUP($A8,STEP_ALL!$A:$AH,COLUMN(),FALSE),\"\"))","v":""},{"$f":"IF(IFERROR(VLOOKUP($A8,STEP_ALL!$A:$AH,COLUMN(),FALSE),\"\")=0,\"\",IFERROR(VLOOKUP($A8,STEP_ALL!$A:$AH,COLUMN(),FALSE),\"\"))","v":""},{"$f":"IF(IFERROR(VLOOKUP($A8,STEP_ALL!$A:$AH,COLUMN(),FALSE),\"\")=0,\"\",IFERROR(VLOOKUP($A8,STEP_ALL!$A:$AH,COLUMN(),FALSE),\"\"))","v":""},{"$f":"IF(IFERROR(VLOOKUP($A8,STEP_ALL!$A:$AH,COLUMN(),FALSE),\"\")=0,\"\",IFERROR(VLOOKUP($A8,STEP_ALL!$A:$AH,COLUMN(),FALSE),\"\"))","v":""},{"$f":"IF(IFERROR(VLOOKUP($A8,STEP_ALL!$A:$AH,COLUMN(),FALSE),\"\")=0,\"\",IFERROR(VLOOKUP($A8,STEP_ALL!$A:$AH,COLUMN(),FALSE),\"\"))","v":""},{"$f":"IF(IFERROR(VLOOKUP($A8,STEP_ALL!$A:$AH,COLUMN(),FALSE),\"\")=0,\"\",IFERROR(VLOOKUP($A8,STEP_ALL!$A:$AH,COLUMN(),FALSE),\"\"))","v":""},{"$f":"IF(IFERROR(VLOOKUP($A8,STEP_ALL!$A:$AH,COLUMN(),FALSE),\"\")=0,\"\",IFERROR(VLOOKUP($A8,STEP_ALL!$A:$AH,COLUMN(),FALSE),\"\"))","v":""},{"$f":"IF(IFERROR(VLOOKUP($A8,STEP_ALL!$A:$AH,COLUMN(),FALSE),\"\")=0,\"\",IFERROR(VLOOKUP($A8,STEP_ALL!$A:$AH,COLUMN(),FALSE),\"\"))","v":""},{"$f":"IF(IFERROR(VLOOKUP($A8,STEP_ALL!$A:$AH,COLUMN(),FALSE),\"\")=0,\"\",IFERROR(VLOOKUP($A8,STEP_ALL!$A:$AH,COLUMN(),FALSE),\"\"))","v":""},{"$f":"IF(IFERROR(VLOOKUP($A8,STEP_ALL!$A:$AH,COLUMN(),FALSE),\"\")=0,\"\",IFERROR(VLOOKUP($A8,STEP_ALL!$A:$AH,COLUMN(),FALSE),\"\"))","v":""},{"$f":"IF(IFERROR(VLOOKUP($A8,STEP_ALL!$A:$AH,COLUMN(),FALSE),\"\")=0,\"\",IFERROR(VLOOKUP($A8,STEP_ALL!$A:$AH,COLUMN(),FALSE),\"\"))","v":""},{"$f":"IF(IFERROR(VLOOKUP($A8,STEP_ALL!$A:$AH,COLUMN(),FALSE),\"\")=0,\"\",IFERROR(VLOOKUP($A8,STEP_ALL!$A:$AH,COLUMN(),FALSE),\"\"))","v":""},{"$f":"IF(IFERROR(VLOOKUP($A8,STEP_ALL!$A:$AH,COLUMN(),FALSE),\"\")=0,\"\",IFERROR(VLOOKUP($A8,STEP_ALL!$A:$AH,COLUMN(),FALSE),\"\"))","v":""},{"$f":"IF(IFERROR(VLOOKUP($A8,STEP_ALL!$A:$AH,COLUMN(),FALSE),\"\")=0,\"\",IFERROR(VLOOKUP($A8,STEP_ALL!$A:$AH,COLUMN(),FALSE),\"\"))","v":""},{"$f":"IF(IFERROR(VLOOKUP($A8,STEP_ALL!$A:$AH,COLUMN(),FALSE),\"\")=0,\"\",IFERROR(VLOOKUP($A8,STEP_ALL!$A:$AH,COLUMN(),FALSE),\"\"))","v":""},{"$f":"IF(IFERROR(VLOOKUP($A8,STEP_ALL!$A:$AH,COLUMN(),FALSE),\"\")=0,\"\",IFERROR(VLOOKUP($A8,STEP_ALL!$A:$AH,COLUMN(),FALSE),\"\"))","v":""},{"$f":"IF(IFERROR(VLOOKUP($A8,STEP_ALL!$A:$AH,COLUMN(),FALSE),\"\")=0,\"\",IFERROR(VLOOKUP($A8,STEP_ALL!$A:$AH,COLUMN(),FALSE),\"\"))","v":""},{"$f":"IF(IFERROR(VLOOKUP($A8,STEP_ALL!$A:$AH,COLUMN(),FALSE),\"\")=0,\"\",IFERROR(VLOOKUP($A8,STEP_ALL!$A:$AH,COLUMN(),FALSE),\"\"))","v":""},{"$f":"IF(IFERROR(VLOOKUP($A8,STEP_ALL!$A:$AH,COLUMN(),FALSE),\"\")=0,\"\",IFERROR(VLOOKUP($A8,STEP_ALL!$A:$AH,COLUMN(),FALSE),\"\"))","v":""},{"$f":"IF(IFERROR(VLOOKUP($A8,STEP_ALL!$A:$AH,COLUMN(),FALSE),\"\")=0,\"\",IFERROR(VLOOKUP($A8,STEP_ALL!$A:$AH,COLUMN(),FALSE),\"\"))","v":""},null,null,null,null,null,null,null,"画面","IN","画面_GRP",8,6,1,32,1,-7,1,1,null,null,null,null,null,null,null,null,null,null,null,null,null,null,null,null,null,3,null,null,null,null,null,null,5]
["1-3",1,3,{"$f":"IF(IFERROR(VLOOKUP($A9,STEP_ALL!$A:$AH,COLUMN(),FALSE),\"\")=0,\"\",IFERROR(VLOOKUP($A9,STEP_ALL!$A:$AH,COLUMN(),FALSE),\"\"))","v":""},{"$f":"IF(IFERROR(VLOOKUP($A9,STEP_ALL!$A:$AH,COLUMN(),FALSE),\"\")=0,\"\",IFERROR(VLOOKUP($A9,STEP_ALL!$A:$AH,COLUMN(),FALSE),\"\"))","v":""},{"$f":"IF(IFERROR(VLOOKUP($A9,STEP_ALL!$A:$AH,COLUMN(),FALSE),\"\")=0,\"\",IFERROR(VLOOKUP($A9,STEP_ALL!$A:$AH,COLUMN(),FALSE),\"\"))","v":""},{"$f":"IF(IFERROR(VLOOKUP($A9,STEP_ALL!$A:$AH,COLUMN(),FALSE),\"\")=0,\"\",IFERROR(VLOOKUP($A9,STEP_ALL!$A:$AH,COLUMN(),FALSE),\"\"))","v":""},{"$f":"IF(IFERROR(VLOOKUP($A9,STEP_ALL!$A:$AH,COLUMN(),FALSE),\"\")=0,\"\",IFERROR(VLOOKUP($A9,STEP_ALL!$A:$AH,COLUMN(),FALSE),\"\"))","v":""},{"$f":"IF(IFERROR(VLOOKUP($A9,STEP_ALL!$A:$AH,COLUMN(),FALSE),\"\")=0,\"\",IFERROR(VLOOKUP($A9,STEP_ALL!$A:$AH,COLUMN(),FALSE),\"\"))","v":""},{"$f":"IF(IFERROR(VLOOKUP($A9,STEP_ALL!$A:$AH,COLUMN(),FALSE),\"\")=0,\"\",IFERROR(VLOOKUP($A9,STEP_ALL!$A:$AH,COLUMN(),FALSE),\"\"))","v":""},{"$f":"IF(IFERROR(VLOOKUP($A9,STEP_ALL!$A:$AH,COLUMN(),FALSE),\"\")=0,\"\",IFERROR(VLOOKUP($A9,STEP_ALL!$A:$AH,COLUMN(),FALSE),\"\"))","v":""},{"$f":"IF(IFERROR(VLOOKUP($A9,STEP_ALL!$A:$AH,COLUMN(),FALSE),\"\")=0,\"\",IFERROR(VLOOKUP($A9,STEP_ALL!$A:$AH,COLUMN(),FALSE),\"\"))","v":""},{"$f":"IF(IFERROR(VLOOKUP($A9,STEP_ALL!$A:$AH,COLUMN(),FALSE),\"\")=0,\"\",IFERROR(VLOOKUP($A9,STEP_ALL!$A:$AH,COLUMN(),FALSE),\"\"))","v":""},{"$f":"IF(IFERROR(VLOOKUP($A9,STEP_ALL!$A:$AH,COLUMN(),FALSE),\"\")=0,\"\",IFERROR(VLOOKUP($A9,STEP_ALL!$A:$AH,COLUMN(),FALSE),\"\"))","v":""},{"$f":"IF(IFERROR(VLOOKUP($A9,STEP_ALL!$A:$AH,COLUMN(),FALSE),\"\")=0,\"\",IFERROR(VLOOKUP($A9,STEP_ALL!$A:$AH,COLUMN(),FALSE),\"\"))","v":""},{"$f":"IF(IFERROR(VLOOKUP($A9,STEP_ALL!$A:$AH,COLUMN(),FALSE),\"\")=0,\"\",IFERROR(VLOOKUP($A9,STEP_ALL!$A:$AH,COLUMN(),FALSE),\"\"))","v":""},{"$f":"IF(IFERROR(VLOOKUP($A9,STEP_ALL!$A:$AH,COLUMN(),FALSE),\"\")=0,\"\",IFERROR(VLOOKUP($A9,STEP_ALL!$A:$AH,COLUMN(),FALSE),\"\"))","v":""},{"$f":"IF(IFERROR(VLOOKUP($A9,STEP_ALL!$A:$AH,COLUMN(),FALSE),\"\")=0,\"\",IFERROR(VLOOKUP($A9,STEP_ALL!$A:$AH,COLUMN(),FALSE),\"\"))","v":""},{"$f":"IF(IFERROR(VLOOKUP($A9,STEP_ALL!$A:$AH,COLUMN(),FALSE),\"\")=0,\"\",IFERROR(VLOOKUP($A9,STEP_ALL!$A:$AH,COLUMN(),FALSE),\"\"))","v":""},{"$f":"IF(IFERROR(VLOOKUP($A9,STEP_ALL!$A:$AH,COLUMN(),FALSE),\"\")=0,\"\",IFERROR(VLOOKUP($A9,STEP_ALL!$A:$AH,COLUMN(),FALSE),\"\"))","v":""},{"$f":"IF(IFERROR(VLOOKUP($A9,STEP_ALL!$A:$AH,COLUMN(),FALSE),\"\")=0,\"\",IFERROR(VLOOKUP($A9,STEP_ALL!$A:$AH,COLUMN(),FALSE),\"\"))","v":""},{"$f":"IF(IFERROR(VLOOKUP($A9,STEP_ALL!$A:$AH,COLUMN(),FALSE),\"\")=0,\"\",IFERROR(VLOOKUP($A9,STEP_ALL!$A:$AH,COLUMN(),FALSE),\"\"))","v":""},{"$f":"IF(IFERROR(VLOOKUP($A9,STEP_ALL!$A:$AH,COLUMN(),FALSE),\"\")=0,\"\",IFERROR(VLOOKUP($A9,STEP_ALL!$A:$AH,COLUMN(),FALSE),\"\"))","v":""},{"$f":"IF(IFERROR(VLOOKUP($A9,STEP_ALL!$A:$AH,COLUMN(),FALSE),\"\")=0,\"\",IFERROR(VLOOKUP($A9,STEP_ALL!$A:$AH,COLUMN(),FALSE),\"\"))","v":""},{"$f":"IF(IFERROR(VLOOKUP($A9,STEP_ALL!$A:$AH,COLUMN(),FALSE),\"\")=0,\"\",IFERROR(VLOOKUP($A9,STEP_ALL!$A:$AH,COLUMN(),FALSE),\"\"))","v":""},{"$f":"IF(IFERROR(VLOOKUP($A9,STEP_ALL!$A:$AH,COLUMN(),FALSE),\"\")=0,\"\",IFERROR(VLOOKUP($A9,STEP_ALL!$A:$AH,COLUMN(),FALSE),\"\"))","v":""},{"$f":"IF(IFERROR(VLOOKUP($A9,STEP_ALL!$A:$AH,COLUMN(),FALSE),\"\")=0,\"\",IFERROR(VLOOKUP($A9,STEP_ALL!$A:$AH,COLUMN(),FALSE),\"\"))","v":""},{"$f":"IF(IFERROR(VLOOKUP($A9,STEP_ALL!$A:$AH,COLUMN(),FALSE),\"\")=0,\"\",IFERROR(VLOOKUP($A9,STEP_ALL!$A:$AH,COLUMN(),FALSE),\"\"))","v":""},{"$f":"IF(IFERROR(VLOOKUP($A9,STEP_ALL!$A:$AH,COLUMN(),FALSE),\"\")=0,\"\",IFERROR(VLOOKUP($A9,STEP_ALL!$A:$AH,COLUMN(),FALSE),\"\"))","v":""},{"$f":"IF(IFERROR(VLOOKUP($A9,STEP_ALL!$A:$AH,COLUMN(),FALSE),\"\")=0,\"\",IFERROR(VLOOKUP($A9,STEP_ALL!$A:$AH,COLUMN(),FALSE),\"\"))","v":""},{"$f":"IF(IFERROR(VLOOKUP($A9,STEP_ALL!$A:$AH,COLUMN(),FALSE),\"\")=0,\"\",IFERROR(VLOOKUP($A9,STEP_ALL!$A:$AH,COLUMN(),FALSE),\"\"))","v":""},{"$f":"IF(IFERROR(VLOOKUP($A9,STEP_ALL!$A:$AH,COLUMN(),FALSE),\"\")=0,\"\",IFERROR(VLOOKUP($A9,STEP_ALL!$A:$AH,COLUMN(),FALSE),\"\"))","v":""},{"$f":"IF(IFERROR(VLOOKUP($A9,STEP_ALL!$A:$AH,COLUMN(),FALSE),\"\")=0,\"\",IFERROR(VLOOKUP($A9,STEP_ALL!$A:$AH,COLUMN(),FALSE),\"\"))","v":""},{"$f":"IF(IFERROR(VLOOKUP($A9,STEP_ALL!$A:$AH,COLUMN(),FALSE),\"\")=0,\"\",IFERROR(VLOOKUP($A9,STEP_ALL!$A:$AH,COLUMN(),FALSE),\"\"))","v":""},null,null,null,null,null,null,null,"DISK-IN","IN","DISK_GRP",8,6,1,32,1,-7,1,2]
["1-4",1,4,{"$f":"IF(IFERROR(VLOOKUP($A10,STEP_ALL!$A:$AH,COLUMN(),FALSE),\"\")=0,\"\",IFERROR(VLOOKUP($A10,STEP_ALL!$A:$AH,COLUMN(),FALSE),\"\"))","v":""},{"$f":"IF(IFERROR(VLOOKUP($A10,STEP_ALL!$A:$AH,COLUMN(),FALSE),\"\")=0,\"\",IFERROR(VLOOKUP($A10,STEP_ALL!$A:$AH,COLUMN(),FALSE),\"\"))","v":""},{"$f":"IF(IFERROR(VLOOKUP($A10,STEP_ALL!$A:$AH,COLUMN(),FALSE),\"\")=0,\"\",IFERROR(VLOOKUP($A10,STEP_ALL!$A:$AH,COLUMN(),FALSE),\"\"))","v":""},{"$f":"IF(IFERROR(VLOOKUP($A10,STEP_ALL!$A:$AH,COLUMN(),FALSE),\"\")=0,\"\",IFERROR(VLOOKUP($A10,STEP_ALL!$A:$AH,COLUMN(),FALSE),\"\"))","v":""},{"$f":"IF(IFERROR(VLOOKUP($A10,STEP_ALL!$A:$AH,COLUMN(),FALSE),\"\")=0,\"\",IFERROR(VLOOKUP($A10,STEP_ALL!$A:$AH,COLUMN(),FALSE),\"\"))","v":""},{"$f":"IF(IFERROR(VLOOKUP($A10,STEP_ALL!$A:$AH,COLUMN(),FALSE),\"\")=0,\"\",IFERROR(VLOOKUP($A10,STEP_ALL!$A:$AH,COLUMN(),FALSE),\"\"))","v":""},{"$f":"IF(IFERROR(VLOOKUP($A10,STEP_ALL!$A:$AH,COLUMN(),FALSE),\"\")=0,\"\",IFERROR(VLOOKUP($A10,STEP_ALL!$A:$AH,COLUMN(),FALSE),\"\"))","v":""},{"$f":"IF(IFERROR(VLOOKUP($A10,STEP_ALL!$A:$AH,COLUMN(),FALSE),\"\")=0,\"\",IFERROR(VLOOKUP($A10,STEP_ALL!$A:$AH,COLUMN(),FALSE),\"\"))","v":""},{"$f":"IF(IFERROR(VLOOKUP($A10,STEP_ALL!$A:$AH,COLUMN(),FALSE),\"\")=0,\"\",IFERROR(VLOOKUP($A10,STEP_ALL!$A:$AH,COLUMN(),FALSE),\"\"))","v":""},{"$f":"IF(IFERROR(VLOOKUP($A10,STEP_ALL!$A:$AH,COLUMN(),FALSE),\"\")=0,\"\",IFERROR(VLOOKUP($A10,STEP_ALL!$A:$AH,COLUMN(),FALSE),\"\"))","v":""},{"$f":"IF(IFERROR(VLOOKUP($A10,STEP_ALL!$A:$AH,COLUMN(),FALSE),\"\")=0,\"\",IFERROR(VLOOKUP($A10,STEP_ALL!$A:$AH,COLUMN(),FALSE),\"\"))","v":""},{"$f":"IF(IFERROR(VLOOKUP($A10,STEP_ALL!$A:$AH,COLUMN(),FALSE),\"\")=0,\"\",IFERROR(VLOOKUP($A10,STEP_ALL!$A:$AH,COLUMN(),FALSE),\"\"))","v":""},{"$f":"IF(IFERROR(VLOOKUP($A10,STEP_ALL!$A:$AH,COLUMN(),FALSE),\"\")=0,\"\",IFERROR(VLOOKUP($A10,STEP_ALL!$A:$AH,COLUMN(),FALSE),\"\"))","v":""},{"$f":"IF(IFERROR(VLOOKUP($A10,STEP_ALL!$A:$AH,COLUMN(),FALSE),\"\")=0,\"\",IFERROR(VLOOKUP($A10,STEP_ALL!$A:$AH,COLUMN(),FALSE),\"\"))","v":""},{"$f":"IF(IFERROR(VLOOKUP($A10,STEP_ALL!$A:$AH,COLUMN(),FALSE),\"\")=0,\"\",IFERROR(VLOOKUP($A10,STEP_ALL!$A:$AH,COLUMN(),FALSE),\"\"))","v":""},{"$f":"IF(IFERROR(VLOOKUP($A10,STEP_ALL!$A:$AH,COLUMN(),FALSE),\"\")=0,\"\",IFERROR(VLOOKUP($A10,STEP_ALL!$A:$AH,COLUMN(),FALSE),\"\"))","v":""},{"$f":"IF(IFERROR(VLOOKUP($A10,STEP_ALL!$A:$AH,COLUMN(),FALSE),\"\")=0,\"\",IFERROR(VLOOKUP($A10,STEP_ALL!$A:$AH,COLUMN(),FALSE),\"\"))","v":""},{"$f":"IF(IFERROR(VLOOKUP($A10,STEP_ALL!$A:$AH,COLUMN(),FALSE),\"\")=0,\"\",IFERROR(VLOOKUP($A10,STEP_ALL!$A:$AH,COLUMN(),FALSE),\"\"))","v":""},{"$f":"IF(IFERROR(VLOOKUP($A10,STEP_ALL!$A:$AH,COLUMN(),FALSE),\"\")=0,\"\",IFERROR(VLOOKUP($A10,STEP_ALL!$A:$AH,COLUMN(),FALSE),\"\"))","v":""},{"$f":"IF(IFERROR(VLOOKUP($A10,STEP_ALL!$A:$AH,COLUMN(),FALSE),\"\")=0,\"\",IFERROR(VLOOKUP($A10,STEP_ALL!$A:$AH,COLUMN(),FALSE),\"\"))","v":""},{"$f":"IF(IFERROR(VLOOKUP($A10,STEP_ALL!$A:$AH,COLUMN(),FALSE),\"\")=0,\"\",IFERROR(VLOOKUP($A10,STEP_ALL!$A:$AH,COLUMN(),FALSE),\"\"))","v":""},{"$f":"IF(IFERROR(VLOOKUP($A10,STEP_ALL!$A:$AH,COLUMN(),FALSE),\"\")=0,\"\",IFERROR(VLOOKUP($A10,STEP_ALL!$A:$AH,COLUMN(),FALSE),\"\"))","v":""},{"$f":"IF(IFERROR(VLOOKUP($A10,STEP_ALL!$A:$AH,COLUMN(),FALSE),\"\")=0,\"\",IFERROR(VLOOKUP($A10,STEP_ALL!$A:$AH,COLUMN(),FALSE),\"\"))","v":""},{"$f":"IF(IFERROR(VLOOKUP($A10,STEP_ALL!$A:$AH,COLUMN(),FALSE),\"\")=0,\"\",IFERROR(VLOOKUP($A10,STEP_ALL!$A:$AH,COLUMN(),FALSE),\"\"))","v":""},{"$f":"IF(IFERROR(VLOOKUP($A10,STEP_ALL!$A:$AH,COLUMN(),FALSE),\"\")=0,\"\",IFERROR(VLOOKUP($A10,STEP_ALL!$A:$AH,COLUMN(),FALSE),\"\"))","v":""},{"$f":"IF(IFERROR(VLOOKUP($A10,STEP_ALL!$A:$AH,COLUMN(),FALSE),\"\")=0,\"\",IFERROR(VLOOKUP($A10,STEP_ALL!$A:$AH,COLUMN(),FALSE),\"\"))","v":""},{"$f":"IF(IFERROR(VLOOKUP($A10,STEP_ALL!$A:$AH,COLUMN(),FALSE),\"\")=0,\"\",IFERROR(VLOOKUP($A10,STEP_ALL!$A:$AH,COLUMN(),FALSE),\"\"))","v":""},{"$f":"IF(IFERROR(VLOOKUP($A10,STEP_ALL!$A:$AH,COLUMN(),FALSE),\"\")=0,\"\",IFERROR(VLOOKUP($A10,STEP_ALL!$A:$AH,COLUMN(),FALSE),\"\"))","v":""},{"$f":"IF(IFERROR(VLOOKUP($A10,STEP_ALL!$A:$AH,COLUMN(),FALSE),\"\")=0,\"\",IFERROR(VLOOKUP($A10,STEP_ALL!$A:$AH,COLUMN(),FALSE),\"\"))","v":""},{"$f":"IF(IFERROR(VLOOKUP($A10,STEP_ALL!$A:$AH,COLUMN(),FALSE),\"\")=0,\"\",IFERROR(VLOOKUP($A10,STEP_ALL!$A:$AH,COLUMN(),FALSE),\"\"))","v":""},{"$f":"IF(IFERROR(VLOOKUP($A10,STEP_ALL!$A:$AH,COLUMN(),FALSE),\"\")=0,\"\",IFERROR(VLOOKUP($A10,STEP_ALL!$A:$AH,COLUMN(),FALSE),\"\"))","v":""},null,null,null,null,null,null,null,"DB","IO","DB_GRP",8,6,1,22,1,-6,3,3]
[{"$f":"B11&\"-\"&C11","v":"1-5"},1,5,{"$f":"IF(IFERROR(VLOOKUP($A11,STEP_ALL!$A:$AH,COLUMN(),FALSE),\"\")=0,\"\",IFERROR(VLOOKUP($A11,STEP_ALL!$A:$AH,COLUMN(),FALSE),\"\"))","v":""},{"$f":"IF(IFERROR(VLOOKUP($A11,STEP_ALL!$A:$AH,COLUMN(),FALSE),\"\")=0,\"\",IFERROR(VLOOKUP($A11,STEP_ALL!$A:$AH,COLUMN(),FALSE),\"\"))","v":""},{"$f":"IF(IFERROR(VLOOKUP($A11,STEP_ALL!$A:$AH,COLUMN(),FALSE),\"\")=0,\"\",IFERROR(VLOOKUP($A11,STEP_ALL!$A:$AH,COLUMN(),FALSE),\"\"))","v":""},{"$f":"IF(IFERROR(VLOOKUP($A11,STEP_ALL!$A:$AH,COLUMN(),FALSE),\"\")=0,\"\",IFERROR(VLOOKUP($A11,STEP_ALL!$A:$AH,COLUMN(),FALSE),\"\"))","v":""},{"$f":"IF(IFERROR(VLOOKUP($A11,STEP_ALL!$A:$AH,COLUMN(),FALSE),\"\")=0,\"\",IFERROR(VLOOKUP($A11,STEP_ALL!$A:$AH,COLUMN(),FALSE),\"\"))","v":""},{"$f":"IF(IFERROR(VLOOKUP($A11,STEP_ALL!$A:$AH,COLUMN(),FALSE),\"\")=0,\"\",IFERROR(VLOOKUP($A11,STEP_ALL!$A:$AH,COLUMN(),FALSE),\"\"))","v":""},{"$f":"IF(IFERROR(VLOOKUP($A11,STEP_ALL!$A:$AH,COLUMN(),FALSE),\"\")=0,\"\",IFERROR(VLOOKUP($A11,STEP_ALL!$A:$AH,COLUMN(),FALSE),\"\"))","v":""},{"$f":"IF(IFERROR(VLOOKUP($A11,STEP_ALL!$A:$AH,COLUMN(),FALSE),\"\")=0,\"\",IFERROR(VLOOKUP($A11,STEP_ALL!$A:$AH,COLUMN(),FALSE),\"\"))","v":""},{"$f":"IF(IFERROR(VLOOKUP($A11,STEP_ALL!$A:$AH,COLUMN(),FALSE),\"\")=0,\"\",IFERROR(VLOOKUP($A11,STEP_ALL!$A:$AH,COLUMN(),FALSE),\"\"))","v":""},{"$f":"IF(IFERROR(VLOOKUP($A11,STEP_ALL!$A:$AH,COLUMN(),FALSE),\"\")=0,\"\",IFERROR(VLOOKUP($A11,STEP_ALL!$A:$AH,COLUMN(),FALSE),\"\"))","v":""},{"$f":"IF(IFERROR(VLOOKUP($A11,STEP_ALL!$A:$AH,COLUMN(),FALSE),\"\")=0,\"\",IFERROR(VLOOKUP($A11,STEP_ALL!$A:$AH,COLUMN(),FALSE),\"\"))","v":""},{"$f":"IF(IFERROR(VLOOKUP($A11,STEP_ALL!$A:$AH,COLUMN(),FALSE),\"\")=0,\"\",IFERROR(VLOOKUP($A11,STEP_ALL!$A:$AH,COLUMN(),FALSE),\"\"))","v":""},{"$f":"IF(IFERROR(VLOOKUP($A11,STEP_ALL!$A:$AH,COLUMN(),FALSE),\"\")=0,\"\",IFERROR(VLOOKUP($A11,STEP_ALL!$A:$AH,COLUMN(),FALSE),\"\"))","v":""},{"$f":"IF(IFERROR(VLOOKUP($A11,STEP_ALL!$A:$AH,COLUMN(),FALSE),\"\")=0,\"\",IFERROR(VLOOKUP($A11,STEP_ALL!$A:$AH,COLUMN(),FALSE),\"\"))","v":""},{"$f":"IF(IFERROR(VLOOKUP($A11,STEP_ALL!$A:$AH,COLUMN(),FALSE),\"\")=0,\"\",IFERROR(VLOOKUP($A11,STEP_ALL!$A:$AH,COLUMN(),FALSE),\"\"))","v":""},{"$f":"IF(IFERROR(VLOOKUP($A11,STEP_ALL!$A:$AH,COLUMN(),FALSE),\"\")=0,\"\",IFERROR(VLOOKUP($A11,STEP_ALL!$A:$AH,COLUMN(),FALSE),\"\"))","v":""},{"$f":"IF(IFERROR(VLOOKUP($A11,STEP_ALL!$A:$AH,COLUMN(),FALSE),\"\")=0,\"\",IFERROR(VLOOKUP($A11,STEP_ALL!$A:$AH,COLUMN(),FALSE),\"\"))","v":""},{"$f":"IF(IFERROR(VLOOKUP($A11,STEP_ALL!$A:$AH,COLUMN(),FALSE),\"\")=0,\"\",IFERROR(VLOOKUP($A11,STEP_ALL!$A:$AH,COLUMN(),FALSE),\"\"))","v":""},{"$f":"IF(IFERROR(VLOOKUP($A11,STEP_ALL!$A:$AH,COLUMN(),FALSE),\"\")=0,\"\",IFERROR(VLOOKUP($A11,STEP_ALL!$A:$AH,COLUMN(),FALSE),\"\"))","v":""},{"$f":"IF(IFERROR(VLOOKUP($A11,STEP_ALL!$A:$AH,COLUMN(),FALSE),\"\")=0,\"\",IFERROR(VLOOKUP($A11,STEP_ALL!$A:$AH,COLUMN(),FALSE),\"\"))","v":""},{"$f":"IF(IFERROR(VLOOKUP($A11,STEP_ALL!$A:$AH,COLUMN(),FALSE),\"\")=0,\"\",IFERROR(VLOOKUP($A11,STEP_ALL!$A:$AH,COLUMN(),FALSE),\"\"))","v":""},{"$f":"IF(IFERROR(VLOOKUP($A11,STEP_ALL!$A:$AH,COLUMN(),FALSE),\"\")=0,\"\",IFERROR(VLOOKUP($A11,STEP_ALL!$A:$AH,COLUMN(),FALSE),\"\"))","v":""},{"$f":"IF(IFERROR(VLOOKUP($A11,STEP_ALL!$A:$AH,COLUMN(),FALSE),\"\")=0,\"\",IFERROR(VLOOKUP($A11,STEP_ALL!$A:$AH,COLUMN(),FALSE),\"\"))","v":""},{"$f":"IF(IFERROR(VLOOKUP($A11,STEP_ALL!$A:$AH,COLUMN(),FALSE),\"\")=0,\"\",IFERROR(VLOOKUP($A11,STEP_ALL!$A:$AH,COLUMN(),FALSE),\"\"))","v":""},{"$f":"IF(IFERROR(VLOOKUP($A11,STEP_ALL!$A:$AH,COLUMN(),FALSE),\"\")=0,\"\",IFERROR(VLOOKUP($A11,STEP_ALL!$A:$AH,COLUMN(),FALSE),\"\"))","v":""},{"$f":"IF(IFERROR(VLOOKUP($A11,STEP_ALL!$A:$AH,COLUMN(),FALSE),\"\")=0,\"\",IFERROR(VLOOKUP($A11,STEP_ALL!$A:$AH,COLUMN(),FALSE),\"\"))","v":""},{"$f":"IF(IFERROR(VLOOKUP($A11,STEP_ALL!$A:$AH,COLUMN(),FALSE),\"\")=0,\"\",IFERROR(VLOOKUP($A11,STEP_ALL!$A:$AH,COLUMN(),FALSE),\"\"))","v":""},{"$f":"IF(IFERROR(VLOOKUP($A11,STEP_ALL!$A:$AH,COLUMN(),FALSE),\"\")=0,\"\",IFERROR(VLOOKUP($A11,STEP_ALL!$A:$AH,COLUMN(),FALSE),\"\"))","v":""},{"$f":"IF(IFERROR(VLOOKUP($A11,STEP_ALL!$A:$AH,COLUMN(),FALSE),\"\")=0,\"\",IFERROR(VLOOKUP($A11,STEP_ALL!$A:$AH,COLUMN(),FALSE),\"\"))","v":""},{"$f":"IF(IFERROR(VLOOKUP($A11,STEP_ALL!$A:$AH,COLUMN(),FALSE),\"\")=0,\"\",IFERROR(VLOOKUP($A11,STEP_ALL!$A:$AH,COLUMN(),FALSE),\"\"))","v":""},{"$f":"IF(IFERROR(VLOOKUP($A11,STEP_ALL!$A:$AH,COLUMN(),FALSE),\"\")=0,\"\",IFERROR(VLOOKUP($A11,STEP_ALL!$A:$AH,COLUMN(),FALSE),\"\"))","v":""},null,null,null,null,null,null,null,"DISK-OUT","OUT","DISK_GRP",8,6,1,32,1,7,5,4,null,null,null,null,null,null,null,null,null,null,null,null,null,null,null,null,null,null,null,null,4]
["1-6",1,6,{"$f":"IF(IFERROR(VLOOKUP($A12,STEP_ALL!$A:$AH,COLUMN(),FALSE),\"\")=0,\"\",IFERROR(VLOOKUP($A12,STEP_ALL!$A:$AH,COLUMN(),FALSE),\"\"))","v":""},{"$f":"IF(IFERROR(VLOOKUP($A12,STEP_ALL!$A:$AH,COLUMN(),FALSE),\"\")=0,\"\",IFERROR(VLOOKUP($A12,STEP_ALL!$A:$AH,COLUMN(),FALSE),\"\"))","v":""},{"$f":"IF(IFERROR(VLOOKUP($A12,STEP_ALL!$A:$AH,COLUMN(),FALSE),\"\")=0,\"\",IFERROR(VLOOKUP($A12,STEP_ALL!$A:$AH,COLUMN(),FALSE),\"\"))","v":""},{"$f":"IF(IFERROR(VLOOKUP($A12,STEP_ALL!$A:$AH,COLUMN(),FALSE),\"\")=0,\"\",IFERROR(VLOOKUP($A12,STEP_ALL!$A:$AH,COLUMN(),FALSE),\"\"))","v":""},{"$f":"IF(IFERROR(VLOOKUP($A12,STEP_ALL!$A:$AH,COLUMN(),FALSE),\"\")=0,\"\",IFERROR(VLOOKUP($A12,STEP_ALL!$A:$AH,COLUMN(),FALSE),\"\"))","v":""},{"$f":"IF(IFERROR(VLOOKUP($A12,STEP_ALL!$A:$AH,COLUMN(),FALSE),\"\")=0,\"\",IFERROR(VLOOKUP($A12,STEP_ALL!$A:$AH,COLUMN(),FALSE),\"\"))","v":""},{"$f":"IF(IFERROR(VLOOKUP($A12,STEP_ALL!$A:$AH,COLUMN(),FALSE),\"\")=0,\"\",IFERROR(VLOOKUP($A12,STEP_ALL!$A:$AH,COLUMN(),FALSE),\"\"))","v":""},{"$f":"IF(IFERROR(VLOOKUP($A12,STEP_ALL!$A:$AH,COLUMN(),FALSE),\"\")=0,\"\",IFERROR(VLOOKUP($A12,STEP_ALL!$A:$AH,COLUMN(),FALSE),\"\"))","v":""},{"$f":"IF(IFERROR(VLOOKUP($A12,STEP_ALL!$A:$AH,COLUMN(),FALSE),\"\")=0,\"\",IFERROR(VLOOKUP($A12,STEP_ALL!$A:$AH,COLUMN(),FALSE),\"\"))","v":""},{"$f":"IF(IFERROR(VLOOKUP($A12,STEP_ALL!$A:$AH,COLUMN(),FALSE),\"\")=0,\"\",IFERROR(VLOOKUP($A12,STEP_ALL!$A:$AH,COLUMN(),FALSE),\"\"))","v":""},{"$f":"IF(IFERROR(VLOOKUP($A12,STEP_ALL!$A:$AH,COLUMN(),FALSE),\"\")=0,\"\",IFERROR(VLOOKUP($A12,STEP_ALL!$A:$AH,COLUMN(),FALSE),\"\"))","v":""},{"$f":"IF(IFERROR(VLOOKUP($A12,STEP_ALL!$A:$AH,COLUMN(),FALSE),\"\")=0,\"\",IFERROR(VLOOKUP($A12,STEP_ALL!$A:$AH,COLUMN(),FALSE),\"\"))","v":""},{"$f":"IF(IFERROR(VLOOKUP($A12,STEP_ALL!$A:$AH,COLUMN(),FALSE),\"\")=0,\"\",IFERROR(VLOOKUP($A12,STEP_ALL!$A:$AH,COLUMN(),FALSE),\"\"))","v":""},{"$f":"IF(IFERROR(VLOOKUP($A12,STEP_ALL!$A:$AH,COLUMN(),FALSE),\"\")=0,\"\",IFERROR(VLOOKUP($A12,STEP_ALL!$A:$AH,COLUMN(),FALSE),\"\"))","v":""},{"$f":"IF(IFERROR(VLOOKUP($A12,STEP_ALL!$A:$AH,COLUMN(),FALSE),\"\")=0,\"\",IFERROR(VLOOKUP($A12,STEP_ALL!$A:$AH,COLUMN(),FALSE),\"\"))","v":""},{"$f":"IF(IFERROR(VLOOKUP($A12,STEP_ALL!$A:$AH,COLUMN(),FALSE),\"\")=0,\"\",IFERROR(VLOOKUP($A12,STEP_ALL!$A:$AH,COLUMN(),FALSE),\"\"))","v":""},{"$f":"IF(IFERROR(VLOOKUP($A12,STEP_ALL!$A:$AH,COLUMN(),FALSE),\"\")=0,\"\",IFERROR(VLOOKUP($A12,STEP_ALL!$A:$AH,COLUMN(),FALSE),\"\"))","v":""},{"$f":"IF(IFERROR(VLOOKUP($A12,STEP_ALL!$A:$AH,COLUMN(),FALSE),\"\")=0,\"\",IFERROR(VLOOKUP($A12,STEP_ALL!$A:$AH,COLUMN(),FALSE),\"\"))","v":""},{"$f":"IF(IFERROR(VLOOKUP($A12,STEP_ALL!$A:$AH,COLUMN(),FALSE),\"\")=0,\"\",IFERROR(VLOOKUP($A12,STEP_ALL!$A:$AH,COLUMN(),FALSE),\"\"))","v":""},{"$f":"IF(IFERROR(VLOOKUP($A12,STEP_ALL!$A:$AH,COLUMN(),FALSE),\"\")=0,\"\",IFERROR(VLOOKUP($A12,STEP_ALL!$A:$AH,COLUMN(),FALSE),\"\"))","v":""},{"$f":"IF(IFERROR(VLOOKUP($A12,STEP_ALL!$A:$AH,COLUMN(),FALSE),\"\")=0,\"\",IFERROR(VLOOKUP($A12,STEP_ALL!$A:$AH,COLUMN(),FALSE),\"\"))","v":""},{"$f":"IF(IFERROR(VLOOKUP($A12,STEP_ALL!$A:$AH,COLUMN(),FALSE),\"\")=0,\"\",IFERROR(VLOOKUP($A12,STEP_ALL!$A:$AH,COLUMN(),FALSE),\"\"))","v":""},{"$f":"IF(IFERROR(VLOOKUP($A12,STEP_ALL!$A:$AH,COLUMN(),FALSE),\"\")=0,\"\",IFERROR(VLOOKUP($A12,STEP_ALL!$A:$AH,COLUMN(),FALSE),\"\"))","v":""},{"$f":"IF(IFERROR(VLOOKUP($A12,STEP_ALL!$A:$AH,COLUMN(),FALSE),\"\")=0,\"\",IFERROR(VLOOKUP($A12,STEP_ALL!$A:$AH,COLUMN(),FALSE),\"\"))","v":""},{"$f":"IF(IFERROR(VLOOKUP($A12,STEP_ALL!$A:$AH,COLUMN(),FALSE),\"\")=0,\"\",IFERROR(VLOOKUP($A12,STEP_ALL!$A:$AH,COLUMN(),FALSE),\"\"))","v":""},{"$f":"IF(IFERROR(VLOOKUP($A12,STEP_ALL!$A:$AH,COLUMN(),FALSE),\"\")=0,\"\",IFERROR(VLOOKUP($A12,STEP_ALL!$A:$AH,COLUMN(),FALSE),\"\"))","v":""},{"$f":"IF(IFERROR(VLOOKUP($A12,STEP_ALL!$A:$AH,COLUMN(),FALSE),\"\")=0,\"\",IFERROR(VLOOKUP($A12,STEP_ALL!$A:$AH,COLUMN(),FALSE),\"\"))","v":""},{"$f":"IF(IFERROR(VLOOKUP($A12,STEP_ALL!$A:$AH,COLUMN(),FALSE),\"\")=0,\"\",IFERROR(VLOOKUP($A12,STEP_ALL!$A:$AH,COLUMN(),FALSE),\"\"))","v":""},{"$f":"IF(IFERROR(VLOOKUP($A12,STEP_ALL!$A:$AH,COLUMN(),FALSE),\"\")=0,\"\",IFERROR(VLOOKUP($A12,STEP_ALL!$A:$AH,COLUMN(),FALSE),\"\"))","v":""},{"$f":"IF(IFERROR(VLOOKUP($A12,STEP_ALL!$A:$AH,COLUMN(),FALSE),\"\")=0,\"\",IFERROR(VLOOKUP($A12,STEP_ALL!$A:$AH,COLUMN(),FALSE),\"\"))","v":""},{"$f":"IF(IFERROR(VLOOKUP($A12,STEP_ALL!$A:$AH,COLUMN(),FALSE),\"\")=0,\"\",IFERROR(VLOOKUP($A12,STEP_ALL!$A:$AH,COLUMN(),FALSE),\"\"))","v":""},null,null,null,null,null,null,null,"LIST","OUT","LIST_GRP",8,6,1,32,1,7,5,5]
["1-7",1,7,{"$f":"IF(IFERROR(VLOOKUP($A13,STEP_ALL!$A:$AH,COLUMN(),FALSE),\"\")=0,\"\",IFERROR(VLOOKUP($A13,STEP_ALL!$A:$AH,COLUMN(),FALSE),\"\"))","v":""},{"$f":"IF(IFERROR(VLOOKUP($A13,STEP_ALL!$A:$AH,COLUMN(),FALSE),\"\")=0,\"\",IFERROR(VLOOKUP($A13,STEP_ALL!$A:$AH,COLUMN(),FALSE),\"\"))","v":""},{"$f":"IF(IFERROR(VLOOKUP($A13,STEP_ALL!$A:$AH,COLUMN(),FALSE),\"\")=0,\"\",IFERROR(VLOOKUP($A13,STEP_ALL!$A:$AH,COLUMN(),FALSE),\"\"))","v":""},{"$f":"IF(IFERROR(VLOOKUP($A13,STEP_ALL!$A:$AH,COLUMN(),FALSE),\"\")=0,\"\",IFERROR(VLOOKUP($A13,STEP_ALL!$A:$AH,COLUMN(),FALSE),\"\"))","v":""},{"$f":"IF(IFERROR(VLOOKUP($A13,STEP_ALL!$A:$AH,COLUMN(),FALSE),\"\")=0,\"\",IFERROR(VLOOKUP($A13,STEP_ALL!$A:$AH,COLUMN(),FALSE),\"\"))","v":""},{"$f":"IF(IFERROR(VLOOKUP($A13,STEP_ALL!$A:$AH,COLUMN(),FALSE),\"\")=0,\"\",IFERROR(VLOOKUP($A13,STEP_ALL!$A:$AH,COLUMN(),FALSE),\"\"))","v":""},{"$f":"IF(IFERROR(VLOOKUP($A13,STEP_ALL!$A:$AH,COLUMN(),FALSE),\"\")=0,\"\",IFERROR(VLOOKUP($A13,STEP_ALL!$A:$AH,COLUMN(),FALSE),\"\"))","v":""},{"$f":"IF(IFERROR(VLOOKUP($A13,STEP_ALL!$A:$AH,COLUMN(),FALSE),\"\")=0,\"\",IFERROR(VLOOKUP($A13,STEP_ALL!$A:$AH,COLUMN(),FALSE),\"\"))","v":""},{"$f":"IF(IFERROR(VLOOKUP($A13,STEP_ALL!$A:$AH,COLUMN(),FALSE),\"\")=0,\"\",IFERROR(VLOOKUP($A13,STEP_ALL!$A:$AH,COLUMN(),FALSE),\"\"))","v":""},{"$f":"IF(IFERROR(VLOOKUP($A13,STEP_ALL!$A:$AH,COLUMN(),FALSE),\"\")=0,\"\",IFERROR(VLOOKUP($A13,STEP_ALL!$A:$AH,COLUMN(),FALSE),\"\"))","v":""},{"$f":"IF(IFERROR(VLOOKUP($A13,STEP_ALL!$A:$AH,COLUMN(),FALSE),\"\")=0,\"\",IFERROR(VLOOKUP($A13,STEP_ALL!$A:$AH,COLUMN(),FALSE),\"\"))","v":""},{"$f":"IF(IFERROR(VLOOKUP($A13,STEP_ALL!$A:$AH,COLUMN(),FALSE),\"\")=0,\"\",IFERROR(VLOOKUP($A13,STEP_ALL!$A:$AH,COLUMN(),FALSE),\"\"))","v":""},{"$f":"IF(IFERROR(VLOOKUP($A13,STEP_ALL!$A:$AH,COLUMN(),FALSE),\"\")=0,\"\",IFERROR(VLOOKUP($A13,STEP_ALL!$A:$AH,COLUMN(),FALSE),\"\"))","v":""},{"$f":"IF(IFERROR(VLOOKUP($A13,STEP_ALL!$A:$AH,COLUMN(),FALSE),\"\")=0,\"\",IFERROR(VLOOKUP($A13,STEP_ALL!$A:$AH,COLUMN(),FALSE),\"\"))","v":""},{"$f":"IF(IFERROR(VLOOKUP($A13,STEP_ALL!$A:$AH,COLUMN(),FALSE),\"\")=0,\"\",IFERROR(VLOOKUP($A13,STEP_ALL!$A:$AH,COLUMN(),FALSE),\"\"))","v":""},{"$f":"IF(IFERROR(VLOOKUP($A13,STEP_ALL!$A:$AH,COLUMN(),FALSE),\"\")=0,\"\",IFERROR(VLOOKUP($A13,STEP_ALL!$A:$AH,COLUMN(),FALSE),\"\"))","v":""},{"$f":"IF(IFERROR(VLOOKUP($A13,STEP_ALL!$A:$AH,COLUMN(),FALSE),\"\")=0,\"\",IFERROR(VLOOKUP($A13,STEP_ALL!$A:$AH,COLUMN(),FALSE),\"\"))","v":""},{"$f":"IF(IFERROR(VLOOKUP($A13,STEP_ALL!$A:$AH,COLUMN(),FALSE),\"\")=0,\"\",IFERROR(VLOOKUP($A13,STEP_ALL!$A:$AH,COLUMN(),FALSE),\"\"))","v":""},{"$f":"IF(IFERROR(VLOOKUP($A13,STEP_ALL!$A:$AH,COLUMN(),FALSE),\"\")=0,\"\",IFERROR(VLOOKUP($A13,STEP_ALL!$A:$AH,COLUMN(),FALSE),\"\"))","v":""},{"$f":"IF(IFERROR(VLOOKUP($A13,STEP_ALL!$A:$AH,COLUMN(),FALSE),\"\")=0,\"\",IFERROR(VLOOKUP($A13,STEP_ALL!$A:$AH,COLUMN(),FALSE),\"\"))","v":""},{"$f":"IF(IFERROR(VLOOKUP($A13,STEP_ALL!$A:$AH,COLUMN(),FALSE),\"\")=0,\"\",IFERROR(VLOOKUP($A13,STEP_ALL!$A:$AH,COLUMN(),FALSE),\"\"))","v":""},{"$f":"IF(IFERROR(VLOOKUP($A13,STEP_ALL!$A:$AH,COLUMN(),FALSE),\"\")=0,\"\",IFERROR(VLOOKUP($A13,STEP_ALL!$A:$AH,COLUMN(),FALSE),\"\"))","v":""},{"$f":"IF(IFERROR(VLOOKUP($A13,STEP_ALL!$A:$AH,COLUMN(),FALSE),\"\")=0,\"\",IFERROR(VLOOKUP($A13,STEP_ALL!$A:$AH,COLUMN(),FALSE),\"\"))","v":""},{"$f":"IF(IFERROR(VLOOKUP($A13,STEP_ALL!$A:$AH,COLUMN(),FALSE),\"\")=0,\"\",IFERROR(VLOOKUP($A13,STEP_ALL!$A:$AH,COLUMN(),FALSE),\"\"))","v":""},{"$f":"IF(IFERROR(VLOOKUP($A13,STEP_ALL!$A:$AH,COLUMN(),FALSE),\"\")=0,\"\",IFERROR(VLOOKUP($A13,STEP_ALL!$A:$AH,COLUMN(),FALSE),\"\"))","v":""},{"$f":"IF(IFERROR(VLOOKUP($A13,STEP_ALL!$A:$AH,COLUMN(),FALSE),\"\")=0,\"\",IFERROR(VLOOKUP($A13,STEP_ALL!$A:$AH,COLUMN(),FALSE),\"\"))","v":""},{"$f":"IF(IFERROR(VLOOKUP($A13,STEP_ALL!$A:$AH,COLUMN(),FALSE),\"\")=0,\"\",IFERROR(VLOOKUP($A13,STEP_ALL!$A:$AH,COLUMN(),FALSE),\"\"))","v":""},{"$f":"IF(IFERROR(VLOOKUP($A13,STEP_ALL!$A:$AH,COLUMN(),FALSE),\"\")=0,\"\",IFERROR(VLOOKUP($A13,STEP_ALL!$A:$AH,COLUMN(),FALSE),\"\"))","v":""},{"$f":"IF(IFERROR(VLOOKUP($A13,STEP_ALL!$A:$AH,COLUMN(),FALSE),\"\")=0,\"\",IFERROR(VLOOKUP($A13,STEP_ALL!$A:$AH,COLUMN(),FALSE),\"\"))","v":""},{"$f":"IF(IFERROR(VLOOKUP($A13,STEP_ALL!$A:$AH,COLUMN(),FALSE),\"\")=0,\"\",IFERROR(VLOOKUP($A13,STEP_ALL!$A:$AH,COLUMN(),FALSE),\"\"))","v":""},{"$f":"IF(IFERROR(VLOOKUP($A13,STEP_ALL!$A:$AH,COLUMN(),FALSE),\"\")=0,\"\",IFERROR(VLOOKUP($A13,STEP_ALL!$A:$AH,COLUMN(),FALSE),\"\"))","v":""},null,null,null,null,null,null,null,null,null,null,null,null,null,null,"",""]
["1-8",1,8,{"$f":"IF(IFERROR(VLOOKUP($A14,STEP_ALL!$A:$AH,COLUMN(),FALSE),\"\")=0,\"\",IFERROR(VLOOKUP($A14,STEP_ALL!$A:$AH,COLUMN(),FALSE),\"\"))","v":""},{"$f":"IF(IFERROR(VLOOKUP($A14,STEP_ALL!$A:$AH,COLUMN(),FALSE),\"\")=0,\"\",IFERROR(VLOOKUP($A14,STEP_ALL!$A:$AH,COLUMN(),FALSE),\"\"))","v":""},{"$f":"IF(IFERROR(VLOOKUP($A14,STEP_ALL!$A:$AH,COLUMN(),FALSE),\"\")=0,\"\",IFERROR(VLOOKUP($A14,STEP_ALL!$A:$AH,COLUMN(),FALSE),\"\"))","v":""},{"$f":"IF(IFERROR(VLOOKUP($A14,STEP_ALL!$A:$AH,COLUMN(),FALSE),\"\")=0,\"\",IFERROR(VLOOKUP($A14,STEP_ALL!$A:$AH,COLUMN(),FALSE),\"\"))","v":""},{"$f":"IF(IFERROR(VLOOKUP($A14,STEP_ALL!$A:$AH,COLUMN(),FALSE),\"\")=0,\"\",IFERROR(VLOOKUP($A14,STEP_ALL!$A:$AH,COLUMN(),FALSE),\"\"))","v":""},{"$f":"IF(IFERROR(VLOOKUP($A14,STEP_ALL!$A:$AH,COLUMN(),FALSE),\"\")=0,\"\",IFERROR(VLOOKUP($A14,STEP_ALL!$A:$AH,COLUMN(),FALSE),\"\"))","v":""},{"$f":"IF(IFERROR(VLOOKUP($A14,STEP_ALL!$A:$AH,COLUMN(),FALSE),\"\")=0,\"\",IFERROR(VLOOKUP($A14,STEP_ALL!$A:$AH,COLUMN(),FALSE),\"\"))","v":""},{"$f":"IF(IFERROR(VLOOKUP($A14,STEP_ALL!$A:$AH,COLUMN(),FALSE),\"\")=0,\"\",IFERROR(VLOOKUP($A14,STEP_ALL!$A:$AH,COLUMN(),FALSE),\"\"))","v":""},{"$f":"IF(IFERROR(VLOOKUP($A14,STEP_ALL!$A:$AH,COLUMN(),FALSE),\"\")=0,\"\",IFERROR(VLOOKUP($A14,STEP_ALL!$A:$AH,COLUMN(),FALSE),\"\"))","v":""},{"$f":"IF(IFERROR(VLOOKUP($A14,STEP_ALL!$A:$AH,COLUMN(),FALSE),\"\")=0,\"\",IFERROR(VLOOKUP($A14,STEP_ALL!$A:$AH,COLUMN(),FALSE),\"\"))","v":""},{"$f":"IF(IFERROR(VLOOKUP($A14,STEP_ALL!$A:$AH,COLUMN(),FALSE),\"\")=0,\"\",IFERROR(VLOOKUP($A14,STEP_ALL!$A:$AH,COLUMN(),FALSE),\"\"))","v":""},{"$f":"IF(IFERROR(VLOOKUP($A14,STEP_ALL!$A:$AH,COLUMN(),FALSE),\"\")=0,\"\",IFERROR(VLOOKUP($A14,STEP_ALL!$A:$AH,COLUMN(),FALSE),\"\"))","v":""},{"$f":"IF(IFERROR(VLOOKUP($A14,STEP_ALL!$A:$AH,COLUMN(),FALSE),\"\")=0,\"\",IFERROR(VLOOKUP($A14,STEP_ALL!$A:$AH,COLUMN(),FALSE),\"\"))","v":""},{"$f":"IF(IFERROR(VLOOKUP($A14,STEP_ALL!$A:$AH,COLUMN(),FALSE),\"\")=0,\"\",IFERROR(VLOOKUP($A14,STEP_ALL!$A:$AH,COLUMN(),FALSE),\"\"))","v":""},{"$f":"IF(IFERROR(VLOOKUP($A14,STEP_ALL!$A:$AH,COLUMN(),FALSE),\"\")=0,\"\",IFERROR(VLOOKUP($A14,STEP_ALL!$A:$AH,COLUMN(),FALSE),\"\"))","v":""},{"$f":"IF(IFERROR(VLOOKUP($A14,STEP_ALL!$A:$AH,COLUMN(),FALSE),\"\")=0,\"\",IFERROR(VLOOKUP($A14,STEP_ALL!$A:$AH,COLUMN(),FALSE),\"\"))","v":""},{"$f":"IF(IFERROR(VLOOKUP($A14,STEP_ALL!$A:$AH,COLUMN(),FALSE),\"\")=0,\"\",IFERROR(VLOOKUP($A14,STEP_ALL!$A:$AH,COLUMN(),FALSE),\"\"))","v":""},{"$f":"IF(IFERROR(VLOOKUP($A14,STEP_ALL!$A:$AH,COLUMN(),FALSE),\"\")=0,\"\",IFERROR(VLOOKUP($A14,STEP_ALL!$A:$AH,COLUMN(),FALSE),\"\"))","v":""},{"$f":"IF(IFERROR(VLOOKUP($A14,STEP_ALL!$A:$AH,COLUMN(),FALSE),\"\")=0,\"\",IFERROR(VLOOKUP($A14,STEP_ALL!$A:$AH,COLUMN(),FALSE),\"\"))","v":""},{"$f":"IF(IFERROR(VLOOKUP($A14,STEP_ALL!$A:$AH,COLUMN(),FALSE),\"\")=0,\"\",IFERROR(VLOOKUP($A14,STEP_ALL!$A:$AH,COLUMN(),FALSE),\"\"))","v":""},{"$f":"IF(IFERROR(VLOOKUP($A14,STEP_ALL!$A:$AH,COLUMN(),FALSE),\"\")=0,\"\",IFERROR(VLOOKUP($A14,STEP_ALL!$A:$AH,COLUMN(),FALSE),\"\"))","v":""},{"$f":"IF(IFERROR(VLOOKUP($A14,STEP_ALL!$A:$AH,COLUMN(),FALSE),\"\")=0,\"\",IFERROR(VLOOKUP($A14,STEP_ALL!$A:$AH,COLUMN(),FALSE),\"\"))","v":""},{"$f":"IF(IFERROR(VLOOKUP($A14,STEP_ALL!$A:$AH,COLUMN(),FALSE),\"\")=0,\"\",IFERROR(VLOOKUP($A14,STEP_ALL!$A:$AH,COLUMN(),FALSE),\"\"))","v":""},{"$f":"IF(IFERROR(VLOOKUP($A14,STEP_ALL!$A:$AH,COLUMN(),FALSE),\"\")=0,\"\",IFERROR(VLOOKUP($A14,STEP_ALL!$A:$AH,COLUMN(),FALSE),\"\"))","v":""},{"$f":"IF(IFERROR(VLOOKUP($A14,STEP_ALL!$A:$AH,COLUMN(),FALSE),\"\")=0,\"\",IFERROR(VLOOKUP($A14,STEP_ALL!$A:$AH,COLUMN(),FALSE),\"\"))","v":""},{"$f":"IF(IFERROR(VLOOKUP($A14,STEP_ALL!$A:$AH,COLUMN(),FALSE),\"\")=0,\"\",IFERROR(VLOOKUP($A14,STEP_ALL!$A:$AH,COLUMN(),FALSE),\"\"))","v":""},{"$f":"IF(IFERROR(VLOOKUP($A14,STEP_ALL!$A:$AH,COLUMN(),FALSE),\"\")=0,\"\",IFERROR(VLOOKUP($A14,STEP_ALL!$A:$AH,COLUMN(),FALSE),\"\"))","v":""},{"$f":"IF(IFERROR(VLOOKUP($A14,STEP_ALL!$A:$AH,COLUMN(),FALSE),\"\")=0,\"\",IFERROR(VLOOKUP($A14,STEP_ALL!$A:$AH,COLUMN(),FALSE),\"\"))","v":""},{"$f":"IF(IFERROR(VLOOKUP($A14,STEP_ALL!$A:$AH,COLUMN(),FALSE),\"\")=0,\"\",IFERROR(VLOOKUP($A14,STEP_ALL!$A:$AH,COLUMN(),FALSE),\"\"))","v":""},{"$f":"IF(IFERROR(VLOOKUP($A14,STEP_ALL!$A:$AH,COLUMN(),FALSE),\"\")=0,\"\",IFERROR(VLOOKUP($A14,STEP_ALL!$A:$AH,COLUMN(),FALSE),\"\"))","v":""},{"$f":"IF(IFERROR(VLOOKUP($A14,STEP_ALL!$A:$AH,COLUMN(),FALSE),\"\")=0,\"\",IFERROR(VLOOKUP($A14,STEP_ALL!$A:$AH,COLUMN(),FALSE),\"\"))","v":""},null,null,null,null,null,null,null,null,null,null,null,null,null,null,"",""]
[{"$f":"B15&\"-\"&C15","v":"1-9"},{"$f":"B14","v":1},9,{"$f":"IF(IFERROR(VLOOKUP($A15,STEP_ALL!$A:$AH,COLUMN(),FALSE),\"\")=0,\"\",IFERROR(VLOOKUP($A15,STEP_ALL!$A:$AH,COLUMN(),FALSE),\"\"))","v":""},{"$f":"IF(IFERROR(VLOOKUP($A15,STEP_ALL!$A:$AH,COLUMN(),FALSE),\"\")=0,\"\",IFERROR(VLOOKUP($A15,STEP_ALL!$A:$AH,COLUMN(),FALSE),\"\"))","v":""},{"$f":"IF(IFERROR(VLOOKUP($A15,STEP_ALL!$A:$AH,COLUMN(),FALSE),\"\")=0,\"\",IFERROR(VLOOKUP($A15,STEP_ALL!$A:$AH,COLUMN(),FALSE),\"\"))","v":""},{"$f":"IF(IFERROR(VLOOKUP($A15,STEP_ALL!$A:$AH,COLUMN(),FALSE),\"\")=0,\"\",IFERROR(VLOOKUP($A15,STEP_ALL!$A:$AH,COLUMN(),FALSE),\"\"))","v":""},{"$f":"IF(IFERROR(VLOOKUP($A15,STEP_ALL!$A:$AH,COLUMN(),FALSE),\"\")=0,\"\",IFERROR(VLOOKUP($A15,STEP_ALL!$A:$AH,COLUMN(),FALSE),\"\"))","v":""},{"$f":"IF(IFERROR(VLOOKUP($A15,STEP_ALL!$A:$AH,COLUMN(),FALSE),\"\")=0,\"\",IFERROR(VLOOKUP($A15,STEP_ALL!$A:$AH,COLUMN(),FALSE),\"\"))","v":""},{"$f":"IF(IFERROR(VLOOKUP($A15,STEP_ALL!$A:$AH,COLUMN(),FALSE),\"\")=0,\"\",IFERROR(VLOOKUP($A15,STEP_ALL!$A:$AH,COLUMN(),FALSE),\"\"))","v":""},{"$f":"IF(IFERROR(VLOOKUP($A15,STEP_ALL!$A:$AH,COLUMN(),FALSE),\"\")=0,\"\",IFERROR(VLOOKUP($A15,STEP_ALL!$A:$AH,COLUMN(),FALSE),\"\"))","v":""},{"$f":"IF(IFERROR(VLOOKUP($A15,STEP_ALL!$A:$AH,COLUMN(),FALSE),\"\")=0,\"\",IFERROR(VLOOKUP($A15,STEP_ALL!$A:$AH,COLUMN(),FALSE),\"\"))","v":""},{"$f":"IF(IFERROR(VLOOKUP($A15,STEP_ALL!$A:$AH,COLUMN(),FALSE),\"\")=0,\"\",IFERROR(VLOOKUP($A15,STEP_ALL!$A:$AH,COLUMN(),FALSE),\"\"))","v":""},{"$f":"IF(IFERROR(VLOOKUP($A15,STEP_ALL!$A:$AH,COLUMN(),FALSE),\"\")=0,\"\",IFERROR(VLOOKUP($A15,STEP_ALL!$A:$AH,COLUMN(),FALSE),\"\"))","v":""},{"$f":"IF(IFERROR(VLOOKUP($A15,STEP_ALL!$A:$AH,COLUMN(),FALSE),\"\")=0,\"\",IFERROR(VLOOKUP($A15,STEP_ALL!$A:$AH,COLUMN(),FALSE),\"\"))","v":""},{"$f":"IF(IFERROR(VLOOKUP($A15,STEP_ALL!$A:$AH,COLUMN(),FALSE),\"\")=0,\"\",IFERROR(VLOOKUP($A15,STEP_ALL!$A:$AH,COLUMN(),FALSE),\"\"))","v":""},{"$f":"IF(IFERROR(VLOOKUP($A15,STEP_ALL!$A:$AH,COLUMN(),FALSE),\"\")=0,\"\",IFERROR(VLOOKUP($A15,STEP_ALL!$A:$AH,COLUMN(),FALSE),\"\"))","v":""},{"$f":"IF(IFERROR(VLOOKUP($A15,STEP_ALL!$A:$AH,COLUMN(),FALSE),\"\")=0,\"\",IFERROR(VLOOKUP($A15,STEP_ALL!$A:$AH,COLUMN(),FALSE),\"\"))","v":""},{"$f":"IF(IFERROR(VLOOKUP($A15,STEP_ALL!$A:$AH,COLUMN(),FALSE),\"\")=0,\"\",IFERROR(VLOOKUP($A15,STEP_ALL!$A:$AH,COLUMN(),FALSE),\"\"))","v":""},{"$f":"IF(IFERROR(VLOOKUP($A15,STEP_ALL!$A:$AH,COLUMN(),FALSE),\"\")=0,\"\",IFERROR(VLOOKUP($A15,STEP_ALL!$A:$AH,COLUMN(),FALSE),\"\"))","v":""},{"$f":"IF(IFERROR(VLOOKUP($A15,STEP_ALL!$A:$AH,COLUMN(),FALSE),\"\")=0,\"\",IFERROR(VLOOKUP($A15,STEP_ALL!$A:$AH,COLUMN(),FALSE),\"\"))","v":""},{"$f":"IF(IFERROR(VLOOKUP($A15,STEP_ALL!$A:$AH,COLUMN(),FALSE),\"\")=0,\"\",IFERROR(VLOOKUP($A15,STEP_ALL!$A:$AH,COLUMN(),FALSE),\"\"))","v":""},{"$f":"IF(IFERROR(VLOOKUP($A15,STEP_ALL!$A:$AH,COLUMN(),FALSE),\"\")=0,\"\",IFERROR(VLOOKUP($A15,STEP_ALL!$A:$AH,COLUMN(),FALSE),\"\"))","v":""},{"$f":"IF(IFERROR(VLOOKUP($A15,STEP_ALL!$A:$AH,COLUMN(),FALSE),\"\")=0,\"\",IFERROR(VLOOKUP($A15,STEP_ALL!$A:$AH,COLUMN(),FALSE),\"\"))","v":""},{"$f":"IF(IFERROR(VLOOKUP($A15,STEP_ALL!$A:$AH,COLUMN(),FALSE),\"\")=0,\"\",IFERROR(VLOOKUP($A15,STEP_ALL!$A:$AH,COLUMN(),FALSE),\"\"))","v":""},{"$f":"IF(IFERROR(VLOOKUP($A15,STEP_ALL!$A:$AH,COLUMN(),FALSE),\"\")=0,\"\",IFERROR(VLOOKUP($A15,STEP_ALL!$A:$AH,COLUMN(),FALSE),\"\"))","v":""},{"$f":"IF(IFERROR(VLOOKUP($A15,STEP_ALL!$A:$AH,COLUMN(),FALSE),\"\")=0,\"\",IFERROR(VLOOKUP($A15,STEP_ALL!$A:$AH,COLUMN(),FALSE),\"\"))","v":""},{"$f":"IF(IFERROR(VLOOKUP($A15,STEP_ALL!$A:$AH,COLUMN(),FALSE),\"\")=0,\"\",IFERROR(VLOOKUP($A15,STEP_ALL!$A:$AH,COLUMN(),FALSE),\"\"))","v":""},{"$f":"IF(IFERROR(VLOOKUP($A15,STEP_ALL!$A:$AH,COLUMN(),FALSE),\"\")=0,\"\",IFERROR(VLOOKUP($A15,STEP_ALL!$A:$AH,COLUMN(),FALSE),\"\"))","v":""},{"$f":"IF(IFERROR(VLOOKUP($A15,STEP_ALL!$A:$AH,COLUMN(),FALSE),\"\")=0,\"\",IFERROR(VLOOKUP($A15,STEP_ALL!$A:$AH,COLUMN(),FALSE),\"\"))","v":""},{"$f":"IF(IFERROR(VLOOKUP($A15,STEP_ALL!$A:$AH,COLUMN(),FALSE),\"\")=0,\"\",IFERROR(VLOOKUP($A15,STEP_ALL!$A:$AH,COLUMN(),FALSE),\"\"))","v":""},{"$f":"IF(IFERROR(VLOOKUP($A15,STEP_ALL!$A:$AH,COLUMN(),FALSE),\"\")=0,\"\",IFERROR(VLOOKUP($A15,STEP_ALL!$A:$AH,COLUMN(),FALSE),\"\"))","v":""},{"$f":"IF(IFERROR(VLOOKUP($A15,STEP_ALL!$A:$AH,COLUMN(),FALSE),\"\")=0,\"\",IFERROR(VLOOKUP($A15,STEP_ALL!$A:$AH,COLUMN(),FALSE),\"\"))","v":""},{"$f":"IF(IFERROR(VLOOKUP($A15,STEP_ALL!$A:$AH,COLUMN(),FALSE),\"\")=0,\"\",IFERROR(VLOOKUP($A15,STEP_ALL!$A:$AH,COLUMN(),FALSE),\"\"))","v":""},null,null,null,null,null,null,null,null,null,null,null,null,null,null,"","",null,null,null,null,null,null,null,null,null,null,null,null,"接続",null,null,null,null,null,null,null,null,null,1]
["1-10",1,10,{"$f":"IF(IFERROR(VLOOKUP($A16,STEP_ALL!$A:$AH,COLUMN(),FALSE),\"\")=0,\"\",IFERROR(VLOOKUP($A16,STEP_ALL!$A:$AH,COLUMN(),FALSE),\"\"))","v":""},{"$f":"IF(IFERROR(VLOOKUP($A16,STEP_ALL!$A:$AH,COLUMN(),FALSE),\"\")=0,\"\",IFERROR(VLOOKUP($A16,STEP_ALL!$A:$AH,COLUMN(),FALSE),\"\"))","v":""},{"$f":"IF(IFERROR(VLOOKUP($A16,STEP_ALL!$A:$AH,COLUMN(),FALSE),\"\")=0,\"\",IFERROR(VLOOKUP($A16,STEP_ALL!$A:$AH,COLUMN(),FALSE),\"\"))","v":""},{"$f":"IF(IFERROR(VLOOKUP($A16,STEP_ALL!$A:$AH,COLUMN(),FALSE),\"\")=0,\"\",IFERROR(VLOOKUP($A16,STEP_ALL!$A:$AH,COLUMN(),FALSE),\"\"))","v":""},{"$f":"IF(IFERROR(VLOOKUP($A16,STEP_ALL!$A:$AH,COLUMN(),FALSE),\"\")=0,\"\",IFERROR(VLOOKUP($A16,STEP_ALL!$A:$AH,COLUMN(),FALSE),\"\"))","v":""},{"$f":"IF(IFERROR(VLOOKUP($A16,STEP_ALL!$A:$AH,COLUMN(),FALSE),\"\")=0,\"\",IFERROR(VLOOKUP($A16,STEP_ALL!$A:$AH,COLUMN(),FALSE),\"\"))","v":""},{"$f":"IF(IFERROR(VLOOKUP($A16,STEP_ALL!$A:$AH,COLUMN(),FALSE),\"\")=0,\"\",IFERROR(VLOOKUP($A16,STEP_ALL!$A:$AH,COLUMN(),FALSE),\"\"))","v":""},{"$f":"IF(IFERROR(VLOOKUP($A16,STEP_ALL!$A:$AH,COLUMN(),FALSE),\"\")=0,\"\",IFERROR(VLOOKUP($A16,STEP_ALL!$A:$AH,COLUMN(),FALSE),\"\"))","v":""},{"$f":"IF(IFERROR(VLOOKUP($A16,STEP_ALL!$A:$AH,COLUMN(),FALSE),\"\")=0,\"\",IFERROR(VLOOKUP($A16,STEP_ALL!$A:$AH,COLUMN(),FALSE),\"\"))","v":""},{"$f":"IF(IFERROR(VLOOKUP($A16,STEP_ALL!$A:$AH,COLUMN(),FALSE),\"\")=0,\"\",IFERROR(VLOOKUP($A16,STEP_ALL!$A:$AH,COLUMN(),FALSE),\"\"))","v":""},{"$f":"IF(IFERROR(VLOOKUP($A16,STEP_ALL!$A:$AH,COLUMN(),FALSE),\"\")=0,\"\",IFERROR(VLOOKUP($A16,STEP_ALL!$A:$AH,COLUMN(),FALSE),\"\"))","v":""},{"$f":"IF(IFERROR(VLOOKUP($A16,STEP_ALL!$A:$AH,COLUMN(),FALSE),\"\")=0,\"\",IFERROR(VLOOKUP($A16,STEP_ALL!$A:$AH,COLUMN(),FALSE),\"\"))","v":""},{"$f":"IF(IFERROR(VLOOKUP($A16,STEP_ALL!$A:$AH,COLUMN(),FALSE),\"\")=0,\"\",IFERROR(VLOOKUP($A16,STEP_ALL!$A:$AH,COLUMN(),FALSE),\"\"))","v":""},{"$f":"IF(IFERROR(VLOOKUP($A16,STEP_ALL!$A:$AH,COLUMN(),FALSE),\"\")=0,\"\",IFERROR(VLOOKUP($A16,STEP_ALL!$A:$AH,COLUMN(),FALSE),\"\"))","v":""},{"$f":"IF(IFERROR(VLOOKUP($A16,STEP_ALL!$A:$AH,COLUMN(),FALSE),\"\")=0,\"\",IFERROR(VLOOKUP($A16,STEP_ALL!$A:$AH,COLUMN(),FALSE),\"\"))","v":""},{"$f":"IF(IFERROR(VLOOKUP($A16,STEP_ALL!$A:$AH,COLUMN(),FALSE),\"\")=0,\"\",IFERROR(VLOOKUP($A16,STEP_ALL!$A:$AH,COLUMN(),FALSE),\"\"))","v":""},{"$f":"IF(IFERROR(VLOOKUP($A16,STEP_ALL!$A:$AH,COLUMN(),FALSE),\"\")=0,\"\",IFERROR(VLOOKUP($A16,STEP_ALL!$A:$AH,COLUMN(),FALSE),\"\"))","v":""},{"$f":"IF(IFERROR(VLOOKUP($A16,STEP_ALL!$A:$AH,COLUMN(),FALSE),\"\")=0,\"\",IFERROR(VLOOKUP($A16,STEP_ALL!$A:$AH,COLUMN(),FALSE),\"\"))","v":""},{"$f":"IF(IFERROR(VLOOKUP($A16,STEP_ALL!$A:$AH,COLUMN(),FALSE),\"\")=0,\"\",IFERROR(VLOOKUP($A16,STEP_ALL!$A:$AH,COLUMN(),FALSE),\"\"))","v":""},{"$f":"IF(IFERROR(VLOOKUP($A16,STEP_ALL!$A:$AH,COLUMN(),FALSE),\"\")=0,\"\",IFERROR(VLOOKUP($A16,STEP_ALL!$A:$AH,COLUMN(),FALSE),\"\"))","v":""},{"$f":"IF(IFERROR(VLOOKUP($A16,STEP_ALL!$A:$AH,COLUMN(),FALSE),\"\")=0,\"\",IFERROR(VLOOKUP($A16,STEP_ALL!$A:$AH,COLUMN(),FALSE),\"\"))","v":""},{"$f":"IF(IFERROR(VLOOKUP($A16,STEP_ALL!$A:$AH,COLUMN(),FALSE),\"\")=0,\"\",IFERROR(VLOOKUP($A16,STEP_ALL!$A:$AH,COLUMN(),FALSE),\"\"))","v":""},{"$f":"IF(IFERROR(VLOOKUP($A16,STEP_ALL!$A:$AH,COLUMN(),FALSE),\"\")=0,\"\",IFERROR(VLOOKUP($A16,STEP_ALL!$A:$AH,COLUMN(),FALSE),\"\"))","v":""},{"$f":"IF(IFERROR(VLOOKUP($A16,STEP_ALL!$A:$AH,COLUMN(),FALSE),\"\")=0,\"\",IFERROR(VLOOKUP($A16,STEP_ALL!$A:$AH,COLUMN(),FALSE),\"\"))","v":""},{"$f":"IF(IFERROR(VLOOKUP($A16,STEP_ALL!$A:$AH,COLUMN(),FALSE),\"\")=0,\"\",IFERROR(VLOOKUP($A16,STEP_ALL!$A:$AH,COLUMN(),FALSE),\"\"))","v":""},{"$f":"IF(IFERROR(VLOOKUP($A16,STEP_ALL!$A:$AH,COLUMN(),FALSE),\"\")=0,\"\",IFERROR(VLOOKUP($A16,STEP_ALL!$A:$AH,COLUMN(),FALSE),\"\"))","v":""},{"$f":"IF(IFERROR(VLOOKUP($A16,STEP_ALL!$A:$AH,COLUMN(),FALSE),\"\")=0,\"\",IFERROR(VLOOKUP($A16,STEP_ALL!$A:$AH,COLUMN(),FALSE),\"\"))","v":""},{"$f":"IF(IFERROR(VLOOKUP($A16,STEP_ALL!$A:$AH,COLUMN(),FALSE),\"\")=0,\"\",IFERROR(VLOOKUP($A16,STEP_ALL!$A:$AH,COLUMN(),FALSE),\"\"))","v":""},{"$f":"IF(IFERROR(VLOOKUP($A16,STEP_ALL!$A:$AH,COLUMN(),FALSE),\"\")=0,\"\",IFERROR(VLOOKUP($A16,STEP_ALL!$A:$AH,COLUMN(),FALSE),\"\"))","v":""},{"$f":"IF(IFERROR(VLOOKUP($A16,STEP_ALL!$A:$AH,COLUMN(),FALSE),\"\")=0,\"\",IFERROR(VLOOKUP($A16,STEP_ALL!$A:$AH,COLUMN(),FALSE),\"\"))","v":""},{"$f":"IF(IFERROR(VLOOKUP($A16,STEP_ALL!$A:$AH,COLUMN(),FALSE),\"\")=0,\"\",IFERROR(VLOOKUP($A16,STEP_ALL!$A:$AH,COLUMN(),FALSE),\"\"))","v":""},null,null,null,null,null,null,null,null,null,null,null,null,null,null,"",""]
["1-11",1,11,{"$f":"IF(IFERROR(VLOOKUP($A17,STEP_ALL!$A:$AH,COLUMN(),FALSE),\"\")=0,\"\",IFERROR(VLOOKUP($A17,STEP_ALL!$A:$AH,COLUMN(),FALSE),\"\"))","v":""},{"$f":"IF(IFERROR(VLOOKUP($A17,STEP_ALL!$A:$AH,COLUMN(),FALSE),\"\")=0,\"\",IFERROR(VLOOKUP($A17,STEP_ALL!$A:$AH,COLUMN(),FALSE),\"\"))","v":""},{"$f":"IF(IFERROR(VLOOKUP($A17,STEP_ALL!$A:$AH,COLUMN(),FALSE),\"\")=0,\"\",IFERROR(VLOOKUP($A17,STEP_ALL!$A:$AH,COLUMN(),FALSE),\"\"))","v":""},{"$f":"IF(IFERROR(VLOOKUP($A17,STEP_ALL!$A:$AH,COLUMN(),FALSE),\"\")=0,\"\",IFERROR(VLOOKUP($A17,STEP_ALL!$A:$AH,COLUMN(),FALSE),\"\"))","v":""},{"$f":"IF(IFERROR(VLOOKUP($A17,STEP_ALL!$A:$AH,COLUMN(),FALSE),\"\")=0,\"\",IFERROR(VLOOKUP($A17,STEP_ALL!$A:$AH,COLUMN(),FALSE),\"\"))","v":""},{"$f":"IF(IFERROR(VLOOKUP($A17,STEP_ALL!$A:$AH,COLUMN(),FALSE),\"\")=0,\"\",IFERROR(VLOOKUP($A17,STEP_ALL!$A:$AH,COLUMN(),FALSE),\"\"))","v":""},{"$f":"IF(IFERROR(VLOOKUP($A17,STEP_ALL!$A:$AH,COLUMN(),FALSE),\"\")=0,\"\",IFERROR(VLOOKUP($A17,STEP_ALL!$A:$AH,COLUMN(),FALSE),\"\"))","v":""},{"$f":"IF(IFERROR(VLOOKUP($A17,STEP_ALL!$A:$AH,COLUMN(),FALSE),\"\")=0,\"\",IFERROR(VLOOKUP($A17,STEP_ALL!$A:$AH,COLUMN(),FALSE),\"\"))","v":""},{"$f":"IF(IFERROR(VLOOKUP($A17,STEP_ALL!$A:$AH,COLUMN(),FALSE),\"\")=0,\"\",IFERROR(VLOOKUP($A17,STEP_ALL!$A:$AH,COLUMN(),FALSE),\"\"))","v":""},{"$f":"IF(IFERROR(VLOOKUP($A17,STEP_ALL!$A:$AH,COLUMN(),FALSE),\"\")=0,\"\",IFERROR(VLOOKUP($A17,STEP_ALL!$A:$AH,COLUMN(),FALSE),\"\"))","v":""},{"$f":"IF(IFERROR(VLOOKUP($A17,STEP_ALL!$A:$AH,COLUMN(),FALSE),\"\")=0,\"\",IFERROR(VLOOKUP($A17,STEP_ALL!$A:$AH,COLUMN(),FALSE),\"\"))","v":""},{"$f":"IF(IFERROR(VLOOKUP($A17,STEP_ALL!$A:$AH,COLUMN(),FALSE),\"\")=0,\"\",IFERROR(VLOOKUP($A17,STEP_ALL!$A:$AH,COLUMN(),FALSE),\"\"))","v":""},{"$f":"IF(IFERROR(VLOOKUP($A17,STEP_ALL!$A:$AH,COLUMN(),FALSE),\"\")=0,\"\",IFERROR(VLOOKUP($A17,STEP_ALL!$A:$AH,COLUMN(),FALSE),\"\"))","v":""},{"$f":"IF(IFERROR(VLOOKUP($A17,STEP_ALL!$A:$AH,COLUMN(),FALSE),\"\")=0,\"\",IFERROR(VLOOKUP($A17,STEP_ALL!$A:$AH,COLUMN(),FALSE),\"\"))","v":""},{"$f":"IF(IFERROR(VLOOKUP($A17,STEP_ALL!$A:$AH,COLUMN(),FALSE),\"\")=0,\"\",IFERROR(VLOOKUP($A17,STEP_ALL!$A:$AH,COLUMN(),FALSE),\"\"))","v":""},{"$f":"IF(IFERROR(VLOOKUP($A17,STEP_ALL!$A:$AH,COLUMN(),FALSE),\"\")=0,\"\",IFERROR(VLOOKUP($A17,STEP_ALL!$A:$AH,COLUMN(),FALSE),\"\"))","v":""},{"$f":"IF(IFERROR(VLOOKUP($A17,STEP_ALL!$A:$AH,COLUMN(),FALSE),\"\")=0,\"\",IFERROR(VLOOKUP($A17,STEP_ALL!$A:$AH,COLUMN(),FALSE),\"\"))","v":""},{"$f":"IF(IFERROR(VLOOKUP($A17,STEP_ALL!$A:$AH,COLUMN(),FALSE),\"\")=0,\"\",IFERROR(VLOOKUP($A17,STEP_ALL!$A:$AH,COLUMN(),FALSE),\"\"))","v":""},{"$f":"IF(IFERROR(VLOOKUP($A17,STEP_ALL!$A:$AH,COLUMN(),FALSE),\"\")=0,\"\",IFERROR(VLOOKUP($A17,STEP_ALL!$A:$AH,COLUMN(),FALSE),\"\"))","v":""},{"$f":"IF(IFERROR(VLOOKUP($A17,STEP_ALL!$A:$AH,COLUMN(),FALSE),\"\")=0,\"\",IFERROR(VLOOKUP($A17,STEP_ALL!$A:$AH,COLUMN(),FALSE),\"\"))","v":""},{"$f":"IF(IFERROR(VLOOKUP($A17,STEP_ALL!$A:$AH,COLUMN(),FALSE),\"\")=0,\"\",IFERROR(VLOOKUP($A17,STEP_ALL!$A:$AH,COLUMN(),FALSE),\"\"))","v":""},{"$f":"IF(IFERROR(VLOOKUP($A17,STEP_ALL!$A:$AH,COLUMN(),FALSE),\"\")=0,\"\",IFERROR(VLOOKUP($A17,STEP_ALL!$A:$AH,COLUMN(),FALSE),\"\"))","v":""},{"$f":"IF(IFERROR(VLOOKUP($A17,STEP_ALL!$A:$AH,COLUMN(),FALSE),\"\")=0,\"\",IFERROR(VLOOKUP($A17,STEP_ALL!$A:$AH,COLUMN(),FALSE),\"\"))","v":""},{"$f":"IF(IFERROR(VLOOKUP($A17,STEP_ALL!$A:$AH,COLUMN(),FALSE),\"\")=0,\"\",IFERROR(VLOOKUP($A17,STEP_ALL!$A:$AH,COLUMN(),FALSE),\"\"))","v":""},{"$f":"IF(IFERROR(VLOOKUP($A17,STEP_ALL!$A:$AH,COLUMN(),FALSE),\"\")=0,\"\",IFERROR(VLOOKUP($A17,STEP_ALL!$A:$AH,COLUMN(),FALSE),\"\"))","v":""},{"$f":"IF(IFERROR(VLOOKUP($A17,STEP_ALL!$A:$AH,COLUMN(),FALSE),\"\")=0,\"\",IFERROR(VLOOKUP($A17,STEP_ALL!$A:$AH,COLUMN(),FALSE),\"\"))","v":""},{"$f":"IF(IFERROR(VLOOKUP($A17,STEP_ALL!$A:$AH,COLUMN(),FALSE),\"\")=0,\"\",IFERROR(VLOOKUP($A17,STEP_ALL!$A:$AH,COLUMN(),FALSE),\"\"))","v":""},{"$f":"IF(IFERROR(VLOOKUP($A17,STEP_ALL!$A:$AH,COLUMN(),FALSE),\"\")=0,\"\",IFERROR(VLOOKUP($A17,STEP_ALL!$A:$AH,COLUMN(),FALSE),\"\"))","v":""},{"$f":"IF(IFERROR(VLOOKUP($A17,STEP_ALL!$A:$AH,COLUMN(),FALSE),\"\")=0,\"\",IFERROR(VLOOKUP($A17,STEP_ALL!$A:$AH,COLUMN(),FALSE),\"\"))","v":""},{"$f":"IF(IFERROR(VLOOKUP($A17,STEP_ALL!$A:$AH,COLUMN(),FALSE),\"\")=0,\"\",IFERROR(VLOOKUP($A17,STEP_ALL!$A:$AH,COLUMN(),FALSE),\"\"))","v":""},{"$f":"IF(IFERROR(VLOOKUP($A17,STEP_ALL!$A:$AH,COLUMN(),FALSE),\"\")=0,\"\",IFERROR(VLOOKUP($A17,STEP_ALL!$A:$AH,COLUMN(),FALSE),\"\"))","v":""},null,null,null,null,null,null,null,null,null,null,null,null,null,null,null,null,null,null,null,null,null,null,null,null,null,null,null,null,null,null,null,null,null,null,2,null,null,null,null,null,null,null,4]
["1-12",1,12,{"$f":"IF(IFERROR(VLOOKUP($A18,STEP_ALL!$A:$AH,COLUMN(),FALSE),\"\")=0,\"\",IFERROR(VLOOKUP($A18,STEP_ALL!$A:$AH,COLUMN(),FALSE),\"\"))","v":""},{"$f":"IF(IFERROR(VLOOKUP($A18,STEP_ALL!$A:$AH,COLUMN(),FALSE),\"\")=0,\"\",IFERROR(VLOOKUP($A18,STEP_ALL!$A:$AH,COLUMN(),FALSE),\"\"))","v":""},{"$f":"IF(IFERROR(VLOOKUP($A18,STEP_ALL!$A:$AH,COLUMN(),FALSE),\"\")=0,\"\",IFERROR(VLOOKUP($A18,STEP_ALL!$A:$AH,COLUMN(),FALSE),\"\"))","v":""},{"$f":"IF(IFERROR(VLOOKUP($A18,STEP_ALL!$A:$AH,COLUMN(),FALSE),\"\")=0,\"\",IFERROR(VLOOKUP($A18,STEP_ALL!$A:$AH,COLUMN(),FALSE),\"\"))","v":""},{"$f":"IF(IFERROR(VLOOKUP($A18,STEP_ALL!$A:$AH,COLUMN(),FALSE),\"\")=0,\"\",IFERROR(VLOOKUP($A18,STEP_ALL!$A:$AH,COLUMN(),FALSE),\"\"))","v":""},{"$f":"IF(IFERROR(VLOOKUP($A18,STEP_ALL!$A:$AH,COLUMN(),FALSE),\"\")=0,\"\",IFERROR(VLOOKUP($A18,STEP_ALL!$A:$AH,COLUMN(),FALSE),\"\"))","v":""},{"$f":"IF(IFERROR(VLOOKUP($A18,STEP_ALL!$A:$AH,COLUMN(),FALSE),\"\")=0,\"\",IFERROR(VLOOKUP($A18,STEP_ALL!$A:$AH,COLUMN(),FALSE),\"\"))","v":""},{"$f":"IF(IFERROR(VLOOKUP($A18,STEP_ALL!$A:$AH,COLUMN(),FALSE),\"\")=0,\"\",IFERROR(VLOOKUP($A18,STEP_ALL!$A:$AH,COLUMN(),FALSE),\"\"))","v":""},{"$f":"IF(IFERROR(VLOOKUP($A18,STEP_ALL!$A:$AH,COLUMN(),FALSE),\"\")=0,\"\",IFERROR(VLOOKUP($A18,STEP_ALL!$A:$AH,COLUMN(),FALSE),\"\"))","v":""},{"$f":"IF(IFERROR(VLOOKUP($A18,STEP_ALL!$A:$AH,COLUMN(),FALSE),\"\")=0,\"\",IFERROR(VLOOKUP($A18,STEP_ALL!$A:$AH,COLUMN(),FALSE),\"\"))","v":""},{"$f":"IF(IFERROR(VLOOKUP($A18,STEP_ALL!$A:$AH,COLUMN(),FALSE),\"\")=0,\"\",IFERROR(VLOOKUP($A18,STEP_ALL!$A:$AH,COLUMN(),FALSE),\"\"))","v":""},{"$f":"IF(IFERROR(VLOOKUP($A18,STEP_ALL!$A:$AH,COLUMN(),FALSE),\"\")=0,\"\",IFERROR(VLOOKUP($A18,STEP_ALL!$A:$AH,COLUMN(),FALSE),\"\"))","v":""},{"$f":"IF(IFERROR(VLOOKUP($A18,STEP_ALL!$A:$AH,COLUMN(),FALSE),\"\")=0,\"\",IFERROR(VLOOKUP($A18,STEP_ALL!$A:$AH,COLUMN(),FALSE),\"\"))","v":""},{"$f":"IF(IFERROR(VLOOKUP($A18,STEP_ALL!$A:$AH,COLUMN(),FALSE),\"\")=0,\"\",IFERROR(VLOOKUP($A18,STEP_ALL!$A:$AH,COLUMN(),FALSE),\"\"))","v":""},{"$f":"IF(IFERROR(VLOOKUP($A18,STEP_ALL!$A:$AH,COLUMN(),FALSE),\"\")=0,\"\",IFERROR(VLOOKUP($A18,STEP_ALL!$A:$AH,COLUMN(),FALSE),\"\"))","v":""},{"$f":"IF(IFERROR(VLOOKUP($A18,STEP_ALL!$A:$AH,COLUMN(),FALSE),\"\")=0,\"\",IFERROR(VLOOKUP($A18,STEP_ALL!$A:$AH,COLUMN(),FALSE),\"\"))","v":""},{"$f":"IF(IFERROR(VLOOKUP($A18,STEP_ALL!$A:$AH,COLUMN(),FALSE),\"\")=0,\"\",IFERROR(VLOOKUP($A18,STEP_ALL!$A:$AH,COLUMN(),FALSE),\"\"))","v":""},{"$f":"IF(IFERROR(VLOOKUP($A18,STEP_ALL!$A:$AH,COLUMN(),FALSE),\"\")=0,\"\",IFERROR(VLOOKUP($A18,STEP_ALL!$A:$AH,COLUMN(),FALSE),\"\"))","v":""},{"$f":"IF(IFERROR(VLOOKUP($A18,STEP_ALL!$A:$AH,COLUMN(),FALSE),\"\")=0,\"\",IFERROR(VLOOKUP($A18,STEP_ALL!$A:$AH,COLUMN(),FALSE),\"\"))","v":""},{"$f":"IF(IFERROR(VLOOKUP($A18,STEP_ALL!$A:$AH,COLUMN(),FALSE),\"\")=0,\"\",IFERROR(VLOOKUP($A18,STEP_ALL!$A:$AH,COLUMN(),FALSE),\"\"))","v":""},{"$f":"IF(IFERROR(VLOOKUP($A18,STEP_ALL!$A:$AH,COLUMN(),FALSE),\"\")=0,\"\",IFERROR(VLOOKUP($A18,STEP_ALL!$A:$AH,COLUMN(),FALSE),\"\"))","v":""},{"$f":"IF(IFERROR(VLOOKUP($A18,STEP_ALL!$A:$AH,COLUMN(),FALSE),\"\")=0,\"\",IFERROR(VLOOKUP($A18,STEP_ALL!$A:$AH,COLUMN(),FALSE),\"\"))","v":""},{"$f":"IF(IFERROR(VLOOKUP($A18,STEP_ALL!$A:$AH,COLUMN(),FALSE),\"\")=0,\"\",IFERROR(VLOOKUP($A18,STEP_ALL!$A:$AH,COLUMN(),FALSE),\"\"))","v":""},{"$f":"IF(IFERROR(VLOOKUP($A18,STEP_ALL!$A:$AH,COLUMN(),FALSE),\"\")=0,\"\",IFERROR(VLOOKUP($A18,STEP_ALL!$A:$AH,COLUMN(),FALSE),\"\"))","v":""},{"$f":"IF(IFERROR(VLOOKUP($A18,STEP_ALL!$A:$AH,COLUMN(),FALSE),\"\")=0,\"\",IFERROR(VLOOKUP($A18,STEP_ALL!$A:$AH,COLUMN(),FALSE),\"\"))","v":""},{"$f":"IF(IFERROR(VLOOKUP($A18,STEP_ALL!$A:$AH,COLUMN(),FALSE),\"\")=0,\"\",IFERROR(VLOOKUP($A18,STEP_ALL!$A:$AH,COLUMN(),FALSE),\"\"))","v":""},{"$f":"IF(IFERROR(VLOOKUP($A18,STEP_ALL!$A:$AH,COLUMN(),FALSE),\"\")=0,\"\",IFERROR(VLOOKUP($A18,STEP_ALL!$A:$AH,COLUMN(),FALSE),\"\"))","v":""},{"$f":"IF(IFERROR(VLOOKUP($A18,STEP_ALL!$A:$AH,COLUMN(),FALSE),\"\")=0,\"\",IFERROR(VLOOKUP($A18,STEP_ALL!$A:$AH,COLUMN(),FALSE),\"\"))","v":""},{"$f":"IF(IFERROR(VLOOKUP($A18,STEP_ALL!$A:$AH,COLUMN(),FALSE),\"\")=0,\"\",IFERROR(VLOOKUP($A18,STEP_ALL!$A:$AH,COLUMN(),FALSE),\"\"))","v":""},{"$f":"IF(IFERROR(VLOOKUP($A18,STEP_ALL!$A:$AH,COLUMN(),FALSE),\"\")=0,\"\",IFERROR(VLOOKUP($A18,STEP_ALL!$A:$AH,COLUMN(),FALSE),\"\"))","v":""},{"$f":"IF(IFERROR(VLOOKUP($A18,STEP_ALL!$A:$AH,COLUMN(),FALSE),\"\")=0,\"\",IFERROR(VLOOKUP($A18,STEP_ALL!$A:$AH,COLUMN(),FALSE),\"\"))","v":""}]
["1-13",1,13,{"$f":"IF(IFERROR(VLOOKUP($A19,STEP_ALL!$A:$AH,COLUMN(),FALSE),\"\")=0,\"\",IFERROR(VLOOKUP($A19,STEP_ALL!$A:$AH,COLUMN(),FALSE),\"\"))","v":""},{"$f":"IF(IFERROR(VLOOKUP($A19,STEP_ALL!$A:$AH,COLUMN(),FALSE),\"\")=0,\"\",IFERROR(VLOOKUP($A19,STEP_ALL!$A:$AH,COLUMN(),FALSE),\"\"))","v":""},{"$f":"IF(IFERROR(VLOOKUP($A19,STEP_ALL!$A:$AH,COLUMN(),FALSE),\"\")=0,\"\",IFERROR(VLOOKUP($A19,STEP_ALL!$A:$AH,COLUMN(),FALSE),\"\"))","v":""},{"$f":"IF(IFERROR(VLOOKUP($A19,STEP_ALL!$A:$AH,COLUMN(),FALSE),\"\")=0,\"\",IFERROR(VLOOKUP($A19,STEP_ALL!$A:$AH,COLUMN(),FALSE),\"\"))","v":""},{"$f":"IF(IFERROR(VLOOKUP($A19,STEP_ALL!$A:$AH,COLUMN(),FALSE),\"\")=0,\"\",IFERROR(VLOOKUP($A19,STEP_ALL!$A:$AH,COLUMN(),FALSE),\"\"))","v":""},{"$f":"IF(IFERROR(VLOOKUP($A19,STEP_ALL!$A:$AH,COLUMN(),FALSE),\"\")=0,\"\",IFERROR(VLOOKUP($A19,STEP_ALL!$A:$AH,COLUMN(),FALSE),\"\"))","v":""},{"$f":"IF(IFERROR(VLOOKUP($A19,STEP_ALL!$A:$AH,COLUMN(),FALSE),\"\")=0,\"\",IFERROR(VLOOKUP($A19,STEP_ALL!$A:$AH,COLUMN(),FALSE),\"\"))","v":""},{"$f":"IF(IFERROR(VLOOKUP($A19,STEP_ALL!$A:$AH,COLUMN(),FALSE),\"\")=0,\"\",IFERROR(VLOOKUP($A19,STEP_ALL!$A:$AH,COLUMN(),FALSE),\"\"))","v":""},{"$f":"IF(IFERROR(VLOOKUP($A19,STEP_ALL!$A:$AH,COLUMN(),FALSE),\"\")=0,\"\",IFERROR(VLOOKUP($A19,STEP_ALL!$A:$AH,COLUMN(),FALSE),\"\"))","v":""},{"$f":"IF(IFERROR(VLOOKUP($A19,STEP_ALL!$A:$AH,COLUMN(),FALSE),\"\")=0,\"\",IFERROR(VLOOKUP($A19,STEP_ALL!$A:$AH,COLUMN(),FALSE),\"\"))","v":""},{"$f":"IF(IFERROR(VLOOKUP($A19,STEP_ALL!$A:$AH,COLUMN(),FALSE),\"\")=0,\"\",IFERROR(VLOOKUP($A19,STEP_ALL!$A:$AH,COLUMN(),FALSE),\"\"))","v":""},{"$f":"IF(IFERROR(VLOOKUP($A19,STEP_ALL!$A:$AH,COLUMN(),FALSE),\"\")=0,\"\",IFERROR(VLOOKUP($A19,STEP_ALL!$A:$AH,COLUMN(),FALSE),\"\"))","v":""},{"$f":"IF(IFERROR(VLOOKUP($A19,STEP_ALL!$A:$AH,COLUMN(),FALSE),\"\")=0,\"\",IFERROR(VLOOKUP($A19,STEP_ALL!$A:$AH,COLUMN(),FALSE),\"\"))","v":""},{"$f":"IF(IFERROR(VLOOKUP($A19,STEP_ALL!$A:$AH,COLUMN(),FALSE),\"\")=0,\"\",IFERROR(VLOOKUP($A19,STEP_ALL!$A:$AH,COLUMN(),FALSE),\"\"))","v":""},{"$f":"IF(IFERROR(VLOOKUP($A19,STEP_ALL!$A:$AH,COLUMN(),FALSE),\"\")=0,\"\",IFERROR(VLOOKUP($A19,STEP_ALL!$A:$AH,COLUMN(),FALSE),\"\"))","v":""},{"$f":"IF(IFERROR(VLOOKUP($A19,STEP_ALL!$A:$AH,COLUMN(),FALSE),\"\")=0,\"\",IFERROR(VLOOKUP($A19,STEP_ALL!$A:$AH,COLUMN(),FALSE),\"\"))","v":""},{"$f":"IF(IFERROR(VLOOKUP($A19,STEP_ALL!$A:$AH,COLUMN(),FALSE),\"\")=0,\"\",IFERROR(VLOOKUP($A19,STEP_ALL!$A:$AH,COLUMN(),FALSE),\"\"))","v":""},{"$f":"IF(IFERROR(VLOOKUP($A19,STEP_ALL!$A:$AH,COLUMN(),FALSE),\"\")=0,\"\",IFERROR(VLOOKUP($A19,STEP_ALL!$A:$AH,COLUMN(),FALSE),\"\"))","v":""},{"$f":"IF(IFERROR(VLOOKUP($A19,STEP_ALL!$A:$AH,COLUMN(),FALSE),\"\")=0,\"\",IFERROR(VLOOKUP($A19,STEP_ALL!$A:$AH,COLUMN(),FALSE),\"\"))","v":""},{"$f":"IF(IFERROR(VLOOKUP($A19,STEP_ALL!$A:$AH,COLUMN(),FALSE),\"\")=0,\"\",IFERROR(VLOOKUP($A19,STEP_ALL!$A:$AH,COLUMN(),FALSE),\"\"))","v":""},{"$f":"IF(IFERROR(VLOOKUP($A19,STEP_ALL!$A:$AH,COLUMN(),FALSE),\"\")=0,\"\",IFERROR(VLOOKUP($A19,STEP_ALL!$A:$AH,COLUMN(),FALSE),\"\"))","v":""},{"$f":"IF(IFERROR(VLOOKUP($A19,STEP_ALL!$A:$AH,COLUMN(),FALSE),\"\")=0,\"\",IFERROR(VLOOKUP($A19,STEP_ALL!$A:$AH,COLUMN(),FALSE),\"\"))","v":""},{"$f":"IF(IFERROR(VLOOKUP($A19,STEP_ALL!$A:$AH,COLUMN(),FALSE),\"\")=0,\"\",IFERROR(VLOOKUP($A19,STEP_ALL!$A:$AH,COLUMN(),FALSE),\"\"))","v":""},{"$f":"IF(IFERROR(VLOOKUP($A19,STEP_ALL!$A:$AH,COLUMN(),FALSE),\"\")=0,\"\",IFERROR(VLOOKUP($A19,STEP_ALL!$A:$AH,COLUMN(),FALSE),\"\"))","v":""},{"$f":"IF(IFERROR(VLOOKUP($A19,STEP_ALL!$A:$AH,COLUMN(),FALSE),\"\")=0,\"\",IFERROR(VLOOKUP($A19,STEP_ALL!$A:$AH,COLUMN(),FALSE),\"\"))","v":""},{"$f":"IF(IFERROR(VLOOKUP($A19,STEP_ALL!$A:$AH,COLUMN(),FALSE),\"\")=0,\"\",IFERROR(VLOOKUP($A19,STEP_ALL!$A:$AH,COLUMN(),FALSE),\"\"))","v":""},{"$f":"IF(IFERROR(VLOOKUP($A19,STEP_ALL!$A:$AH,COLUMN(),FALSE),\"\")=0,\"\",IFERROR(VLOOKUP($A19,STEP_ALL!$A:$AH,COLUMN(),FALSE),\"\"))","v":""},{"$f":"IF(IFERROR(VLOOKUP($A19,STEP_ALL!$A:$AH,COLUMN(),FALSE),\"\")=0,\"\",IFERROR(VLOOKUP($A19,STEP_ALL!$A:$AH,COLUMN(),FALSE),\"\"))","v":""},{"$f":"IF(IFERROR(VLOOKUP($A19,STEP_ALL!$A:$AH,COLUMN(),FALSE),\"\")=0,\"\",IFERROR(VLOOKUP($A19,STEP_ALL!$A:$AH,COLUMN(),FALSE),\"\"))","v":""},{"$f":"IF(IFERROR(VLOOKUP($A19,STEP_ALL!$A:$AH,COLUMN(),FALSE),\"\")=0,\"\",IFERROR(VLOOKUP($A19,STEP_ALL!$A:$AH,COLUMN(),FALSE),\"\"))","v":""},{"$f":"IF(IFERROR(VLOOKUP($A19,STEP_ALL!$A:$AH,COLUMN(),FALSE),\"\")=0,\"\",IFERROR(VLOOKUP($A19,STEP_ALL!$A:$AH,COLUMN(),FALSE),\"\"))","v":""},null,null,null,null,null,null,null,null,null,null,null,null,null,null,null,null,null,null,null,null,null,null,null,null,null,null,null,null,null,null,null,null,null,null,null,null,null,null,3]
["1-14",1,14,{"$f":"IF(IFERROR(VLOOKUP($A20,STEP_ALL!$A:$AH,COLUMN(),FALSE),\"\")=0,\"\",IFERROR(VLOOKUP($A20,STEP_ALL!$A:$AH,COLUMN(),FALSE),\"\"))","v":""},{"$f":"IF(IFERROR(VLOOKUP($A20,STEP_ALL!$A:$AH,COLUMN(),FALSE),\"\")=0,\"\",IFERROR(VLOOKUP($A20,STEP_ALL!$A:$AH,COLUMN(),FALSE),\"\"))","v":""},{"$f":"IF(IFERROR(VLOOKUP($A20,STEP_ALL!$A:$AH,COLUMN(),FALSE),\"\")=0,\"\",IFERROR(VLOOKUP($A20,STEP_ALL!$A:$AH,COLUMN(),FALSE),\"\"))","v":""},{"$f":"IF(IFERROR(VLOOKUP($A20,STEP_ALL!$A:$AH,COLUMN(),FALSE),\"\")=0,\"\",IFERROR(VLOOKUP($A20,STEP_ALL!$A:$AH,COLUMN(),FALSE),\"\"))","v":""},{"$f":"IF(IFERROR(VLOOKUP($A20,STEP_ALL!$A:$AH,COLUMN(),FALSE),\"\")=0,\"\",IFERROR(VLOOKUP($A20,STEP_ALL!$A:$AH,COLUMN(),FALSE),\"\"))","v":""},{"$f":"IF(IFERROR(VLOOKUP($A20,STEP_ALL!$A:$AH,COLUMN(),FALSE),\"\")=0,\"\",IFERROR(VLOOKUP($A20,STEP_ALL!$A:$AH,COLUMN(),FALSE),\"\"))","v":""},{"$f":"IF(IFERROR(VLOOKUP($A20,STEP_ALL!$A:$AH,COLUMN(),FALSE),\"\")=0,\"\",IFERROR(VLOOKUP($A20,STEP_ALL!$A:$AH,COLUMN(),FALSE),\"\"))","v":""},{"$f":"IF(IFERROR(VLOOKUP($A20,STEP_ALL!$A:$AH,COLUMN(),FALSE),\"\")=0,\"\",IFERROR(VLOOKUP($A20,STEP_ALL!$A:$AH,COLUMN(),FALSE),\"\"))","v":""},{"$f":"IF(IFERROR(VLOOKUP($A20,STEP_ALL!$A:$AH,COLUMN(),FALSE),\"\")=0,\"\",IFERROR(VLOOKUP($A20,STEP_ALL!$A:$AH,COLUMN(),FALSE),\"\"))","v":""},{"$f":"IF(IFERROR(VLOOKUP($A20,STEP_ALL!$A:$AH,COLUMN(),FALSE),\"\")=0,\"\",IFERROR(VLOOKUP($A20,STEP_ALL!$A:$AH,COLUMN(),FALSE),\"\"))","v":""},{"$f":"IF(IFERROR(VLOOKUP($A20,STEP_ALL!$A:$AH,COLUMN(),FALSE),\"\")=0,\"\",IFERROR(VLOOKUP($A20,STEP_ALL!$A:$AH,COLUMN(),FALSE),\"\"))","v":""},{"$f":"IF(IFERROR(VLOOKUP($A20,STEP_ALL!$A:$AH,COLUMN(),FALSE),\"\")=0,\"\",IFERROR(VLOOKUP($A20,STEP_ALL!$A:$AH,COLUMN(),FALSE),\"\"))","v":""},{"$f":"IF(IFERROR(VLOOKUP($A20,STEP_ALL!$A:$AH,COLUMN(),FALSE),\"\")=0,\"\",IFERROR(VLOOKUP($A20,STEP_ALL!$A:$AH,COLUMN(),FALSE),\"\"))","v":""},{"$f":"IF(IFERROR(VLOOKUP($A20,STEP_ALL!$A:$AH,COLUMN(),FALSE),\"\")=0,\"\",IFERROR(VLOOKUP($A20,STEP_ALL!$A:$AH,COLUMN(),FALSE),\"\"))","v":""},{"$f":"IF(IFERROR(VLOOKUP($A20,STEP_ALL!$A:$AH,COLUMN(),FALSE),\"\")=0,\"\",IFERROR(VLOOKUP($A20,STEP_ALL!$A:$AH,COLUMN(),FALSE),\"\"))","v":""},{"$f":"IF(IFERROR(VLOOKUP($A20,STEP_ALL!$A:$AH,COLUMN(),FALSE),\"\")=0,\"\",IFERROR(VLOOKUP($A20,STEP_ALL!$A:$AH,COLUMN(),FALSE),\"\"))","v":""},{"$f":"IF(IFERROR(VLOOKUP($A20,STEP_ALL!$A:$AH,COLUMN(),FALSE),\"\")=0,\"\",IFERROR(VLOOKUP($A20,STEP_ALL!$A:$AH,COLUMN(),FALSE),\"\"))","v":""},{"$f":"IF(IFERROR(VLOOKUP($A20,STEP_ALL!$A:$AH,COLUMN(),FALSE),\"\")=0,\"\",IFERROR(VLOOKUP($A20,STEP_ALL!$A:$AH,COLUMN(),FALSE),\"\"))","v":""},{"$f":"IF(IFERROR(VLOOKUP($A20,STEP_ALL!$A:$AH,COLUMN(),FALSE),\"\")=0,\"\",IFERROR(VLOOKUP($A20,STEP_ALL!$A:$AH,COLUMN(),FALSE),\"\"))","v":""},{"$f":"IF(IFERROR(VLOOKUP($A20,STEP_ALL!$A:$AH,COLUMN(),FALSE),\"\")=0,\"\",IFERROR(VLOOKUP($A20,STEP_ALL!$A:$AH,COLUMN(),FALSE),\"\"))","v":""},{"$f":"IF(IFERROR(VLOOKUP($A20,STEP_ALL!$A:$AH,COLUMN(),FALSE),\"\")=0,\"\",IFERROR(VLOOKUP($A20,STEP_ALL!$A:$AH,COLUMN(),FALSE),\"\"))","v":""},{"$f":"IF(IFERROR(VLOOKUP($A20,STEP_ALL!$A:$AH,COLUMN(),FALSE),\"\")=0,\"\",IFERROR(VLOOKUP($A20,STEP_ALL!$A:$AH,COLUMN(),FALSE),\"\"))","v":""},{"$f":"IF(IFERROR(VLOOKUP($A20,STEP_ALL!$A:$AH,COLUMN(),FALSE),\"\")=0,\"\",IFERROR(VLOOKUP($A20,STEP_ALL!$A:$AH,COLUMN(),FALSE),\"\"))","v":""},{"$f":"IF(IFERROR(VLOOKUP($A20,STEP_ALL!$A:$AH,COLUMN(),FALSE),\"\")=0,\"\",IFERROR(VLOOKUP($A20,STEP_ALL!$A:$AH,COLUMN(),FALSE),\"\"))","v":""},{"$f":"IF(IFERROR(VLOOKUP($A20,STEP_ALL!$A:$AH,COLUMN(),FALSE),\"\")=0,\"\",IFERROR(VLOOKUP($A20,STEP_ALL!$A:$AH,COLUMN(),FALSE),\"\"))","v":""},{"$f":"IF(IFERROR(VLOOKUP($A20,STEP_ALL!$A:$AH,COLUMN(),FALSE),\"\")=0,\"\",IFERROR(VLOOKUP($A20,STEP_ALL!$A:$AH,COLUMN(),FALSE),\"\"))","v":""},{"$f":"IF(IFERROR(VLOOKUP($A20,STEP_ALL!$A:$AH,COLUMN(),FALSE),\"\")=0,\"\",IFERROR(VLOOKUP($A20,STEP_ALL!$A:$AH,COLUMN(),FALSE),\"\"))","v":""},{"$f":"IF(IFERROR(VLOOKUP($A20,STEP_ALL!$A:$AH,COLUMN(),FALSE),\"\")=0,\"\",IFERROR(VLOOKUP($A20,STEP_ALL!$A:$AH,COLUMN(),FALSE),\"\"))","v":""},{"$f":"IF(IFERROR(VLOOKUP($A20,STEP_ALL!$A:$AH,COLUMN(),FALSE),\"\")=0,\"\",IFERROR(VLOOKUP($A20,STEP_ALL!$A:$AH,COLUMN(),FALSE),\"\"))","v":""},{"$f":"IF(IFERROR(VLOOKUP($A20,STEP_ALL!$A:$AH,COLUMN(),FALSE),\"\")=0,\"\",IFERROR(VLOOKUP($A20,STEP_ALL!$A:$AH,COLUMN(),FALSE),\"\"))","v":""},{"$f":"IF(IFERROR(VLOOKUP($A20,STEP_ALL!$A:$AH,COLUMN(),FALSE),\"\")=0,\"\",IFERROR(VLOOKUP($A20,STEP_ALL!$A:$AH,COLUMN(),FALSE),\"\"))","v":""}]
["1-15",1,15,{"$f":"IF(IFERROR(VLOOKUP($A21,STEP_ALL!$A:$AH,COLUMN(),FALSE),\"\")=0,\"\",IFERROR(VLOOKUP($A21,STEP_ALL!$A:$AH,COLUMN(),FALSE),\"\"))","v":""},{"$f":"IF(IFERROR(VLOOKUP($A21,STEP_ALL!$A:$AH,COLUMN(),FALSE),\"\")=0,\"\",IFERROR(VLOOKUP($A21,STEP_ALL!$A:$AH,COLUMN(),FALSE),\"\"))","v":""},{"$f":"IF(IFERROR(VLOOKUP($A21,STEP_ALL!$A:$AH,COLUMN(),FALSE),\"\")=0,\"\",IFERROR(VLOOKUP($A21,STEP_ALL!$A:$AH,COLUMN(),FALSE),\"\"))","v":""},{"$f":"IF(IFERROR(VLOOKUP($A21,STEP_ALL!$A:$AH,COLUMN(),FALSE),\"\")=0,\"\",IFERROR(VLOOKUP($A21,STEP_ALL!$A:$AH,COLUMN(),FALSE),\"\"))","v":""},{"$f":"IF(IFERROR(VLOOKUP($A21,STEP_ALL!$A:$AH,COLUMN(),FALSE),\"\")=0,\"\",IFERROR(VLOOKUP($A21,STEP_ALL!$A:$AH,COLUMN(),FALSE),\"\"))","v":""},{"$f":"IF(IFERROR(VLOOKUP($A21,STEP_ALL!$A:$AH,COLUMN(),FALSE),\"\")=0,\"\",IFERROR(VLOOKUP($A21,STEP_ALL!$A:$AH,COLUMN(),FALSE),\"\"))","v":""},{"$f":"IF(IFERROR(VLOOKUP($A21,STEP_ALL!$A:$AH,COLUMN(),FALSE),\"\")=0,\"\",IFERROR(VLOOKUP($A21,STEP_ALL!$A:$AH,COLUMN(),FALSE),\"\"))","v":""},{"$f":"IF(IFERROR(VLOOKUP($A21,STEP_ALL!$A:$AH,COLUMN(),FALSE),\"\")=0,\"\",IFERROR(VLOOKUP($A21,STEP_ALL!$A:$AH,COLUMN(),FALSE),\"\"))","v":""},{"$f":"IF(IFERROR(VLOOKUP($A21,STEP_ALL!$A:$AH,COLUMN(),FALSE),\"\")=0,\"\",IFERROR(VLOOKUP($A21,STEP_ALL!$A:$AH,COLUMN(),FALSE),\"\"))","v":""},{"$f":"IF(IFERROR(VLOOKUP($A21,STEP_ALL!$A:$AH,COLUMN(),FALSE),\"\")=0,\"\",IFERROR(VLOOKUP($A21,STEP_ALL!$A:$AH,COLUMN(),FALSE),\"\"))","v":""},{"$f":"IF(IFERROR(VLOOKUP($A21,STEP_ALL!$A:$AH,COLUMN(),FALSE),\"\")=0,\"\",IFERROR(VLOOKUP($A21,STEP_ALL!$A:$AH,COLUMN(),FALSE),\"\"))","v":""},{"$f":"IF(IFERROR(VLOOKUP($A21,STEP_ALL!$A:$AH,COLUMN(),FALSE),\"\")=0,\"\",IFERROR(VLOOKUP($A21,STEP_ALL!$A:$AH,COLUMN(),FALSE),\"\"))","v":""},{"$f":"IF(IFERROR(VLOOKUP($A21,STEP_ALL!$A:$AH,COLUMN(),FALSE),\"\")=0,\"\",IFERROR(VLOOKUP($A21,STEP_ALL!$A:$AH,COLUMN(),FALSE),\"\"))","v":""},{"$f":"IF(IFERROR(VLOOKUP($A21,STEP_ALL!$A:$AH,COLUMN(),FALSE),\"\")=0,\"\",IFERROR(VLOOKUP($A21,STEP_ALL!$A:$AH,COLUMN(),FALSE),\"\"))","v":""},{"$f":"IF(IFERROR(VLOOKUP($A21,STEP_ALL!$A:$AH,COLUMN(),FALSE),\"\")=0,\"\",IFERROR(VLOOKUP($A21,STEP_ALL!$A:$AH,COLUMN(),FALSE),\"\"))","v":""},{"$f":"IF(IFERROR(VLOOKUP($A21,STEP_ALL!$A:$AH,COLUMN(),FALSE),\"\")=0,\"\",IFERROR(VLOOKUP($A21,STEP_ALL!$A:$AH,COLUMN(),FALSE),\"\"))","v":""},{"$f":"IF(IFERROR(VLOOKUP($A21,STEP_ALL!$A:$AH,COLUMN(),FALSE),\"\")=0,\"\",IFERROR(VLOOKUP($A21,STEP_ALL!$A:$AH,COLUMN(),FALSE),\"\"))","v":""},{"$f":"IF(IFERROR(VLOOKUP($A21,STEP_ALL!$A:$AH,COLUMN(),FALSE),\"\")=0,\"\",IFERROR(VLOOKUP($A21,STEP_ALL!$A:$AH,COLUMN(),FALSE),\"\"))","v":""},{"$f":"IF(IFERROR(VLOOKUP($A21,STEP_ALL!$A:$AH,COLUMN(),FALSE),\"\")=0,\"\",IFERROR(VLOOKUP($A21,STEP_ALL!$A:$AH,COLUMN(),FALSE),\"\"))","v":""},{"$f":"IF(IFERROR(VLOOKUP($A21,STEP_ALL!$A:$AH,COLUMN(),FALSE),\"\")=0,\"\",IFERROR(VLOOKUP($A21,STEP_ALL!$A:$AH,COLUMN(),FALSE),\"\"))","v":""},{"$f":"IF(IFERROR(VLOOKUP($A21,STEP_ALL!$A:$AH,COLUMN(),FALSE),\"\")=0,\"\",IFERROR(VLOOKUP($A21,STEP_ALL!$A:$AH,COLUMN(),FALSE),\"\"))","v":""},{"$f":"IF(IFERROR(VLOOKUP($A21,STEP_ALL!$A:$AH,COLUMN(),FALSE),\"\")=0,\"\",IFERROR(VLOOKUP($A21,STEP_ALL!$A:$AH,COLUMN(),FALSE),\"\"))","v":""},{"$f":"IF(IFERROR(VLOOKUP($A21,STEP_ALL!$A:$AH,COLUMN(),FALSE),\"\")=0,\"\",IFERROR(VLOOKUP($A21,STEP_ALL!$A:$AH,COLUMN(),FALSE),\"\"))","v":""},{"$f":"IF(IFERROR(VLOOKUP($A21,STEP_ALL!$A:$AH,COLUMN(),FALSE),\"\")=0,\"\",IFERROR(VLOOKUP($A21,STEP_ALL!$A:$AH,COLUMN(),FALSE),\"\"))","v":""},{"$f":"IF(IFERROR(VLOOKUP($A21,STEP_ALL!$A:$AH,COLUMN(),FALSE),\"\")=0,\"\",IFERROR(VLOOKUP($A21,STEP_ALL!$A:$AH,COLUMN(),FALSE),\"\"))","v":""},{"$f":"IF(IFERROR(VLOOKUP($A21,STEP_ALL!$A:$AH,COLUMN(),FALSE),\"\")=0,\"\",IFERROR(VLOOKUP($A21,STEP_ALL!$A:$AH,COLUMN(),FALSE),\"\"))","v":""},{"$f":"IF(IFERROR(VLOOKUP($A21,STEP_ALL!$A:$AH,COLUMN(),FALSE),\"\")=0,\"\",IFERROR(VLOOKUP($A21,STEP_ALL!$A:$AH,COLUMN(),FALSE),\"\"))","v":""},{"$f":"IF(IFERROR(VLOOKUP($A21,STEP_ALL!$A:$AH,COLUMN(),FALSE),\"\")=0,\"\",IFERROR(VLOOKUP($A21,STEP_ALL!$A:$AH,COLUMN(),FALSE),\"\"))","v":""},{"$f":"IF(IFERROR(VLOOKUP($A21,STEP_ALL!$A:$AH,COLUMN(),FALSE),\"\")=0,\"\",IFERROR(VLOOKUP($A21,STEP_ALL!$A:$AH,COLUMN(),FALSE),\"\"))","v":""},{"$f":"IF(IFERROR(VLOOKUP($A21,STEP_ALL!$A:$AH,COLUMN(),FALSE),\"\")=0,\"\",IFERROR(VLOOKUP($A21,STEP_ALL!$A:$AH,COLUMN(),FALSE),\"\"))","v":""},{"$f":"IF(IFERROR(VLOOKUP($A21,STEP_ALL!$A:$AH,COLUMN(),FALSE),\"\")=0,\"\",IFERROR(VLOOKUP($A21,STEP_ALL!$A:$AH,COLUMN(),FALSE),\"\"))","v":""}]
["1-16",1,16,{"$f":"IF(IFERROR(VLOOKUP($A22,STEP_ALL!$A:$AH,COLUMN(),FALSE),\"\")=0,\"\",IFERROR(VLOOKUP($A22,STEP_ALL!$A:$AH,COLUMN(),FALSE),\"\"))","v":""},{"$f":"IF(IFERROR(VLOOKUP($A22,STEP_ALL!$A:$AH,COLUMN(),FALSE),\"\")=0,\"\",IFERROR(VLOOKUP($A22,STEP_ALL!$A:$AH,COLUMN(),FALSE),\"\"))","v":""},{"$f":"IF(IFERROR(VLOOKUP($A22,STEP_ALL!$A:$AH,COLUMN(),FALSE),\"\")=0,\"\",IFERROR(VLOOKUP($A22,STEP_ALL!$A:$AH,COLUMN(),FALSE),\"\"))","v":""},{"$f":"IF(IFERROR(VLOOKUP($A22,STEP_ALL!$A:$AH,COLUMN(),FALSE),\"\")=0,\"\",IFERROR(VLOOKUP($A22,STEP_ALL!$A:$AH,COLUMN(),FALSE),\"\"))","v":""},{"$f":"IF(IFERROR(VLOOKUP($A22,STEP_ALL!$A:$AH,COLUMN(),FALSE),\"\")=0,\"\",IFERROR(VLOOKUP($A22,STEP_ALL!$A:$AH,COLUMN(),FALSE),\"\"))","v":""},{"$f":"IF(IFERROR(VLOOKUP($A22,STEP_ALL!$A:$AH,COLUMN(),FALSE),\"\")=0,\"\",IFERROR(VLOOKUP($A22,STEP_ALL!$A:$AH,COLUMN(),FALSE),\"\"))","v":""},{"$f":"IF(IFERROR(VLOOKUP($A22,STEP_ALL!$A:$AH,COLUMN(),FALSE),\"\")=0,\"\",IFERROR(VLOOKUP($A22,STEP_ALL!$A:$AH,COLUMN(),FALSE),\"\"))","v":""},{"$f":"IF(IFERROR(VLOOKUP($A22,STEP_ALL!$A:$AH,COLUMN(),FALSE),\"\")=0,\"\",IFERROR(VLOOKUP($A22,STEP_ALL!$A:$AH,COLUMN(),FALSE),\"\"))","v":""},{"$f":"IF(IFERROR(VLOOKUP($A22,STEP_ALL!$A:$AH,COLUMN(),FALSE),\"\")=0,\"\",IFERROR(VLOOKUP($A22,STEP_ALL!$A:$AH,COLUMN(),FALSE),\"\"))","v":""},{"$f":"IF(IFERROR(VLOOKUP($A22,STEP_ALL!$A:$AH,COLUMN(),FALSE),\"\")=0,\"\",IFERROR(VLOOKUP($A22,STEP_ALL!$A:$AH,COLUMN(),FALSE),\"\"))","v":""},{"$f":"IF(IFERROR(VLOOKUP($A22,STEP_ALL!$A:$AH,COLUMN(),FALSE),\"\")=0,\"\",IFERROR(VLOOKUP($A22,STEP_ALL!$A:$AH,COLUMN(),FALSE),\"\"))","v":""},{"$f":"IF(IFERROR(VLOOKUP($A22,STEP_ALL!$A:$AH,COLUMN(),FALSE),\"\")=0,\"\",IFERROR(VLOOKUP($A22,STEP_ALL!$A:$AH,COLUMN(),FALSE),\"\"))","v":""},{"$f":"IF(IFERROR(VLOOKUP($A22,STEP_ALL!$A:$AH,COLUMN(),FALSE),\"\")=0,\"\",IFERROR(VLOOKUP($A22,STEP_ALL!$A:$AH,COLUMN(),FALSE),\"\"))","v":""},{"$f":"IF(IFERROR(VLOOKUP($A22,STEP_ALL!$A:$AH,COLUMN(),FALSE),\"\")=0,\"\",IFERROR(VLOOKUP($A22,STEP_ALL!$A:$AH,COLUMN(),FALSE),\"\"))","v":""},{"$f":"IF(IFERROR(VLOOKUP($A22,STEP_ALL!$A:$AH,COLUMN(),FALSE),\"\")=0,\"\",IFERROR(VLOOKUP($A22,STEP_ALL!$A:$AH,COLUMN(),FALSE),\"\"))","v":""},{"$f":"IF(IFERROR(VLOOKUP($A22,STEP_ALL!$A:$AH,COLUMN(),FALSE),\"\")=0,\"\",IFERROR(VLOOKUP($A22,STEP_ALL!$A:$AH,COLUMN(),FALSE),\"\"))","v":""},{"$f":"IF(IFERROR(VLOOKUP($A22,STEP_ALL!$A:$AH,COLUMN(),FALSE),\"\")=0,\"\",IFERROR(VLOOKUP($A22,STEP_ALL!$A:$AH,COLUMN(),FALSE),\"\"))","v":""},{"$f":"IF(IFERROR(VLOOKUP($A22,STEP_ALL!$A:$AH,COLUMN(),FALSE),\"\")=0,\"\",IFERROR(VLOOKUP($A22,STEP_ALL!$A:$AH,COLUMN(),FALSE),\"\"))","v":""},{"$f":"IF(IFERROR(VLOOKUP($A22,STEP_ALL!$A:$AH,COLUMN(),FALSE),\"\")=0,\"\",IFERROR(VLOOKUP($A22,STEP_ALL!$A:$AH,COLUMN(),FALSE),\"\"))","v":""},{"$f":"IF(IFERROR(VLOOKUP($A22,STEP_ALL!$A:$AH,COLUMN(),FALSE),\"\")=0,\"\",IFERROR(VLOOKUP($A22,STEP_ALL!$A:$AH,COLUMN(),FALSE),\"\"))","v":""},{"$f":"IF(IFERROR(VLOOKUP($A22,STEP_ALL!$A:$AH,COLUMN(),FALSE),\"\")=0,\"\",IFERROR(VLOOKUP($A22,STEP_ALL!$A:$AH,COLUMN(),FALSE),\"\"))","v":""},{"$f":"IF(IFERROR(VLOOKUP($A22,STEP_ALL!$A:$AH,COLUMN(),FALSE),\"\")=0,\"\",IFERROR(VLOOKUP($A22,STEP_ALL!$A:$AH,COLUMN(),FALSE),\"\"))","v":""},{"$f":"IF(IFERROR(VLOOKUP($A22,STEP_ALL!$A:$AH,COLUMN(),FALSE),\"\")=0,\"\",IFERROR(VLOOKUP($A22,STEP_ALL!$A:$AH,COLUMN(),FALSE),\"\"))","v":""},{"$f":"IF(IFERROR(VLOOKUP($A22,STEP_ALL!$A:$AH,COLUMN(),FALSE),\"\")=0,\"\",IFERROR(VLOOKUP($A22,STEP_ALL!$A:$AH,COLUMN(),FALSE),\"\"))","v":""},{"$f":"IF(IFERROR(VLOOKUP($A22,STEP_ALL!$A:$AH,COLUMN(),FALSE),\"\")=0,\"\",IFERROR(VLOOKUP($A22,STEP_ALL!$A:$AH,COLUMN(),FALSE),\"\"))","v":""},{"$f":"IF(IFERROR(VLOOKUP($A22,STEP_ALL!$A:$AH,COLUMN(),FALSE),\"\")=0,\"\",IFERROR(VLOOKUP($A22,STEP_ALL!$A:$AH,COLUMN(),FALSE),\"\"))","v":""},{"$f":"IF(IFERROR(VLOOKUP($A22,STEP_ALL!$A:$AH,COLUMN(),FALSE),\"\")=0,\"\",IFERROR(VLOOKUP($A22,STEP_ALL!$A:$AH,COLUMN(),FALSE),\"\"))","v":""},{"$f":"IF(IFERROR(VLOOKUP($A22,STEP_ALL!$A:$AH,COLUMN(),FALSE),\"\")=0,\"\",IFERROR(VLOOKUP($A22,STEP_ALL!$A:$AH,COLUMN(),FALSE),\"\"))","v":""},{"$f":"IF(IFERROR(VLOOKUP($A22,STEP_ALL!$A:$AH,COLUMN(),FALSE),\"\")=0,\"\",IFERROR(VLOOKUP($A22,STEP_ALL!$A:$AH,COLUMN(),FALSE),\"\"))","v":""},{"$f":"IF(IFERROR(VLOOKUP($A22,STEP_ALL!$A:$AH,COLUMN(),FALSE),\"\")=0,\"\",IFERROR(VLOOKUP($A22,STEP_ALL!$A:$AH,COLUMN(),FALSE),\"\"))","v":""},{"$f":"IF(IFERROR(VLOOKUP($A22,STEP_ALL!$A:$AH,COLUMN(),FALSE),\"\")=0,\"\",IFERROR(VLOOKUP($A22,STEP_ALL!$A:$AH,COLUMN(),FALSE),\"\"))","v":""},null,null,null,null,null,null,null,null,null,null,null,null,null,null,null,null,null,null,null,null,null,null,null,null,null,null,null,null,null,null,null,null,null,null,null,null,null,null,1]
["1-17",1,17,{"$f":"IF(IFERROR(VLOOKUP($A23,STEP_ALL!$A:$AH,COLUMN(),FALSE),\"\")=0,\"\",IFERROR(VLOOKUP($A23,STEP_ALL!$A:$AH,COLUMN(),FALSE),\"\"))","v":""},{"$f":"IF(IFERROR(VLOOKUP($A23,STEP_ALL!$A:$AH,COLUMN(),FALSE),\"\")=0,\"\",IFERROR(VLOOKUP($A23,STEP_ALL!$A:$AH,COLUMN(),FALSE),\"\"))","v":""},{"$f":"IF(IFERROR(VLOOKUP($A23,STEP_ALL!$A:$AH,COLUMN(),FALSE),\"\")=0,\"\",IFERROR(VLOOKUP($A23,STEP_ALL!$A:$AH,COLUMN(),FALSE),\"\"))","v":""},{"$f":"IF(IFERROR(VLOOKUP($A23,STEP_ALL!$A:$AH,COLUMN(),FALSE),\"\")=0,\"\",IFERROR(VLOOKUP($A23,STEP_ALL!$A:$AH,COLUMN(),FALSE),\"\"))","v":""},{"$f":"IF(IFERROR(VLOOKUP($A23,STEP_ALL!$A:$AH,COLUMN(),FALSE),\"\")=0,\"\",IFERROR(VLOOKUP($A23,STEP_ALL!$A:$AH,COLUMN(),FALSE),\"\"))","v":""},{"$f":"IF(IFERROR(VLOOKUP($A23,STEP_ALL!$A:$AH,COLUMN(),FALSE),\"\")=0,\"\",IFERROR(VLOOKUP($A23,STEP_ALL!$A:$AH,COLUMN(),FALSE),\"\"))","v":""},{"$f":"IF(IFERROR(VLOOKUP($A23,STEP_ALL!$A:$AH,COLUMN(),FALSE),\"\")=0,\"\",IFERROR(VLOOKUP($A23,STEP_ALL!$A:$AH,COLUMN(),FALSE),\"\"))","v":""},{"$f":"IF(IFERROR(VLOOKUP($A23,STEP_ALL!$A:$AH,COLUMN(),FALSE),\"\")=0,\"\",IFERROR(VLOOKUP($A23,STEP_ALL!$A:$AH,COLUMN(),FALSE),\"\"))","v":""},{"$f":"IF(IFERROR(VLOOKUP($A23,STEP_ALL!$A:$AH,COLUMN(),FALSE),\"\")=0,\"\",IFERROR(VLOOKUP($A23,STEP_ALL!$A:$AH,COLUMN(),FALSE),\"\"))","v":""},{"$f":"IF(IFERROR(VLOOKUP($A23,STEP_ALL!$A:$AH,COLUMN(),FALSE),\"\")=0,\"\",IFERROR(VLOOKUP($A23,STEP_ALL!$A:$AH,COLUMN(),FALSE),\"\"))","v":""},{"$f":"IF(IFERROR(VLOOKUP($A23,STEP_ALL!$A:$AH,COLUMN(),FALSE),\"\")=0,\"\",IFERROR(VLOOKUP($A23,STEP_ALL!$A:$AH,COLUMN(),FALSE),\"\"))","v":""},{"$f":"IF(IFERROR(VLOOKUP($A23,STEP_ALL!$A:$AH,COLUMN(),FALSE),\"\")=0,\"\",IFERROR(VLOOKUP($A23,STEP_ALL!$A:$AH,COLUMN(),FALSE),\"\"))","v":""},{"$f":"IF(IFERROR(VLOOKUP($A23,STEP_ALL!$A:$AH,COLUMN(),FALSE),\"\")=0,\"\",IFERROR(VLOOKUP($A23,STEP_ALL!$A:$AH,COLUMN(),FALSE),\"\"))","v":""},{"$f":"IF(IFERROR(VLOOKUP($A23,STEP_ALL!$A:$AH,COLUMN(),FALSE),\"\")=0,\"\",IFERROR(VLOOKUP($A23,STEP_ALL!$A:$AH,COLUMN(),FALSE),\"\"))","v":""},{"$f":"IF(IFERROR(VLOOKUP($A23,STEP_ALL!$A:$AH,COLUMN(),FALSE),\"\")=0,\"\",IFERROR(VLOOKUP($A23,STEP_ALL!$A:$AH,COLUMN(),FALSE),\"\"))","v":""},{"$f":"IF(IFERROR(VLOOKUP($A23,STEP_ALL!$A:$AH,COLUMN(),FALSE),\"\")=0,\"\",IFERROR(VLOOKUP($A23,STEP_ALL!$A:$AH,COLUMN(),FALSE),\"\"))","v":""},{"$f":"IF(IFERROR(VLOOKUP($A23,STEP_ALL!$A:$AH,COLUMN(),FALSE),\"\")=0,\"\",IFERROR(VLOOKUP($A23,STEP_ALL!$A:$AH,COLUMN(),FALSE),\"\"))","v":""},{"$f":"IF(IFERROR(VLOOKUP($A23,STEP_ALL!$A:$AH,COLUMN(),FALSE),\"\")=0,\"\",IFERROR(VLOOKUP($A23,STEP_ALL!$A:$AH,COLUMN(),FALSE),\"\"))","v":""},{"$f":"IF(IFERROR(VLOOKUP($A23,STEP_ALL!$A:$AH,COLUMN(),FALSE),\"\")=0,\"\",IFERROR(VLOOKUP($A23,STEP_ALL!$A:$AH,COLUMN(),FALSE),\"\"))","v":""},{"$f":"IF(IFERROR(VLOOKUP($A23,STEP_ALL!$A:$AH,COLUMN(),FALSE),\"\")=0,\"\",IFERROR(VLOOKUP($A23,STEP_ALL!$A:$AH,COLUMN(),FALSE),\"\"))","v":""},{"$f":"IF(IFERROR(VLOOKUP($A23,STEP_ALL!$A:$AH,COLUMN(),FALSE),\"\")=0,\"\",IFERROR(VLOOKUP($A23,STEP_ALL!$A:$AH,COLUMN(),FALSE),\"\"))","v":""},{"$f":"IF(IFERROR(VLOOKUP($A23,STEP_ALL!$A:$AH,COLUMN(),FALSE),\"\")=0,\"\",IFERROR(VLOOKUP($A23,STEP_ALL!$A:$AH,COLUMN(),FALSE),\"\"))","v":""},{"$f":"IF(IFERROR(VLOOKUP($A23,STEP_ALL!$A:$AH,COLUMN(),FALSE),\"\")=0,\"\",IFERROR(VLOOKUP($A23,STEP_ALL!$A:$AH,COLUMN(),FALSE),\"\"))","v":""},{"$f":"IF(IFERROR(VLOOKUP($A23,STEP_ALL!$A:$AH,COLUMN(),FALSE),\"\")=0,\"\",IFERROR(VLOOKUP($A23,STEP_ALL!$A:$AH,COLUMN(),FALSE),\"\"))","v":""},{"$f":"IF(IFERROR(VLOOKUP($A23,STEP_ALL!$A:$AH,COLUMN(),FALSE),\"\")=0,\"\",IFERROR(VLOOKUP($A23,STEP_ALL!$A:$AH,COLUMN(),FALSE),\"\"))","v":""},{"$f":"IF(IFERROR(VLOOKUP($A23,STEP_ALL!$A:$AH,COLUMN(),FALSE),\"\")=0,\"\",IFERROR(VLOOKUP($A23,STEP_ALL!$A:$AH,COLUMN(),FALSE),\"\"))","v":""},{"$f":"IF(IFERROR(VLOOKUP($A23,STEP_ALL!$A:$AH,COLUMN(),FALSE),\"\")=0,\"\",IFERROR(VLOOKUP($A23,STEP_ALL!$A:$AH,COLUMN(),FALSE),\"\"))","v":""},{"$f":"IF(IFERROR(VLOOKUP($A23,STEP_ALL!$A:$AH,COLUMN(),FALSE),\"\")=0,\"\",IFERROR(VLOOKUP($A23,STEP_ALL!$A:$AH,COLUMN(),FALSE),\"\"))","v":""},{"$f":"IF(IFERROR(VLOOKUP($A23,STEP_ALL!$A:$AH,COLUMN(),FALSE),\"\")=0,\"\",IFERROR(VLOOKUP($A23,STEP_ALL!$A:$AH,COLUMN(),FALSE),\"\"))","v":""},{"$f":"IF(IFERROR(VLOOKUP($A23,STEP_ALL!$A:$AH,COLUMN(),FALSE),\"\")=0,\"\",IFERROR(VLOOKUP($A23,STEP_ALL!$A:$AH,COLUMN(),FALSE),\"\"))","v":""},{"$f":"IF(IFERROR(VLOOKUP($A23,STEP_ALL!$A:$AH,COLUMN(),FALSE),\"\")=0,\"\",IFERROR(VLOOKUP($A23,STEP_ALL!$A:$AH,COLUMN(),FALSE),\"\"))","v":""}]
["1-18",1,18,{"$f":"IF(IFERROR(VLOOKUP($A24,STEP_ALL!$A:$AH,COLUMN(),FALSE),\"\")=0,\"\",IFERROR(VLOOKUP($A24,STEP_ALL!$A:$AH,COLUMN(),FALSE),\"\"))","v":""},{"$f":"IF(IFERROR(VLOOKUP($A24,STEP_ALL!$A:$AH,COLUMN(),FALSE),\"\")=0,\"\",IFERROR(VLOOKUP($A24,STEP_ALL!$A:$AH,COLUMN(),FALSE),\"\"))","v":""},{"$f":"IF(IFERROR(VLOOKUP($A24,STEP_ALL!$A:$AH,COLUMN(),FALSE),\"\")=0,\"\",IFERROR(VLOOKUP($A24,STEP_ALL!$A:$AH,COLUMN(),FALSE),\"\"))","v":""},{"$f":"IF(IFERROR(VLOOKUP($A24,STEP_ALL!$A:$AH,COLUMN(),FALSE),\"\")=0,\"\",IFERROR(VLOOKUP($A24,STEP_ALL!$A:$AH,COLUMN(),FALSE),\"\"))","v":""},{"$f":"IF(IFERROR(VLOOKUP($A24,STEP_ALL!$A:$AH,COLUMN(),FALSE),\"\")=0,\"\",IFERROR(VLOOKUP($A24,STEP_ALL!$A:$AH,COLUMN(),FALSE),\"\"))","v":""},{"$f":"IF(IFERROR(VLOOKUP($A24,STEP_ALL!$A:$AH,COLUMN(),FALSE),\"\")=0,\"\",IFERROR(VLOOKUP($A24,STEP_ALL!$A:$AH,COLUMN(),FALSE),\"\"))","v":""},{"$f":"IF(IFERROR(VLOOKUP($A24,STEP_ALL!$A:$AH,COLUMN(),FALSE),\"\")=0,\"\",IFERROR(VLOOKUP($A24,STEP_ALL!$A:$AH,COLUMN(),FALSE),\"\"))","v":""},{"$f":"IF(IFERROR(VLOOKUP($A24,STEP_ALL!$A:$AH,COLUMN(),FALSE),\"\")=0,\"\",IFERROR(VLOOKUP($A24,STEP_ALL!$A:$AH,COLUMN(),FALSE),\"\"))","v":""},{"$f":"IF(IFERROR(VLOOKUP($A24,STEP_ALL!$A:$AH,COLUMN(),FALSE),\"\")=0,\"\",IFERROR(VLOOKUP($A24,STEP_ALL!$A:$AH,COLUMN(),FALSE),\"\"))","v":""},{"$f":"IF(IFERROR(VLOOKUP($A24,STEP_ALL!$A:$AH,COLUMN(),FALSE),\"\")=0,\"\",IFERROR(VLOOKUP($A24,STEP_ALL!$A:$AH,COLUMN(),FALSE),\"\"))","v":""},{"$f":"IF(IFERROR(VLOOKUP($A24,STEP_ALL!$A:$AH,COLUMN(),FALSE),\"\")=0,\"\",IFERROR(VLOOKUP($A24,STEP_ALL!$A:$AH,COLUMN(),FALSE),\"\"))","v":""},{"$f":"IF(IFERROR(VLOOKUP($A24,STEP_ALL!$A:$AH,COLUMN(),FALSE),\"\")=0,\"\",IFERROR(VLOOKUP($A24,STEP_ALL!$A:$AH,COLUMN(),FALSE),\"\"))","v":""},{"$f":"IF(IFERROR(VLOOKUP($A24,STEP_ALL!$A:$AH,COLUMN(),FALSE),\"\")=0,\"\",IFERROR(VLOOKUP($A24,STEP_ALL!$A:$AH,COLUMN(),FALSE),\"\"))","v":""},{"$f":"IF(IFERROR(VLOOKUP($A24,STEP_ALL!$A:$AH,COLUMN(),FALSE),\"\")=0,\"\",IFERROR(VLOOKUP($A24,STEP_ALL!$A:$AH,COLUMN(),FALSE),\"\"))","v":""},{"$f":"IF(IFERROR(VLOOKUP($A24,STEP_ALL!$A:$AH,COLUMN(),FALSE),\"\")=0,\"\",IFERROR(VLOOKUP($A24,STEP_ALL!$A:$AH,COLUMN(),FALSE),\"\"))","v":""},{"$f":"IF(IFERROR(VLOOKUP($A24,STEP_ALL!$A:$AH,COLUMN(),FALSE),\"\")=0,\"\",IFERROR(VLOOKUP($A24,STEP_ALL!$A:$AH,COLUMN(),FALSE),\"\"))","v":""},{"$f":"IF(IFERROR(VLOOKUP($A24,STEP_ALL!$A:$AH,COLUMN(),FALSE),\"\")=0,\"\",IFERROR(VLOOKUP($A24,STEP_ALL!$A:$AH,COLUMN(),FALSE),\"\"))","v":""},{"$f":"IF(IFERROR(VLOOKUP($A24,STEP_ALL!$A:$AH,COLUMN(),FALSE),\"\")=0,\"\",IFERROR(VLOOKUP($A24,STEP_ALL!$A:$AH,COLUMN(),FALSE),\"\"))","v":""},{"$f":"IF(IFERROR(VLOOKUP($A24,STEP_ALL!$A:$AH,COLUMN(),FALSE),\"\")=0,\"\",IFERROR(VLOOKUP($A24,STEP_ALL!$A:$AH,COLUMN(),FALSE),\"\"))","v":""},{"$f":"IF(IFERROR(VLOOKUP($A24,STEP_ALL!$A:$AH,COLUMN(),FALSE),\"\")=0,\"\",IFERROR(VLOOKUP($A24,STEP_ALL!$A:$AH,COLUMN(),FALSE),\"\"))","v":""},{"$f":"IF(IFERROR(VLOOKUP($A24,STEP_ALL!$A:$AH,COLUMN(),FALSE),\"\")=0,\"\",IFERROR(VLOOKUP($A24,STEP_ALL!$A:$AH,COLUMN(),FALSE),\"\"))","v":""},{"$f":"IF(IFERROR(VLOOKUP($A24,STEP_ALL!$A:$AH,COLUMN(),FALSE),\"\")=0,\"\",IFERROR(VLOOKUP($A24,STEP_ALL!$A:$AH,COLUMN(),FALSE),\"\"))","v":""},{"$f":"IF(IFERROR(VLOOKUP($A24,STEP_ALL!$A:$AH,COLUMN(),FALSE),\"\")=0,\"\",IFERROR(VLOOKUP($A24,STEP_ALL!$A:$AH,COLUMN(),FALSE),\"\"))","v":""},{"$f":"IF(IFERROR(VLOOKUP($A24,STEP_ALL!$A:$AH,COLUMN(),FALSE),\"\")=0,\"\",IFERROR(VLOOKUP($A24,STEP_ALL!$A:$AH,COLUMN(),FALSE),\"\"))","v":""},{"$f":"IF(IFERROR(VLOOKUP($A24,STEP_ALL!$A:$AH,COLUMN(),FALSE),\"\")=0,\"\",IFERROR(VLOOKUP($A24,STEP_ALL!$A:$AH,COLUMN(),FALSE),\"\"))","v":""},{"$f":"IF(IFERROR(VLOOKUP($A24,STEP_ALL!$A:$AH,COLUMN(),FALSE),\"\")=0,\"\",IFERROR(VLOOKUP($A24,STEP_ALL!$A:$AH,COLUMN(),FALSE),\"\"))","v":""},{"$f":"IF(IFERROR(VLOOKUP($A24,STEP_ALL!$A:$AH,COLUMN(),FALSE),\"\")=0,\"\",IFERROR(VLOOKUP($A24,STEP_ALL!$A:$AH,COLUMN(),FALSE),\"\"))","v":""},{"$f":"IF(IFERROR(VLOOKUP($A24,STEP_ALL!$A:$AH,COLUMN(),FALSE),\"\")=0,\"\",IFERROR(VLOOKUP($A24,STEP_ALL!$A:$AH,COLUMN(),FALSE),\"\"))","v":""},{"$f":"IF(IFERROR(VLOOKUP($A24,STEP_ALL!$A:$AH,COLUMN(),FALSE),\"\")=0,\"\",IFERROR(VLOOKUP($A24,STEP_ALL!$A:$AH,COLUMN(),FALSE),\"\"))","v":""},{"$f":"IF(IFERROR(VLOOKUP($A24,STEP_ALL!$A:$AH,COLUMN(),FALSE),\"\")=0,\"\",IFERROR(VLOOKUP($A24,STEP_ALL!$A:$AH,COLUMN(),FALSE),\"\"))","v":""},{"$f":"IF(IFERROR(VLOOKUP($A24,STEP_ALL!$A:$AH,COLUMN(),FALSE),\"\")=0,\"\",IFERROR(VLOOKUP($A24,STEP_ALL!$A:$AH,COLUMN(),FALSE),\"\"))","v":""},null,null,null,null,null,null,null,null,null,null,null,null,null,null,null,null,null,null,null,null,null,null,null,null,null,null,null,null,null,null,null,null,null,null,null,2,null,null,null,null,null,4]
["1-19",1,19,{"$f":"IF(IFERROR(VLOOKUP($A25,STEP_ALL!$A:$AH,COLUMN(),FALSE),\"\")=0,\"\",IFERROR(VLOOKUP($A25,STEP_ALL!$A:$AH,COLUMN(),FALSE),\"\"))","v":""},{"$f":"IF(IFERROR(VLOOKUP($A25,STEP_ALL!$A:$AH,COLUMN(),FALSE),\"\")=0,\"\",IFERROR(VLOOKUP($A25,STEP_ALL!$A:$AH,COLUMN(),FALSE),\"\"))","v":""},{"$f":"IF(IFERROR(VLOOKUP($A25,STEP_ALL!$A:$AH,COLUMN(),FALSE),\"\")=0,\"\",IFERROR(VLOOKUP($A25,STEP_ALL!$A:$AH,COLUMN(),FALSE),\"\"))","v":""},{"$f":"IF(IFERROR(VLOOKUP($A25,STEP_ALL!$A:$AH,COLUMN(),FALSE),\"\")=0,\"\",IFERROR(VLOOKUP($A25,STEP_ALL!$A:$AH,COLUMN(),FALSE),\"\"))","v":""},{"$f":"IF(IFERROR(VLOOKUP($A25,STEP_ALL!$A:$AH,COLUMN(),FALSE),\"\")=0,\"\",IFERROR(VLOOKUP($A25,STEP_ALL!$A:$AH,COLUMN(),FALSE),\"\"))","v":""},{"$f":"IF(IFERROR(VLOOKUP($A25,STEP_ALL!$A:$AH,COLUMN(),FALSE),\"\")=0,\"\",IFERROR(VLOOKUP($A25,STEP_ALL!$A:$AH,COLUMN(),FALSE),\"\"))","v":""},{"$f":"IF(IFERROR(VLOOKUP($A25,STEP_ALL!$A:$AH,COLUMN(),FALSE),\"\")=0,\"\",IFERROR(VLOOKUP($A25,STEP_ALL!$A:$AH,COLUMN(),FALSE),\"\"))","v":""},{"$f":"IF(IFERROR(VLOOKUP($A25,STEP_ALL!$A:$AH,COLUMN(),FALSE),\"\")=0,\"\",IFERROR(VLOOKUP($A25,STEP_ALL!$A:$AH,COLUMN(),FALSE),\"\"))","v":""},{"$f":"IF(IFERROR(VLOOKUP($A25,STEP_ALL!$A:$AH,COLUMN(),FALSE),\"\")=0,\"\",IFERROR(VLOOKUP($A25,STEP_ALL!$A:$AH,COLUMN(),FALSE),\"\"))","v":""},{"$f":"IF(IFERROR(VLOOKUP($A25,STEP_ALL!$A:$AH,COLUMN(),FALSE),\"\")=0,\"\",IFERROR(VLOOKUP($A25,STEP_ALL!$A:$AH,COLUMN(),FALSE),\"\"))","v":""},{"$f":"IF(IFERROR(VLOOKUP($A25,STEP_ALL!$A:$AH,COLUMN(),FALSE),\"\")=0,\"\",IFERROR(VLOOKUP($A25,STEP_ALL!$A:$AH,COLUMN(),FALSE),\"\"))","v":""},{"$f":"IF(IFERROR(VLOOKUP($A25,STEP_ALL!$A:$AH,COLUMN(),FALSE),\"\")=0,\"\",IFERROR(VLOOKUP($A25,STEP_ALL!$A:$AH,COLUMN(),FALSE),\"\"))","v":""},{"$f":"IF(IFERROR(VLOOKUP($A25,STEP_ALL!$A:$AH,COLUMN(),FALSE),\"\")=0,\"\",IFERROR(VLOOKUP($A25,STEP_ALL!$A:$AH,COLUMN(),FALSE),\"\"))","v":""},{"$f":"IF(IFERROR(VLOOKUP($A25,STEP_ALL!$A:$AH,COLUMN(),FALSE),\"\")=0,\"\",IFERROR(VLOOKUP($A25,STEP_ALL!$A:$AH,COLUMN(),FALSE),\"\"))","v":""},{"$f":"IF(IFERROR(VLOOKUP($A25,STEP_ALL!$A:$AH,COLUMN(),FALSE),\"\")=0,\"\",IFERROR(VLOOKUP($A25,STEP_ALL!$A:$AH,COLUMN(),FALSE),\"\"))","v":""},{"$f":"IF(IFERROR(VLOOKUP($A25,STEP_ALL!$A:$AH,COLUMN(),FALSE),\"\")=0,\"\",IFERROR(VLOOKUP($A25,STEP_ALL!$A:$AH,COLUMN(),FALSE),\"\"))","v":""},{"$f":"IF(IFERROR(VLOOKUP($A25,STEP_ALL!$A:$AH,COLUMN(),FALSE),\"\")=0,\"\",IFERROR(VLOOKUP($A25,STEP_ALL!$A:$AH,COLUMN(),FALSE),\"\"))","v":""},{"$f":"IF(IFERROR(VLOOKUP($A25,STEP_ALL!$A:$AH,COLUMN(),FALSE),\"\")=0,\"\",IFERROR(VLOOKUP($A25,STEP_ALL!$A:$AH,COLUMN(),FALSE),\"\"))","v":""},{"$f":"IF(IFERROR(VLOOKUP($A25,STEP_ALL!$A:$AH,COLUMN(),FALSE),\"\")=0,\"\",IFERROR(VLOOKUP($A25,STEP_ALL!$A:$AH,COLUMN(),FALSE),\"\"))","v":""},{"$f":"IF(IFERROR(VLOOKUP($A25,STEP_ALL!$A:$AH,COLUMN(),FALSE),\"\")=0,\"\",IFERROR(VLOOKUP($A25,STEP_ALL!$A:$AH,COLUMN(),FALSE),\"\"))","v":""},{"$f":"IF(IFERROR(VLOOKUP($A25,STEP_ALL!$A:$AH,COLUMN(),FALSE),\"\")=0,\"\",IFERROR(VLOOKUP($A25,STEP_ALL!$A:$AH,COLUMN(),FALSE),\"\"))","v":""},{"$f":"IF(IFERROR(VLOOKUP($A25,STEP_ALL!$A:$AH,COLUMN(),FALSE),\"\")=0,\"\",IFERROR(VLOOKUP($A25,STEP_ALL!$A:$AH,COLUMN(),FALSE),\"\"))","v":""},{"$f":"IF(IFERROR(VLOOKUP($A25,STEP_ALL!$A:$AH,COLUMN(),FALSE),\"\")=0,\"\",IFERROR(VLOOKUP($A25,STEP_ALL!$A:$AH,COLUMN(),FALSE),\"\"))","v":""},{"$f":"IF(IFERROR(VLOOKUP($A25,STEP_ALL!$A:$AH,COLUMN(),FALSE),\"\")=0,\"\",IFERROR(VLOOKUP($A25,STEP_ALL!$A:$AH,COLUMN(),FALSE),\"\"))","v":""},{"$f":"IF(IFERROR(VLOOKUP($A25,STEP_ALL!$A:$AH,COLUMN(),FALSE),\"\")=0,\"\",IFERROR(VLOOKUP($A25,STEP_ALL!$A:$AH,COLUMN(),FALSE),\"\"))","v":""},{"$f":"IF(IFERROR(VLOOKUP($A25,STEP_ALL!$A:$AH,COLUMN(),FALSE),\"\")=0,\"\",IFERROR(VLOOKUP($A25,STEP_ALL!$A:$AH,COLUMN(),FALSE),\"\"))","v":""},{"$f":"IF(IFERROR(VLOOKUP($A25,STEP_ALL!$A:$AH,COLUMN(),FALSE),\"\")=0,\"\",IFERROR(VLOOKUP($A25,STEP_ALL!$A:$AH,COLUMN(),FALSE),\"\"))","v":""},{"$f":"IF(IFERROR(VLOOKUP($A25,STEP_ALL!$A:$AH,COLUMN(),FALSE),\"\")=0,\"\",IFERROR(VLOOKUP($A25,STEP_ALL!$A:$AH,COLUMN(),FALSE),\"\"))","v":""},{"$f":"IF(IFERROR(VLOOKUP($A25,STEP_ALL!$A:$AH,COLUMN(),FALSE),\"\")=0,\"\",IFERROR(VLOOKUP($A25,STEP_ALL!$A:$AH,COLUMN(),FALSE),\"\"))","v":""},{"$f":"IF(IFERROR(VLOOKUP($A25,STEP_ALL!$A:$AH,COLUMN(),FALSE),\"\")=0,\"\",IFERROR(VLOOKUP($A25,STEP_ALL!$A:$AH,COLUMN(),FALSE),\"\"))","v":""},{"$f":"IF(IFERROR(VLOOKUP($A25,STEP_ALL!$A:$AH,COLUMN(),FALSE),\"\")=0,\"\",IFERROR(VLOOKUP($A25,STEP_ALL!$A:$AH,COLUMN(),FALSE),\"\"))","v":""}]
["1-20",1,20,{"$f":"IF(IFERROR(VLOOKUP($A26,STEP_ALL!$A:$AH,COLUMN(),FALSE),\"\")=0,\"\",IFERROR(VLOOKUP($A26,STEP_ALL!$A:$AH,COLUMN(),FALSE),\"\"))","v":""},{"$f":"IF(IFERROR(VLOOKUP($A26,STEP_ALL!$A:$AH,COLUMN(),FALSE),\"\")=0,\"\",IFERROR(VLOOKUP($A26,STEP_ALL!$A:$AH,COLUMN(),FALSE),\"\"))","v":""},{"$f":"IF(IFERROR(VLOOKUP($A26,STEP_ALL!$A:$AH,COLUMN(),FALSE),\"\")=0,\"\",IFERROR(VLOOKUP($A26,STEP_ALL!$A:$AH,COLUMN(),FALSE),\"\"))","v":""},{"$f":"IF(IFERROR(VLOOKUP($A26,STEP_ALL!$A:$AH,COLUMN(),FALSE),\"\")=0,\"\",IFERROR(VLOOKUP($A26,STEP_ALL!$A:$AH,COLUMN(),FALSE),\"\"))","v":""},{"$f":"IF(IFERROR(VLOOKUP($A26,STEP_ALL!$A:$AH,COLUMN(),FALSE),\"\")=0,\"\",IFERROR(VLOOKUP($A26,STEP_ALL!$A:$AH,COLUMN(),FALSE),\"\"))","v":""},{"$f":"IF(IFERROR(VLOOKUP($A26,STEP_ALL!$A:$AH,COLUMN(),FALSE),\"\")=0,\"\",IFERROR(VLOOKUP($A26,STEP_ALL!$A:$AH,COLUMN(),FALSE),\"\"))","v":""},{"$f":"IF(IFERROR(VLOOKUP($A26,STEP_ALL!$A:$AH,COLUMN(),FALSE),\"\")=0,\"\",IFERROR(VLOOKUP($A26,STEP_ALL!$A:$AH,COLUMN(),FALSE),\"\"))","v":""},{"$f":"IF(IFERROR(VLOOKUP($A26,STEP_ALL!$A:$AH,COLUMN(),FALSE),\"\")=0,\"\",IFERROR(VLOOKUP($A26,STEP_ALL!$A:$AH,COLUMN(),FALSE),\"\"))","v":""},{"$f":"IF(IFERROR(VLOOKUP($A26,STEP_ALL!$A:$AH,COLUMN(),FALSE),\"\")=0,\"\",IFERROR(VLOOKUP($A26,STEP_ALL!$A:$AH,COLUMN(),FALSE),\"\"))","v":""},{"$f":"IF(IFERROR(VLOOKUP($A26,STEP_ALL!$A:$AH,COLUMN(),FALSE),\"\")=0,\"\",IFERROR(VLOOKUP($A26,STEP_ALL!$A:$AH,COLUMN(),FALSE),\"\"))","v":""},{"$f":"IF(IFERROR(VLOOKUP($A26,STEP_ALL!$A:$AH,COLUMN(),FALSE),\"\")=0,\"\",IFERROR(VLOOKUP($A26,STEP_ALL!$A:$AH,COLUMN(),FALSE),\"\"))","v":""},{"$f":"IF(IFERROR(VLOOKUP($A26,STEP_ALL!$A:$AH,COLUMN(),FALSE),\"\")=0,\"\",IFERROR(VLOOKUP($A26,STEP_ALL!$A:$AH,COLUMN(),FALSE),\"\"))","v":""},{"$f":"IF(IFERROR(VLOOKUP($A26,STEP_ALL!$A:$AH,COLUMN(),FALSE),\"\")=0,\"\",IFERROR(VLOOKUP($A26,STEP_ALL!$A:$AH,COLUMN(),FALSE),\"\"))","v":""},{"$f":"IF(IFERROR(VLOOKUP($A26,STEP_ALL!$A:$AH,COLUMN(),FALSE),\"\")=0,\"\",IFERROR(VLOOKUP($A26,STEP_ALL!$A:$AH,COLUMN(),FALSE),\"\"))","v":""},{"$f":"IF(IFERROR(VLOOKUP($A26,STEP_ALL!$A:$AH,COLUMN(),FALSE),\"\")=0,\"\",IFERROR(VLOOKUP($A26,STEP_ALL!$A:$AH,COLUMN(),FALSE),\"\"))","v":""},{"$f":"IF(IFERROR(VLOOKUP($A26,STEP_ALL!$A:$AH,COLUMN(),FALSE),\"\")=0,\"\",IFERROR(VLOOKUP($A26,STEP_ALL!$A:$AH,COLUMN(),FALSE),\"\"))","v":""},{"$f":"IF(IFERROR(VLOOKUP($A26,STEP_ALL!$A:$AH,COLUMN(),FALSE),\"\")=0,\"\",IFERROR(VLOOKUP($A26,STEP_ALL!$A:$AH,COLUMN(),FALSE),\"\"))","v":""},{"$f":"IF(IFERROR(VLOOKUP($A26,STEP_ALL!$A:$AH,COLUMN(),FALSE),\"\")=0,\"\",IFERROR(VLOOKUP($A26,STEP_ALL!$A:$AH,COLUMN(),FALSE),\"\"))","v":""},{"$f":"IF(IFERROR(VLOOKUP($A26,STEP_ALL!$A:$AH,COLUMN(),FALSE),\"\")=0,\"\",IFERROR(VLOOKUP($A26,STEP_ALL!$A:$AH,COLUMN(),FALSE),\"\"))","v":""},{"$f":"IF(IFERROR(VLOOKUP($A26,STEP_ALL!$A:$AH,COLUMN(),FALSE),\"\")=0,\"\",IFERROR(VLOOKUP($A26,STEP_ALL!$A:$AH,COLUMN(),FALSE),\"\"))","v":""},{"$f":"IF(IFERROR(VLOOKUP($A26,STEP_ALL!$A:$AH,COLUMN(),FALSE),\"\")=0,\"\",IFERROR(VLOOKUP($A26,STEP_ALL!$A:$AH,COLUMN(),FALSE),\"\"))","v":""},{"$f":"IF(IFERROR(VLOOKUP($A26,STEP_ALL!$A:$AH,COLUMN(),FALSE),\"\")=0,\"\",IFERROR(VLOOKUP($A26,STEP_ALL!$A:$AH,COLUMN(),FALSE),\"\"))","v":""},{"$f":"IF(IFERROR(VLOOKUP($A26,STEP_ALL!$A:$AH,COLUMN(),FALSE),\"\")=0,\"\",IFERROR(VLOOKUP($A26,STEP_ALL!$A:$AH,COLUMN(),FALSE),\"\"))","v":""},{"$f":"IF(IFERROR(VLOOKUP($A26,STEP_ALL!$A:$AH,COLUMN(),FALSE),\"\")=0,\"\",IFERROR(VLOOKUP($A26,STEP_ALL!$A:$AH,COLUMN(),FALSE),\"\"))","v":""},{"$f":"IF(IFERROR(VLOOKUP($A26,STEP_ALL!$A:$AH,COLUMN(),FALSE),\"\")=0,\"\",IFERROR(VLOOKUP($A26,STEP_ALL!$A:$AH,COLUMN(),FALSE),\"\"))","v":""},{"$f":"IF(IFERROR(VLOOKUP($A26,STEP_ALL!$A:$AH,COLUMN(),FALSE),\"\")=0,\"\",IFERROR(VLOOKUP($A26,STEP_ALL!$A:$AH,COLUMN(),FALSE),\"\"))","v":""},{"$f":"IF(IFERROR(VLOOKUP($A26,STEP_ALL!$A:$AH,COLUMN(),FALSE),\"\")=0,\"\",IFERROR(VLOOKUP($A26,STEP_ALL!$A:$AH,COLUMN(),FALSE),\"\"))","v":""},{"$f":"IF(IFERROR(VLOOKUP($A26,STEP_ALL!$A:$AH,COLUMN(),FALSE),\"\")=0,\"\",IFERROR(VLOOKUP($A26,STEP_ALL!$A:$AH,COLUMN(),FALSE),\"\"))","v":""},{"$f":"IF(IFERROR(VLOOKUP($A26,STEP_ALL!$A:$AH,COLUMN(),FALSE),\"\")=0,\"\",IFERROR(VLOOKUP($A26,STEP_ALL!$A:$AH,COLUMN(),FALSE),\"\"))","v":""},{"$f":"IF(IFERROR(VLOOKUP($A26,STEP_ALL!$A:$AH,COLUMN(),FALSE),\"\")=0,\"\",IFERROR(VLOOKUP($A26,STEP_ALL!$A:$AH,COLUMN(),FALSE),\"\"))","v":""},{"$f":"IF(IFERROR(VLOOKUP($A26,STEP_ALL!$A:$AH,COLUMN(),FALSE),\"\")=0,\"\",IFERROR(VLOOKUP($A26,STEP_ALL!$A:$AH,COLUMN(),FALSE),\"\"))","v":""}]
["1-21",1,21,{"$f":"IF(IFERROR(VLOOKUP($A27,STEP_ALL!$A:$AH,COLUMN(),FALSE),\"\")=0,\"\",IFERROR(VLOOKUP($A27,STEP_ALL!$A:$AH,COLUMN(),FALSE),\"\"))","v":""},{"$f":"IF(IFERROR(VLOOKUP($A27,STEP_ALL!$A:$AH,COLUMN(),FALSE),\"\")=0,\"\",IFERROR(VLOOKUP($A27,STEP_ALL!$A:$AH,COLUMN(),FALSE),\"\"))","v":""},{"$f":"IF(IFERROR(VLOOKUP($A27,STEP_ALL!$A:$AH,COLUMN(),FALSE),\"\")=0,\"\",IFERROR(VLOOKUP($A27,STEP_ALL!$A:$AH,COLUMN(),FALSE),\"\"))","v":""},{"$f":"IF(IFERROR(VLOOKUP($A27,STEP_ALL!$A:$AH,COLUMN(),FALSE),\"\")=0,\"\",IFERROR(VLOOKUP($A27,STEP_ALL!$A:$AH,COLUMN(),FALSE),\"\"))","v":""},{"$f":"IF(IFERROR(VLOOKUP($A27,STEP_ALL!$A:$AH,COLUMN(),FALSE),\"\")=0,\"\",IFERROR(VLOOKUP($A27,STEP_ALL!$A:$AH,COLUMN(),FALSE),\"\"))","v":""},{"$f":"IF(IFERROR(VLOOKUP($A27,STEP_ALL!$A:$AH,COLUMN(),FALSE),\"\")=0,\"\",IFERROR(VLOOKUP($A27,STEP_ALL!$A:$AH,COLUMN(),FALSE),\"\"))","v":""},{"$f":"IF(IFERROR(VLOOKUP($A27,STEP_ALL!$A:$AH,COLUMN(),FALSE),\"\")=0,\"\",IFERROR(VLOOKUP($A27,STEP_ALL!$A:$AH,COLUMN(),FALSE),\"\"))","v":""},{"$f":"IF(IFERROR(VLOOKUP($A27,STEP_ALL!$A:$AH,COLUMN(),FALSE),\"\")=0,\"\",IFERROR(VLOOKUP($A27,STEP_ALL!$A:$AH,COLUMN(),FALSE),\"\"))","v":""},{"$f":"IF(IFERROR(VLOOKUP($A27,STEP_ALL!$A:$AH,COLUMN(),FALSE),\"\")=0,\"\",IFERROR(VLOOKUP($A27,STEP_ALL!$A:$AH,COLUMN(),FALSE),\"\"))","v":""},{"$f":"IF(IFERROR(VLOOKUP($A27,STEP_ALL!$A:$AH,COLUMN(),FALSE),\"\")=0,\"\",IFERROR(VLOOKUP($A27,STEP_ALL!$A:$AH,COLUMN(),FALSE),\"\"))","v":""},{"$f":"IF(IFERROR(VLOOKUP($A27,STEP_ALL!$A:$AH,COLUMN(),FALSE),\"\")=0,\"\",IFERROR(VLOOKUP($A27,STEP_ALL!$A:$AH,COLUMN(),FALSE),\"\"))","v":""},{"$f":"IF(IFERROR(VLOOKUP($A27,STEP_ALL!$A:$AH,COLUMN(),FALSE),\"\")=0,\"\",IFERROR(VLOOKUP($A27,STEP_ALL!$A:$AH,COLUMN(),FALSE),\"\"))","v":""},{"$f":"IF(IFERROR(VLOOKUP($A27,STEP_ALL!$A:$AH,COLUMN(),FALSE),\"\")=0,\"\",IFERROR(VLOOKUP($A27,STEP_ALL!$A:$AH,COLUMN(),FALSE),\"\"))","v":""},{"$f":"IF(IFERROR(VLOOKUP($A27,STEP_ALL!$A:$AH,COLUMN(),FALSE),\"\")=0,\"\",IFERROR(VLOOKUP($A27,STEP_ALL!$A:$AH,COLUMN(),FALSE),\"\"))","v":""},{"$f":"IF(IFERROR(VLOOKUP($A27,STEP_ALL!$A:$AH,COLUMN(),FALSE),\"\")=0,\"\",IFERROR(VLOOKUP($A27,STEP_ALL!$A:$AH,COLUMN(),FALSE),\"\"))","v":""},{"$f":"IF(IFERROR(VLOOKUP($A27,STEP_ALL!$A:$AH,COLUMN(),FALSE),\"\")=0,\"\",IFERROR(VLOOKUP($A27,STEP_ALL!$A:$AH,COLUMN(),FALSE),\"\"))","v":""},{"$f":"IF(IFERROR(VLOOKUP($A27,STEP_ALL!$A:$AH,COLUMN(),FALSE),\"\")=0,\"\",IFERROR(VLOOKUP($A27,STEP_ALL!$A:$AH,COLUMN(),FALSE),\"\"))","v":""},{"$f":"IF(IFERROR(VLOOKUP($A27,STEP_ALL!$A:$AH,COLUMN(),FALSE),\"\")=0,\"\",IFERROR(VLOOKUP($A27,STEP_ALL!$A:$AH,COLUMN(),FALSE),\"\"))","v":""},{"$f":"IF(IFERROR(VLOOKUP($A27,STEP_ALL!$A:$AH,COLUMN(),FALSE),\"\")=0,\"\",IFERROR(VLOOKUP($A27,STEP_ALL!$A:$AH,COLUMN(),FALSE),\"\"))","v":""},{"$f":"IF(IFERROR(VLOOKUP($A27,STEP_ALL!$A:$AH,COLUMN(),FALSE),\"\")=0,\"\",IFERROR(VLOOKUP($A27,STEP_ALL!$A:$AH,COLUMN(),FALSE),\"\"))","v":""},{"$f":"IF(IFERROR(VLOOKUP($A27,STEP_ALL!$A:$AH,COLUMN(),FALSE),\"\")=0,\"\",IFERROR(VLOOKUP($A27,STEP_ALL!$A:$AH,COLUMN(),FALSE),\"\"))","v":""},{"$f":"IF(IFERROR(VLOOKUP($A27,STEP_ALL!$A:$AH,COLUMN(),FALSE),\"\")=0,\"\",IFERROR(VLOOKUP($A27,STEP_ALL!$A:$AH,COLUMN(),FALSE),\"\"))","v":""},{"$f":"IF(IFERROR(VLOOKUP($A27,STEP_ALL!$A:$AH,COLUMN(),FALSE),\"\")=0,\"\",IFERROR(VLOOKUP($A27,STEP_ALL!$A:$AH,COLUMN(),FALSE),\"\"))","v":""},{"$f":"IF(IFERROR(VLOOKUP($A27,STEP_ALL!$A:$AH,COLUMN(),FALSE),\"\")=0,\"\",IFERROR(VLOOKUP($A27,STEP_ALL!$A:$AH,COLUMN(),FALSE),\"\"))","v":""},{"$f":"IF(IFERROR(VLOOKUP($A27,STEP_ALL!$A:$AH,COLUMN(),FALSE),\"\")=0,\"\",IFERROR(VLOOKUP($A27,STEP_ALL!$A:$AH,COLUMN(),FALSE),\"\"))","v":""},{"$f":"IF(IFERROR(VLOOKUP($A27,STEP_ALL!$A:$AH,COLUMN(),FALSE),\"\")=0,\"\",IFERROR(VLOOKUP($A27,STEP_ALL!$A:$AH,COLUMN(),FALSE),\"\"))","v":""},{"$f":"IF(IFERROR(VLOOKUP($A27,STEP_ALL!$A:$AH,COLUMN(),FALSE),\"\")=0,\"\",IFERROR(VLOOKUP($A27,STEP_ALL!$A:$AH,COLUMN(),FALSE),\"\"))","v":""},{"$f":"IF(IFERROR(VLOOKUP($A27,STEP_ALL!$A:$AH,COLUMN(),FALSE),\"\")=0,\"\",IFERROR(VLOOKUP($A27,STEP_ALL!$A:$AH,COLUMN(),FALSE),\"\"))","v":""},{"$f":"IF(IFERROR(VLOOKUP($A27,STEP_ALL!$A:$AH,COLUMN(),FALSE),\"\")=0,\"\",IFERROR(VLOOKUP($A27,STEP_ALL!$A:$AH,COLUMN(),FALSE),\"\"))","v":""},{"$f":"IF(IFERROR(VLOOKUP($A27,STEP_ALL!$A:$AH,COLUMN(),FALSE),\"\")=0,\"\",IFERROR(VLOOKUP($A27,STEP_ALL!$A:$AH,COLUMN(),FALSE),\"\"))","v":""},{"$f":"IF(IFERROR(VLOOKUP($A27,STEP_ALL!$A:$AH,COLUMN(),FALSE),\"\")=0,\"\",IFERROR(VLOOKUP($A27,STEP_ALL!$A:$AH,COLUMN(),FALSE),\"\"))","v":""},null,null,null,null,null,null,null,null,null,null,null,null,null,null,null,null,null,null,null,null,null,null,null,null,null,null,null,null,null,null,null,null,null,null,null,null,null,null,3]
["1-22",1,22,{"$f":"IF(IFERROR(VLOOKUP($A28,STEP_ALL!$A:$AH,COLUMN(),FALSE),\"\")=0,\"\",IFERROR(VLOOKUP($A28,STEP_ALL!$A:$AH,COLUMN(),FALSE),\"\"))","v":""},{"$f":"IF(IFERROR(VLOOKUP($A28,STEP_ALL!$A:$AH,COLUMN(),FALSE),\"\")=0,\"\",IFERROR(VLOOKUP($A28,STEP_ALL!$A:$AH,COLUMN(),FALSE),\"\"))","v":""},{"$f":"IF(IFERROR(VLOOKUP($A28,STEP_ALL!$A:$AH,COLUMN(),FALSE),\"\")=0,\"\",IFERROR(VLOOKUP($A28,STEP_ALL!$A:$AH,COLUMN(),FALSE),\"\"))","v":""},{"$f":"IF(IFERROR(VLOOKUP($A28,STEP_ALL!$A:$AH,COLUMN(),FALSE),\"\")=0,\"\",IFERROR(VLOOKUP($A28,STEP_ALL!$A:$AH,COLUMN(),FALSE),\"\"))","v":""},{"$f":"IF(IFERROR(VLOOKUP($A28,STEP_ALL!$A:$AH,COLUMN(),FALSE),\"\")=0,\"\",IFERROR(VLOOKUP($A28,STEP_ALL!$A:$AH,COLUMN(),FALSE),\"\"))","v":""},{"$f":"IF(IFERROR(VLOOKUP($A28,STEP_ALL!$A:$AH,COLUMN(),FALSE),\"\")=0,\"\",IFERROR(VLOOKUP($A28,STEP_ALL!$A:$AH,COLUMN(),FALSE),\"\"))","v":""},{"$f":"IF(IFERROR(VLOOKUP($A28,STEP_ALL!$A:$AH,COLUMN(),FALSE),\"\")=0,\"\",IFERROR(VLOOKUP($A28,STEP_ALL!$A:$AH,COLUMN(),FALSE),\"\"))","v":""},{"$f":"IF(IFERROR(VLOOKUP($A28,STEP_ALL!$A:$AH,COLUMN(),FALSE),\"\")=0,\"\",IFERROR(VLOOKUP($A28,STEP_ALL!$A:$AH,COLUMN(),FALSE),\"\"))","v":""},{"$f":"IF(IFERROR(VLOOKUP($A28,STEP_ALL!$A:$AH,COLUMN(),FALSE),\"\")=0,\"\",IFERROR(VLOOKUP($A28,STEP_ALL!$A:$AH,COLUMN(),FALSE),\"\"))","v":""},{"$f":"IF(IFERROR(VLOOKUP($A28,STEP_ALL!$A:$AH,COLUMN(),FALSE),\"\")=0,\"\",IFERROR(VLOOKUP($A28,STEP_ALL!$A:$AH,COLUMN(),FALSE),\"\"))","v":""},{"$f":"IF(IFERROR(VLOOKUP($A28,STEP_ALL!$A:$AH,COLUMN(),FALSE),\"\")=0,\"\",IFERROR(VLOOKUP($A28,STEP_ALL!$A:$AH,COLUMN(),FALSE),\"\"))","v":""},{"$f":"IF(IFERROR(VLOOKUP($A28,STEP_ALL!$A:$AH,COLUMN(),FALSE),\"\")=0,\"\",IFERROR(VLOOKUP($A28,STEP_ALL!$A:$AH,COLUMN(),FALSE),\"\"))","v":""},{"$f":"IF(IFERROR(VLOOKUP($A28,STEP_ALL!$A:$AH,COLUMN(),FALSE),\"\")=0,\"\",IFERROR(VLOOKUP($A28,STEP_ALL!$A:$AH,COLUMN(),FALSE),\"\"))","v":""},{"$f":"IF(IFERROR(VLOOKUP($A28,STEP_ALL!$A:$AH,COLUMN(),FALSE),\"\")=0,\"\",IFERROR(VLOOKUP($A28,STEP_ALL!$A:$AH,COLUMN(),FALSE),\"\"))","v":""},{"$f":"IF(IFERROR(VLOOKUP($A28,STEP_ALL!$A:$AH,COLUMN(),FALSE),\"\")=0,\"\",IFERROR(VLOOKUP($A28,STEP_ALL!$A:$AH,COLUMN(),FALSE),\"\"))","v":""},{"$f":"IF(IFERROR(VLOOKUP($A28,STEP_ALL!$A:$AH,COLUMN(),FALSE),\"\")=0,\"\",IFERROR(VLOOKUP($A28,STEP_ALL!$A:$AH,COLUMN(),FALSE),\"\"))","v":""},{"$f":"IF(IFERROR(VLOOKUP($A28,STEP_ALL!$A:$AH,COLUMN(),FALSE),\"\")=0,\"\",IFERROR(VLOOKUP($A28,STEP_ALL!$A:$AH,COLUMN(),FALSE),\"\"))","v":""},{"$f":"IF(IFERROR(VLOOKUP($A28,STEP_ALL!$A:$AH,COLUMN(),FALSE),\"\")=0,\"\",IFERROR(VLOOKUP($A28,STEP_ALL!$A:$AH,COLUMN(),FALSE),\"\"))","v":""},{"$f":"IF(IFERROR(VLOOKUP($A28,STEP_ALL!$A:$AH,COLUMN(),FALSE),\"\")=0,\"\",IFERROR(VLOOKUP($A28,STEP_ALL!$A:$AH,COLUMN(),FALSE),\"\"))","v":""},{"$f":"IF(IFERROR(VLOOKUP($A28,STEP_ALL!$A:$AH,COLUMN(),FALSE),\"\")=0,\"\",IFERROR(VLOOKUP($A28,STEP_ALL!$A:$AH,COLUMN(),FALSE),\"\"))","v":""},{"$f":"IF(IFERROR(VLOOKUP($A28,STEP_ALL!$A:$AH,COLUMN(),FALSE),\"\")=0,\"\",IFERROR(VLOOKUP($A28,STEP_ALL!$A:$AH,COLUMN(),FALSE),\"\"))","v":""},{"$f":"IF(IFERROR(VLOOKUP($A28,STEP_ALL!$A:$AH,COLUMN(),FALSE),\"\")=0,\"\",IFERROR(VLOOKUP($A28,STEP_ALL!$A:$AH,COLUMN(),FALSE),\"\"))","v":""},{"$f":"IF(IFERROR(VLOOKUP($A28,STEP_ALL!$A:$AH,COLUMN(),FALSE),\"\")=0,\"\",IFERROR(VLOOKUP($A28,STEP_ALL!$A:$AH,COLUMN(),FALSE),\"\"))","v":""},{"$f":"IF(IFERROR(VLOOKUP($A28,STEP_ALL!$A:$AH,COLUMN(),FALSE),\"\")=0,\"\",IFERROR(VLOOKUP($A28,STEP_ALL!$A:$AH,COLUMN(),FALSE),\"\"))","v":""},{"$f":"IF(IFERROR(VLOOKUP($A28,STEP_ALL!$A:$AH,COLUMN(),FALSE),\"\")=0,\"\",IFERROR(VLOOKUP($A28,STEP_ALL!$A:$AH,COLUMN(),FALSE),\"\"))","v":""},{"$f":"IF(IFERROR(VLOOKUP($A28,STEP_ALL!$A:$AH,COLUMN(),FALSE),\"\")=0,\"\",IFERROR(VLOOKUP($A28,STEP_ALL!$A:$AH,COLUMN(),FALSE),\"\"))","v":""},{"$f":"IF(IFERROR(VLOOKUP($A28,STEP_ALL!$A:$AH,COLUMN(),FALSE),\"\")=0,\"\",IFERROR(VLOOKUP($A28,STEP_ALL!$A:$AH,COLUMN(),FALSE),\"\"))","v":""},{"$f":"IF(IFERROR(VLOOKUP($A28,STEP_ALL!$A:$AH,COLUMN(),FALSE),\"\")=0,\"\",IFERROR(VLOOKUP($A28,STEP_ALL!$A:$AH,COLUMN(),FALSE),\"\"))","v":""},{"$f":"IF(IFERROR(VLOOKUP($A28,STEP_ALL!$A:$AH,COLUMN(),FALSE),\"\")=0,\"\",IFERROR(VLOOKUP($A28,STEP_ALL!$A:$AH,COLUMN(),FALSE),\"\"))","v":""},{"$f":"IF(IFERROR(VLOOKUP($A28,STEP_ALL!$A:$AH,COLUMN(),FALSE),\"\")=0,\"\",IFERROR(VLOOKUP($A28,STEP_ALL!$A:$AH,COLUMN(),FALSE),\"\"))","v":""},{"$f":"IF(IFERROR(VLOOKUP($A28,STEP_ALL!$A:$AH,COLUMN(),FALSE),\"\")=0,\"\",IFERROR(VLOOKUP($A28,STEP_ALL!$A:$AH,COLUMN(),FALSE),\"\"))","v":""}]
["1-23",1,23,{"$f":"IF(IFERROR(VLOOKUP($A29,STEP_ALL!$A:$AH,COLUMN(),FALSE),\"\")=0,\"\",IFERROR(VLOOKUP($A29,STEP_ALL!$A:$AH,COLUMN(),FALSE),\"\"))","v":""},{"$f":"IF(IFERROR(VLOOKUP($A29,STEP_ALL!$A:$AH,COLUMN(),FALSE),\"\")=0,\"\",IFERROR(VLOOKUP($A29,STEP_ALL!$A:$AH,COLUMN(),FALSE),\"\"))","v":""},{"$f":"IF(IFERROR(VLOOKUP($A29,STEP_ALL!$A:$AH,COLUMN(),FALSE),\"\")=0,\"\",IFERROR(VLOOKUP($A29,STEP_ALL!$A:$AH,COLUMN(),FALSE),\"\"))","v":""},{"$f":"IF(IFERROR(VLOOKUP($A29,STEP_ALL!$A:$AH,COLUMN(),FALSE),\"\")=0,\"\",IFERROR(VLOOKUP($A29,STEP_ALL!$A:$AH,COLUMN(),FALSE),\"\"))","v":""},{"$f":"IF(IFERROR(VLOOKUP($A29,STEP_ALL!$A:$AH,COLUMN(),FALSE),\"\")=0,\"\",IFERROR(VLOOKUP($A29,STEP_ALL!$A:$AH,COLUMN(),FALSE),\"\"))","v":""},{"$f":"IF(IFERROR(VLOOKUP($A29,STEP_ALL!$A:$AH,COLUMN(),FALSE),\"\")=0,\"\",IFERROR(VLOOKUP($A29,STEP_ALL!$A:$AH,COLUMN(),FALSE),\"\"))","v":""},{"$f":"IF(IFERROR(VLOOKUP($A29,STEP_ALL!$A:$AH,COLUMN(),FALSE),\"\")=0,\"\",IFERROR(VLOOKUP($A29,STEP_ALL!$A:$AH,COLUMN(),FALSE),\"\"))","v":""},{"$f":"IF(IFERROR(VLOOKUP($A29,STEP_ALL!$A:$AH,COLUMN(),FALSE),\"\")=0,\"\",IFERROR(VLOOKUP($A29,STEP_ALL!$A:$AH,COLUMN(),FALSE),\"\"))","v":""},{"$f":"IF(IFERROR(VLOOKUP($A29,STEP_ALL!$A:$AH,COLUMN(),FALSE),\"\")=0,\"\",IFERROR(VLOOKUP($A29,STEP_ALL!$A:$AH,COLUMN(),FALSE),\"\"))","v":""},{"$f":"IF(IFERROR(VLOOKUP($A29,STEP_ALL!$A:$AH,COLUMN(),FALSE),\"\")=0,\"\",IFERROR(VLOOKUP($A29,STEP_ALL!$A:$AH,COLUMN(),FALSE),\"\"))","v":""},{"$f":"IF(IFERROR(VLOOKUP($A29,STEP_ALL!$A:$AH,COLUMN(),FALSE),\"\")=0,\"\",IFERROR(VLOOKUP($A29,STEP_ALL!$A:$AH,COLUMN(),FALSE),\"\"))","v":""},{"$f":"IF(IFERROR(VLOOKUP($A29,STEP_ALL!$A:$AH,COLUMN(),FALSE),\"\")=0,\"\",IFERROR(VLOOKUP($A29,STEP_ALL!$A:$AH,COLUMN(),FALSE),\"\"))","v":""},{"$f":"IF(IFERROR(VLOOKUP($A29,STEP_ALL!$A:$AH,COLUMN(),FALSE),\"\")=0,\"\",IFERROR(VLOOKUP($A29,STEP_ALL!$A:$AH,COLUMN(),FALSE),\"\"))","v":""},{"$f":"IF(IFERROR(VLOOKUP($A29,STEP_ALL!$A:$AH,COLUMN(),FALSE),\"\")=0,\"\",IFERROR(VLOOKUP($A29,STEP_ALL!$A:$AH,COLUMN(),FALSE),\"\"))","v":""},{"$f":"IF(IFERROR(VLOOKUP($A29,STEP_ALL!$A:$AH,COLUMN(),FALSE),\"\")=0,\"\",IFERROR(VLOOKUP($A29,STEP_ALL!$A:$AH,COLUMN(),FALSE),\"\"))","v":""},{"$f":"IF(IFERROR(VLOOKUP($A29,STEP_ALL!$A:$AH,COLUMN(),FALSE),\"\")=0,\"\",IFERROR(VLOOKUP($A29,STEP_ALL!$A:$AH,COLUMN(),FALSE),\"\"))","v":""},{"$f":"IF(IFERROR(VLOOKUP($A29,STEP_ALL!$A:$AH,COLUMN(),FALSE),\"\")=0,\"\",IFERROR(VLOOKUP($A29,STEP_ALL!$A:$AH,COLUMN(),FALSE),\"\"))","v":""},{"$f":"IF(IFERROR(VLOOKUP($A29,STEP_ALL!$A:$AH,COLUMN(),FALSE),\"\")=0,\"\",IFERROR(VLOOKUP($A29,STEP_ALL!$A:$AH,COLUMN(),FALSE),\"\"))","v":""},{"$f":"IF(IFERROR(VLOOKUP($A29,STEP_ALL!$A:$AH,COLUMN(),FALSE),\"\")=0,\"\",IFERROR(VLOOKUP($A29,STEP_ALL!$A:$AH,COLUMN(),FALSE),\"\"))","v":""},{"$f":"IF(IFERROR(VLOOKUP($A29,STEP_ALL!$A:$AH,COLUMN(),FALSE),\"\")=0,\"\",IFERROR(VLOOKUP($A29,STEP_ALL!$A:$AH,COLUMN(),FALSE),\"\"))","v":""},{"$f":"IF(IFERROR(VLOOKUP($A29,STEP_ALL!$A:$AH,COLUMN(),FALSE),\"\")=0,\"\",IFERROR(VLOOKUP($A29,STEP_ALL!$A:$AH,COLUMN(),FALSE),\"\"))","v":""},{"$f":"IF(IFERROR(VLOOKUP($A29,STEP_ALL!$A:$AH,COLUMN(),FALSE),\"\")=0,\"\",IFERROR(VLOOKUP($A29,STEP_ALL!$A:$AH,COLUMN(),FALSE),\"\"))","v":""},{"$f":"IF(IFERROR(VLOOKUP($A29,STEP_ALL!$A:$AH,COLUMN(),FALSE),\"\")=0,\"\",IFERROR(VLOOKUP($A29,STEP_ALL!$A:$AH,COLUMN(),FALSE),\"\"))","v":""},{"$f":"IF(IFERROR(VLOOKUP($A29,STEP_ALL!$A:$AH,COLUMN(),FALSE),\"\")=0,\"\",IFERROR(VLOOKUP($A29,STEP_ALL!$A:$AH,COLUMN(),FALSE),\"\"))","v":""},{"$f":"IF(IFERROR(VLOOKUP($A29,STEP_ALL!$A:$AH,COLUMN(),FALSE),\"\")=0,\"\",IFERROR(VLOOKUP($A29,STEP_ALL!$A:$AH,COLUMN(),FALSE),\"\"))","v":""},{"$f":"IF(IFERROR(VLOOKUP($A29,STEP_ALL!$A:$AH,COLUMN(),FALSE),\"\")=0,\"\",IFERROR(VLOOKUP($A29,STEP_ALL!$A:$AH,COLUMN(),FALSE),\"\"))","v":""},{"$f":"IF(IFERROR(VLOOKUP($A29,STEP_ALL!$A:$AH,COLUMN(),FALSE),\"\")=0,\"\",IFERROR(VLOOKUP($A29,STEP_ALL!$A:$AH,COLUMN(),FALSE),\"\"))","v":""},{"$f":"IF(IFERROR(VLOOKUP($A29,STEP_ALL!$A:$AH,COLUMN(),FALSE),\"\")=0,\"\",IFERROR(VLOOKUP($A29,STEP_ALL!$A:$AH,COLUMN(),FALSE),\"\"))","v":""},{"$f":"IF(IFERROR(VLOOKUP($A29,STEP_ALL!$A:$AH,COLUMN(),FALSE),\"\")=0,\"\",IFERROR(VLOOKUP($A29,STEP_ALL!$A:$AH,COLUMN(),FALSE),\"\"))","v":""},{"$f":"IF(IFERROR(VLOOKUP($A29,STEP_ALL!$A:$AH,COLUMN(),FALSE),\"\")=0,\"\",IFERROR(VLOOKUP($A29,STEP_ALL!$A:$AH,COLUMN(),FALSE),\"\"))","v":""},{"$f":"IF(IFERROR(VLOOKUP($A29,STEP_ALL!$A:$AH,COLUMN(),FALSE),\"\")=0,\"\",IFERROR(VLOOKUP($A29,STEP_ALL!$A:$AH,COLUMN(),FALSE),\"\"))","v":""}]
["1-24",1,24,{"$f":"IF(IFERROR(VLOOKUP($A30,STEP_ALL!$A:$AH,COLUMN(),FALSE),\"\")=0,\"\",IFERROR(VLOOKUP($A30,STEP_ALL!$A:$AH,COLUMN(),FALSE),\"\"))","v":""},{"$f":"IF(IFERROR(VLOOKUP($A30,STEP_ALL!$A:$AH,COLUMN(),FALSE),\"\")=0,\"\",IFERROR(VLOOKUP($A30,STEP_ALL!$A:$AH,COLUMN(),FALSE),\"\"))","v":""},{"$f":"IF(IFERROR(VLOOKUP($A30,STEP_ALL!$A:$AH,COLUMN(),FALSE),\"\")=0,\"\",IFERROR(VLOOKUP($A30,STEP_ALL!$A:$AH,COLUMN(),FALSE),\"\"))","v":""},{"$f":"IF(IFERROR(VLOOKUP($A30,STEP_ALL!$A:$AH,COLUMN(),FALSE),\"\")=0,\"\",IFERROR(VLOOKUP($A30,STEP_ALL!$A:$AH,COLUMN(),FALSE),\"\"))","v":""},{"$f":"IF(IFERROR(VLOOKUP($A30,STEP_ALL!$A:$AH,COLUMN(),FALSE),\"\")=0,\"\",IFERROR(VLOOKUP($A30,STEP_ALL!$A:$AH,COLUMN(),FALSE),\"\"))","v":""},{"$f":"IF(IFERROR(VLOOKUP($A30,STEP_ALL!$A:$AH,COLUMN(),FALSE),\"\")=0,\"\",IFERROR(VLOOKUP($A30,STEP_ALL!$A:$AH,COLUMN(),FALSE),\"\"))","v":""},{"$f":"IF(IFERROR(VLOOKUP($A30,STEP_ALL!$A:$AH,COLUMN(),FALSE),\"\")=0,\"\",IFERROR(VLOOKUP($A30,STEP_ALL!$A:$AH,COLUMN(),FALSE),\"\"))","v":""},{"$f":"IF(IFERROR(VLOOKUP($A30,STEP_ALL!$A:$AH,COLUMN(),FALSE),\"\")=0,\"\",IFERROR(VLOOKUP($A30,STEP_ALL!$A:$AH,COLUMN(),FALSE),\"\"))","v":""},{"$f":"IF(IFERROR(VLOOKUP($A30,STEP_ALL!$A:$AH,COLUMN(),FALSE),\"\")=0,\"\",IFERROR(VLOOKUP($A30,STEP_ALL!$A:$AH,COLUMN(),FALSE),\"\"))","v":""},{"$f":"IF(IFERROR(VLOOKUP($A30,STEP_ALL!$A:$AH,COLUMN(),FALSE),\"\")=0,\"\",IFERROR(VLOOKUP($A30,STEP_ALL!$A:$AH,COLUMN(),FALSE),\"\"))","v":""},{"$f":"IF(IFERROR(VLOOKUP($A30,STEP_ALL!$A:$AH,COLUMN(),FALSE),\"\")=0,\"\",IFERROR(VLOOKUP($A30,STEP_ALL!$A:$AH,COLUMN(),FALSE),\"\"))","v":""},{"$f":"IF(IFERROR(VLOOKUP($A30,STEP_ALL!$A:$AH,COLUMN(),FALSE),\"\")=0,\"\",IFERROR(VLOOKUP($A30,STEP_ALL!$A:$AH,COLUMN(),FALSE),\"\"))","v":""},{"$f":"IF(IFERROR(VLOOKUP($A30,STEP_ALL!$A:$AH,COLUMN(),FALSE),\"\")=0,\"\",IFERROR(VLOOKUP($A30,STEP_ALL!$A:$AH,COLUMN(),FALSE),\"\"))","v":""},{"$f":"IF(IFERROR(VLOOKUP($A30,STEP_ALL!$A:$AH,COLUMN(),FALSE),\"\")=0,\"\",IFERROR(VLOOKUP($A30,STEP_ALL!$A:$AH,COLUMN(),FALSE),\"\"))","v":""},{"$f":"IF(IFERROR(VLOOKUP($A30,STEP_ALL!$A:$AH,COLUMN(),FALSE),\"\")=0,\"\",IFERROR(VLOOKUP($A30,STEP_ALL!$A:$AH,COLUMN(),FALSE),\"\"))","v":""},{"$f":"IF(IFERROR(VLOOKUP($A30,STEP_ALL!$A:$AH,COLUMN(),FALSE),\"\")=0,\"\",IFERROR(VLOOKUP($A30,STEP_ALL!$A:$AH,COLUMN(),FALSE),\"\"))","v":""},{"$f":"IF(IFERROR(VLOOKUP($A30,STEP_ALL!$A:$AH,COLUMN(),FALSE),\"\")=0,\"\",IFERROR(VLOOKUP($A30,STEP_ALL!$A:$AH,COLUMN(),FALSE),\"\"))","v":""},{"$f":"IF(IFERROR(VLOOKUP($A30,STEP_ALL!$A:$AH,COLUMN(),FALSE),\"\")=0,\"\",IFERROR(VLOOKUP($A30,STEP_ALL!$A:$AH,COLUMN(),FALSE),\"\"))","v":""},{"$f":"IF(IFERROR(VLOOKUP($A30,STEP_ALL!$A:$AH,COLUMN(),FALSE),\"\")=0,\"\",IFERROR(VLOOKUP($A30,STEP_ALL!$A:$AH,COLUMN(),FALSE),\"\"))","v":""},{"$f":"IF(IFERROR(VLOOKUP($A30,STEP_ALL!$A:$AH,COLUMN(),FALSE),\"\")=0,\"\",IFERROR(VLOOKUP($A30,STEP_ALL!$A:$AH,COLUMN(),FALSE),\"\"))","v":""},{"$f":"IF(IFERROR(VLOOKUP($A30,STEP_ALL!$A:$AH,COLUMN(),FALSE),\"\")=0,\"\",IFERROR(VLOOKUP($A30,STEP_ALL!$A:$AH,COLUMN(),FALSE),\"\"))","v":""},{"$f":"IF(IFERROR(VLOOKUP($A30,STEP_ALL!$A:$AH,COLUMN(),FALSE),\"\")=0,\"\",IFERROR(VLOOKUP($A30,STEP_ALL!$A:$AH,COLUMN(),FALSE),\"\"))","v":""},{"$f":"IF(IFERROR(VLOOKUP($A30,STEP_ALL!$A:$AH,COLUMN(),FALSE),\"\")=0,\"\",IFERROR(VLOOKUP($A30,STEP_ALL!$A:$AH,COLUMN(),FALSE),\"\"))","v":""},{"$f":"IF(IFERROR(VLOOKUP($A30,STEP_ALL!$A:$AH,COLUMN(),FALSE),\"\")=0,\"\",IFERROR(VLOOKUP($A30,STEP_ALL!$A:$AH,COLUMN(),FALSE),\"\"))","v":""},{"$f":"IF(IFERROR(VLOOKUP($A30,STEP_ALL!$A:$AH,COLUMN(),FALSE),\"\")=0,\"\",IFERROR(VLOOKUP($A30,STEP_ALL!$A:$AH,COLUMN(),FALSE),\"\"))","v":""},{"$f":"IF(IFERROR(VLOOKUP($A30,STEP_ALL!$A:$AH,COLUMN(),FALSE),\"\")=0,\"\",IFERROR(VLOOKUP($A30,STEP_ALL!$A:$AH,COLUMN(),FALSE),\"\"))","v":""},{"$f":"IF(IFERROR(VLOOKUP($A30,STEP_ALL!$A:$AH,COLUMN(),FALSE),\"\")=0,\"\",IFERROR(VLOOKUP($A30,STEP_ALL!$A:$AH,COLUMN(),FALSE),\"\"))","v":""},{"$f":"IF(IFERROR(VLOOKUP($A30,STEP_ALL!$A:$AH,COLUMN(),FALSE),\"\")=0,\"\",IFERROR(VLOOKUP($A30,STEP_ALL!$A:$AH,COLUMN(),FALSE),\"\"))","v":""},{"$f":"IF(IFERROR(VLOOKUP($A30,STEP_ALL!$A:$AH,COLUMN(),FALSE),\"\")=0,\"\",IFERROR(VLOOKUP($A30,STEP_ALL!$A:$AH,COLUMN(),FALSE),\"\"))","v":""},{"$f":"IF(IFERROR(VLOOKUP($A30,STEP_ALL!$A:$AH,COLUMN(),FALSE),\"\")=0,\"\",IFERROR(VLOOKUP($A30,STEP_ALL!$A:$AH,COLUMN(),FALSE),\"\"))","v":""},{"$f":"IF(IFERROR(VLOOKUP($A30,STEP_ALL!$A:$AH,COLUMN(),FALSE),\"\")=0,\"\",IFERROR(VLOOKUP($A30,STEP_ALL!$A:$AH,COLUMN(),FALSE),\"\"))","v":""}]
["1-25",1,25,{"$f":"IF(IFERROR(VLOOKUP($A31,STEP_ALL!$A:$AH,COLUMN(),FALSE),\"\")=0,\"\",IFERROR(VLOOKUP($A31,STEP_ALL!$A:$AH,COLUMN(),FALSE),\"\"))","v":""},{"$f":"IF(IFERROR(VLOOKUP($A31,STEP_ALL!$A:$AH,COLUMN(),FALSE),\"\")=0,\"\",IFERROR(VLOOKUP($A31,STEP_ALL!$A:$AH,COLUMN(),FALSE),\"\"))","v":""},{"$f":"IF(IFERROR(VLOOKUP($A31,STEP_ALL!$A:$AH,COLUMN(),FALSE),\"\")=0,\"\",IFERROR(VLOOKUP($A31,STEP_ALL!$A:$AH,COLUMN(),FALSE),\"\"))","v":""},{"$f":"IF(IFERROR(VLOOKUP($A31,STEP_ALL!$A:$AH,COLUMN(),FALSE),\"\")=0,\"\",IFERROR(VLOOKUP($A31,STEP_ALL!$A:$AH,COLUMN(),FALSE),\"\"))","v":""},{"$f":"IF(IFERROR(VLOOKUP($A31,STEP_ALL!$A:$AH,COLUMN(),FALSE),\"\")=0,\"\",IFERROR(VLOOKUP($A31,STEP_ALL!$A:$AH,COLUMN(),FALSE),\"\"))","v":""},{"$f":"IF(IFERROR(VLOOKUP($A31,STEP_ALL!$A:$AH,COLUMN(),FALSE),\"\")=0,\"\",IFERROR(VLOOKUP($A31,STEP_ALL!$A:$AH,COLUMN(),FALSE),\"\"))","v":""},{"$f":"IF(IFERROR(VLOOKUP($A31,STEP_ALL!$A:$AH,COLUMN(),FALSE),\"\")=0,\"\",IFERROR(VLOOKUP($A31,STEP_ALL!$A:$AH,COLUMN(),FALSE),\"\"))","v":""},{"$f":"IF(IFERROR(VLOOKUP($A31,STEP_ALL!$A:$AH,COLUMN(),FALSE),\"\")=0,\"\",IFERROR(VLOOKUP($A31,STEP_ALL!$A:$AH,COLUMN(),FALSE),\"\"))","v":""},{"$f":"IF(IFERROR(VLOOKUP($A31,STEP_ALL!$A:$AH,COLUMN(),FALSE),\"\")=0,\"\",IFERROR(VLOOKUP($A31,STEP_ALL!$A:$AH,COLUMN(),FALSE),\"\"))","v":""},{"$f":"IF(IFERROR(VLOOKUP($A31,STEP_ALL!$A:$AH,COLUMN(),FALSE),\"\")=0,\"\",IFERROR(VLOOKUP($A31,STEP_ALL!$A:$AH,COLUMN(),FALSE),\"\"))","v":""},{"$f":"IF(IFERROR(VLOOKUP($A31,STEP_ALL!$A:$AH,COLUMN(),FALSE),\"\")=0,\"\",IFERROR(VLOOKUP($A31,STEP_ALL!$A:$AH,COLUMN(),FALSE),\"\"))","v":""},{"$f":"IF(IFERROR(VLOOKUP($A31,STEP_ALL!$A:$AH,COLUMN(),FALSE),\"\")=0,\"\",IFERROR(VLOOKUP($A31,STEP_ALL!$A:$AH,COLUMN(),FALSE),\"\"))","v":""},{"$f":"IF(IFERROR(VLOOKUP($A31,STEP_ALL!$A:$AH,COLUMN(),FALSE),\"\")=0,\"\",IFERROR(VLOOKUP($A31,STEP_ALL!$A:$AH,COLUMN(),FALSE),\"\"))","v":""},{"$f":"IF(IFERROR(VLOOKUP($A31,STEP_ALL!$A:$AH,COLUMN(),FALSE),\"\")=0,\"\",IFERROR(VLOOKUP($A31,STEP_ALL!$A:$AH,COLUMN(),FALSE),\"\"))","v":""},{"$f":"IF(IFERROR(VLOOKUP($A31,STEP_ALL!$A:$AH,COLUMN(),FALSE),\"\")=0,\"\",IFERROR(VLOOKUP($A31,STEP_ALL!$A:$AH,COLUMN(),FALSE),\"\"))","v":""},{"$f":"IF(IFERROR(VLOOKUP($A31,STEP_ALL!$A:$AH,COLUMN(),FALSE),\"\")=0,\"\",IFERROR(VLOOKUP($A31,STEP_ALL!$A:$AH,COLUMN(),FALSE),\"\"))","v":""},{"$f":"IF(IFERROR(VLOOKUP($A31,STEP_ALL!$A:$AH,COLUMN(),FALSE),\"\")=0,\"\",IFERROR(VLOOKUP($A31,STEP_ALL!$A:$AH,COLUMN(),FALSE),\"\"))","v":""},{"$f":"IF(IFERROR(VLOOKUP($A31,STEP_ALL!$A:$AH,COLUMN(),FALSE),\"\")=0,\"\",IFERROR(VLOOKUP($A31,STEP_ALL!$A:$AH,COLUMN(),FALSE),\"\"))","v":""},{"$f":"IF(IFERROR(VLOOKUP($A31,STEP_ALL!$A:$AH,COLUMN(),FALSE),\"\")=0,\"\",IFERROR(VLOOKUP($A31,STEP_ALL!$A:$AH,COLUMN(),FALSE),\"\"))","v":""},{"$f":"IF(IFERROR(VLOOKUP($A31,STEP_ALL!$A:$AH,COLUMN(),FALSE),\"\")=0,\"\",IFERROR(VLOOKUP($A31,STEP_ALL!$A:$AH,COLUMN(),FALSE),\"\"))","v":""},{"$f":"IF(IFERROR(VLOOKUP($A31,STEP_ALL!$A:$AH,COLUMN(),FALSE),\"\")=0,\"\",IFERROR(VLOOKUP($A31,STEP_ALL!$A:$AH,COLUMN(),FALSE),\"\"))","v":""},{"$f":"IF(IFERROR(VLOOKUP($A31,STEP_ALL!$A:$AH,COLUMN(),FALSE),\"\")=0,\"\",IFERROR(VLOOKUP($A31,STEP_ALL!$A:$AH,COLUMN(),FALSE),\"\"))","v":""},{"$f":"IF(IFERROR(VLOOKUP($A31,STEP_ALL!$A:$AH,COLUMN(),FALSE),\"\")=0,\"\",IFERROR(VLOOKUP($A31,STEP_ALL!$A:$AH,COLUMN(),FALSE),\"\"))","v":""},{"$f":"IF(IFERROR(VLOOKUP($A31,STEP_ALL!$A:$AH,COLUMN(),FALSE),\"\")=0,\"\",IFERROR(VLOOKUP($A31,STEP_ALL!$A:$AH,COLUMN(),FALSE),\"\"))","v":""},{"$f":"IF(IFERROR(VLOOKUP($A31,STEP_ALL!$A:$AH,COLUMN(),FALSE),\"\")=0,\"\",IFERROR(VLOOKUP($A31,STEP_ALL!$A:$AH,COLUMN(),FALSE),\"\"))","v":""},{"$f":"IF(IFERROR(VLOOKUP($A31,STEP_ALL!$A:$AH,COLUMN(),FALSE),\"\")=0,\"\",IFERROR(VLOOKUP($A31,STEP_ALL!$A:$AH,COLUMN(),FALSE),\"\"))","v":""},{"$f":"IF(IFERROR(VLOOKUP($A31,STEP_ALL!$A:$AH,COLUMN(),FALSE),\"\")=0,\"\",IFERROR(VLOOKUP($A31,STEP_ALL!$A:$AH,COLUMN(),FALSE),\"\"))","v":""},{"$f":"IF(IFERROR(VLOOKUP($A31,STEP_ALL!$A:$AH,COLUMN(),FALSE),\"\")=0,\"\",IFERROR(VLOOKUP($A31,STEP_ALL!$A:$AH,COLUMN(),FALSE),\"\"))","v":""},{"$f":"IF(IFERROR(VLOOKUP($A31,STEP_ALL!$A:$AH,COLUMN(),FALSE),\"\")=0,\"\",IFERROR(VLOOKUP($A31,STEP_ALL!$A:$AH,COLUMN(),FALSE),\"\"))","v":""},{"$f":"IF(IFERROR(VLOOKUP($A31,STEP_ALL!$A:$AH,COLUMN(),FALSE),\"\")=0,\"\",IFERROR(VLOOKUP($A31,STEP_ALL!$A:$AH,COLUMN(),FALSE),\"\"))","v":""},{"$f":"IF(IFERROR(VLOOKUP($A31,STEP_ALL!$A:$AH,COLUMN(),FALSE),\"\")=0,\"\",IFERROR(VLOOKUP($A31,STEP_ALL!$A:$AH,COLUMN(),FALSE),\"\"))","v":""}]
["1-26",1,26,{"$f":"IF(IFERROR(VLOOKUP($A32,STEP_ALL!$A:$AH,COLUMN(),FALSE),\"\")=0,\"\",IFERROR(VLOOKUP($A32,STEP_ALL!$A:$AH,COLUMN(),FALSE),\"\"))","v":""},{"$f":"IF(IFERROR(VLOOKUP($A32,STEP_ALL!$A:$AH,COLUMN(),FALSE),\"\")=0,\"\",IFERROR(VLOOKUP($A32,STEP_ALL!$A:$AH,COLUMN(),FALSE),\"\"))","v":""},{"$f":"IF(IFERROR(VLOOKUP($A32,STEP_ALL!$A:$AH,COLUMN(),FALSE),\"\")=0,\"\",IFERROR(VLOOKUP($A32,STEP_ALL!$A:$AH,COLUMN(),FALSE),\"\"))","v":""},{"$f":"IF(IFERROR(VLOOKUP($A32,STEP_ALL!$A:$AH,COLUMN(),FALSE),\"\")=0,\"\",IFERROR(VLOOKUP($A32,STEP_ALL!$A:$AH,COLUMN(),FALSE),\"\"))","v":""},{"$f":"IF(IFERROR(VLOOKUP($A32,STEP_ALL!$A:$AH,COLUMN(),FALSE),\"\")=0,\"\",IFERROR(VLOOKUP($A32,STEP_ALL!$A:$AH,COLUMN(),FALSE),\"\"))","v":""},{"$f":"IF(IFERROR(VLOOKUP($A32,STEP_ALL!$A:$AH,COLUMN(),FALSE),\"\")=0,\"\",IFERROR(VLOOKUP($A32,STEP_ALL!$A:$AH,COLUMN(),FALSE),\"\"))","v":""},{"$f":"IF(IFERROR(VLOOKUP($A32,STEP_ALL!$A:$AH,COLUMN(),FALSE),\"\")=0,\"\",IFERROR(VLOOKUP($A32,STEP_ALL!$A:$AH,COLUMN(),FALSE),\"\"))","v":""},{"$f":"IF(IFERROR(VLOOKUP($A32,STEP_ALL!$A:$AH,COLUMN(),FALSE),\"\")=0,\"\",IFERROR(VLOOKUP($A32,STEP_ALL!$A:$AH,COLUMN(),FALSE),\"\"))","v":""},{"$f":"IF(IFERROR(VLOOKUP($A32,STEP_ALL!$A:$AH,COLUMN(),FALSE),\"\")=0,\"\",IFERROR(VLOOKUP($A32,STEP_ALL!$A:$AH,COLUMN(),FALSE),\"\"))","v":""},{"$f":"IF(IFERROR(VLOOKUP($A32,STEP_ALL!$A:$AH,COLUMN(),FALSE),\"\")=0,\"\",IFERROR(VLOOKUP($A32,STEP_ALL!$A:$AH,COLUMN(),FALSE),\"\"))","v":""},{"$f":"IF(IFERROR(VLOOKUP($A32,STEP_ALL!$A:$AH,COLUMN(),FALSE),\"\")=0,\"\",IFERROR(VLOOKUP($A32,STEP_ALL!$A:$AH,COLUMN(),FALSE),\"\"))","v":""},{"$f":"IF(IFERROR(VLOOKUP($A32,STEP_ALL!$A:$AH,COLUMN(),FALSE),\"\")=0,\"\",IFERROR(VLOOKUP($A32,STEP_ALL!$A:$AH,COLUMN(),FALSE),\"\"))","v":""},{"$f":"IF(IFERROR(VLOOKUP($A32,STEP_ALL!$A:$AH,COLUMN(),FALSE),\"\")=0,\"\",IFERROR(VLOOKUP($A32,STEP_ALL!$A:$AH,COLUMN(),FALSE),\"\"))","v":""},{"$f":"IF(IFERROR(VLOOKUP($A32,STEP_ALL!$A:$AH,COLUMN(),FALSE),\"\")=0,\"\",IFERROR(VLOOKUP($A32,STEP_ALL!$A:$AH,COLUMN(),FALSE),\"\"))","v":""},{"$f":"IF(IFERROR(VLOOKUP($A32,STEP_ALL!$A:$AH,COLUMN(),FALSE),\"\")=0,\"\",IFERROR(VLOOKUP($A32,STEP_ALL!$A:$AH,COLUMN(),FALSE),\"\"))","v":""},{"$f":"IF(IFERROR(VLOOKUP($A32,STEP_ALL!$A:$AH,COLUMN(),FALSE),\"\")=0,\"\",IFERROR(VLOOKUP($A32,STEP_ALL!$A:$AH,COLUMN(),FALSE),\"\"))","v":""},{"$f":"IF(IFERROR(VLOOKUP($A32,STEP_ALL!$A:$AH,COLUMN(),FALSE),\"\")=0,\"\",IFERROR(VLOOKUP($A32,STEP_ALL!$A:$AH,COLUMN(),FALSE),\"\"))","v":""},{"$f":"IF(IFERROR(VLOOKUP($A32,STEP_ALL!$A:$AH,COLUMN(),FALSE),\"\")=0,\"\",IFERROR(VLOOKUP($A32,STEP_ALL!$A:$AH,COLUMN(),FALSE),\"\"))","v":""},{"$f":"IF(IFERROR(VLOOKUP($A32,STEP_ALL!$A:$AH,COLUMN(),FALSE),\"\")=0,\"\",IFERROR(VLOOKUP($A32,STEP_ALL!$A:$AH,COLUMN(),FALSE),\"\"))","v":""},{"$f":"IF(IFERROR(VLOOKUP($A32,STEP_ALL!$A:$AH,COLUMN(),FALSE),\"\")=0,\"\",IFERROR(VLOOKUP($A32,STEP_ALL!$A:$AH,COLUMN(),FALSE),\"\"))","v":""},{"$f":"IF(IFERROR(VLOOKUP($A32,STEP_ALL!$A:$AH,COLUMN(),FALSE),\"\")=0,\"\",IFERROR(VLOOKUP($A32,STEP_ALL!$A:$AH,COLUMN(),FALSE),\"\"))","v":""},{"$f":"IF(IFERROR(VLOOKUP($A32,STEP_ALL!$A:$AH,COLUMN(),FALSE),\"\")=0,\"\",IFERROR(VLOOKUP($A32,STEP_ALL!$A:$AH,COLUMN(),FALSE),\"\"))","v":""},{"$f":"IF(IFERROR(VLOOKUP($A32,STEP_ALL!$A:$AH,COLUMN(),FALSE),\"\")=0,\"\",IFERROR(VLOOKUP($A32,STEP_ALL!$A:$AH,COLUMN(),FALSE),\"\"))","v":""},{"$f":"IF(IFERROR(VLOOKUP($A32,STEP_ALL!$A:$AH,COLUMN(),FALSE),\"\")=0,\"\",IFERROR(VLOOKUP($A32,STEP_ALL!$A:$AH,COLUMN(),FALSE),\"\"))","v":""},{"$f":"IF(IFERROR(VLOOKUP($A32,STEP_ALL!$A:$AH,COLUMN(),FALSE),\"\")=0,\"\",IFERROR(VLOOKUP($A32,STEP_ALL!$A:$AH,COLUMN(),FALSE),\"\"))","v":""},{"$f":"IF(IFERROR(VLOOKUP($A32,STEP_ALL!$A:$AH,COLUMN(),FALSE),\"\")=0,\"\",IFERROR(VLOOKUP($A32,STEP_ALL!$A:$AH,COLUMN(),FALSE),\"\"))","v":""},{"$f":"IF(IFERROR(VLOOKUP($A32,STEP_ALL!$A:$AH,COLUMN(),FALSE),\"\")=0,\"\",IFERROR(VLOOKUP($A32,STEP_ALL!$A:$AH,COLUMN(),FALSE),\"\"))","v":""},{"$f":"IF(IFERROR(VLOOKUP($A32,STEP_ALL!$A:$AH,COLUMN(),FALSE),\"\")=0,\"\",IFERROR(VLOOKUP($A32,STEP_ALL!$A:$AH,COLUMN(),FALSE),\"\"))","v":""},{"$f":"IF(IFERROR(VLOOKUP($A32,STEP_ALL!$A:$AH,COLUMN(),FALSE),\"\")=0,\"\",IFERROR(VLOOKUP($A32,STEP_ALL!$A:$AH,COLUMN(),FALSE),\"\"))","v":""},{"$f":"IF(IFERROR(VLOOKUP($A32,STEP_ALL!$A:$AH,COLUMN(),FALSE),\"\")=0,\"\",IFERROR(VLOOKUP($A32,STEP_ALL!$A:$AH,COLUMN(),FALSE),\"\"))","v":""},{"$f":"IF(IFERROR(VLOOKUP($A32,STEP_ALL!$A:$AH,COLUMN(),FALSE),\"\")=0,\"\",IFERROR(VLOOKUP($A32,STEP_ALL!$A:$AH,COLUMN(),FALSE),\"\"))","v":""}]
["1-27",1,27,{"$f":"IF(IFERROR(VLOOKUP($A33,STEP_ALL!$A:$AH,COLUMN(),FALSE),\"\")=0,\"\",IFERROR(VLOOKUP($A33,STEP_ALL!$A:$AH,COLUMN(),FALSE),\"\"))","v":""},{"$f":"IF(IFERROR(VLOOKUP($A33,STEP_ALL!$A:$AH,COLUMN(),FALSE),\"\")=0,\"\",IFERROR(VLOOKUP($A33,STEP_ALL!$A:$AH,COLUMN(),FALSE),\"\"))","v":""},{"$f":"IF(IFERROR(VLOOKUP($A33,STEP_ALL!$A:$AH,COLUMN(),FALSE),\"\")=0,\"\",IFERROR(VLOOKUP($A33,STEP_ALL!$A:$AH,COLUMN(),FALSE),\"\"))","v":""},{"$f":"IF(IFERROR(VLOOKUP($A33,STEP_ALL!$A:$AH,COLUMN(),FALSE),\"\")=0,\"\",IFERROR(VLOOKUP($A33,STEP_ALL!$A:$AH,COLUMN(),FALSE),\"\"))","v":""},{"$f":"IF(IFERROR(VLOOKUP($A33,STEP_ALL!$A:$AH,COLUMN(),FALSE),\"\")=0,\"\",IFERROR(VLOOKUP($A33,STEP_ALL!$A:$AH,COLUMN(),FALSE),\"\"))","v":""},{"$f":"IF(IFERROR(VLOOKUP($A33,STEP_ALL!$A:$AH,COLUMN(),FALSE),\"\")=0,\"\",IFERROR(VLOOKUP($A33,STEP_ALL!$A:$AH,COLUMN(),FALSE),\"\"))","v":""},{"$f":"IF(IFERROR(VLOOKUP($A33,STEP_ALL!$A:$AH,COLUMN(),FALSE),\"\")=0,\"\",IFERROR(VLOOKUP($A33,STEP_ALL!$A:$AH,COLUMN(),FALSE),\"\"))","v":""},{"$f":"IF(IFERROR(VLOOKUP($A33,STEP_ALL!$A:$AH,COLUMN(),FALSE),\"\")=0,\"\",IFERROR(VLOOKUP($A33,STEP_ALL!$A:$AH,COLUMN(),FALSE),\"\"))","v":""},{"$f":"IF(IFERROR(VLOOKUP($A33,STEP_ALL!$A:$AH,COLUMN(),FALSE),\"\")=0,\"\",IFERROR(VLOOKUP($A33,STEP_ALL!$A:$AH,COLUMN(),FALSE),\"\"))","v":""},{"$f":"IF(IFERROR(VLOOKUP($A33,STEP_ALL!$A:$AH,COLUMN(),FALSE),\"\")=0,\"\",IFERROR(VLOOKUP($A33,STEP_ALL!$A:$AH,COLUMN(),FALSE),\"\"))","v":""},{"$f":"IF(IFERROR(VLOOKUP($A33,STEP_ALL!$A:$AH,COLUMN(),FALSE),\"\")=0,\"\",IFERROR(VLOOKUP($A33,STEP_ALL!$A:$AH,COLUMN(),FALSE),\"\"))","v":""},{"$f":"IF(IFERROR(VLOOKUP($A33,STEP_ALL!$A:$AH,COLUMN(),FALSE),\"\")=0,\"\",IFERROR(VLOOKUP($A33,STEP_ALL!$A:$AH,COLUMN(),FALSE),\"\"))","v":""},{"$f":"IF(IFERROR(VLOOKUP($A33,STEP_ALL!$A:$AH,COLUMN(),FALSE),\"\")=0,\"\",IFERROR(VLOOKUP($A33,STEP_ALL!$A:$AH,COLUMN(),FALSE),\"\"))","v":""},{"$f":"IF(IFERROR(VLOOKUP($A33,STEP_ALL!$A:$AH,COLUMN(),FALSE),\"\")=0,\"\",IFERROR(VLOOKUP($A33,STEP_ALL!$A:$AH,COLUMN(),FALSE),\"\"))","v":""},{"$f":"IF(IFERROR(VLOOKUP($A33,STEP_ALL!$A:$AH,COLUMN(),FALSE),\"\")=0,\"\",IFERROR(VLOOKUP($A33,STEP_ALL!$A:$AH,COLUMN(),FALSE),\"\"))","v":""},{"$f":"IF(IFERROR(VLOOKUP($A33,STEP_ALL!$A:$AH,COLUMN(),FALSE),\"\")=0,\"\",IFERROR(VLOOKUP($A33,STEP_ALL!$A:$AH,COLUMN(),FALSE),\"\"))","v":""},{"$f":"IF(IFERROR(VLOOKUP($A33,STEP_ALL!$A:$AH,COLUMN(),FALSE),\"\")=0,\"\",IFERROR(VLOOKUP($A33,STEP_ALL!$A:$AH,COLUMN(),FALSE),\"\"))","v":""},{"$f":"IF(IFERROR(VLOOKUP($A33,STEP_ALL!$A:$AH,COLUMN(),FALSE),\"\")=0,\"\",IFERROR(VLOOKUP($A33,STEP_ALL!$A:$AH,COLUMN(),FALSE),\"\"))","v":""},{"$f":"IF(IFERROR(VLOOKUP($A33,STEP_ALL!$A:$AH,COLUMN(),FALSE),\"\")=0,\"\",IFERROR(VLOOKUP($A33,STEP_ALL!$A:$AH,COLUMN(),FALSE),\"\"))","v":""},{"$f":"IF(IFERROR(VLOOKUP($A33,STEP_ALL!$A:$AH,COLUMN(),FALSE),\"\")=0,\"\",IFERROR(VLOOKUP($A33,STEP_ALL!$A:$AH,COLUMN(),FALSE),\"\"))","v":""},{"$f":"IF(IFERROR(VLOOKUP($A33,STEP_ALL!$A:$AH,COLUMN(),FALSE),\"\")=0,\"\",IFERROR(VLOOKUP($A33,STEP_ALL!$A:$AH,COLUMN(),FALSE),\"\"))","v":""},{"$f":"IF(IFERROR(VLOOKUP($A33,STEP_ALL!$A:$AH,COLUMN(),FALSE),\"\")=0,\"\",IFERROR(VLOOKUP($A33,STEP_ALL!$A:$AH,COLUMN(),FALSE),\"\"))","v":""},{"$f":"IF(IFERROR(VLOOKUP($A33,STEP_ALL!$A:$AH,COLUMN(),FALSE),\"\")=0,\"\",IFERROR(VLOOKUP($A33,STEP_ALL!$A:$AH,COLUMN(),FALSE),\"\"))","v":""},{"$f":"IF(IFERROR(VLOOKUP($A33,STEP_ALL!$A:$AH,COLUMN(),FALSE),\"\")=0,\"\",IFERROR(VLOOKUP($A33,STEP_ALL!$A:$AH,COLUMN(),FALSE),\"\"))","v":""},{"$f":"IF(IFERROR(VLOOKUP($A33,STEP_ALL!$A:$AH,COLUMN(),FALSE),\"\")=0,\"\",IFERROR(VLOOKUP($A33,STEP_ALL!$A:$AH,COLUMN(),FALSE),\"\"))","v":""},{"$f":"IF(IFERROR(VLOOKUP($A33,STEP_ALL!$A:$AH,COLUMN(),FALSE),\"\")=0,\"\",IFERROR(VLOOKUP($A33,STEP_ALL!$A:$AH,COLUMN(),FALSE),\"\"))","v":""},{"$f":"IF(IFERROR(VLOOKUP($A33,STEP_ALL!$A:$AH,COLUMN(),FALSE),\"\")=0,\"\",IFERROR(VLOOKUP($A33,STEP_ALL!$A:$AH,COLUMN(),FALSE),\"\"))","v":""},{"$f":"IF(IFERROR(VLOOKUP($A33,STEP_ALL!$A:$AH,COLUMN(),FALSE),\"\")=0,\"\",IFERROR(VLOOKUP($A33,STEP_ALL!$A:$AH,COLUMN(),FALSE),\"\"))","v":""},{"$f":"IF(IFERROR(VLOOKUP($A33,STEP_ALL!$A:$AH,COLUMN(),FALSE),\"\")=0,\"\",IFERROR(VLOOKUP($A33,STEP_ALL!$A:$AH,COLUMN(),FALSE),\"\"))","v":""},{"$f":"IF(IFERROR(VLOOKUP($A33,STEP_ALL!$A:$AH,COLUMN(),FALSE),\"\")=0,\"\",IFERROR(VLOOKUP($A33,STEP_ALL!$A:$AH,COLUMN(),FALSE),\"\"))","v":""},{"$f":"IF(IFERROR(VLOOKUP($A33,STEP_ALL!$A:$AH,COLUMN(),FALSE),\"\")=0,\"\",IFERROR(VLOOKUP($A33,STEP_ALL!$A:$AH,COLUMN(),FALSE),\"\"))","v":""}]
["1-28",1,28,{"$f":"IF(IFERROR(VLOOKUP($A34,STEP_ALL!$A:$AH,COLUMN(),FALSE),\"\")=0,\"\",IFERROR(VLOOKUP($A34,STEP_ALL!$A:$AH,COLUMN(),FALSE),\"\"))","v":""},{"$f":"IF(IFERROR(VLOOKUP($A34,STEP_ALL!$A:$AH,COLUMN(),FALSE),\"\")=0,\"\",IFERROR(VLOOKUP($A34,STEP_ALL!$A:$AH,COLUMN(),FALSE),\"\"))","v":""},{"$f":"IF(IFERROR(VLOOKUP($A34,STEP_ALL!$A:$AH,COLUMN(),FALSE),\"\")=0,\"\",IFERROR(VLOOKUP($A34,STEP_ALL!$A:$AH,COLUMN(),FALSE),\"\"))","v":""},{"$f":"IF(IFERROR(VLOOKUP($A34,STEP_ALL!$A:$AH,COLUMN(),FALSE),\"\")=0,\"\",IFERROR(VLOOKUP($A34,STEP_ALL!$A:$AH,COLUMN(),FALSE),\"\"))","v":""},{"$f":"IF(IFERROR(VLOOKUP($A34,STEP_ALL!$A:$AH,COLUMN(),FALSE),\"\")=0,\"\",IFERROR(VLOOKUP($A34,STEP_ALL!$A:$AH,COLUMN(),FALSE),\"\"))","v":""},{"$f":"IF(IFERROR(VLOOKUP($A34,STEP_ALL!$A:$AH,COLUMN(),FALSE),\"\")=0,\"\",IFERROR(VLOOKUP($A34,STEP_ALL!$A:$AH,COLUMN(),FALSE),\"\"))","v":""},{"$f":"IF(IFERROR(VLOOKUP($A34,STEP_ALL!$A:$AH,COLUMN(),FALSE),\"\")=0,\"\",IFERROR(VLOOKUP($A34,STEP_ALL!$A:$AH,COLUMN(),FALSE),\"\"))","v":""},{"$f":"IF(IFERROR(VLOOKUP($A34,STEP_ALL!$A:$AH,COLUMN(),FALSE),\"\")=0,\"\",IFERROR(VLOOKUP($A34,STEP_ALL!$A:$AH,COLUMN(),FALSE),\"\"))","v":""},{"$f":"IF(IFERROR(VLOOKUP($A34,STEP_ALL!$A:$AH,COLUMN(),FALSE),\"\")=0,\"\",IFERROR(VLOOKUP($A34,STEP_ALL!$A:$AH,COLUMN(),FALSE),\"\"))","v":""},{"$f":"IF(IFERROR(VLOOKUP($A34,STEP_ALL!$A:$AH,COLUMN(),FALSE),\"\")=0,\"\",IFERROR(VLOOKUP($A34,STEP_ALL!$A:$AH,COLUMN(),FALSE),\"\"))","v":""},{"$f":"IF(IFERROR(VLOOKUP($A34,STEP_ALL!$A:$AH,COLUMN(),FALSE),\"\")=0,\"\",IFERROR(VLOOKUP($A34,STEP_ALL!$A:$AH,COLUMN(),FALSE),\"\"))","v":""},{"$f":"IF(IFERROR(VLOOKUP($A34,STEP_ALL!$A:$AH,COLUMN(),FALSE),\"\")=0,\"\",IFERROR(VLOOKUP($A34,STEP_ALL!$A:$AH,COLUMN(),FALSE),\"\"))","v":""},{"$f":"IF(IFERROR(VLOOKUP($A34,STEP_ALL!$A:$AH,COLUMN(),FALSE),\"\")=0,\"\",IFERROR(VLOOKUP($A34,STEP_ALL!$A:$AH,COLUMN(),FALSE),\"\"))","v":""},{"$f":"IF(IFERROR(VLOOKUP($A34,STEP_ALL!$A:$AH,COLUMN(),FALSE),\"\")=0,\"\",IFERROR(VLOOKUP($A34,STEP_ALL!$A:$AH,COLUMN(),FALSE),\"\"))","v":""},{"$f":"IF(IFERROR(VLOOKUP($A34,STEP_ALL!$A:$AH,COLUMN(),FALSE),\"\")=0,\"\",IFERROR(VLOOKUP($A34,STEP_ALL!$A:$AH,COLUMN(),FALSE),\"\"))","v":""},{"$f":"IF(IFERROR(VLOOKUP($A34,STEP_ALL!$A:$AH,COLUMN(),FALSE),\"\")=0,\"\",IFERROR(VLOOKUP($A34,STEP_ALL!$A:$AH,COLUMN(),FALSE),\"\"))","v":""},{"$f":"IF(IFERROR(VLOOKUP($A34,STEP_ALL!$A:$AH,COLUMN(),FALSE),\"\")=0,\"\",IFERROR(VLOOKUP($A34,STEP_ALL!$A:$AH,COLUMN(),FALSE),\"\"))","v":""},{"$f":"IF(IFERROR(VLOOKUP($A34,STEP_ALL!$A:$AH,COLUMN(),FALSE),\"\")=0,\"\",IFERROR(VLOOKUP($A34,STEP_ALL!$A:$AH,COLUMN(),FALSE),\"\"))","v":""},{"$f":"IF(IFERROR(VLOOKUP($A34,STEP_ALL!$A:$AH,COLUMN(),FALSE),\"\")=0,\"\",IFERROR(VLOOKUP($A34,STEP_ALL!$A:$AH,COLUMN(),FALSE),\"\"))","v":""},{"$f":"IF(IFERROR(VLOOKUP($A34,STEP_ALL!$A:$AH,COLUMN(),FALSE),\"\")=0,\"\",IFERROR(VLOOKUP($A34,STEP_ALL!$A:$AH,COLUMN(),FALSE),\"\"))","v":""},{"$f":"IF(IFERROR(VLOOKUP($A34,STEP_ALL!$A:$AH,COLUMN(),FALSE),\"\")=0,\"\",IFERROR(VLOOKUP($A34,STEP_ALL!$A:$AH,COLUMN(),FALSE),\"\"))","v":""},{"$f":"IF(IFERROR(VLOOKUP($A34,STEP_ALL!$A:$AH,COLUMN(),FALSE),\"\")=0,\"\",IFERROR(VLOOKUP($A34,STEP_ALL!$A:$AH,COLUMN(),FALSE),\"\"))","v":""},{"$f":"IF(IFERROR(VLOOKUP($A34,STEP_ALL!$A:$AH,COLUMN(),FALSE),\"\")=0,\"\",IFERROR(VLOOKUP($A34,STEP_ALL!$A:$AH,COLUMN(),FALSE),\"\"))","v":""},{"$f":"IF(IFERROR(VLOOKUP($A34,STEP_ALL!$A:$AH,COLUMN(),FALSE),\"\")=0,\"\",IFERROR(VLOOKUP($A34,STEP_ALL!$A:$AH,COLUMN(),FALSE),\"\"))","v":""},{"$f":"IF(IFERROR(VLOOKUP($A34,STEP_ALL!$A:$AH,COLUMN(),FALSE),\"\")=0,\"\",IFERROR(VLOOKUP($A34,STEP_ALL!$A:$AH,COLUMN(),FALSE),\"\"))","v":""},{"$f":"IF(IFERROR(VLOOKUP($A34,STEP_ALL!$A:$AH,COLUMN(),FALSE),\"\")=0,\"\",IFERROR(VLOOKUP($A34,STEP_ALL!$A:$AH,COLUMN(),FALSE),\"\"))","v":""},{"$f":"IF(IFERROR(VLOOKUP($A34,STEP_ALL!$A:$AH,COLUMN(),FALSE),\"\")=0,\"\",IFERROR(VLOOKUP($A34,STEP_ALL!$A:$AH,COLUMN(),FALSE),\"\"))","v":""},{"$f":"IF(IFERROR(VLOOKUP($A34,STEP_ALL!$A:$AH,COLUMN(),FALSE),\"\")=0,\"\",IFERROR(VLOOKUP($A34,STEP_ALL!$A:$AH,COLUMN(),FALSE),\"\"))","v":""},{"$f":"IF(IFERROR(VLOOKUP($A34,STEP_ALL!$A:$AH,COLUMN(),FALSE),\"\")=0,\"\",IFERROR(VLOOKUP($A34,STEP_ALL!$A:$AH,COLUMN(),FALSE),\"\"))","v":""},{"$f":"IF(IFERROR(VLOOKUP($A34,STEP_ALL!$A:$AH,COLUMN(),FALSE),\"\")=0,\"\",IFERROR(VLOOKUP($A34,STEP_ALL!$A:$AH,COLUMN(),FALSE),\"\"))","v":""},{"$f":"IF(IFERROR(VLOOKUP($A34,STEP_ALL!$A:$AH,COLUMN(),FALSE),\"\")=0,\"\",IFERROR(VLOOKUP($A34,STEP_ALL!$A:$AH,COLUMN(),FALSE),\"\"))","v":""}]
["1-29",1,29,{"$f":"IF(IFERROR(VLOOKUP($A35,STEP_ALL!$A:$AH,COLUMN(),FALSE),\"\")=0,\"\",IFERROR(VLOOKUP($A35,STEP_ALL!$A:$AH,COLUMN(),FALSE),\"\"))","v":""},{"$f":"IF(IFERROR(VLOOKUP($A35,STEP_ALL!$A:$AH,COLUMN(),FALSE),\"\")=0,\"\",IFERROR(VLOOKUP($A35,STEP_ALL!$A:$AH,COLUMN(),FALSE),\"\"))","v":""},{"$f":"IF(IFERROR(VLOOKUP($A35,STEP_ALL!$A:$AH,COLUMN(),FALSE),\"\")=0,\"\",IFERROR(VLOOKUP($A35,STEP_ALL!$A:$AH,COLUMN(),FALSE),\"\"))","v":""},{"$f":"IF(IFERROR(VLOOKUP($A35,STEP_ALL!$A:$AH,COLUMN(),FALSE),\"\")=0,\"\",IFERROR(VLOOKUP($A35,STEP_ALL!$A:$AH,COLUMN(),FALSE),\"\"))","v":""},{"$f":"IF(IFERROR(VLOOKUP($A35,STEP_ALL!$A:$AH,COLUMN(),FALSE),\"\")=0,\"\",IFERROR(VLOOKUP($A35,STEP_ALL!$A:$AH,COLUMN(),FALSE),\"\"))","v":""},{"$f":"IF(IFERROR(VLOOKUP($A35,STEP_ALL!$A:$AH,COLUMN(),FALSE),\"\")=0,\"\",IFERROR(VLOOKUP($A35,STEP_ALL!$A:$AH,COLUMN(),FALSE),\"\"))","v":""},{"$f":"IF(IFERROR(VLOOKUP($A35,STEP_ALL!$A:$AH,COLUMN(),FALSE),\"\")=0,\"\",IFERROR(VLOOKUP($A35,STEP_ALL!$A:$AH,COLUMN(),FALSE),\"\"))","v":""},{"$f":"IF(IFERROR(VLOOKUP($A35,STEP_ALL!$A:$AH,COLUMN(),FALSE),\"\")=0,\"\",IFERROR(VLOOKUP($A35,STEP_ALL!$A:$AH,COLUMN(),FALSE),\"\"))","v":""},{"$f":"IF(IFERROR(VLOOKUP($A35,STEP_ALL!$A:$AH,COLUMN(),FALSE),\"\")=0,\"\",IFERROR(VLOOKUP($A35,STEP_ALL!$A:$AH,COLUMN(),FALSE),\"\"))","v":""},{"$f":"IF(IFERROR(VLOOKUP($A35,STEP_ALL!$A:$AH,COLUMN(),FALSE),\"\")=0,\"\",IFERROR(VLOOKUP($A35,STEP_ALL!$A:$AH,COLUMN(),FALSE),\"\"))","v":""},{"$f":"IF(IFERROR(VLOOKUP($A35,STEP_ALL!$A:$AH,COLUMN(),FALSE),\"\")=0,\"\",IFERROR(VLOOKUP($A35,STEP_ALL!$A:$AH,COLUMN(),FALSE),\"\"))","v":""},{"$f":"IF(IFERROR(VLOOKUP($A35,STEP_ALL!$A:$AH,COLUMN(),FALSE),\"\")=0,\"\",IFERROR(VLOOKUP($A35,STEP_ALL!$A:$AH,COLUMN(),FALSE),\"\"))","v":""},{"$f":"IF(IFERROR(VLOOKUP($A35,STEP_ALL!$A:$AH,COLUMN(),FALSE),\"\")=0,\"\",IFERROR(VLOOKUP($A35,STEP_ALL!$A:$AH,COLUMN(),FALSE),\"\"))","v":""},{"$f":"IF(IFERROR(VLOOKUP($A35,STEP_ALL!$A:$AH,COLUMN(),FALSE),\"\")=0,\"\",IFERROR(VLOOKUP($A35,STEP_ALL!$A:$AH,COLUMN(),FALSE),\"\"))","v":""},{"$f":"IF(IFERROR(VLOOKUP($A35,STEP_ALL!$A:$AH,COLUMN(),FALSE),\"\")=0,\"\",IFERROR(VLOOKUP($A35,STEP_ALL!$A:$AH,COLUMN(),FALSE),\"\"))","v":""},{"$f":"IF(IFERROR(VLOOKUP($A35,STEP_ALL!$A:$AH,COLUMN(),FALSE),\"\")=0,\"\",IFERROR(VLOOKUP($A35,STEP_ALL!$A:$AH,COLUMN(),FALSE),\"\"))","v":""},{"$f":"IF(IFERROR(VLOOKUP($A35,STEP_ALL!$A:$AH,COLUMN(),FALSE),\"\")=0,\"\",IFERROR(VLOOKUP($A35,STEP_ALL!$A:$AH,COLUMN(),FALSE),\"\"))","v":""},{"$f":"IF(IFERROR(VLOOKUP($A35,STEP_ALL!$A:$AH,COLUMN(),FALSE),\"\")=0,\"\",IFERROR(VLOOKUP($A35,STEP_ALL!$A:$AH,COLUMN(),FALSE),\"\"))","v":""},{"$f":"IF(IFERROR(VLOOKUP($A35,STEP_ALL!$A:$AH,COLUMN(),FALSE),\"\")=0,\"\",IFERROR(VLOOKUP($A35,STEP_ALL!$A:$AH,COLUMN(),FALSE),\"\"))","v":""},{"$f":"IF(IFERROR(VLOOKUP($A35,STEP_ALL!$A:$AH,COLUMN(),FALSE),\"\")=0,\"\",IFERROR(VLOOKUP($A35,STEP_ALL!$A:$AH,COLUMN(),FALSE),\"\"))","v":""},{"$f":"IF(IFERROR(VLOOKUP($A35,STEP_ALL!$A:$AH,COLUMN(),FALSE),\"\")=0,\"\",IFERROR(VLOOKUP($A35,STEP_ALL!$A:$AH,COLUMN(),FALSE),\"\"))","v":""},{"$f":"IF(IFERROR(VLOOKUP($A35,STEP_ALL!$A:$AH,COLUMN(),FALSE),\"\")=0,\"\",IFERROR(VLOOKUP($A35,STEP_ALL!$A:$AH,COLUMN(),FALSE),\"\"))","v":""},{"$f":"IF(IFERROR(VLOOKUP($A35,STEP_ALL!$A:$AH,COLUMN(),FALSE),\"\")=0,\"\",IFERROR(VLOOKUP($A35,STEP_ALL!$A:$AH,COLUMN(),FALSE),\"\"))","v":""},{"$f":"IF(IFERROR(VLOOKUP($A35,STEP_ALL!$A:$AH,COLUMN(),FALSE),\"\")=0,\"\",IFERROR(VLOOKUP($A35,STEP_ALL!$A:$AH,COLUMN(),FALSE),\"\"))","v":""},{"$f":"IF(IFERROR(VLOOKUP($A35,STEP_ALL!$A:$AH,COLUMN(),FALSE),\"\")=0,\"\",IFERROR(VLOOKUP($A35,STEP_ALL!$A:$AH,COLUMN(),FALSE),\"\"))","v":""},{"$f":"IF(IFERROR(VLOOKUP($A35,STEP_ALL!$A:$AH,COLUMN(),FALSE),\"\")=0,\"\",IFERROR(VLOOKUP($A35,STEP_ALL!$A:$AH,COLUMN(),FALSE),\"\"))","v":""},{"$f":"IF(IFERROR(VLOOKUP($A35,STEP_ALL!$A:$AH,COLUMN(),FALSE),\"\")=0,\"\",IFERROR(VLOOKUP($A35,STEP_ALL!$A:$AH,COLUMN(),FALSE),\"\"))","v":""},{"$f":"IF(IFERROR(VLOOKUP($A35,STEP_ALL!$A:$AH,COLUMN(),FALSE),\"\")=0,\"\",IFERROR(VLOOKUP($A35,STEP_ALL!$A:$AH,COLUMN(),FALSE),\"\"))","v":""},{"$f":"IF(IFERROR(VLOOKUP($A35,STEP_ALL!$A:$AH,COLUMN(),FALSE),\"\")=0,\"\",IFERROR(VLOOKUP($A35,STEP_ALL!$A:$AH,COLUMN(),FALSE),\"\"))","v":""},{"$f":"IF(IFERROR(VLOOKUP($A35,STEP_ALL!$A:$AH,COLUMN(),FALSE),\"\")=0,\"\",IFERROR(VLOOKUP($A35,STEP_ALL!$A:$AH,COLUMN(),FALSE),\"\"))","v":""},{"$f":"IF(IFERROR(VLOOKUP($A35,STEP_ALL!$A:$AH,COLUMN(),FALSE),\"\")=0,\"\",IFERROR(VLOOKUP($A35,STEP_ALL!$A:$AH,COLUMN(),FALSE),\"\"))","v":""}]
["1-30",1,30,{"$f":"IF(IFERROR(VLOOKUP($A36,STEP_ALL!$A:$AH,COLUMN(),FALSE),\"\")=0,\"\",IFERROR(VLOOKUP($A36,STEP_ALL!$A:$AH,COLUMN(),FALSE),\"\"))","v":""},{"$f":"IF(IFERROR(VLOOKUP($A36,STEP_ALL!$A:$AH,COLUMN(),FALSE),\"\")=0,\"\",IFERROR(VLOOKUP($A36,STEP_ALL!$A:$AH,COLUMN(),FALSE),\"\"))","v":""},{"$f":"IF(IFERROR(VLOOKUP($A36,STEP_ALL!$A:$AH,COLUMN(),FALSE),\"\")=0,\"\",IFERROR(VLOOKUP($A36,STEP_ALL!$A:$AH,COLUMN(),FALSE),\"\"))","v":""},{"$f":"IF(IFERROR(VLOOKUP($A36,STEP_ALL!$A:$AH,COLUMN(),FALSE),\"\")=0,\"\",IFERROR(VLOOKUP($A36,STEP_ALL!$A:$AH,COLUMN(),FALSE),\"\"))","v":""},{"$f":"IF(IFERROR(VLOOKUP($A36,STEP_ALL!$A:$AH,COLUMN(),FALSE),\"\")=0,\"\",IFERROR(VLOOKUP($A36,STEP_ALL!$A:$AH,COLUMN(),FALSE),\"\"))","v":""},{"$f":"IF(IFERROR(VLOOKUP($A36,STEP_ALL!$A:$AH,COLUMN(),FALSE),\"\")=0,\"\",IFERROR(VLOOKUP($A36,STEP_ALL!$A:$AH,COLUMN(),FALSE),\"\"))","v":""},{"$f":"IF(IFERROR(VLOOKUP($A36,STEP_ALL!$A:$AH,COLUMN(),FALSE),\"\")=0,\"\",IFERROR(VLOOKUP($A36,STEP_ALL!$A:$AH,COLUMN(),FALSE),\"\"))","v":""},{"$f":"IF(IFERROR(VLOOKUP($A36,STEP_ALL!$A:$AH,COLUMN(),FALSE),\"\")=0,\"\",IFERROR(VLOOKUP($A36,STEP_ALL!$A:$AH,COLUMN(),FALSE),\"\"))","v":""},{"$f":"IF(IFERROR(VLOOKUP($A36,STEP_ALL!$A:$AH,COLUMN(),FALSE),\"\")=0,\"\",IFERROR(VLOOKUP($A36,STEP_ALL!$A:$AH,COLUMN(),FALSE),\"\"))","v":""},{"$f":"IF(IFERROR(VLOOKUP($A36,STEP_ALL!$A:$AH,COLUMN(),FALSE),\"\")=0,\"\",IFERROR(VLOOKUP($A36,STEP_ALL!$A:$AH,COLUMN(),FALSE),\"\"))","v":""},{"$f":"IF(IFERROR(VLOOKUP($A36,STEP_ALL!$A:$AH,COLUMN(),FALSE),\"\")=0,\"\",IFERROR(VLOOKUP($A36,STEP_ALL!$A:$AH,COLUMN(),FALSE),\"\"))","v":""},{"$f":"IF(IFERROR(VLOOKUP($A36,STEP_ALL!$A:$AH,COLUMN(),FALSE),\"\")=0,\"\",IFERROR(VLOOKUP($A36,STEP_ALL!$A:$AH,COLUMN(),FALSE),\"\"))","v":""},{"$f":"IF(IFERROR(VLOOKUP($A36,STEP_ALL!$A:$AH,COLUMN(),FALSE),\"\")=0,\"\",IFERROR(VLOOKUP($A36,STEP_ALL!$A:$AH,COLUMN(),FALSE),\"\"))","v":""},{"$f":"IF(IFERROR(VLOOKUP($A36,STEP_ALL!$A:$AH,COLUMN(),FALSE),\"\")=0,\"\",IFERROR(VLOOKUP($A36,STEP_ALL!$A:$AH,COLUMN(),FALSE),\"\"))","v":""},{"$f":"IF(IFERROR(VLOOKUP($A36,STEP_ALL!$A:$AH,COLUMN(),FALSE),\"\")=0,\"\",IFERROR(VLOOKUP($A36,STEP_ALL!$A:$AH,COLUMN(),FALSE),\"\"))","v":""},{"$f":"IF(IFERROR(VLOOKUP($A36,STEP_ALL!$A:$AH,COLUMN(),FALSE),\"\")=0,\"\",IFERROR(VLOOKUP($A36,STEP_ALL!$A:$AH,COLUMN(),FALSE),\"\"))","v":""},{"$f":"IF(IFERROR(VLOOKUP($A36,STEP_ALL!$A:$AH,COLUMN(),FALSE),\"\")=0,\"\",IFERROR(VLOOKUP($A36,STEP_ALL!$A:$AH,COLUMN(),FALSE),\"\"))","v":""},{"$f":"IF(IFERROR(VLOOKUP($A36,STEP_ALL!$A:$AH,COLUMN(),FALSE),\"\")=0,\"\",IFERROR(VLOOKUP($A36,STEP_ALL!$A:$AH,COLUMN(),FALSE),\"\"))","v":""},{"$f":"IF(IFERROR(VLOOKUP($A36,STEP_ALL!$A:$AH,COLUMN(),FALSE),\"\")=0,\"\",IFERROR(VLOOKUP($A36,STEP_ALL!$A:$AH,COLUMN(),FALSE),\"\"))","v":""},{"$f":"IF(IFERROR(VLOOKUP($A36,STEP_ALL!$A:$AH,COLUMN(),FALSE),\"\")=0,\"\",IFERROR(VLOOKUP($A36,STEP_ALL!$A:$AH,COLUMN(),FALSE),\"\"))","v":""},{"$f":"IF(IFERROR(VLOOKUP($A36,STEP_ALL!$A:$AH,COLUMN(),FALSE),\"\")=0,\"\",IFERROR(VLOOKUP($A36,STEP_ALL!$A:$AH,COLUMN(),FALSE),\"\"))","v":""},{"$f":"IF(IFERROR(VLOOKUP($A36,STEP_ALL!$A:$AH,COLUMN(),FALSE),\"\")=0,\"\",IFERROR(VLOOKUP($A36,STEP_ALL!$A:$AH,COLUMN(),FALSE),\"\"))","v":""},{"$f":"IF(IFERROR(VLOOKUP($A36,STEP_ALL!$A:$AH,COLUMN(),FALSE),\"\")=0,\"\",IFERROR(VLOOKUP($A36,STEP_ALL!$A:$AH,COLUMN(),FALSE),\"\"))","v":""},{"$f":"IF(IFERROR(VLOOKUP($A36,STEP_ALL!$A:$AH,COLUMN(),FALSE),\"\")=0,\"\",IFERROR(VLOOKUP($A36,STEP_ALL!$A:$AH,COLUMN(),FALSE),\"\"))","v":""},{"$f":"IF(IFERROR(VLOOKUP($A36,STEP_ALL!$A:$AH,COLUMN(),FALSE),\"\")=0,\"\",IFERROR(VLOOKUP($A36,STEP_ALL!$A:$AH,COLUMN(),FALSE),\"\"))","v":""},{"$f":"IF(IFERROR(VLOOKUP($A36,STEP_ALL!$A:$AH,COLUMN(),FALSE),\"\")=0,\"\",IFERROR(VLOOKUP($A36,STEP_ALL!$A:$AH,COLUMN(),FALSE),\"\"))","v":""},{"$f":"IF(IFERROR(VLOOKUP($A36,STEP_ALL!$A:$AH,COLUMN(),FALSE),\"\")=0,\"\",IFERROR(VLOOKUP($A36,STEP_ALL!$A:$AH,COLUMN(),FALSE),\"\"))","v":""},{"$f":"IF(IFERROR(VLOOKUP($A36,STEP_ALL!$A:$AH,COLUMN(),FALSE),\"\")=0,\"\",IFERROR(VLOOKUP($A36,STEP_ALL!$A:$AH,COLUMN(),FALSE),\"\"))","v":""},{"$f":"IF(IFERROR(VLOOKUP($A36,STEP_ALL!$A:$AH,COLUMN(),FALSE),\"\")=0,\"\",IFERROR(VLOOKUP($A36,STEP_ALL!$A:$AH,COLUMN(),FALSE),\"\"))","v":""},{"$f":"IF(IFERROR(VLOOKUP($A36,STEP_ALL!$A:$AH,COLUMN(),FALSE),\"\")=0,\"\",IFERROR(VLOOKUP($A36,STEP_ALL!$A:$AH,COLUMN(),FALSE),\"\"))","v":""},{"$f":"IF(IFERROR(VLOOKUP($A36,STEP_ALL!$A:$AH,COLUMN(),FALSE),\"\")=0,\"\",IFERROR(VLOOKUP($A36,STEP_ALL!$A:$AH,COLUMN(),FALSE),\"\"))","v":""}]
["1-31",1,31,{"$f":"IF(IFERROR(VLOOKUP($A37,STEP_ALL!$A:$AH,COLUMN(),FALSE),\"\")=0,\"\",IFERROR(VLOOKUP($A37,STEP_ALL!$A:$AH,COLUMN(),FALSE),\"\"))","v":""},{"$f":"IF(IFERROR(VLOOKUP($A37,STEP_ALL!$A:$AH,COLUMN(),FALSE),\"\")=0,\"\",IFERROR(VLOOKUP($A37,STEP_ALL!$A:$AH,COLUMN(),FALSE),\"\"))","v":""},{"$f":"IF(IFERROR(VLOOKUP($A37,STEP_ALL!$A:$AH,COLUMN(),FALSE),\"\")=0,\"\",IFERROR(VLOOKUP($A37,STEP_ALL!$A:$AH,COLUMN(),FALSE),\"\"))","v":""},{"$f":"IF(IFERROR(VLOOKUP($A37,STEP_ALL!$A:$AH,COLUMN(),FALSE),\"\")=0,\"\",IFERROR(VLOOKUP($A37,STEP_ALL!$A:$AH,COLUMN(),FALSE),\"\"))","v":""},{"$f":"IF(IFERROR(VLOOKUP($A37,STEP_ALL!$A:$AH,COLUMN(),FALSE),\"\")=0,\"\",IFERROR(VLOOKUP($A37,STEP_ALL!$A:$AH,COLUMN(),FALSE),\"\"))","v":""},{"$f":"IF(IFERROR(VLOOKUP($A37,STEP_ALL!$A:$AH,COLUMN(),FALSE),\"\")=0,\"\",IFERROR(VLOOKUP($A37,STEP_ALL!$A:$AH,COLUMN(),FALSE),\"\"))","v":""},{"$f":"IF(IFERROR(VLOOKUP($A37,STEP_ALL!$A:$AH,COLUMN(),FALSE),\"\")=0,\"\",IFERROR(VLOOKUP($A37,STEP_ALL!$A:$AH,COLUMN(),FALSE),\"\"))","v":""},{"$f":"IF(IFERROR(VLOOKUP($A37,STEP_ALL!$A:$AH,COLUMN(),FALSE),\"\")=0,\"\",IFERROR(VLOOKUP($A37,STEP_ALL!$A:$AH,COLUMN(),FALSE),\"\"))","v":""},{"$f":"IF(IFERROR(VLOOKUP($A37,STEP_ALL!$A:$AH,COLUMN(),FALSE),\"\")=0,\"\",IFERROR(VLOOKUP($A37,STEP_ALL!$A:$AH,COLUMN(),FALSE),\"\"))","v":""},{"$f":"IF(IFERROR(VLOOKUP($A37,STEP_ALL!$A:$AH,COLUMN(),FALSE),\"\")=0,\"\",IFERROR(VLOOKUP($A37,STEP_ALL!$A:$AH,COLUMN(),FALSE),\"\"))","v":""},{"$f":"IF(IFERROR(VLOOKUP($A37,STEP_ALL!$A:$AH,COLUMN(),FALSE),\"\")=0,\"\",IFERROR(VLOOKUP($A37,STEP_ALL!$A:$AH,COLUMN(),FALSE),\"\"))","v":""},{"$f":"IF(IFERROR(VLOOKUP($A37,STEP_ALL!$A:$AH,COLUMN(),FALSE),\"\")=0,\"\",IFERROR(VLOOKUP($A37,STEP_ALL!$A:$AH,COLUMN(),FALSE),\"\"))","v":""},{"$f":"IF(IFERROR(VLOOKUP($A37,STEP_ALL!$A:$AH,COLUMN(),FALSE),\"\")=0,\"\",IFERROR(VLOOKUP($A37,STEP_ALL!$A:$AH,COLUMN(),FALSE),\"\"))","v":""},{"$f":"IF(IFERROR(VLOOKUP($A37,STEP_ALL!$A:$AH,COLUMN(),FALSE),\"\")=0,\"\",IFERROR(VLOOKUP($A37,STEP_ALL!$A:$AH,COLUMN(),FALSE),\"\"))","v":""},{"$f":"IF(IFERROR(VLOOKUP($A37,STEP_ALL!$A:$AH,COLUMN(),FALSE),\"\")=0,\"\",IFERROR(VLOOKUP($A37,STEP_ALL!$A:$AH,COLUMN(),FALSE),\"\"))","v":""},{"$f":"IF(IFERROR(VLOOKUP($A37,STEP_ALL!$A:$AH,COLUMN(),FALSE),\"\")=0,\"\",IFERROR(VLOOKUP($A37,STEP_ALL!$A:$AH,COLUMN(),FALSE),\"\"))","v":""},{"$f":"IF(IFERROR(VLOOKUP($A37,STEP_ALL!$A:$AH,COLUMN(),FALSE),\"\")=0,\"\",IFERROR(VLOOKUP($A37,STEP_ALL!$A:$AH,COLUMN(),FALSE),\"\"))","v":""},{"$f":"IF(IFERROR(VLOOKUP($A37,STEP_ALL!$A:$AH,COLUMN(),FALSE),\"\")=0,\"\",IFERROR(VLOOKUP($A37,STEP_ALL!$A:$AH,COLUMN(),FALSE),\"\"))","v":""},{"$f":"IF(IFERROR(VLOOKUP($A37,STEP_ALL!$A:$AH,COLUMN(),FALSE),\"\")=0,\"\",IFERROR(VLOOKUP($A37,STEP_ALL!$A:$AH,COLUMN(),FALSE),\"\"))","v":""},{"$f":"IF(IFERROR(VLOOKUP($A37,STEP_ALL!$A:$AH,COLUMN(),FALSE),\"\")=0,\"\",IFERROR(VLOOKUP($A37,STEP_ALL!$A:$AH,COLUMN(),FALSE),\"\"))","v":""},{"$f":"IF(IFERROR(VLOOKUP($A37,STEP_ALL!$A:$AH,COLUMN(),FALSE),\"\")=0,\"\",IFERROR(VLOOKUP($A37,STEP_ALL!$A:$AH,COLUMN(),FALSE),\"\"))","v":""},{"$f":"IF(IFERROR(VLOOKUP($A37,STEP_ALL!$A:$AH,COLUMN(),FALSE),\"\")=0,\"\",IFERROR(VLOOKUP($A37,STEP_ALL!$A:$AH,COLUMN(),FALSE),\"\"))","v":""},{"$f":"IF(IFERROR(VLOOKUP($A37,STEP_ALL!$A:$AH,COLUMN(),FALSE),\"\")=0,\"\",IFERROR(VLOOKUP($A37,STEP_ALL!$A:$AH,COLUMN(),FALSE),\"\"))","v":""},{"$f":"IF(IFERROR(VLOOKUP($A37,STEP_ALL!$A:$AH,COLUMN(),FALSE),\"\")=0,\"\",IFERROR(VLOOKUP($A37,STEP_ALL!$A:$AH,COLUMN(),FALSE),\"\"))","v":""},{"$f":"IF(IFERROR(VLOOKUP($A37,STEP_ALL!$A:$AH,COLUMN(),FALSE),\"\")=0,\"\",IFERROR(VLOOKUP($A37,STEP_ALL!$A:$AH,COLUMN(),FALSE),\"\"))","v":""},{"$f":"IF(IFERROR(VLOOKUP($A37,STEP_ALL!$A:$AH,COLUMN(),FALSE),\"\")=0,\"\",IFERROR(VLOOKUP($A37,STEP_ALL!$A:$AH,COLUMN(),FALSE),\"\"))","v":""},{"$f":"IF(IFERROR(VLOOKUP($A37,STEP_ALL!$A:$AH,COLUMN(),FALSE),\"\")=0,\"\",IFERROR(VLOOKUP($A37,STEP_ALL!$A:$AH,COLUMN(),FALSE),\"\"))","v":""},{"$f":"IF(IFERROR(VLOOKUP($A37,STEP_ALL!$A:$AH,COLUMN(),FALSE),\"\")=0,\"\",IFERROR(VLOOKUP($A37,STEP_ALL!$A:$AH,COLUMN(),FALSE),\"\"))","v":""},{"$f":"IF(IFERROR(VLOOKUP($A37,STEP_ALL!$A:$AH,COLUMN(),FALSE),\"\")=0,\"\",IFERROR(VLOOKUP($A37,STEP_ALL!$A:$AH,COLUMN(),FALSE),\"\"))","v":""},{"$f":"IF(IFERROR(VLOOKUP($A37,STEP_ALL!$A:$AH,COLUMN(),FALSE),\"\")=0,\"\",IFERROR(VLOOKUP($A37,STEP_ALL!$A:$AH,COLUMN(),FALSE),\"\"))","v":""},{"$f":"IF(IFERROR(VLOOKUP($A37,STEP_ALL!$A:$AH,COLUMN(),FALSE),\"\")=0,\"\",IFERROR(VLOOKUP($A37,STEP_ALL!$A:$AH,COLUMN(),FALSE),\"\"))","v":""}]
[{"$f":"B38&\"-\"&C38","v":"1-32"},1,32,{"$f":"IF(IFERROR(VLOOKUP($A38,STEP_ALL!$A:$AH,COLUMN(),FALSE),\"\")=0,\"\",IFERROR(VLOOKUP($A38,STEP_ALL!$A:$AH,COLUMN(),FALSE),\"\"))","v":""},{"$f":"IF(IFERROR(VLOOKUP($A38,STEP_ALL!$A:$AH,COLUMN(),FALSE),\"\")=0,\"\",IFERROR(VLOOKUP($A38,STEP_ALL!$A:$AH,COLUMN(),FALSE),\"\"))","v":""},{"$f":"IF(IFERROR(VLOOKUP($A38,STEP_ALL!$A:$AH,COLUMN(),FALSE),\"\")=0,\"\",IFERROR(VLOOKUP($A38,STEP_ALL!$A:$AH,COLUMN(),FALSE),\"\"))","v":""},{"$f":"IF(IFERROR(VLOOKUP($A38,STEP_ALL!$A:$AH,COLUMN(),FALSE),\"\")=0,\"\",IFERROR(VLOOKUP($A38,STEP_ALL!$A:$AH,COLUMN(),FALSE),\"\"))","v":""},{"$f":"IF(IFERROR(VLOOKUP($A38,STEP_ALL!$A:$AH,COLUMN(),FALSE),\"\")=0,\"\",IFERROR(VLOOKUP($A38,STEP_ALL!$A:$AH,COLUMN(),FALSE),\"\"))","v":""},{"$f":"IF(IFERROR(VLOOKUP($A38,STEP_ALL!$A:$AH,COLUMN(),FALSE),\"\")=0,\"\",IFERROR(VLOOKUP($A38,STEP_ALL!$A:$AH,COLUMN(),FALSE),\"\"))","v":""},{"$f":"IF(IFERROR(VLOOKUP($A38,STEP_ALL!$A:$AH,COLUMN(),FALSE),\"\")=0,\"\",IFERROR(VLOOKUP($A38,STEP_ALL!$A:$AH,COLUMN(),FALSE),\"\"))","v":""},{"$f":"IF(IFERROR(VLOOKUP($A38,STEP_ALL!$A:$AH,COLUMN(),FALSE),\"\")=0,\"\",IFERROR(VLOOKUP($A38,STEP_ALL!$A:$AH,COLUMN(),FALSE),\"\"))","v":""},{"$f":"IF(IFERROR(VLOOKUP($A38,STEP_ALL!$A:$AH,COLUMN(),FALSE),\"\")=0,\"\",IFERROR(VLOOKUP($A38,STEP_ALL!$A:$AH,COLUMN(),FALSE),\"\"))","v":""},{"$f":"IF(IFERROR(VLOOKUP($A38,STEP_ALL!$A:$AH,COLUMN(),FALSE),\"\")=0,\"\",IFERROR(VLOOKUP($A38,STEP_ALL!$A:$AH,COLUMN(),FALSE),\"\"))","v":""},{"$f":"IF(IFERROR(VLOOKUP($A38,STEP_ALL!$A:$AH,COLUMN(),FALSE),\"\")=0,\"\",IFERROR(VLOOKUP($A38,STEP_ALL!$A:$AH,COLUMN(),FALSE),\"\"))","v":""},{"$f":"IF(IFERROR(VLOOKUP($A38,STEP_ALL!$A:$AH,COLUMN(),FALSE),\"\")=0,\"\",IFERROR(VLOOKUP($A38,STEP_ALL!$A:$AH,COLUMN(),FALSE),\"\"))","v":""},{"$f":"IF(IFERROR(VLOOKUP($A38,STEP_ALL!$A:$AH,COLUMN(),FALSE),\"\")=0,\"\",IFERROR(VLOOKUP($A38,STEP_ALL!$A:$AH,COLUMN(),FALSE),\"\"))","v":""},{"$f":"IF(IFERROR(VLOOKUP($A38,STEP_ALL!$A:$AH,COLUMN(),FALSE),\"\")=0,\"\",IFERROR(VLOOKUP($A38,STEP_ALL!$A:$AH,COLUMN(),FALSE),\"\"))","v":""},{"$f":"IF(IFERROR(VLOOKUP($A38,STEP_ALL!$A:$AH,COLUMN(),FALSE),\"\")=0,\"\",IFERROR(VLOOKUP($A38,STEP_ALL!$A:$AH,COLUMN(),FALSE),\"\"))","v":""},{"$f":"IF(IFERROR(VLOOKUP($A38,STEP_ALL!$A:$AH,COLUMN(),FALSE),\"\")=0,\"\",IFERROR(VLOOKUP($A38,STEP_ALL!$A:$AH,COLUMN(),FALSE),\"\"))","v":""},{"$f":"IF(IFERROR(VLOOKUP($A38,STEP_ALL!$A:$AH,COLUMN(),FALSE),\"\")=0,\"\",IFERROR(VLOOKUP($A38,STEP_ALL!$A:$AH,COLUMN(),FALSE),\"\"))","v":""},{"$f":"IF(IFERROR(VLOOKUP($A38,STEP_ALL!$A:$AH,COLUMN(),FALSE),\"\")=0,\"\",IFERROR(VLOOKUP($A38,STEP_ALL!$A:$AH,COLUMN(),FALSE),\"\"))","v":""},{"$f":"IF(IFERROR(VLOOKUP($A38,STEP_ALL!$A:$AH,COLUMN(),FALSE),\"\")=0,\"\",IFERROR(VLOOKUP($A38,STEP_ALL!$A:$AH,COLUMN(),FALSE),\"\"))","v":""},{"$f":"IF(IFERROR(VLOOKUP($A38,STEP_ALL!$A:$AH,COLUMN(),FALSE),\"\")=0,\"\",IFERROR(VLOOKUP($A38,STEP_ALL!$A:$AH,COLUMN(),FALSE),\"\"))","v":""},{"$f":"IF(IFERROR(VLOOKUP($A38,STEP_ALL!$A:$AH,COLUMN(),FALSE),\"\")=0,\"\",IFERROR(VLOOKUP($A38,STEP_ALL!$A:$AH,COLUMN(),FALSE),\"\"))","v":""},{"$f":"IF(IFERROR(VLOOKUP($A38,STEP_ALL!$A:$AH,COLUMN(),FALSE),\"\")=0,\"\",IFERROR(VLOOKUP($A38,STEP_ALL!$A:$AH,COLUMN(),FALSE),\"\"))","v":""},{"$f":"IF(IFERROR(VLOOKUP($A38,STEP_ALL!$A:$AH,COLUMN(),FALSE),\"\")=0,\"\",IFERROR(VLOOKUP($A38,STEP_ALL!$A:$AH,COLUMN(),FALSE),\"\"))","v":""},{"$f":"IF(IFERROR(VLOOKUP($A38,STEP_ALL!$A:$AH,COLUMN(),FALSE),\"\")=0,\"\",IFERROR(VLOOKUP($A38,STEP_ALL!$A:$AH,COLUMN(),FALSE),\"\"))","v":""},{"$f":"IF(IFERROR(VLOOKUP($A38,STEP_ALL!$A:$AH,COLUMN(),FALSE),\"\")=0,\"\",IFERROR(VLOOKUP($A38,STEP_ALL!$A:$AH,COLUMN(),FALSE),\"\"))","v":""},{"$f":"IF(IFERROR(VLOOKUP($A38,STEP_ALL!$A:$AH,COLUMN(),FALSE),\"\")=0,\"\",IFERROR(VLOOKUP($A38,STEP_ALL!$A:$AH,COLUMN(),FALSE),\"\"))","v":""},{"$f":"IF(IFERROR(VLOOKUP($A38,STEP_ALL!$A:$AH,COLUMN(),FALSE),\"\")=0,\"\",IFERROR(VLOOKUP($A38,STEP_ALL!$A:$AH,COLUMN(),FALSE),\"\"))","v":""},{"$f":"IF(IFERROR(VLOOKUP($A38,STEP_ALL!$A:$AH,COLUMN(),FALSE),\"\")=0,\"\",IFERROR(VLOOKUP($A38,STEP_ALL!$A:$AH,COLUMN(),FALSE),\"\"))","v":""},{"$f":"IF(IFERROR(VLOOKUP($A38,STEP_ALL!$A:$AH,COLUMN(),FALSE),\"\")=0,\"\",IFERROR(VLOOKUP($A38,STEP_ALL!$A:$AH,COLUMN(),FALSE),\"\"))","v":""},{"$f":"IF(IFERROR(VLOOKUP($A38,STEP_ALL!$A:$AH,COLUMN(),FALSE),\"\")=0,\"\",IFERROR(VLOOKUP($A38,STEP_ALL!$A:$AH,COLUMN(),FALSE),\"\"))","v":""},{"$f":"IF(IFERROR(VLOOKUP($A38,STEP_ALL!$A:$AH,COLUMN(),FALSE),\"\")=0,\"\",IFERROR(VLOOKUP($A38,STEP_ALL!$A:$AH,COLUMN(),FALSE),\"\"))","v":""}]
["1-33",1,33,{"$f":"IF(IFERROR(VLOOKUP($A39,STEP_ALL!$A:$AH,COLUMN(),FALSE),\"\")=0,\"\",IFERROR(VLOOKUP($A39,STEP_ALL!$A:$AH,COLUMN(),FALSE),\"\"))","v":""},{"$f":"IF(IFERROR(VLOOKUP($A39,STEP_ALL!$A:$AH,COLUMN(),FALSE),\"\")=0,\"\",IFERROR(VLOOKUP($A39,STEP_ALL!$A:$AH,COLUMN(),FALSE),\"\"))","v":""},{"$f":"IF(IFERROR(VLOOKUP($A39,STEP_ALL!$A:$AH,COLUMN(),FALSE),\"\")=0,\"\",IFERROR(VLOOKUP($A39,STEP_ALL!$A:$AH,COLUMN(),FALSE),\"\"))","v":""},{"$f":"IF(IFERROR(VLOOKUP($A39,STEP_ALL!$A:$AH,COLUMN(),FALSE),\"\")=0,\"\",IFERROR(VLOOKUP($A39,STEP_ALL!$A:$AH,COLUMN(),FALSE),\"\"))","v":""},{"$f":"IF(IFERROR(VLOOKUP($A39,STEP_ALL!$A:$AH,COLUMN(),FALSE),\"\")=0,\"\",IFERROR(VLOOKUP($A39,STEP_ALL!$A:$AH,COLUMN(),FALSE),\"\"))","v":""},{"$f":"IF(IFERROR(VLOOKUP($A39,STEP_ALL!$A:$AH,COLUMN(),FALSE),\"\")=0,\"\",IFERROR(VLOOKUP($A39,STEP_ALL!$A:$AH,COLUMN(),FALSE),\"\"))","v":""},{"$f":"IF(IFERROR(VLOOKUP($A39,STEP_ALL!$A:$AH,COLUMN(),FALSE),\"\")=0,\"\",IFERROR(VLOOKUP($A39,STEP_ALL!$A:$AH,COLUMN(),FALSE),\"\"))","v":""},{"$f":"IF(IFERROR(VLOOKUP($A39,STEP_ALL!$A:$AH,COLUMN(),FALSE),\"\")=0,\"\",IFERROR(VLOOKUP($A39,STEP_ALL!$A:$AH,COLUMN(),FALSE),\"\"))","v":""},{"$f":"IF(IFERROR(VLOOKUP($A39,STEP_ALL!$A:$AH,COLUMN(),FALSE),\"\")=0,\"\",IFERROR(VLOOKUP($A39,STEP_ALL!$A:$AH,COLUMN(),FALSE),\"\"))","v":""},{"$f":"IF(IFERROR(VLOOKUP($A39,STEP_ALL!$A:$AH,COLUMN(),FALSE),\"\")=0,\"\",IFERROR(VLOOKUP($A39,STEP_ALL!$A:$AH,COLUMN(),FALSE),\"\"))","v":""},{"$f":"IF(IFERROR(VLOOKUP($A39,STEP_ALL!$A:$AH,COLUMN(),FALSE),\"\")=0,\"\",IFERROR(VLOOKUP($A39,STEP_ALL!$A:$AH,COLUMN(),FALSE),\"\"))","v":""},{"$f":"IF(IFERROR(VLOOKUP($A39,STEP_ALL!$A:$AH,COLUMN(),FALSE),\"\")=0,\"\",IFERROR(VLOOKUP($A39,STEP_ALL!$A:$AH,COLUMN(),FALSE),\"\"))","v":""},{"$f":"IF(IFERROR(VLOOKUP($A39,STEP_ALL!$A:$AH,COLUMN(),FALSE),\"\")=0,\"\",IFERROR(VLOOKUP($A39,STEP_ALL!$A:$AH,COLUMN(),FALSE),\"\"))","v":""},{"$f":"IF(IFERROR(VLOOKUP($A39,STEP_ALL!$A:$AH,COLUMN(),FALSE),\"\")=0,\"\",IFERROR(VLOOKUP($A39,STEP_ALL!$A:$AH,COLUMN(),FALSE),\"\"))","v":""},{"$f":"IF(IFERROR(VLOOKUP($A39,STEP_ALL!$A:$AH,COLUMN(),FALSE),\"\")=0,\"\",IFERROR(VLOOKUP($A39,STEP_ALL!$A:$AH,COLUMN(),FALSE),\"\"))","v":""},{"$f":"IF(IFERROR(VLOOKUP($A39,STEP_ALL!$A:$AH,COLUMN(),FALSE),\"\")=0,\"\",IFERROR(VLOOKUP($A39,STEP_ALL!$A:$AH,COLUMN(),FALSE),\"\"))","v":""},{"$f":"IF(IFERROR(VLOOKUP($A39,STEP_ALL!$A:$AH,COLUMN(),FALSE),\"\")=0,\"\",IFERROR(VLOOKUP($A39,STEP_ALL!$A:$AH,COLUMN(),FALSE),\"\"))","v":""},{"$f":"IF(IFERROR(VLOOKUP($A39,STEP_ALL!$A:$AH,COLUMN(),FALSE),\"\")=0,\"\",IFERROR(VLOOKUP($A39,STEP_ALL!$A:$AH,COLUMN(),FALSE),\"\"))","v":""},{"$f":"IF(IFERROR(VLOOKUP($A39,STEP_ALL!$A:$AH,COLUMN(),FALSE),\"\")=0,\"\",IFERROR(VLOOKUP($A39,STEP_ALL!$A:$AH,COLUMN(),FALSE),\"\"))","v":""},{"$f":"IF(IFERROR(VLOOKUP($A39,STEP_ALL!$A:$AH,COLUMN(),FALSE),\"\")=0,\"\",IFERROR(VLOOKUP($A39,STEP_ALL!$A:$AH,COLUMN(),FALSE),\"\"))","v":""},{"$f":"IF(IFERROR(VLOOKUP($A39,STEP_ALL!$A:$AH,COLUMN(),FALSE),\"\")=0,\"\",IFERROR(VLOOKUP($A39,STEP_ALL!$A:$AH,COLUMN(),FALSE),\"\"))","v":""},{"$f":"IF(IFERROR(VLOOKUP($A39,STEP_ALL!$A:$AH,COLUMN(),FALSE),\"\")=0,\"\",IFERROR(VLOOKUP($A39,STEP_ALL!$A:$AH,COLUMN(),FALSE),\"\"))","v":""},{"$f":"IF(IFERROR(VLOOKUP($A39,STEP_ALL!$A:$AH,COLUMN(),FALSE),\"\")=0,\"\",IFERROR(VLOOKUP($A39,STEP_ALL!$A:$AH,COLUMN(),FALSE),\"\"))","v":""},{"$f":"IF(IFERROR(VLOOKUP($A39,STEP_ALL!$A:$AH,COLUMN(),FALSE),\"\")=0,\"\",IFERROR(VLOOKUP($A39,STEP_ALL!$A:$AH,COLUMN(),FALSE),\"\"))","v":""},{"$f":"IF(IFERROR(VLOOKUP($A39,STEP_ALL!$A:$AH,COLUMN(),FALSE),\"\")=0,\"\",IFERROR(VLOOKUP($A39,STEP_ALL!$A:$AH,COLUMN(),FALSE),\"\"))","v":""},{"$f":"IF(IFERROR(VLOOKUP($A39,STEP_ALL!$A:$AH,COLUMN(),FALSE),\"\")=0,\"\",IFERROR(VLOOKUP($A39,STEP_ALL!$A:$AH,COLUMN(),FALSE),\"\"))","v":""},{"$f":"IF(IFERROR(VLOOKUP($A39,STEP_ALL!$A:$AH,COLUMN(),FALSE),\"\")=0,\"\",IFERROR(VLOOKUP($A39,STEP_ALL!$A:$AH,COLUMN(),FALSE),\"\"))","v":""},{"$f":"IF(IFERROR(VLOOKUP($A39,STEP_ALL!$A:$AH,COLUMN(),FALSE),\"\")=0,\"\",IFERROR(VLOOKUP($A39,STEP_ALL!$A:$AH,COLUMN(),FALSE),\"\"))","v":""},{"$f":"IF(IFERROR(VLOOKUP($A39,STEP_ALL!$A:$AH,COLUMN(),FALSE),\"\")=0,\"\",IFERROR(VLOOKUP($A39,STEP_ALL!$A:$AH,COLUMN(),FALSE),\"\"))","v":""},{"$f":"IF(IFERROR(VLOOKUP($A39,STEP_ALL!$A:$AH,COLUMN(),FALSE),\"\")=0,\"\",IFERROR(VLOOKUP($A39,STEP_ALL!$A:$AH,COLUMN(),FALSE),\"\"))","v":""},{"$f":"IF(IFERROR(VLOOKUP($A39,STEP_ALL!$A:$AH,COLUMN(),FALSE),\"\")=0,\"\",IFERROR(VLOOKUP($A39,STEP_ALL!$A:$AH,COLUMN(),FALSE),\"\"))","v":""}]
["1-34",1,34,{"$f":"IF(IFERROR(VLOOKUP($A40,STEP_ALL!$A:$AH,COLUMN(),FALSE),\"\")=0,\"\",IFERROR(VLOOKUP($A40,STEP_ALL!$A:$AH,COLUMN(),FALSE),\"\"))","v":""},{"$f":"IF(IFERROR(VLOOKUP($A40,STEP_ALL!$A:$AH,COLUMN(),FALSE),\"\")=0,\"\",IFERROR(VLOOKUP($A40,STEP_ALL!$A:$AH,COLUMN(),FALSE),\"\"))","v":""},{"$f":"IF(IFERROR(VLOOKUP($A40,STEP_ALL!$A:$AH,COLUMN(),FALSE),\"\")=0,\"\",IFERROR(VLOOKUP($A40,STEP_ALL!$A:$AH,COLUMN(),FALSE),\"\"))","v":""},{"$f":"IF(IFERROR(VLOOKUP($A40,STEP_ALL!$A:$AH,COLUMN(),FALSE),\"\")=0,\"\",IFERROR(VLOOKUP($A40,STEP_ALL!$A:$AH,COLUMN(),FALSE),\"\"))","v":""},{"$f":"IF(IFERROR(VLOOKUP($A40,STEP_ALL!$A:$AH,COLUMN(),FALSE),\"\")=0,\"\",IFERROR(VLOOKUP($A40,STEP_ALL!$A:$AH,COLUMN(),FALSE),\"\"))","v":""},{"$f":"IF(IFERROR(VLOOKUP($A40,STEP_ALL!$A:$AH,COLUMN(),FALSE),\"\")=0,\"\",IFERROR(VLOOKUP($A40,STEP_ALL!$A:$AH,COLUMN(),FALSE),\"\"))","v":""},{"$f":"IF(IFERROR(VLOOKUP($A40,STEP_ALL!$A:$AH,COLUMN(),FALSE),\"\")=0,\"\",IFERROR(VLOOKUP($A40,STEP_ALL!$A:$AH,COLUMN(),FALSE),\"\"))","v":""},{"$f":"IF(IFERROR(VLOOKUP($A40,STEP_ALL!$A:$AH,COLUMN(),FALSE),\"\")=0,\"\",IFERROR(VLOOKUP($A40,STEP_ALL!$A:$AH,COLUMN(),FALSE),\"\"))","v":""},{"$f":"IF(IFERROR(VLOOKUP($A40,STEP_ALL!$A:$AH,COLUMN(),FALSE),\"\")=0,\"\",IFERROR(VLOOKUP($A40,STEP_ALL!$A:$AH,COLUMN(),FALSE),\"\"))","v":""},{"$f":"IF(IFERROR(VLOOKUP($A40,STEP_ALL!$A:$AH,COLUMN(),FALSE),\"\")=0,\"\",IFERROR(VLOOKUP($A40,STEP_ALL!$A:$AH,COLUMN(),FALSE),\"\"))","v":""},{"$f":"IF(IFERROR(VLOOKUP($A40,STEP_ALL!$A:$AH,COLUMN(),FALSE),\"\")=0,\"\",IFERROR(VLOOKUP($A40,STEP_ALL!$A:$AH,COLUMN(),FALSE),\"\"))","v":""},{"$f":"IF(IFERROR(VLOOKUP($A40,STEP_ALL!$A:$AH,COLUMN(),FALSE),\"\")=0,\"\",IFERROR(VLOOKUP($A40,STEP_ALL!$A:$AH,COLUMN(),FALSE),\"\"))","v":""},{"$f":"IF(IFERROR(VLOOKUP($A40,STEP_ALL!$A:$AH,COLUMN(),FALSE),\"\")=0,\"\",IFERROR(VLOOKUP($A40,STEP_ALL!$A:$AH,COLUMN(),FALSE),\"\"))","v":""},{"$f":"IF(IFERROR(VLOOKUP($A40,STEP_ALL!$A:$AH,COLUMN(),FALSE),\"\")=0,\"\",IFERROR(VLOOKUP($A40,STEP_ALL!$A:$AH,COLUMN(),FALSE),\"\"))","v":""},{"$f":"IF(IFERROR(VLOOKUP($A40,STEP_ALL!$A:$AH,COLUMN(),FALSE),\"\")=0,\"\",IFERROR(VLOOKUP($A40,STEP_ALL!$A:$AH,COLUMN(),FALSE),\"\"))","v":""},{"$f":"IF(IFERROR(VLOOKUP($A40,STEP_ALL!$A:$AH,COLUMN(),FALSE),\"\")=0,\"\",IFERROR(VLOOKUP($A40,STEP_ALL!$A:$AH,COLUMN(),FALSE),\"\"))","v":""},{"$f":"IF(IFERROR(VLOOKUP($A40,STEP_ALL!$A:$AH,COLUMN(),FALSE),\"\")=0,\"\",IFERROR(VLOOKUP($A40,STEP_ALL!$A:$AH,COLUMN(),FALSE),\"\"))","v":""},{"$f":"IF(IFERROR(VLOOKUP($A40,STEP_ALL!$A:$AH,COLUMN(),FALSE),\"\")=0,\"\",IFERROR(VLOOKUP($A40,STEP_ALL!$A:$AH,COLUMN(),FALSE),\"\"))","v":""},{"$f":"IF(IFERROR(VLOOKUP($A40,STEP_ALL!$A:$AH,COLUMN(),FALSE),\"\")=0,\"\",IFERROR(VLOOKUP($A40,STEP_ALL!$A:$AH,COLUMN(),FALSE),\"\"))","v":""},{"$f":"IF(IFERROR(VLOOKUP($A40,STEP_ALL!$A:$AH,COLUMN(),FALSE),\"\")=0,\"\",IFERROR(VLOOKUP($A40,STEP_ALL!$A:$AH,COLUMN(),FALSE),\"\"))","v":""},{"$f":"IF(IFERROR(VLOOKUP($A40,STEP_ALL!$A:$AH,COLUMN(),FALSE),\"\")=0,\"\",IFERROR(VLOOKUP($A40,STEP_ALL!$A:$AH,COLUMN(),FALSE),\"\"))","v":""},{"$f":"IF(IFERROR(VLOOKUP($A40,STEP_ALL!$A:$AH,COLUMN(),FALSE),\"\")=0,\"\",IFERROR(VLOOKUP($A40,STEP_ALL!$A:$AH,COLUMN(),FALSE),\"\"))","v":""},{"$f":"IF(IFERROR(VLOOKUP($A40,STEP_ALL!$A:$AH,COLUMN(),FALSE),\"\")=0,\"\",IFERROR(VLOOKUP($A40,STEP_ALL!$A:$AH,COLUMN(),FALSE),\"\"))","v":""},{"$f":"IF(IFERROR(VLOOKUP($A40,STEP_ALL!$A:$AH,COLUMN(),FALSE),\"\")=0,\"\",IFERROR(VLOOKUP($A40,STEP_ALL!$A:$AH,COLUMN(),FALSE),\"\"))","v":""},{"$f":"IF(IFERROR(VLOOKUP($A40,STEP_ALL!$A:$AH,COLUMN(),FALSE),\"\")=0,\"\",IFERROR(VLOOKUP($A40,STEP_ALL!$A:$AH,COLUMN(),FALSE),\"\"))","v":""},{"$f":"IF(IFERROR(VLOOKUP($A40,STEP_ALL!$A:$AH,COLUMN(),FALSE),\"\")=0,\"\",IFERROR(VLOOKUP($A40,STEP_ALL!$A:$AH,COLUMN(),FALSE),\"\"))","v":""},{"$f":"IF(IFERROR(VLOOKUP($A40,STEP_ALL!$A:$AH,COLUMN(),FALSE),\"\")=0,\"\",IFERROR(VLOOKUP($A40,STEP_ALL!$A:$AH,COLUMN(),FALSE),\"\"))","v":""},{"$f":"IF(IFERROR(VLOOKUP($A40,STEP_ALL!$A:$AH,COLUMN(),FALSE),\"\")=0,\"\",IFERROR(VLOOKUP($A40,STEP_ALL!$A:$AH,COLUMN(),FALSE),\"\"))","v":""},{"$f":"IF(IFERROR(VLOOKUP($A40,STEP_ALL!$A:$AH,COLUMN(),FALSE),\"\")=0,\"\",IFERROR(VLOOKUP($A40,STEP_ALL!$A:$AH,COLUMN(),FALSE),\"\"))","v":""},{"$f":"IF(IFERROR(VLOOKUP($A40,STEP_ALL!$A:$AH,COLUMN(),FALSE),\"\")=0,\"\",IFERROR(VLOOKUP($A40,STEP_ALL!$A:$AH,COLUMN(),FALSE),\"\"))","v":""},{"$f":"IF(IFERROR(VLOOKUP($A40,STEP_ALL!$A:$AH,COLUMN(),FALSE),\"\")=0,\"\",IFERROR(VLOOKUP($A40,STEP_ALL!$A:$AH,COLUMN(),FALSE),\"\"))","v":""}]
["1-35",1,35,{"$f":"IF(IFERROR(VLOOKUP($A41,STEP_ALL!$A:$AH,COLUMN(),FALSE),\"\")=0,\"\",IFERROR(VLOOKUP($A41,STEP_ALL!$A:$AH,COLUMN(),FALSE),\"\"))","v":""},{"$f":"IF(IFERROR(VLOOKUP($A41,STEP_ALL!$A:$AH,COLUMN(),FALSE),\"\")=0,\"\",IFERROR(VLOOKUP($A41,STEP_ALL!$A:$AH,COLUMN(),FALSE),\"\"))","v":""},{"$f":"IF(IFERROR(VLOOKUP($A41,STEP_ALL!$A:$AH,COLUMN(),FALSE),\"\")=0,\"\",IFERROR(VLOOKUP($A41,STEP_ALL!$A:$AH,COLUMN(),FALSE),\"\"))","v":""},{"$f":"IF(IFERROR(VLOOKUP($A41,STEP_ALL!$A:$AH,COLUMN(),FALSE),\"\")=0,\"\",IFERROR(VLOOKUP($A41,STEP_ALL!$A:$AH,COLUMN(),FALSE),\"\"))","v":""},{"$f":"IF(IFERROR(VLOOKUP($A41,STEP_ALL!$A:$AH,COLUMN(),FALSE),\"\")=0,\"\",IFERROR(VLOOKUP($A41,STEP_ALL!$A:$AH,COLUMN(),FALSE),\"\"))","v":""},{"$f":"IF(IFERROR(VLOOKUP($A41,STEP_ALL!$A:$AH,COLUMN(),FALSE),\"\")=0,\"\",IFERROR(VLOOKUP($A41,STEP_ALL!$A:$AH,COLUMN(),FALSE),\"\"))","v":""},{"$f":"IF(IFERROR(VLOOKUP($A41,STEP_ALL!$A:$AH,COLUMN(),FALSE),\"\")=0,\"\",IFERROR(VLOOKUP($A41,STEP_ALL!$A:$AH,COLUMN(),FALSE),\"\"))","v":""},{"$f":"IF(IFERROR(VLOOKUP($A41,STEP_ALL!$A:$AH,COLUMN(),FALSE),\"\")=0,\"\",IFERROR(VLOOKUP($A41,STEP_ALL!$A:$AH,COLUMN(),FALSE),\"\"))","v":""},{"$f":"IF(IFERROR(VLOOKUP($A41,STEP_ALL!$A:$AH,COLUMN(),FALSE),\"\")=0,\"\",IFERROR(VLOOKUP($A41,STEP_ALL!$A:$AH,COLUMN(),FALSE),\"\"))","v":""},{"$f":"IF(IFERROR(VLOOKUP($A41,STEP_ALL!$A:$AH,COLUMN(),FALSE),\"\")=0,\"\",IFERROR(VLOOKUP($A41,STEP_ALL!$A:$AH,COLUMN(),FALSE),\"\"))","v":""},{"$f":"IF(IFERROR(VLOOKUP($A41,STEP_ALL!$A:$AH,COLUMN(),FALSE),\"\")=0,\"\",IFERROR(VLOOKUP($A41,STEP_ALL!$A:$AH,COLUMN(),FALSE),\"\"))","v":""},{"$f":"IF(IFERROR(VLOOKUP($A41,STEP_ALL!$A:$AH,COLUMN(),FALSE),\"\")=0,\"\",IFERROR(VLOOKUP($A41,STEP_ALL!$A:$AH,COLUMN(),FALSE),\"\"))","v":""},{"$f":"IF(IFERROR(VLOOKUP($A41,STEP_ALL!$A:$AH,COLUMN(),FALSE),\"\")=0,\"\",IFERROR(VLOOKUP($A41,STEP_ALL!$A:$AH,COLUMN(),FALSE),\"\"))","v":""},{"$f":"IF(IFERROR(VLOOKUP($A41,STEP_ALL!$A:$AH,COLUMN(),FALSE),\"\")=0,\"\",IFERROR(VLOOKUP($A41,STEP_ALL!$A:$AH,COLUMN(),FALSE),\"\"))","v":""},{"$f":"IF(IFERROR(VLOOKUP($A41,STEP_ALL!$A:$AH,COLUMN(),FALSE),\"\")=0,\"\",IFERROR(VLOOKUP($A41,STEP_ALL!$A:$AH,COLUMN(),FALSE),\"\"))","v":""},{"$f":"IF(IFERROR(VLOOKUP($A41,STEP_ALL!$A:$AH,COLUMN(),FALSE),\"\")=0,\"\",IFERROR(VLOOKUP($A41,STEP_ALL!$A:$AH,COLUMN(),FALSE),\"\"))","v":""},{"$f":"IF(IFERROR(VLOOKUP($A41,STEP_ALL!$A:$AH,COLUMN(),FALSE),\"\")=0,\"\",IFERROR(VLOOKUP($A41,STEP_ALL!$A:$AH,COLUMN(),FALSE),\"\"))","v":""},{"$f":"IF(IFERROR(VLOOKUP($A41,STEP_ALL!$A:$AH,COLUMN(),FALSE),\"\")=0,\"\",IFERROR(VLOOKUP($A41,STEP_ALL!$A:$AH,COLUMN(),FALSE),\"\"))","v":""},{"$f":"IF(IFERROR(VLOOKUP($A41,STEP_ALL!$A:$AH,COLUMN(),FALSE),\"\")=0,\"\",IFERROR(VLOOKUP($A41,STEP_ALL!$A:$AH,COLUMN(),FALSE),\"\"))","v":""},{"$f":"IF(IFERROR(VLOOKUP($A41,STEP_ALL!$A:$AH,COLUMN(),FALSE),\"\")=0,\"\",IFERROR(VLOOKUP($A41,STEP_ALL!$A:$AH,COLUMN(),FALSE),\"\"))","v":""},{"$f":"IF(IFERROR(VLOOKUP($A41,STEP_ALL!$A:$AH,COLUMN(),FALSE),\"\")=0,\"\",IFERROR(VLOOKUP($A41,STEP_ALL!$A:$AH,COLUMN(),FALSE),\"\"))","v":""},{"$f":"IF(IFERROR(VLOOKUP($A41,STEP_ALL!$A:$AH,COLUMN(),FALSE),\"\")=0,\"\",IFERROR(VLOOKUP($A41,STEP_ALL!$A:$AH,COLUMN(),FALSE),\"\"))","v":""},{"$f":"IF(IFERROR(VLOOKUP($A41,STEP_ALL!$A:$AH,COLUMN(),FALSE),\"\")=0,\"\",IFERROR(VLOOKUP($A41,STEP_ALL!$A:$AH,COLUMN(),FALSE),\"\"))","v":""},{"$f":"IF(IFERROR(VLOOKUP($A41,STEP_ALL!$A:$AH,COLUMN(),FALSE),\"\")=0,\"\",IFERROR(VLOOKUP($A41,STEP_ALL!$A:$AH,COLUMN(),FALSE),\"\"))","v":""},{"$f":"IF(IFERROR(VLOOKUP($A41,STEP_ALL!$A:$AH,COLUMN(),FALSE),\"\")=0,\"\",IFERROR(VLOOKUP($A41,STEP_ALL!$A:$AH,COLUMN(),FALSE),\"\"))","v":""},{"$f":"IF(IFERROR(VLOOKUP($A41,STEP_ALL!$A:$AH,COLUMN(),FALSE),\"\")=0,\"\",IFERROR(VLOOKUP($A41,STEP_ALL!$A:$AH,COLUMN(),FALSE),\"\"))","v":""},{"$f":"IF(IFERROR(VLOOKUP($A41,STEP_ALL!$A:$AH,COLUMN(),FALSE),\"\")=0,\"\",IFERROR(VLOOKUP($A41,STEP_ALL!$A:$AH,COLUMN(),FALSE),\"\"))","v":""},{"$f":"IF(IFERROR(VLOOKUP($A41,STEP_ALL!$A:$AH,COLUMN(),FALSE),\"\")=0,\"\",IFERROR(VLOOKUP($A41,STEP_ALL!$A:$AH,COLUMN(),FALSE),\"\"))","v":""},{"$f":"IF(IFERROR(VLOOKUP($A41,STEP_ALL!$A:$AH,COLUMN(),FALSE),\"\")=0,\"\",IFERROR(VLOOKUP($A41,STEP_ALL!$A:$AH,COLUMN(),FALSE),\"\"))","v":""},{"$f":"IF(IFERROR(VLOOKUP($A41,STEP_ALL!$A:$AH,COLUMN(),FALSE),\"\")=0,\"\",IFERROR(VLOOKUP($A41,STEP_ALL!$A:$AH,COLUMN(),FALSE),\"\"))","v":""},{"$f":"IF(IFERROR(VLOOKUP($A41,STEP_ALL!$A:$AH,COLUMN(),FALSE),\"\")=0,\"\",IFERROR(VLOOKUP($A41,STEP_ALL!$A:$AH,COLUMN(),FALSE),\"\"))","v":""}]
["1-36",1,36,{"$f":"IF(IFERROR(VLOOKUP($A42,STEP_ALL!$A:$AH,COLUMN(),FALSE),\"\")=0,\"\",IFERROR(VLOOKUP($A42,STEP_ALL!$A:$AH,COLUMN(),FALSE),\"\"))","v":""},{"$f":"IF(IFERROR(VLOOKUP($A42,STEP_ALL!$A:$AH,COLUMN(),FALSE),\"\")=0,\"\",IFERROR(VLOOKUP($A42,STEP_ALL!$A:$AH,COLUMN(),FALSE),\"\"))","v":""},{"$f":"IF(IFERROR(VLOOKUP($A42,STEP_ALL!$A:$AH,COLUMN(),FALSE),\"\")=0,\"\",IFERROR(VLOOKUP($A42,STEP_ALL!$A:$AH,COLUMN(),FALSE),\"\"))","v":""},{"$f":"IF(IFERROR(VLOOKUP($A42,STEP_ALL!$A:$AH,COLUMN(),FALSE),\"\")=0,\"\",IFERROR(VLOOKUP($A42,STEP_ALL!$A:$AH,COLUMN(),FALSE),\"\"))","v":""},{"$f":"IF(IFERROR(VLOOKUP($A42,STEP_ALL!$A:$AH,COLUMN(),FALSE),\"\")=0,\"\",IFERROR(VLOOKUP($A42,STEP_ALL!$A:$AH,COLUMN(),FALSE),\"\"))","v":""},{"$f":"IF(IFERROR(VLOOKUP($A42,STEP_ALL!$A:$AH,COLUMN(),FALSE),\"\")=0,\"\",IFERROR(VLOOKUP($A42,STEP_ALL!$A:$AH,COLUMN(),FALSE),\"\"))","v":""},{"$f":"IF(IFERROR(VLOOKUP($A42,STEP_ALL!$A:$AH,COLUMN(),FALSE),\"\")=0,\"\",IFERROR(VLOOKUP($A42,STEP_ALL!$A:$AH,COLUMN(),FALSE),\"\"))","v":""},{"$f":"IF(IFERROR(VLOOKUP($A42,STEP_ALL!$A:$AH,COLUMN(),FALSE),\"\")=0,\"\",IFERROR(VLOOKUP($A42,STEP_ALL!$A:$AH,COLUMN(),FALSE),\"\"))","v":""},{"$f":"IF(IFERROR(VLOOKUP($A42,STEP_ALL!$A:$AH,COLUMN(),FALSE),\"\")=0,\"\",IFERROR(VLOOKUP($A42,STEP_ALL!$A:$AH,COLUMN(),FALSE),\"\"))","v":""},{"$f":"IF(IFERROR(VLOOKUP($A42,STEP_ALL!$A:$AH,COLUMN(),FALSE),\"\")=0,\"\",IFERROR(VLOOKUP($A42,STEP_ALL!$A:$AH,COLUMN(),FALSE),\"\"))","v":""},{"$f":"IF(IFERROR(VLOOKUP($A42,STEP_ALL!$A:$AH,COLUMN(),FALSE),\"\")=0,\"\",IFERROR(VLOOKUP($A42,STEP_ALL!$A:$AH,COLUMN(),FALSE),\"\"))","v":""},{"$f":"IF(IFERROR(VLOOKUP($A42,STEP_ALL!$A:$AH,COLUMN(),FALSE),\"\")=0,\"\",IFERROR(VLOOKUP($A42,STEP_ALL!$A:$AH,COLUMN(),FALSE),\"\"))","v":""},{"$f":"IF(IFERROR(VLOOKUP($A42,STEP_ALL!$A:$AH,COLUMN(),FALSE),\"\")=0,\"\",IFERROR(VLOOKUP($A42,STEP_ALL!$A:$AH,COLUMN(),FALSE),\"\"))","v":""},{"$f":"IF(IFERROR(VLOOKUP($A42,STEP_ALL!$A:$AH,COLUMN(),FALSE),\"\")=0,\"\",IFERROR(VLOOKUP($A42,STEP_ALL!$A:$AH,COLUMN(),FALSE),\"\"))","v":""},{"$f":"IF(IFERROR(VLOOKUP($A42,STEP_ALL!$A:$AH,COLUMN(),FALSE),\"\")=0,\"\",IFERROR(VLOOKUP($A42,STEP_ALL!$A:$AH,COLUMN(),FALSE),\"\"))","v":""},{"$f":"IF(IFERROR(VLOOKUP($A42,STEP_ALL!$A:$AH,COLUMN(),FALSE),\"\")=0,\"\",IFERROR(VLOOKUP($A42,STEP_ALL!$A:$AH,COLUMN(),FALSE),\"\"))","v":""},{"$f":"IF(IFERROR(VLOOKUP($A42,STEP_ALL!$A:$AH,COLUMN(),FALSE),\"\")=0,\"\",IFERROR(VLOOKUP($A42,STEP_ALL!$A:$AH,COLUMN(),FALSE),\"\"))","v":""},{"$f":"IF(IFERROR(VLOOKUP($A42,STEP_ALL!$A:$AH,COLUMN(),FALSE),\"\")=0,\"\",IFERROR(VLOOKUP($A42,STEP_ALL!$A:$AH,COLUMN(),FALSE),\"\"))","v":""},{"$f":"IF(IFERROR(VLOOKUP($A42,STEP_ALL!$A:$AH,COLUMN(),FALSE),\"\")=0,\"\",IFERROR(VLOOKUP($A42,STEP_ALL!$A:$AH,COLUMN(),FALSE),\"\"))","v":""},{"$f":"IF(IFERROR(VLOOKUP($A42,STEP_ALL!$A:$AH,COLUMN(),FALSE),\"\")=0,\"\",IFERROR(VLOOKUP($A42,STEP_ALL!$A:$AH,COLUMN(),FALSE),\"\"))","v":""},{"$f":"IF(IFERROR(VLOOKUP($A42,STEP_ALL!$A:$AH,COLUMN(),FALSE),\"\")=0,\"\",IFERROR(VLOOKUP($A42,STEP_ALL!$A:$AH,COLUMN(),FALSE),\"\"))","v":""},{"$f":"IF(IFERROR(VLOOKUP($A42,STEP_ALL!$A:$AH,COLUMN(),FALSE),\"\")=0,\"\",IFERROR(VLOOKUP($A42,STEP_ALL!$A:$AH,COLUMN(),FALSE),\"\"))","v":""},{"$f":"IF(IFERROR(VLOOKUP($A42,STEP_ALL!$A:$AH,COLUMN(),FALSE),\"\")=0,\"\",IFERROR(VLOOKUP($A42,STEP_ALL!$A:$AH,COLUMN(),FALSE),\"\"))","v":""},{"$f":"IF(IFERROR(VLOOKUP($A42,STEP_ALL!$A:$AH,COLUMN(),FALSE),\"\")=0,\"\",IFERROR(VLOOKUP($A42,STEP_ALL!$A:$AH,COLUMN(),FALSE),\"\"))","v":""},{"$f":"IF(IFERROR(VLOOKUP($A42,STEP_ALL!$A:$AH,COLUMN(),FALSE),\"\")=0,\"\",IFERROR(VLOOKUP($A42,STEP_ALL!$A:$AH,COLUMN(),FALSE),\"\"))","v":""},{"$f":"IF(IFERROR(VLOOKUP($A42,STEP_ALL!$A:$AH,COLUMN(),FALSE),\"\")=0,\"\",IFERROR(VLOOKUP($A42,STEP_ALL!$A:$AH,COLUMN(),FALSE),\"\"))","v":""},{"$f":"IF(IFERROR(VLOOKUP($A42,STEP_ALL!$A:$AH,COLUMN(),FALSE),\"\")=0,\"\",IFERROR(VLOOKUP($A42,STEP_ALL!$A:$AH,COLUMN(),FALSE),\"\"))","v":""},{"$f":"IF(IFERROR(VLOOKUP($A42,STEP_ALL!$A:$AH,COLUMN(),FALSE),\"\")=0,\"\",IFERROR(VLOOKUP($A42,STEP_ALL!$A:$AH,COLUMN(),FALSE),\"\"))","v":""},{"$f":"IF(IFERROR(VLOOKUP($A42,STEP_ALL!$A:$AH,COLUMN(),FALSE),\"\")=0,\"\",IFERROR(VLOOKUP($A42,STEP_ALL!$A:$AH,COLUMN(),FALSE),\"\"))","v":""},{"$f":"IF(IFERROR(VLOOKUP($A42,STEP_ALL!$A:$AH,COLUMN(),FALSE),\"\")=0,\"\",IFERROR(VLOOKUP($A42,STEP_ALL!$A:$AH,COLUMN(),FALSE),\"\"))","v":""},{"$f":"IF(IFERROR(VLOOKUP($A42,STEP_ALL!$A:$AH,COLUMN(),FALSE),\"\")=0,\"\",IFERROR(VLOOKUP($A42,STEP_ALL!$A:$AH,COLUMN(),FALSE),\"\"))","v":""}]
["1-37",1,37,{"$f":"IF(IFERROR(VLOOKUP($A43,STEP_ALL!$A:$AH,COLUMN(),FALSE),\"\")=0,\"\",IFERROR(VLOOKUP($A43,STEP_ALL!$A:$AH,COLUMN(),FALSE),\"\"))","v":""},{"$f":"IF(IFERROR(VLOOKUP($A43,STEP_ALL!$A:$AH,COLUMN(),FALSE),\"\")=0,\"\",IFERROR(VLOOKUP($A43,STEP_ALL!$A:$AH,COLUMN(),FALSE),\"\"))","v":""},{"$f":"IF(IFERROR(VLOOKUP($A43,STEP_ALL!$A:$AH,COLUMN(),FALSE),\"\")=0,\"\",IFERROR(VLOOKUP($A43,STEP_ALL!$A:$AH,COLUMN(),FALSE),\"\"))","v":""},{"$f":"IF(IFERROR(VLOOKUP($A43,STEP_ALL!$A:$AH,COLUMN(),FALSE),\"\")=0,\"\",IFERROR(VLOOKUP($A43,STEP_ALL!$A:$AH,COLUMN(),FALSE),\"\"))","v":""},{"$f":"IF(IFERROR(VLOOKUP($A43,STEP_ALL!$A:$AH,COLUMN(),FALSE),\"\")=0,\"\",IFERROR(VLOOKUP($A43,STEP_ALL!$A:$AH,COLUMN(),FALSE),\"\"))","v":""},{"$f":"IF(IFERROR(VLOOKUP($A43,STEP_ALL!$A:$AH,COLUMN(),FALSE),\"\")=0,\"\",IFERROR(VLOOKUP($A43,STEP_ALL!$A:$AH,COLUMN(),FALSE),\"\"))","v":""},{"$f":"IF(IFERROR(VLOOKUP($A43,STEP_ALL!$A:$AH,COLUMN(),FALSE),\"\")=0,\"\",IFERROR(VLOOKUP($A43,STEP_ALL!$A:$AH,COLUMN(),FALSE),\"\"))","v":""},{"$f":"IF(IFERROR(VLOOKUP($A43,STEP_ALL!$A:$AH,COLUMN(),FALSE),\"\")=0,\"\",IFERROR(VLOOKUP($A43,STEP_ALL!$A:$AH,COLUMN(),FALSE),\"\"))","v":""},{"$f":"IF(IFERROR(VLOOKUP($A43,STEP_ALL!$A:$AH,COLUMN(),FALSE),\"\")=0,\"\",IFERROR(VLOOKUP($A43,STEP_ALL!$A:$AH,COLUMN(),FALSE),\"\"))","v":""},{"$f":"IF(IFERROR(VLOOKUP($A43,STEP_ALL!$A:$AH,COLUMN(),FALSE),\"\")=0,\"\",IFERROR(VLOOKUP($A43,STEP_ALL!$A:$AH,COLUMN(),FALSE),\"\"))","v":""},{"$f":"IF(IFERROR(VLOOKUP($A43,STEP_ALL!$A:$AH,COLUMN(),FALSE),\"\")=0,\"\",IFERROR(VLOOKUP($A43,STEP_ALL!$A:$AH,COLUMN(),FALSE),\"\"))","v":""},{"$f":"IF(IFERROR(VLOOKUP($A43,STEP_ALL!$A:$AH,COLUMN(),FALSE),\"\")=0,\"\",IFERROR(VLOOKUP($A43,STEP_ALL!$A:$AH,COLUMN(),FALSE),\"\"))","v":""},{"$f":"IF(IFERROR(VLOOKUP($A43,STEP_ALL!$A:$AH,COLUMN(),FALSE),\"\")=0,\"\",IFERROR(VLOOKUP($A43,STEP_ALL!$A:$AH,COLUMN(),FALSE),\"\"))","v":""},{"$f":"IF(IFERROR(VLOOKUP($A43,STEP_ALL!$A:$AH,COLUMN(),FALSE),\"\")=0,\"\",IFERROR(VLOOKUP($A43,STEP_ALL!$A:$AH,COLUMN(),FALSE),\"\"))","v":""},{"$f":"IF(IFERROR(VLOOKUP($A43,STEP_ALL!$A:$AH,COLUMN(),FALSE),\"\")=0,\"\",IFERROR(VLOOKUP($A43,STEP_ALL!$A:$AH,COLUMN(),FALSE),\"\"))","v":""},{"$f":"IF(IFERROR(VLOOKUP($A43,STEP_ALL!$A:$AH,COLUMN(),FALSE),\"\")=0,\"\",IFERROR(VLOOKUP($A43,STEP_ALL!$A:$AH,COLUMN(),FALSE),\"\"))","v":""},{"$f":"IF(IFERROR(VLOOKUP($A43,STEP_ALL!$A:$AH,COLUMN(),FALSE),\"\")=0,\"\",IFERROR(VLOOKUP($A43,STEP_ALL!$A:$AH,COLUMN(),FALSE),\"\"))","v":""},{"$f":"IF(IFERROR(VLOOKUP($A43,STEP_ALL!$A:$AH,COLUMN(),FALSE),\"\")=0,\"\",IFERROR(VLOOKUP($A43,STEP_ALL!$A:$AH,COLUMN(),FALSE),\"\"))","v":""},{"$f":"IF(IFERROR(VLOOKUP($A43,STEP_ALL!$A:$AH,COLUMN(),FALSE),\"\")=0,\"\",IFERROR(VLOOKUP($A43,STEP_ALL!$A:$AH,COLUMN(),FALSE),\"\"))","v":""},{"$f":"IF(IFERROR(VLOOKUP($A43,STEP_ALL!$A:$AH,COLUMN(),FALSE),\"\")=0,\"\",IFERROR(VLOOKUP($A43,STEP_ALL!$A:$AH,COLUMN(),FALSE),\"\"))","v":""},{"$f":"IF(IFERROR(VLOOKUP($A43,STEP_ALL!$A:$AH,COLUMN(),FALSE),\"\")=0,\"\",IFERROR(VLOOKUP($A43,STEP_ALL!$A:$AH,COLUMN(),FALSE),\"\"))","v":""},{"$f":"IF(IFERROR(VLOOKUP($A43,STEP_ALL!$A:$AH,COLUMN(),FALSE),\"\")=0,\"\",IFERROR(VLOOKUP($A43,STEP_ALL!$A:$AH,COLUMN(),FALSE),\"\"))","v":""},{"$f":"IF(IFERROR(VLOOKUP($A43,STEP_ALL!$A:$AH,COLUMN(),FALSE),\"\")=0,\"\",IFERROR(VLOOKUP($A43,STEP_ALL!$A:$AH,COLUMN(),FALSE),\"\"))","v":""},{"$f":"IF(IFERROR(VLOOKUP($A43,STEP_ALL!$A:$AH,COLUMN(),FALSE),\"\")=0,\"\",IFERROR(VLOOKUP($A43,STEP_ALL!$A:$AH,COLUMN(),FALSE),\"\"))","v":""},{"$f":"IF(IFERROR(VLOOKUP($A43,STEP_ALL!$A:$AH,COLUMN(),FALSE),\"\")=0,\"\",IFERROR(VLOOKUP($A43,STEP_ALL!$A:$AH,COLUMN(),FALSE),\"\"))","v":""},{"$f":"IF(IFERROR(VLOOKUP($A43,STEP_ALL!$A:$AH,COLUMN(),FALSE),\"\")=0,\"\",IFERROR(VLOOKUP($A43,STEP_ALL!$A:$AH,COLUMN(),FALSE),\"\"))","v":""},{"$f":"IF(IFERROR(VLOOKUP($A43,STEP_ALL!$A:$AH,COLUMN(),FALSE),\"\")=0,\"\",IFERROR(VLOOKUP($A43,STEP_ALL!$A:$AH,COLUMN(),FALSE),\"\"))","v":""},{"$f":"IF(IFERROR(VLOOKUP($A43,STEP_ALL!$A:$AH,COLUMN(),FALSE),\"\")=0,\"\",IFERROR(VLOOKUP($A43,STEP_ALL!$A:$AH,COLUMN(),FALSE),\"\"))","v":""},{"$f":"IF(IFERROR(VLOOKUP($A43,STEP_ALL!$A:$AH,COLUMN(),FALSE),\"\")=0,\"\",IFERROR(VLOOKUP($A43,STEP_ALL!$A:$AH,COLUMN(),FALSE),\"\"))","v":""},{"$f":"IF(IFERROR(VLOOKUP($A43,STEP_ALL!$A:$AH,COLUMN(),FALSE),\"\")=0,\"\",IFERROR(VLOOKUP($A43,STEP_ALL!$A:$AH,COLUMN(),FALSE),\"\"))","v":""},{"$f":"IF(IFERROR(VLOOKUP($A43,STEP_ALL!$A:$AH,COLUMN(),FALSE),\"\")=0,\"\",IFERROR(VLOOKUP($A43,STEP_ALL!$A:$AH,COLUMN(),FALSE),\"\"))","v":""}]
["1-38",1,38,{"$f":"IF(IFERROR(VLOOKUP($A44,STEP_ALL!$A:$AH,COLUMN(),FALSE),\"\")=0,\"\",IFERROR(VLOOKUP($A44,STEP_ALL!$A:$AH,COLUMN(),FALSE),\"\"))","v":""},{"$f":"IF(IFERROR(VLOOKUP($A44,STEP_ALL!$A:$AH,COLUMN(),FALSE),\"\")=0,\"\",IFERROR(VLOOKUP($A44,STEP_ALL!$A:$AH,COLUMN(),FALSE),\"\"))","v":""},{"$f":"IF(IFERROR(VLOOKUP($A44,STEP_ALL!$A:$AH,COLUMN(),FALSE),\"\")=0,\"\",IFERROR(VLOOKUP($A44,STEP_ALL!$A:$AH,COLUMN(),FALSE),\"\"))","v":""},{"$f":"IF(IFERROR(VLOOKUP($A44,STEP_ALL!$A:$AH,COLUMN(),FALSE),\"\")=0,\"\",IFERROR(VLOOKUP($A44,STEP_ALL!$A:$AH,COLUMN(),FALSE),\"\"))","v":""},{"$f":"IF(IFERROR(VLOOKUP($A44,STEP_ALL!$A:$AH,COLUMN(),FALSE),\"\")=0,\"\",IFERROR(VLOOKUP($A44,STEP_ALL!$A:$AH,COLUMN(),FALSE),\"\"))","v":""},{"$f":"IF(IFERROR(VLOOKUP($A44,STEP_ALL!$A:$AH,COLUMN(),FALSE),\"\")=0,\"\",IFERROR(VLOOKUP($A44,STEP_ALL!$A:$AH,COLUMN(),FALSE),\"\"))","v":""},{"$f":"IF(IFERROR(VLOOKUP($A44,STEP_ALL!$A:$AH,COLUMN(),FALSE),\"\")=0,\"\",IFERROR(VLOOKUP($A44,STEP_ALL!$A:$AH,COLUMN(),FALSE),\"\"))","v":""},{"$f":"IF(IFERROR(VLOOKUP($A44,STEP_ALL!$A:$AH,COLUMN(),FALSE),\"\")=0,\"\",IFERROR(VLOOKUP($A44,STEP_ALL!$A:$AH,COLUMN(),FALSE),\"\"))","v":""},{"$f":"IF(IFERROR(VLOOKUP($A44,STEP_ALL!$A:$AH,COLUMN(),FALSE),\"\")=0,\"\",IFERROR(VLOOKUP($A44,STEP_ALL!$A:$AH,COLUMN(),FALSE),\"\"))","v":""},{"$f":"IF(IFERROR(VLOOKUP($A44,STEP_ALL!$A:$AH,COLUMN(),FALSE),\"\")=0,\"\",IFERROR(VLOOKUP($A44,STEP_ALL!$A:$AH,COLUMN(),FALSE),\"\"))","v":""},{"$f":"IF(IFERROR(VLOOKUP($A44,STEP_ALL!$A:$AH,COLUMN(),FALSE),\"\")=0,\"\",IFERROR(VLOOKUP($A44,STEP_ALL!$A:$AH,COLUMN(),FALSE),\"\"))","v":""},{"$f":"IF(IFERROR(VLOOKUP($A44,STEP_ALL!$A:$AH,COLUMN(),FALSE),\"\")=0,\"\",IFERROR(VLOOKUP($A44,STEP_ALL!$A:$AH,COLUMN(),FALSE),\"\"))","v":""},{"$f":"IF(IFERROR(VLOOKUP($A44,STEP_ALL!$A:$AH,COLUMN(),FALSE),\"\")=0,\"\",IFERROR(VLOOKUP($A44,STEP_ALL!$A:$AH,COLUMN(),FALSE),\"\"))","v":""},{"$f":"IF(IFERROR(VLOOKUP($A44,STEP_ALL!$A:$AH,COLUMN(),FALSE),\"\")=0,\"\",IFERROR(VLOOKUP($A44,STEP_ALL!$A:$AH,COLUMN(),FALSE),\"\"))","v":""},{"$f":"IF(IFERROR(VLOOKUP($A44,STEP_ALL!$A:$AH,COLUMN(),FALSE),\"\")=0,\"\",IFERROR(VLOOKUP($A44,STEP_ALL!$A:$AH,COLUMN(),FALSE),\"\"))","v":""},{"$f":"IF(IFERROR(VLOOKUP($A44,STEP_ALL!$A:$AH,COLUMN(),FALSE),\"\")=0,\"\",IFERROR(VLOOKUP($A44,STEP_ALL!$A:$AH,COLUMN(),FALSE),\"\"))","v":""},{"$f":"IF(IFERROR(VLOOKUP($A44,STEP_ALL!$A:$AH,COLUMN(),FALSE),\"\")=0,\"\",IFERROR(VLOOKUP($A44,STEP_ALL!$A:$AH,COLUMN(),FALSE),\"\"))","v":""},{"$f":"IF(IFERROR(VLOOKUP($A44,STEP_ALL!$A:$AH,COLUMN(),FALSE),\"\")=0,\"\",IFERROR(VLOOKUP($A44,STEP_ALL!$A:$AH,COLUMN(),FALSE),\"\"))","v":""},{"$f":"IF(IFERROR(VLOOKUP($A44,STEP_ALL!$A:$AH,COLUMN(),FALSE),\"\")=0,\"\",IFERROR(VLOOKUP($A44,STEP_ALL!$A:$AH,COLUMN(),FALSE),\"\"))","v":""},{"$f":"IF(IFERROR(VLOOKUP($A44,STEP_ALL!$A:$AH,COLUMN(),FALSE),\"\")=0,\"\",IFERROR(VLOOKUP($A44,STEP_ALL!$A:$AH,COLUMN(),FALSE),\"\"))","v":""},{"$f":"IF(IFERROR(VLOOKUP($A44,STEP_ALL!$A:$AH,COLUMN(),FALSE),\"\")=0,\"\",IFERROR(VLOOKUP($A44,STEP_ALL!$A:$AH,COLUMN(),FALSE),\"\"))","v":""},{"$f":"IF(IFERROR(VLOOKUP($A44,STEP_ALL!$A:$AH,COLUMN(),FALSE),\"\")=0,\"\",IFERROR(VLOOKUP($A44,STEP_ALL!$A:$AH,COLUMN(),FALSE),\"\"))","v":""},{"$f":"IF(IFERROR(VLOOKUP($A44,STEP_ALL!$A:$AH,COLUMN(),FALSE),\"\")=0,\"\",IFERROR(VLOOKUP($A44,STEP_ALL!$A:$AH,COLUMN(),FALSE),\"\"))","v":""},{"$f":"IF(IFERROR(VLOOKUP($A44,STEP_ALL!$A:$AH,COLUMN(),FALSE),\"\")=0,\"\",IFERROR(VLOOKUP($A44,STEP_ALL!$A:$AH,COLUMN(),FALSE),\"\"))","v":""},{"$f":"IF(IFERROR(VLOOKUP($A44,STEP_ALL!$A:$AH,COLUMN(),FALSE),\"\")=0,\"\",IFERROR(VLOOKUP($A44,STEP_ALL!$A:$AH,COLUMN(),FALSE),\"\"))","v":""},{"$f":"IF(IFERROR(VLOOKUP($A44,STEP_ALL!$A:$AH,COLUMN(),FALSE),\"\")=0,\"\",IFERROR(VLOOKUP($A44,STEP_ALL!$A:$AH,COLUMN(),FALSE),\"\"))","v":""},{"$f":"IF(IFERROR(VLOOKUP($A44,STEP_ALL!$A:$AH,COLUMN(),FALSE),\"\")=0,\"\",IFERROR(VLOOKUP($A44,STEP_ALL!$A:$AH,COLUMN(),FALSE),\"\"))","v":""},{"$f":"IF(IFERROR(VLOOKUP($A44,STEP_ALL!$A:$AH,COLUMN(),FALSE),\"\")=0,\"\",IFERROR(VLOOKUP($A44,STEP_ALL!$A:$AH,COLUMN(),FALSE),\"\"))","v":""},{"$f":"IF(IFERROR(VLOOKUP($A44,STEP_ALL!$A:$AH,COLUMN(),FALSE),\"\")=0,\"\",IFERROR(VLOOKUP($A44,STEP_ALL!$A:$AH,COLUMN(),FALSE),\"\"))","v":""},{"$f":"IF(IFERROR(VLOOKUP($A44,STEP_ALL!$A:$AH,COLUMN(),FALSE),\"\")=0,\"\",IFERROR(VLOOKUP($A44,STEP_ALL!$A:$AH,COLUMN(),FALSE),\"\"))","v":""},{"$f":"IF(IFERROR(VLOOKUP($A44,STEP_ALL!$A:$AH,COLUMN(),FALSE),\"\")=0,\"\",IFERROR(VLOOKUP($A44,STEP_ALL!$A:$AH,COLUMN(),FALSE),\"\"))","v":""}]
["1-39",1,39,{"$f":"IF(IFERROR(VLOOKUP($A45,STEP_ALL!$A:$AH,COLUMN(),FALSE),\"\")=0,\"\",IFERROR(VLOOKUP($A45,STEP_ALL!$A:$AH,COLUMN(),FALSE),\"\"))","v":""},{"$f":"IF(IFERROR(VLOOKUP($A45,STEP_ALL!$A:$AH,COLUMN(),FALSE),\"\")=0,\"\",IFERROR(VLOOKUP($A45,STEP_ALL!$A:$AH,COLUMN(),FALSE),\"\"))","v":""},{"$f":"IF(IFERROR(VLOOKUP($A45,STEP_ALL!$A:$AH,COLUMN(),FALSE),\"\")=0,\"\",IFERROR(VLOOKUP($A45,STEP_ALL!$A:$AH,COLUMN(),FALSE),\"\"))","v":""},{"$f":"IF(IFERROR(VLOOKUP($A45,STEP_ALL!$A:$AH,COLUMN(),FALSE),\"\")=0,\"\",IFERROR(VLOOKUP($A45,STEP_ALL!$A:$AH,COLUMN(),FALSE),\"\"))","v":""},{"$f":"IF(IFERROR(VLOOKUP($A45,STEP_ALL!$A:$AH,COLUMN(),FALSE),\"\")=0,\"\",IFERROR(VLOOKUP($A45,STEP_ALL!$A:$AH,COLUMN(),FALSE),\"\"))","v":""},{"$f":"IF(IFERROR(VLOOKUP($A45,STEP_ALL!$A:$AH,COLUMN(),FALSE),\"\")=0,\"\",IFERROR(VLOOKUP($A45,STEP_ALL!$A:$AH,COLUMN(),FALSE),\"\"))","v":""},{"$f":"IF(IFERROR(VLOOKUP($A45,STEP_ALL!$A:$AH,COLUMN(),FALSE),\"\")=0,\"\",IFERROR(VLOOKUP($A45,STEP_ALL!$A:$AH,COLUMN(),FALSE),\"\"))","v":""},{"$f":"IF(IFERROR(VLOOKUP($A45,STEP_ALL!$A:$AH,COLUMN(),FALSE),\"\")=0,\"\",IFERROR(VLOOKUP($A45,STEP_ALL!$A:$AH,COLUMN(),FALSE),\"\"))","v":""},{"$f":"IF(IFERROR(VLOOKUP($A45,STEP_ALL!$A:$AH,COLUMN(),FALSE),\"\")=0,\"\",IFERROR(VLOOKUP($A45,STEP_ALL!$A:$AH,COLUMN(),FALSE),\"\"))","v":""},{"$f":"IF(IFERROR(VLOOKUP($A45,STEP_ALL!$A:$AH,COLUMN(),FALSE),\"\")=0,\"\",IFERROR(VLOOKUP($A45,STEP_ALL!$A:$AH,COLUMN(),FALSE),\"\"))","v":""},{"$f":"IF(IFERROR(VLOOKUP($A45,STEP_ALL!$A:$AH,COLUMN(),FALSE),\"\")=0,\"\",IFERROR(VLOOKUP($A45,STEP_ALL!$A:$AH,COLUMN(),FALSE),\"\"))","v":""},{"$f":"IF(IFERROR(VLOOKUP($A45,STEP_ALL!$A:$AH,COLUMN(),FALSE),\"\")=0,\"\",IFERROR(VLOOKUP($A45,STEP_ALL!$A:$AH,COLUMN(),FALSE),\"\"))","v":""},{"$f":"IF(IFERROR(VLOOKUP($A45,STEP_ALL!$A:$AH,COLUMN(),FALSE),\"\")=0,\"\",IFERROR(VLOOKUP($A45,STEP_ALL!$A:$AH,COLUMN(),FALSE),\"\"))","v":""},{"$f":"IF(IFERROR(VLOOKUP($A45,STEP_ALL!$A:$AH,COLUMN(),FALSE),\"\")=0,\"\",IFERROR(VLOOKUP($A45,STEP_ALL!$A:$AH,COLUMN(),FALSE),\"\"))","v":""},{"$f":"IF(IFERROR(VLOOKUP($A45,STEP_ALL!$A:$AH,COLUMN(),FALSE),\"\")=0,\"\",IFERROR(VLOOKUP($A45,STEP_ALL!$A:$AH,COLUMN(),FALSE),\"\"))","v":""},{"$f":"IF(IFERROR(VLOOKUP($A45,STEP_ALL!$A:$AH,COLUMN(),FALSE),\"\")=0,\"\",IFERROR(VLOOKUP($A45,STEP_ALL!$A:$AH,COLUMN(),FALSE),\"\"))","v":""},{"$f":"IF(IFERROR(VLOOKUP($A45,STEP_ALL!$A:$AH,COLUMN(),FALSE),\"\")=0,\"\",IFERROR(VLOOKUP($A45,STEP_ALL!$A:$AH,COLUMN(),FALSE),\"\"))","v":""},{"$f":"IF(IFERROR(VLOOKUP($A45,STEP_ALL!$A:$AH,COLUMN(),FALSE),\"\")=0,\"\",IFERROR(VLOOKUP($A45,STEP_ALL!$A:$AH,COLUMN(),FALSE),\"\"))","v":""},{"$f":"IF(IFERROR(VLOOKUP($A45,STEP_ALL!$A:$AH,COLUMN(),FALSE),\"\")=0,\"\",IFERROR(VLOOKUP($A45,STEP_ALL!$A:$AH,COLUMN(),FALSE),\"\"))","v":""},{"$f":"IF(IFERROR(VLOOKUP($A45,STEP_ALL!$A:$AH,COLUMN(),FALSE),\"\")=0,\"\",IFERROR(VLOOKUP($A45,STEP_ALL!$A:$AH,COLUMN(),FALSE),\"\"))","v":""},{"$f":"IF(IFERROR(VLOOKUP($A45,STEP_ALL!$A:$AH,COLUMN(),FALSE),\"\")=0,\"\",IFERROR(VLOOKUP($A45,STEP_ALL!$A:$AH,COLUMN(),FALSE),\"\"))","v":""},{"$f":"IF(IFERROR(VLOOKUP($A45,STEP_ALL!$A:$AH,COLUMN(),FALSE),\"\")=0,\"\",IFERROR(VLOOKUP($A45,STEP_ALL!$A:$AH,COLUMN(),FALSE),\"\"))","v":""},{"$f":"IF(IFERROR(VLOOKUP($A45,STEP_ALL!$A:$AH,COLUMN(),FALSE),\"\")=0,\"\",IFERROR(VLOOKUP($A45,STEP_ALL!$A:$AH,COLUMN(),FALSE),\"\"))","v":""},{"$f":"IF(IFERROR(VLOOKUP($A45,STEP_ALL!$A:$AH,COLUMN(),FALSE),\"\")=0,\"\",IFERROR(VLOOKUP($A45,STEP_ALL!$A:$AH,COLUMN(),FALSE),\"\"))","v":""},{"$f":"IF(IFERROR(VLOOKUP($A45,STEP_ALL!$A:$AH,COLUMN(),FALSE),\"\")=0,\"\",IFERROR(VLOOKUP($A45,STEP_ALL!$A:$AH,COLUMN(),FALSE),\"\"))","v":""},{"$f":"IF(IFERROR(VLOOKUP($A45,STEP_ALL!$A:$AH,COLUMN(),FALSE),\"\")=0,\"\",IFERROR(VLOOKUP($A45,STEP_ALL!$A:$AH,COLUMN(),FALSE),\"\"))","v":""},{"$f":"IF(IFERROR(VLOOKUP($A45,STEP_ALL!$A:$AH,COLUMN(),FALSE),\"\")=0,\"\",IFERROR(VLOOKUP($A45,STEP_ALL!$A:$AH,COLUMN(),FALSE),\"\"))","v":""},{"$f":"IF(IFERROR(VLOOKUP($A45,STEP_ALL!$A:$AH,COLUMN(),FALSE),\"\")=0,\"\",IFERROR(VLOOKUP($A45,STEP_ALL!$A:$AH,COLUMN(),FALSE),\"\"))","v":""},{"$f":"IF(IFERROR(VLOOKUP($A45,STEP_ALL!$A:$AH,COLUMN(),FALSE),\"\")=0,\"\",IFERROR(VLOOKUP($A45,STEP_ALL!$A:$AH,COLUMN(),FALSE),\"\"))","v":""},{"$f":"IF(IFERROR(VLOOKUP($A45,STEP_ALL!$A:$AH,COLUMN(),FALSE),\"\")=0,\"\",IFERROR(VLOOKUP($A45,STEP_ALL!$A:$AH,COLUMN(),FALSE),\"\"))","v":""},{"$f":"IF(IFERROR(VLOOKUP($A45,STEP_ALL!$A:$AH,COLUMN(),FALSE),\"\")=0,\"\",IFERROR(VLOOKUP($A45,STEP_ALL!$A:$AH,COLUMN(),FALSE),\"\"))","v":""}]
["1-40",1,40,{"$f":"IF(IFERROR(VLOOKUP($A46,STEP_ALL!$A:$AH,COLUMN(),FALSE),\"\")=0,\"\",IFERROR(VLOOKUP($A46,STEP_ALL!$A:$AH,COLUMN(),FALSE),\"\"))","v":""},{"$f":"IF(IFERROR(VLOOKUP($A46,STEP_ALL!$A:$AH,COLUMN(),FALSE),\"\")=0,\"\",IFERROR(VLOOKUP($A46,STEP_ALL!$A:$AH,COLUMN(),FALSE),\"\"))","v":""},{"$f":"IF(IFERROR(VLOOKUP($A46,STEP_ALL!$A:$AH,COLUMN(),FALSE),\"\")=0,\"\",IFERROR(VLOOKUP($A46,STEP_ALL!$A:$AH,COLUMN(),FALSE),\"\"))","v":""},{"$f":"IF(IFERROR(VLOOKUP($A46,STEP_ALL!$A:$AH,COLUMN(),FALSE),\"\")=0,\"\",IFERROR(VLOOKUP($A46,STEP_ALL!$A:$AH,COLUMN(),FALSE),\"\"))","v":""},{"$f":"IF(IFERROR(VLOOKUP($A46,STEP_ALL!$A:$AH,COLUMN(),FALSE),\"\")=0,\"\",IFERROR(VLOOKUP($A46,STEP_ALL!$A:$AH,COLUMN(),FALSE),\"\"))","v":""},{"$f":"IF(IFERROR(VLOOKUP($A46,STEP_ALL!$A:$AH,COLUMN(),FALSE),\"\")=0,\"\",IFERROR(VLOOKUP($A46,STEP_ALL!$A:$AH,COLUMN(),FALSE),\"\"))","v":""},{"$f":"IF(IFERROR(VLOOKUP($A46,STEP_ALL!$A:$AH,COLUMN(),FALSE),\"\")=0,\"\",IFERROR(VLOOKUP($A46,STEP_ALL!$A:$AH,COLUMN(),FALSE),\"\"))","v":""},{"$f":"IF(IFERROR(VLOOKUP($A46,STEP_ALL!$A:$AH,COLUMN(),FALSE),\"\")=0,\"\",IFERROR(VLOOKUP($A46,STEP_ALL!$A:$AH,COLUMN(),FALSE),\"\"))","v":""},{"$f":"IF(IFERROR(VLOOKUP($A46,STEP_ALL!$A:$AH,COLUMN(),FALSE),\"\")=0,\"\",IFERROR(VLOOKUP($A46,STEP_ALL!$A:$AH,COLUMN(),FALSE),\"\"))","v":""},{"$f":"IF(IFERROR(VLOOKUP($A46,STEP_ALL!$A:$AH,COLUMN(),FALSE),\"\")=0,\"\",IFERROR(VLOOKUP($A46,STEP_ALL!$A:$AH,COLUMN(),FALSE),\"\"))","v":""},{"$f":"IF(IFERROR(VLOOKUP($A46,STEP_ALL!$A:$AH,COLUMN(),FALSE),\"\")=0,\"\",IFERROR(VLOOKUP($A46,STEP_ALL!$A:$AH,COLUMN(),FALSE),\"\"))","v":""},{"$f":"IF(IFERROR(VLOOKUP($A46,STEP_ALL!$A:$AH,COLUMN(),FALSE),\"\")=0,\"\",IFERROR(VLOOKUP($A46,STEP_ALL!$A:$AH,COLUMN(),FALSE),\"\"))","v":""},{"$f":"IF(IFERROR(VLOOKUP($A46,STEP_ALL!$A:$AH,COLUMN(),FALSE),\"\")=0,\"\",IFERROR(VLOOKUP($A46,STEP_ALL!$A:$AH,COLUMN(),FALSE),\"\"))","v":""},{"$f":"IF(IFERROR(VLOOKUP($A46,STEP_ALL!$A:$AH,COLUMN(),FALSE),\"\")=0,\"\",IFERROR(VLOOKUP($A46,STEP_ALL!$A:$AH,COLUMN(),FALSE),\"\"))","v":""},{"$f":"IF(IFERROR(VLOOKUP($A46,STEP_ALL!$A:$AH,COLUMN(),FALSE),\"\")=0,\"\",IFERROR(VLOOKUP($A46,STEP_ALL!$A:$AH,COLUMN(),FALSE),\"\"))","v":""},{"$f":"IF(IFERROR(VLOOKUP($A46,STEP_ALL!$A:$AH,COLUMN(),FALSE),\"\")=0,\"\",IFERROR(VLOOKUP($A46,STEP_ALL!$A:$AH,COLUMN(),FALSE),\"\"))","v":""},{"$f":"IF(IFERROR(VLOOKUP($A46,STEP_ALL!$A:$AH,COLUMN(),FALSE),\"\")=0,\"\",IFERROR(VLOOKUP($A46,STEP_ALL!$A:$AH,COLUMN(),FALSE),\"\"))","v":""},{"$f":"IF(IFERROR(VLOOKUP($A46,STEP_ALL!$A:$AH,COLUMN(),FALSE),\"\")=0,\"\",IFERROR(VLOOKUP($A46,STEP_ALL!$A:$AH,COLUMN(),FALSE),\"\"))","v":""},{"$f":"IF(IFERROR(VLOOKUP($A46,STEP_ALL!$A:$AH,COLUMN(),FALSE),\"\")=0,\"\",IFERROR(VLOOKUP($A46,STEP_ALL!$A:$AH,COLUMN(),FALSE),\"\"))","v":""},{"$f":"IF(IFERROR(VLOOKUP($A46,STEP_ALL!$A:$AH,COLUMN(),FALSE),\"\")=0,\"\",IFERROR(VLOOKUP($A46,STEP_ALL!$A:$AH,COLUMN(),FALSE),\"\"))","v":""},{"$f":"IF(IFERROR(VLOOKUP($A46,STEP_ALL!$A:$AH,COLUMN(),FALSE),\"\")=0,\"\",IFERROR(VLOOKUP($A46,STEP_ALL!$A:$AH,COLUMN(),FALSE),\"\"))","v":""},{"$f":"IF(IFERROR(VLOOKUP($A46,STEP_ALL!$A:$AH,COLUMN(),FALSE),\"\")=0,\"\",IFERROR(VLOOKUP($A46,STEP_ALL!$A:$AH,COLUMN(),FALSE),\"\"))","v":""},{"$f":"IF(IFERROR(VLOOKUP($A46,STEP_ALL!$A:$AH,COLUMN(),FALSE),\"\")=0,\"\",IFERROR(VLOOKUP($A46,STEP_ALL!$A:$AH,COLUMN(),FALSE),\"\"))","v":""},{"$f":"IF(IFERROR(VLOOKUP($A46,STEP_ALL!$A:$AH,COLUMN(),FALSE),\"\")=0,\"\",IFERROR(VLOOKUP($A46,STEP_ALL!$A:$AH,COLUMN(),FALSE),\"\"))","v":""},{"$f":"IF(IFERROR(VLOOKUP($A46,STEP_ALL!$A:$AH,COLUMN(),FALSE),\"\")=0,\"\",IFERROR(VLOOKUP($A46,STEP_ALL!$A:$AH,COLUMN(),FALSE),\"\"))","v":""},{"$f":"IF(IFERROR(VLOOKUP($A46,STEP_ALL!$A:$AH,COLUMN(),FALSE),\"\")=0,\"\",IFERROR(VLOOKUP($A46,STEP_ALL!$A:$AH,COLUMN(),FALSE),\"\"))","v":""},{"$f":"IF(IFERROR(VLOOKUP($A46,STEP_ALL!$A:$AH,COLUMN(),FALSE),\"\")=0,\"\",IFERROR(VLOOKUP($A46,STEP_ALL!$A:$AH,COLUMN(),FALSE),\"\"))","v":""},{"$f":"IF(IFERROR(VLOOKUP($A46,STEP_ALL!$A:$AH,COLUMN(),FALSE),\"\")=0,\"\",IFERROR(VLOOKUP($A46,STEP_ALL!$A:$AH,COLUMN(),FALSE),\"\"))","v":""},{"$f":"IF(IFERROR(VLOOKUP($A46,STEP_ALL!$A:$AH,COLUMN(),FALSE),\"\")=0,\"\",IFERROR(VLOOKUP($A46,STEP_ALL!$A:$AH,COLUMN(),FALSE),\"\"))","v":""},{"$f":"IF(IFERROR(VLOOKUP($A46,STEP_ALL!$A:$AH,COLUMN(),FALSE),\"\")=0,\"\",IFERROR(VLOOKUP($A46,STEP_ALL!$A:$AH,COLUMN(),FALSE),\"\"))","v":""},{"$f":"IF(IFERROR(VLOOKUP($A46,STEP_ALL!$A:$AH,COLUMN(),FALSE),\"\")=0,\"\",IFERROR(VLOOKUP($A46,STEP_ALL!$A:$AH,COLUMN(),FALSE),\"\"))","v":""}]
["1-41",1,41,{"$f":"IF(IFERROR(VLOOKUP($A47,STEP_ALL!$A:$AH,COLUMN(),FALSE),\"\")=0,\"\",IFERROR(VLOOKUP($A47,STEP_ALL!$A:$AH,COLUMN(),FALSE),\"\"))","v":""},{"$f":"IF(IFERROR(VLOOKUP($A47,STEP_ALL!$A:$AH,COLUMN(),FALSE),\"\")=0,\"\",IFERROR(VLOOKUP($A47,STEP_ALL!$A:$AH,COLUMN(),FALSE),\"\"))","v":""},{"$f":"IF(IFERROR(VLOOKUP($A47,STEP_ALL!$A:$AH,COLUMN(),FALSE),\"\")=0,\"\",IFERROR(VLOOKUP($A47,STEP_ALL!$A:$AH,COLUMN(),FALSE),\"\"))","v":""},{"$f":"IF(IFERROR(VLOOKUP($A47,STEP_ALL!$A:$AH,COLUMN(),FALSE),\"\")=0,\"\",IFERROR(VLOOKUP($A47,STEP_ALL!$A:$AH,COLUMN(),FALSE),\"\"))","v":""},{"$f":"IF(IFERROR(VLOOKUP($A47,STEP_ALL!$A:$AH,COLUMN(),FALSE),\"\")=0,\"\",IFERROR(VLOOKUP($A47,STEP_ALL!$A:$AH,COLUMN(),FALSE),\"\"))","v":""},{"$f":"IF(IFERROR(VLOOKUP($A47,STEP_ALL!$A:$AH,COLUMN(),FALSE),\"\")=0,\"\",IFERROR(VLOOKUP($A47,STEP_ALL!$A:$AH,COLUMN(),FALSE),\"\"))","v":""},{"$f":"IF(IFERROR(VLOOKUP($A47,STEP_ALL!$A:$AH,COLUMN(),FALSE),\"\")=0,\"\",IFERROR(VLOOKUP($A47,STEP_ALL!$A:$AH,COLUMN(),FALSE),\"\"))","v":""},{"$f":"IF(IFERROR(VLOOKUP($A47,STEP_ALL!$A:$AH,COLUMN(),FALSE),\"\")=0,\"\",IFERROR(VLOOKUP($A47,STEP_ALL!$A:$AH,COLUMN(),FALSE),\"\"))","v":""},{"$f":"IF(IFERROR(VLOOKUP($A47,STEP_ALL!$A:$AH,COLUMN(),FALSE),\"\")=0,\"\",IFERROR(VLOOKUP($A47,STEP_ALL!$A:$AH,COLUMN(),FALSE),\"\"))","v":""},{"$f":"IF(IFERROR(VLOOKUP($A47,STEP_ALL!$A:$AH,COLUMN(),FALSE),\"\")=0,\"\",IFERROR(VLOOKUP($A47,STEP_ALL!$A:$AH,COLUMN(),FALSE),\"\"))","v":""},{"$f":"IF(IFERROR(VLOOKUP($A47,STEP_ALL!$A:$AH,COLUMN(),FALSE),\"\")=0,\"\",IFERROR(VLOOKUP($A47,STEP_ALL!$A:$AH,COLUMN(),FALSE),\"\"))","v":""},{"$f":"IF(IFERROR(VLOOKUP($A47,STEP_ALL!$A:$AH,COLUMN(),FALSE),\"\")=0,\"\",IFERROR(VLOOKUP($A47,STEP_ALL!$A:$AH,COLUMN(),FALSE),\"\"))","v":""},{"$f":"IF(IFERROR(VLOOKUP($A47,STEP_ALL!$A:$AH,COLUMN(),FALSE),\"\")=0,\"\",IFERROR(VLOOKUP($A47,STEP_ALL!$A:$AH,COLUMN(),FALSE),\"\"))","v":""},{"$f":"IF(IFERROR(VLOOKUP($A47,STEP_ALL!$A:$AH,COLUMN(),FALSE),\"\")=0,\"\",IFERROR(VLOOKUP($A47,STEP_ALL!$A:$AH,COLUMN(),FALSE),\"\"))","v":""},{"$f":"IF(IFERROR(VLOOKUP($A47,STEP_ALL!$A:$AH,COLUMN(),FALSE),\"\")=0,\"\",IFERROR(VLOOKUP($A47,STEP_ALL!$A:$AH,COLUMN(),FALSE),\"\"))","v":""},{"$f":"IF(IFERROR(VLOOKUP($A47,STEP_ALL!$A:$AH,COLUMN(),FALSE),\"\")=0,\"\",IFERROR(VLOOKUP($A47,STEP_ALL!$A:$AH,COLUMN(),FALSE),\"\"))","v":""},{"$f":"IF(IFERROR(VLOOKUP($A47,STEP_ALL!$A:$AH,COLUMN(),FALSE),\"\")=0,\"\",IFERROR(VLOOKUP($A47,STEP_ALL!$A:$AH,COLUMN(),FALSE),\"\"))","v":""},{"$f":"IF(IFERROR(VLOOKUP($A47,STEP_ALL!$A:$AH,COLUMN(),FALSE),\"\")=0,\"\",IFERROR(VLOOKUP($A47,STEP_ALL!$A:$AH,COLUMN(),FALSE),\"\"))","v":""},{"$f":"IF(IFERROR(VLOOKUP($A47,STEP_ALL!$A:$AH,COLUMN(),FALSE),\"\")=0,\"\",IFERROR(VLOOKUP($A47,STEP_ALL!$A:$AH,COLUMN(),FALSE),\"\"))","v":""},{"$f":"IF(IFERROR(VLOOKUP($A47,STEP_ALL!$A:$AH,COLUMN(),FALSE),\"\")=0,\"\",IFERROR(VLOOKUP($A47,STEP_ALL!$A:$AH,COLUMN(),FALSE),\"\"))","v":""},{"$f":"IF(IFERROR(VLOOKUP($A47,STEP_ALL!$A:$AH,COLUMN(),FALSE),\"\")=0,\"\",IFERROR(VLOOKUP($A47,STEP_ALL!$A:$AH,COLUMN(),FALSE),\"\"))","v":""},{"$f":"IF(IFERROR(VLOOKUP($A47,STEP_ALL!$A:$AH,COLUMN(),FALSE),\"\")=0,\"\",IFERROR(VLOOKUP($A47,STEP_ALL!$A:$AH,COLUMN(),FALSE),\"\"))","v":""},{"$f":"IF(IFERROR(VLOOKUP($A47,STEP_ALL!$A:$AH,COLUMN(),FALSE),\"\")=0,\"\",IFERROR(VLOOKUP($A47,STEP_ALL!$A:$AH,COLUMN(),FALSE),\"\"))","v":""},{"$f":"IF(IFERROR(VLOOKUP($A47,STEP_ALL!$A:$AH,COLUMN(),FALSE),\"\")=0,\"\",IFERROR(VLOOKUP($A47,STEP_ALL!$A:$AH,COLUMN(),FALSE),\"\"))","v":""},{"$f":"IF(IFERROR(VLOOKUP($A47,STEP_ALL!$A:$AH,COLUMN(),FALSE),\"\")=0,\"\",IFERROR(VLOOKUP($A47,STEP_ALL!$A:$AH,COLUMN(),FALSE),\"\"))","v":""},{"$f":"IF(IFERROR(VLOOKUP($A47,STEP_ALL!$A:$AH,COLUMN(),FALSE),\"\")=0,\"\",IFERROR(VLOOKUP($A47,STEP_ALL!$A:$AH,COLUMN(),FALSE),\"\"))","v":""},{"$f":"IF(IFERROR(VLOOKUP($A47,STEP_ALL!$A:$AH,COLUMN(),FALSE),\"\")=0,\"\",IFERROR(VLOOKUP($A47,STEP_ALL!$A:$AH,COLUMN(),FALSE),\"\"))","v":""},{"$f":"IF(IFERROR(VLOOKUP($A47,STEP_ALL!$A:$AH,COLUMN(),FALSE),\"\")=0,\"\",IFERROR(VLOOKUP($A47,STEP_ALL!$A:$AH,COLUMN(),FALSE),\"\"))","v":""},{"$f":"IF(IFERROR(VLOOKUP($A47,STEP_ALL!$A:$AH,COLUMN(),FALSE),\"\")=0,\"\",IFERROR(VLOOKUP($A47,STEP_ALL!$A:$AH,COLUMN(),FALSE),\"\"))","v":""},{"$f":"IF(IFERROR(VLOOKUP($A47,STEP_ALL!$A:$AH,COLUMN(),FALSE),\"\")=0,\"\",IFERROR(VLOOKUP($A47,STEP_ALL!$A:$AH,COLUMN(),FALSE),\"\"))","v":""},{"$f":"IF(IFERROR(VLOOKUP($A47,STEP_ALL!$A:$AH,COLUMN(),FALSE),\"\")=0,\"\",IFERROR(VLOOKUP($A47,STEP_ALL!$A:$AH,COLUMN(),FALSE),\"\"))","v":""}]
[{"$f":"B48&\"-\"&C48","v":"1-42"},1,42,{"$f":"IF(IFERROR(VLOOKUP($A48,STEP_ALL!$A:$AH,COLUMN(),FALSE),\"\")=0,\"\",IFERROR(VLOOKUP($A48,STEP_ALL!$A:$AH,COLUMN(),FALSE),\"\"))","v":""},{"$f":"IF(IFERROR(VLOOKUP($A48,STEP_ALL!$A:$AH,COLUMN(),FALSE),\"\")=0,\"\",IFERROR(VLOOKUP($A48,STEP_ALL!$A:$AH,COLUMN(),FALSE),\"\"))","v":""},{"$f":"IF(IFERROR(VLOOKUP($A48,STEP_ALL!$A:$AH,COLUMN(),FALSE),\"\")=0,\"\",IFERROR(VLOOKUP($A48,STEP_ALL!$A:$AH,COLUMN(),FALSE),\"\"))","v":""},{"$f":"IF(IFERROR(VLOOKUP($A48,STEP_ALL!$A:$AH,COLUMN(),FALSE),\"\")=0,\"\",IFERROR(VLOOKUP($A48,STEP_ALL!$A:$AH,COLUMN(),FALSE),\"\"))","v":""},{"$f":"IF(IFERROR(VLOOKUP($A48,STEP_ALL!$A:$AH,COLUMN(),FALSE),\"\")=0,\"\",IFERROR(VLOOKUP($A48,STEP_ALL!$A:$AH,COLUMN(),FALSE),\"\"))","v":""},{"$f":"IF(IFERROR(VLOOKUP($A48,STEP_ALL!$A:$AH,COLUMN(),FALSE),\"\")=0,\"\",IFERROR(VLOOKUP($A48,STEP_ALL!$A:$AH,COLUMN(),FALSE),\"\"))","v":""},{"$f":"IF(IFERROR(VLOOKUP($A48,STEP_ALL!$A:$AH,COLUMN(),FALSE),\"\")=0,\"\",IFERROR(VLOOKUP($A48,STEP_ALL!$A:$AH,COLUMN(),FALSE),\"\"))","v":""},{"$f":"IF(IFERROR(VLOOKUP($A48,STEP_ALL!$A:$AH,COLUMN(),FALSE),\"\")=0,\"\",IFERROR(VLOOKUP($A48,STEP_ALL!$A:$AH,COLUMN(),FALSE),\"\"))","v":""},{"$f":"IF(IFERROR(VLOOKUP($A48,STEP_ALL!$A:$AH,COLUMN(),FALSE),\"\")=0,\"\",IFERROR(VLOOKUP($A48,STEP_ALL!$A:$AH,COLUMN(),FALSE),\"\"))","v":""},{"$f":"IF(IFERROR(VLOOKUP($A48,STEP_ALL!$A:$AH,COLUMN(),FALSE),\"\")=0,\"\",IFERROR(VLOOKUP($A48,STEP_ALL!$A:$AH,COLUMN(),FALSE),\"\"))","v":""},{"$f":"IF(IFERROR(VLOOKUP($A48,STEP_ALL!$A:$AH,COLUMN(),FALSE),\"\")=0,\"\",IFERROR(VLOOKUP($A48,STEP_ALL!$A:$AH,COLUMN(),FALSE),\"\"))","v":""},{"$f":"IF(IFERROR(VLOOKUP($A48,STEP_ALL!$A:$AH,COLUMN(),FALSE),\"\")=0,\"\",IFERROR(VLOOKUP($A48,STEP_ALL!$A:$AH,COLUMN(),FALSE),\"\"))","v":""},{"$f":"IF(IFERROR(VLOOKUP($A48,STEP_ALL!$A:$AH,COLUMN(),FALSE),\"\")=0,\"\",IFERROR(VLOOKUP($A48,STEP_ALL!$A:$AH,COLUMN(),FALSE),\"\"))","v":""},{"$f":"IF(IFERROR(VLOOKUP($A48,STEP_ALL!$A:$AH,COLUMN(),FALSE),\"\")=0,\"\",IFERROR(VLOOKUP($A48,STEP_ALL!$A:$AH,COLUMN(),FALSE),\"\"))","v":""},{"$f":"IF(IFERROR(VLOOKUP($A48,STEP_ALL!$A:$AH,COLUMN(),FALSE),\"\")=0,\"\",IFERROR(VLOOKUP($A48,STEP_ALL!$A:$AH,COLUMN(),FALSE),\"\"))","v":""},{"$f":"IF(IFERROR(VLOOKUP($A48,STEP_ALL!$A:$AH,COLUMN(),FALSE),\"\")=0,\"\",IFERROR(VLOOKUP($A48,STEP_ALL!$A:$AH,COLUMN(),FALSE),\"\"))","v":""},{"$f":"IF(IFERROR(VLOOKUP($A48,STEP_ALL!$A:$AH,COLUMN(),FALSE),\"\")=0,\"\",IFERROR(VLOOKUP($A48,STEP_ALL!$A:$AH,COLUMN(),FALSE),\"\"))","v":""},{"$f":"IF(IFERROR(VLOOKUP($A48,STEP_ALL!$A:$AH,COLUMN(),FALSE),\"\")=0,\"\",IFERROR(VLOOKUP($A48,STEP_ALL!$A:$AH,COLUMN(),FALSE),\"\"))","v":""},{"$f":"IF(IFERROR(VLOOKUP($A48,STEP_ALL!$A:$AH,COLUMN(),FALSE),\"\")=0,\"\",IFERROR(VLOOKUP($A48,STEP_ALL!$A:$AH,COLUMN(),FALSE),\"\"))","v":""},{"$f":"IF(IFERROR(VLOOKUP($A48,STEP_ALL!$A:$AH,COLUMN(),FALSE),\"\")=0,\"\",IFERROR(VLOOKUP($A48,STEP_ALL!$A:$AH,COLUMN(),FALSE),\"\"))","v":""},{"$f":"IF(IFERROR(VLOOKUP($A48,STEP_ALL!$A:$AH,COLUMN(),FALSE),\"\")=0,\"\",IFERROR(VLOOKUP($A48,STEP_ALL!$A:$AH,COLUMN(),FALSE),\"\"))","v":""},{"$f":"IF(IFERROR(VLOOKUP($A48,STEP_ALL!$A:$AH,COLUMN(),FALSE),\"\")=0,\"\",IFERROR(VLOOKUP($A48,STEP_ALL!$A:$AH,COLUMN(),FALSE),\"\"))","v":""},{"$f":"IF(IFERROR(VLOOKUP($A48,STEP_ALL!$A:$AH,COLUMN(),FALSE),\"\")=0,\"\",IFERROR(VLOOKUP($A48,STEP_ALL!$A:$AH,COLUMN(),FALSE),\"\"))","v":""},{"$f":"IF(IFERROR(VLOOKUP($A48,STEP_ALL!$A:$AH,COLUMN(),FALSE),\"\")=0,\"\",IFERROR(VLOOKUP($A48,STEP_ALL!$A:$AH,COLUMN(),FALSE),\"\"))","v":""},{"$f":"IF(IFERROR(VLOOKUP($A48,STEP_ALL!$A:$AH,COLUMN(),FALSE),\"\")=0,\"\",IFERROR(VLOOKUP($A48,STEP_ALL!$A:$AH,COLUMN(),FALSE),\"\"))","v":""},{"$f":"IF(IFERROR(VLOOKUP($A48,STEP_ALL!$A:$AH,COLUMN(),FALSE),\"\")=0,\"\",IFERROR(VLOOKUP($A48,STEP_ALL!$A:$AH,COLUMN(),FALSE),\"\"))","v":""},{"$f":"IF(IFERROR(VLOOKUP($A48,STEP_ALL!$A:$AH,COLUMN(),FALSE),\"\")=0,\"\",IFERROR(VLOOKUP($A48,STEP_ALL!$A:$AH,COLUMN(),FALSE),\"\"))","v":""},{"$f":"IF(IFERROR(VLOOKUP($A48,STEP_ALL!$A:$AH,COLUMN(),FALSE),\"\")=0,\"\",IFERROR(VLOOKUP($A48,STEP_ALL!$A:$AH,COLUMN(),FALSE),\"\"))","v":""},{"$f":"IF(IFERROR(VLOOKUP($A48,STEP_ALL!$A:$AH,COLUMN(),FALSE),\"\")=0,\"\",IFERROR(VLOOKUP($A48,STEP_ALL!$A:$AH,COLUMN(),FALSE),\"\"))","v":""},{"$f":"IF(IFERROR(VLOOKUP($A48,STEP_ALL!$A:$AH,COLUMN(),FALSE),\"\")=0,\"\",IFERROR(VLOOKUP($A48,STEP_ALL!$A:$AH,COLUMN(),FALSE),\"\"))","v":""},{"$f":"IF(IFERROR(VLOOKUP($A48,STEP_ALL!$A:$AH,COLUMN(),FALSE),\"\")=0,\"\",IFERROR(VLOOKUP($A48,STEP_ALL!$A:$AH,COLUMN(),FALSE),\"\"))","v":""}]
["1-43",1,43,{"$f":"IF(IFERROR(VLOOKUP($A49,STEP_ALL!$A:$AH,COLUMN(),FALSE),\"\")=0,\"\",IFERROR(VLOOKUP($A49,STEP_ALL!$A:$AH,COLUMN(),FALSE),\"\"))","v":""},{"$f":"IF(IFERROR(VLOOKUP($A49,STEP_ALL!$A:$AH,COLUMN(),FALSE),\"\")=0,\"\",IFERROR(VLOOKUP($A49,STEP_ALL!$A:$AH,COLUMN(),FALSE),\"\"))","v":""},{"$f":"IF(IFERROR(VLOOKUP($A49,STEP_ALL!$A:$AH,COLUMN(),FALSE),\"\")=0,\"\",IFERROR(VLOOKUP($A49,STEP_ALL!$A:$AH,COLUMN(),FALSE),\"\"))","v":""},{"$f":"IF(IFERROR(VLOOKUP($A49,STEP_ALL!$A:$AH,COLUMN(),FALSE),\"\")=0,\"\",IFERROR(VLOOKUP($A49,STEP_ALL!$A:$AH,COLUMN(),FALSE),\"\"))","v":""},{"$f":"IF(IFERROR(VLOOKUP($A49,STEP_ALL!$A:$AH,COLUMN(),FALSE),\"\")=0,\"\",IFERROR(VLOOKUP($A49,STEP_ALL!$A:$AH,COLUMN(),FALSE),\"\"))","v":""},{"$f":"IF(IFERROR(VLOOKUP($A49,STEP_ALL!$A:$AH,COLUMN(),FALSE),\"\")=0,\"\",IFERROR(VLOOKUP($A49,STEP_ALL!$A:$AH,COLUMN(),FALSE),\"\"))","v":""},{"$f":"IF(IFERROR(VLOOKUP($A49,STEP_ALL!$A:$AH,COLUMN(),FALSE),\"\")=0,\"\",IFERROR(VLOOKUP($A49,STEP_ALL!$A:$AH,COLUMN(),FALSE),\"\"))","v":""},{"$f":"IF(IFERROR(VLOOKUP($A49,STEP_ALL!$A:$AH,COLUMN(),FALSE),\"\")=0,\"\",IFERROR(VLOOKUP($A49,STEP_ALL!$A:$AH,COLUMN(),FALSE),\"\"))","v":""},{"$f":"IF(IFERROR(VLOOKUP($A49,STEP_ALL!$A:$AH,COLUMN(),FALSE),\"\")=0,\"\",IFERROR(VLOOKUP($A49,STEP_ALL!$A:$AH,COLUMN(),FALSE),\"\"))","v":""},{"$f":"IF(IFERROR(VLOOKUP($A49,STEP_ALL!$A:$AH,COLUMN(),FALSE),\"\")=0,\"\",IFERROR(VLOOKUP($A49,STEP_ALL!$A:$AH,COLUMN(),FALSE),\"\"))","v":""},{"$f":"IF(IFERROR(VLOOKUP($A49,STEP_ALL!$A:$AH,COLUMN(),FALSE),\"\")=0,\"\",IFERROR(VLOOKUP($A49,STEP_ALL!$A:$AH,COLUMN(),FALSE),\"\"))","v":""},{"$f":"IF(IFERROR(VLOOKUP($A49,STEP_ALL!$A:$AH,COLUMN(),FALSE),\"\")=0,\"\",IFERROR(VLOOKUP($A49,STEP_ALL!$A:$AH,COLUMN(),FALSE),\"\"))","v":""},{"$f":"IF(IFERROR(VLOOKUP($A49,STEP_ALL!$A:$AH,COLUMN(),FALSE),\"\")=0,\"\",IFERROR(VLOOKUP($A49,STEP_ALL!$A:$AH,COLUMN(),FALSE),\"\"))","v":""},{"$f":"IF(IFERROR(VLOOKUP($A49,STEP_ALL!$A:$AH,COLUMN(),FALSE),\"\")=0,\"\",IFERROR(VLOOKUP($A49,STEP_ALL!$A:$AH,COLUMN(),FALSE),\"\"))","v":""},{"$f":"IF(IFERROR(VLOOKUP($A49,STEP_ALL!$A:$AH,COLUMN(),FALSE),\"\")=0,\"\",IFERROR(VLOOKUP($A49,STEP_ALL!$A:$AH,COLUMN(),FALSE),\"\"))","v":""},{"$f":"IF(IFERROR(VLOOKUP($A49,STEP_ALL!$A:$AH,COLUMN(),FALSE),\"\")=0,\"\",IFERROR(VLOOKUP($A49,STEP_ALL!$A:$AH,COLUMN(),FALSE),\"\"))","v":""},{"$f":"IF(IFERROR(VLOOKUP($A49,STEP_ALL!$A:$AH,COLUMN(),FALSE),\"\")=0,\"\",IFERROR(VLOOKUP($A49,STEP_ALL!$A:$AH,COLUMN(),FALSE),\"\"))","v":""},{"$f":"IF(IFERROR(VLOOKUP($A49,STEP_ALL!$A:$AH,COLUMN(),FALSE),\"\")=0,\"\",IFERROR(VLOOKUP($A49,STEP_ALL!$A:$AH,COLUMN(),FALSE),\"\"))","v":""},{"$f":"IF(IFERROR(VLOOKUP($A49,STEP_ALL!$A:$AH,COLUMN(),FALSE),\"\")=0,\"\",IFERROR(VLOOKUP($A49,STEP_ALL!$A:$AH,COLUMN(),FALSE),\"\"))","v":""},{"$f":"IF(IFERROR(VLOOKUP($A49,STEP_ALL!$A:$AH,COLUMN(),FALSE),\"\")=0,\"\",IFERROR(VLOOKUP($A49,STEP_ALL!$A:$AH,COLUMN(),FALSE),\"\"))","v":""},{"$f":"IF(IFERROR(VLOOKUP($A49,STEP_ALL!$A:$AH,COLUMN(),FALSE),\"\")=0,\"\",IFERROR(VLOOKUP($A49,STEP_ALL!$A:$AH,COLUMN(),FALSE),\"\"))","v":""},{"$f":"IF(IFERROR(VLOOKUP($A49,STEP_ALL!$A:$AH,COLUMN(),FALSE),\"\")=0,\"\",IFERROR(VLOOKUP($A49,STEP_ALL!$A:$AH,COLUMN(),FALSE),\"\"))","v":""},{"$f":"IF(IFERROR(VLOOKUP($A49,STEP_ALL!$A:$AH,COLUMN(),FALSE),\"\")=0,\"\",IFERROR(VLOOKUP($A49,STEP_ALL!$A:$AH,COLUMN(),FALSE),\"\"))","v":""},{"$f":"IF(IFERROR(VLOOKUP($A49,STEP_ALL!$A:$AH,COLUMN(),FALSE),\"\")=0,\"\",IFERROR(VLOOKUP($A49,STEP_ALL!$A:$AH,COLUMN(),FALSE),\"\"))","v":""},{"$f":"IF(IFERROR(VLOOKUP($A49,STEP_ALL!$A:$AH,COLUMN(),FALSE),\"\")=0,\"\",IFERROR(VLOOKUP($A49,STEP_ALL!$A:$AH,COLUMN(),FALSE),\"\"))","v":""},{"$f":"IF(IFERROR(VLOOKUP($A49,STEP_ALL!$A:$AH,COLUMN(),FALSE),\"\")=0,\"\",IFERROR(VLOOKUP($A49,STEP_ALL!$A:$AH,COLUMN(),FALSE),\"\"))","v":""},{"$f":"IF(IFERROR(VLOOKUP($A49,STEP_ALL!$A:$AH,COLUMN(),FALSE),\"\")=0,\"\",IFERROR(VLOOKUP($A49,STEP_ALL!$A:$AH,COLUMN(),FALSE),\"\"))","v":""},{"$f":"IF(IFERROR(VLOOKUP($A49,STEP_ALL!$A:$AH,COLUMN(),FALSE),\"\")=0,\"\",IFERROR(VLOOKUP($A49,STEP_ALL!$A:$AH,COLUMN(),FALSE),\"\"))","v":""},{"$f":"IF(IFERROR(VLOOKUP($A49,STEP_ALL!$A:$AH,COLUMN(),FALSE),\"\")=0,\"\",IFERROR(VLOOKUP($A49,STEP_ALL!$A:$AH,COLUMN(),FALSE),\"\"))","v":""},{"$f":"IF(IFERROR(VLOOKUP($A49,STEP_ALL!$A:$AH,COLUMN(),FALSE),\"\")=0,\"\",IFERROR(VLOOKUP($A49,STEP_ALL!$A:$AH,COLUMN(),FALSE),\"\"))","v":""},{"$f":"IF(IFERROR(VLOOKUP($A49,STEP_ALL!$A:$AH,COLUMN(),FALSE),\"\")=0,\"\",IFERROR(VLOOKUP($A49,STEP_ALL!$A:$AH,COLUMN(),FALSE),\"\"))","v":""}]
["1-44",1,44,{"$f":"IF(IFERROR(VLOOKUP($A50,STEP_ALL!$A:$AH,COLUMN(),FALSE),\"\")=0,\"\",IFERROR(VLOOKUP($A50,STEP_ALL!$A:$AH,COLUMN(),FALSE),\"\"))","v":""},{"$f":"IF(IFERROR(VLOOKUP($A50,STEP_ALL!$A:$AH,COLUMN(),FALSE),\"\")=0,\"\",IFERROR(VLOOKUP($A50,STEP_ALL!$A:$AH,COLUMN(),FALSE),\"\"))","v":""},{"$f":"IF(IFERROR(VLOOKUP($A50,STEP_ALL!$A:$AH,COLUMN(),FALSE),\"\")=0,\"\",IFERROR(VLOOKUP($A50,STEP_ALL!$A:$AH,COLUMN(),FALSE),\"\"))","v":""},{"$f":"IF(IFERROR(VLOOKUP($A50,STEP_ALL!$A:$AH,COLUMN(),FALSE),\"\")=0,\"\",IFERROR(VLOOKUP($A50,STEP_ALL!$A:$AH,COLUMN(),FALSE),\"\"))","v":""},{"$f":"IF(IFERROR(VLOOKUP($A50,STEP_ALL!$A:$AH,COLUMN(),FALSE),\"\")=0,\"\",IFERROR(VLOOKUP($A50,STEP_ALL!$A:$AH,COLUMN(),FALSE),\"\"))","v":""},{"$f":"IF(IFERROR(VLOOKUP($A50,STEP_ALL!$A:$AH,COLUMN(),FALSE),\"\")=0,\"\",IFERROR(VLOOKUP($A50,STEP_ALL!$A:$AH,COLUMN(),FALSE),\"\"))","v":""},{"$f":"IF(IFERROR(VLOOKUP($A50,STEP_ALL!$A:$AH,COLUMN(),FALSE),\"\")=0,\"\",IFERROR(VLOOKUP($A50,STEP_ALL!$A:$AH,COLUMN(),FALSE),\"\"))","v":""},{"$f":"IF(IFERROR(VLOOKUP($A50,STEP_ALL!$A:$AH,COLUMN(),FALSE),\"\")=0,\"\",IFERROR(VLOOKUP($A50,STEP_ALL!$A:$AH,COLUMN(),FALSE),\"\"))","v":""},{"$f":"IF(IFERROR(VLOOKUP($A50,STEP_ALL!$A:$AH,COLUMN(),FALSE),\"\")=0,\"\",IFERROR(VLOOKUP($A50,STEP_ALL!$A:$AH,COLUMN(),FALSE),\"\"))","v":""},{"$f":"IF(IFERROR(VLOOKUP($A50,STEP_ALL!$A:$AH,COLUMN(),FALSE),\"\")=0,\"\",IFERROR(VLOOKUP($A50,STEP_ALL!$A:$AH,COLUMN(),FALSE),\"\"))","v":""},{"$f":"IF(IFERROR(VLOOKUP($A50,STEP_ALL!$A:$AH,COLUMN(),FALSE),\"\")=0,\"\",IFERROR(VLOOKUP($A50,STEP_ALL!$A:$AH,COLUMN(),FALSE),\"\"))","v":""},{"$f":"IF(IFERROR(VLOOKUP($A50,STEP_ALL!$A:$AH,COLUMN(),FALSE),\"\")=0,\"\",IFERROR(VLOOKUP($A50,STEP_ALL!$A:$AH,COLUMN(),FALSE),\"\"))","v":""},{"$f":"IF(IFERROR(VLOOKUP($A50,STEP_ALL!$A:$AH,COLUMN(),FALSE),\"\")=0,\"\",IFERROR(VLOOKUP($A50,STEP_ALL!$A:$AH,COLUMN(),FALSE),\"\"))","v":""},{"$f":"IF(IFERROR(VLOOKUP($A50,STEP_ALL!$A:$AH,COLUMN(),FALSE),\"\")=0,\"\",IFERROR(VLOOKUP($A50,STEP_ALL!$A:$AH,COLUMN(),FALSE),\"\"))","v":""},{"$f":"IF(IFERROR(VLOOKUP($A50,STEP_ALL!$A:$AH,COLUMN(),FALSE),\"\")=0,\"\",IFERROR(VLOOKUP($A50,STEP_ALL!$A:$AH,COLUMN(),FALSE),\"\"))","v":""},{"$f":"IF(IFERROR(VLOOKUP($A50,STEP_ALL!$A:$AH,COLUMN(),FALSE),\"\")=0,\"\",IFERROR(VLOOKUP($A50,STEP_ALL!$A:$AH,COLUMN(),FALSE),\"\"))","v":""},{"$f":"IF(IFERROR(VLOOKUP($A50,STEP_ALL!$A:$AH,COLUMN(),FALSE),\"\")=0,\"\",IFERROR(VLOOKUP($A50,STEP_ALL!$A:$AH,COLUMN(),FALSE),\"\"))","v":""},{"$f":"IF(IFERROR(VLOOKUP($A50,STEP_ALL!$A:$AH,COLUMN(),FALSE),\"\")=0,\"\",IFERROR(VLOOKUP($A50,STEP_ALL!$A:$AH,COLUMN(),FALSE),\"\"))","v":""},{"$f":"IF(IFERROR(VLOOKUP($A50,STEP_ALL!$A:$AH,COLUMN(),FALSE),\"\")=0,\"\",IFERROR(VLOOKUP($A50,STEP_ALL!$A:$AH,COLUMN(),FALSE),\"\"))","v":""},{"$f":"IF(IFERROR(VLOOKUP($A50,STEP_ALL!$A:$AH,COLUMN(),FALSE),\"\")=0,\"\",IFERROR(VLOOKUP($A50,STEP_ALL!$A:$AH,COLUMN(),FALSE),\"\"))","v":""},{"$f":"IF(IFERROR(VLOOKUP($A50,STEP_ALL!$A:$AH,COLUMN(),FALSE),\"\")=0,\"\",IFERROR(VLOOKUP($A50,STEP_ALL!$A:$AH,COLUMN(),FALSE),\"\"))","v":""},{"$f":"IF(IFERROR(VLOOKUP($A50,STEP_ALL!$A:$AH,COLUMN(),FALSE),\"\")=0,\"\",IFERROR(VLOOKUP($A50,STEP_ALL!$A:$AH,COLUMN(),FALSE),\"\"))","v":""},{"$f":"IF(IFERROR(VLOOKUP($A50,STEP_ALL!$A:$AH,COLUMN(),FALSE),\"\")=0,\"\",IFERROR(VLOOKUP($A50,STEP_ALL!$A:$AH,COLUMN(),FALSE),\"\"))","v":""},{"$f":"IF(IFERROR(VLOOKUP($A50,STEP_ALL!$A:$AH,COLUMN(),FALSE),\"\")=0,\"\",IFERROR(VLOOKUP($A50,STEP_ALL!$A:$AH,COLUMN(),FALSE),\"\"))","v":""},{"$f":"IF(IFERROR(VLOOKUP($A50,STEP_ALL!$A:$AH,COLUMN(),FALSE),\"\")=0,\"\",IFERROR(VLOOKUP($A50,STEP_ALL!$A:$AH,COLUMN(),FALSE),\"\"))","v":""},{"$f":"IF(IFERROR(VLOOKUP($A50,STEP_ALL!$A:$AH,COLUMN(),FALSE),\"\")=0,\"\",IFERROR(VLOOKUP($A50,STEP_ALL!$A:$AH,COLUMN(),FALSE),\"\"))","v":""},{"$f":"IF(IFERROR(VLOOKUP($A50,STEP_ALL!$A:$AH,COLUMN(),FALSE),\"\")=0,\"\",IFERROR(VLOOKUP($A50,STEP_ALL!$A:$AH,COLUMN(),FALSE),\"\"))","v":""},{"$f":"IF(IFERROR(VLOOKUP($A50,STEP_ALL!$A:$AH,COLUMN(),FALSE),\"\")=0,\"\",IFERROR(VLOOKUP($A50,STEP_ALL!$A:$AH,COLUMN(),FALSE),\"\"))","v":""},{"$f":"IF(IFERROR(VLOOKUP($A50,STEP_ALL!$A:$AH,COLUMN(),FALSE),\"\")=0,\"\",IFERROR(VLOOKUP($A50,STEP_ALL!$A:$AH,COLUMN(),FALSE),\"\"))","v":""},{"$f":"IF(IFERROR(VLOOKUP($A50,STEP_ALL!$A:$AH,COLUMN(),FALSE),\"\")=0,\"\",IFERROR(VLOOKUP($A50,STEP_ALL!$A:$AH,COLUMN(),FALSE),\"\"))","v":""},{"$f":"IF(IFERROR(VLOOKUP($A50,STEP_ALL!$A:$AH,COLUMN(),FALSE),\"\")=0,\"\",IFERROR(VLOOKUP($A50,STEP_ALL!$A:$AH,COLUMN(),FALSE),\"\"))","v":""}]
["1-45",1,45,{"$f":"IF(IFERROR(VLOOKUP($A51,STEP_ALL!$A:$AH,COLUMN(),FALSE),\"\")=0,\"\",IFERROR(VLOOKUP($A51,STEP_ALL!$A:$AH,COLUMN(),FALSE),\"\"))","v":""},{"$f":"IF(IFERROR(VLOOKUP($A51,STEP_ALL!$A:$AH,COLUMN(),FALSE),\"\")=0,\"\",IFERROR(VLOOKUP($A51,STEP_ALL!$A:$AH,COLUMN(),FALSE),\"\"))","v":""},{"$f":"IF(IFERROR(VLOOKUP($A51,STEP_ALL!$A:$AH,COLUMN(),FALSE),\"\")=0,\"\",IFERROR(VLOOKUP($A51,STEP_ALL!$A:$AH,COLUMN(),FALSE),\"\"))","v":""},{"$f":"IF(IFERROR(VLOOKUP($A51,STEP_ALL!$A:$AH,COLUMN(),FALSE),\"\")=0,\"\",IFERROR(VLOOKUP($A51,STEP_ALL!$A:$AH,COLUMN(),FALSE),\"\"))","v":""},{"$f":"IF(IFERROR(VLOOKUP($A51,STEP_ALL!$A:$AH,COLUMN(),FALSE),\"\")=0,\"\",IFERROR(VLOOKUP($A51,STEP_ALL!$A:$AH,COLUMN(),FALSE),\"\"))","v":""},{"$f":"IF(IFERROR(VLOOKUP($A51,STEP_ALL!$A:$AH,COLUMN(),FALSE),\"\")=0,\"\",IFERROR(VLOOKUP($A51,STEP_ALL!$A:$AH,COLUMN(),FALSE),\"\"))","v":""},{"$f":"IF(IFERROR(VLOOKUP($A51,STEP_ALL!$A:$AH,COLUMN(),FALSE),\"\")=0,\"\",IFERROR(VLOOKUP($A51,STEP_ALL!$A:$AH,COLUMN(),FALSE),\"\"))","v":""},{"$f":"IF(IFERROR(VLOOKUP($A51,STEP_ALL!$A:$AH,COLUMN(),FALSE),\"\")=0,\"\",IFERROR(VLOOKUP($A51,STEP_ALL!$A:$AH,COLUMN(),FALSE),\"\"))","v":""},{"$f":"IF(IFERROR(VLOOKUP($A51,STEP_ALL!$A:$AH,COLUMN(),FALSE),\"\")=0,\"\",IFERROR(VLOOKUP($A51,STEP_ALL!$A:$AH,COLUMN(),FALSE),\"\"))","v":""},{"$f":"IF(IFERROR(VLOOKUP($A51,STEP_ALL!$A:$AH,COLUMN(),FALSE),\"\")=0,\"\",IFERROR(VLOOKUP($A51,STEP_ALL!$A:$AH,COLUMN(),FALSE),\"\"))","v":""},{"$f":"IF(IFERROR(VLOOKUP($A51,STEP_ALL!$A:$AH,COLUMN(),FALSE),\"\")=0,\"\",IFERROR(VLOOKUP($A51,STEP_ALL!$A:$AH,COLUMN(),FALSE),\"\"))","v":""},{"$f":"IF(IFERROR(VLOOKUP($A51,STEP_ALL!$A:$AH,COLUMN(),FALSE),\"\")=0,\"\",IFERROR(VLOOKUP($A51,STEP_ALL!$A:$AH,COLUMN(),FALSE),\"\"))","v":""},{"$f":"IF(IFERROR(VLOOKUP($A51,STEP_ALL!$A:$AH,COLUMN(),FALSE),\"\")=0,\"\",IFERROR(VLOOKUP($A51,STEP_ALL!$A:$AH,COLUMN(),FALSE),\"\"))","v":""},{"$f":"IF(IFERROR(VLOOKUP($A51,STEP_ALL!$A:$AH,COLUMN(),FALSE),\"\")=0,\"\",IFERROR(VLOOKUP($A51,STEP_ALL!$A:$AH,COLUMN(),FALSE),\"\"))","v":""},{"$f":"IF(IFERROR(VLOOKUP($A51,STEP_ALL!$A:$AH,COLUMN(),FALSE),\"\")=0,\"\",IFERROR(VLOOKUP($A51,STEP_ALL!$A:$AH,COLUMN(),FALSE),\"\"))","v":""},{"$f":"IF(IFERROR(VLOOKUP($A51,STEP_ALL!$A:$AH,COLUMN(),FALSE),\"\")=0,\"\",IFERROR(VLOOKUP($A51,STEP_ALL!$A:$AH,COLUMN(),FALSE),\"\"))","v":""},{"$f":"IF(IFERROR(VLOOKUP($A51,STEP_ALL!$A:$AH,COLUMN(),FALSE),\"\")=0,\"\",IFERROR(VLOOKUP($A51,STEP_ALL!$A:$AH,COLUMN(),FALSE),\"\"))","v":""},{"$f":"IF(IFERROR(VLOOKUP($A51,STEP_ALL!$A:$AH,COLUMN(),FALSE),\"\")=0,\"\",IFERROR(VLOOKUP($A51,STEP_ALL!$A:$AH,COLUMN(),FALSE),\"\"))","v":""},{"$f":"IF(IFERROR(VLOOKUP($A51,STEP_ALL!$A:$AH,COLUMN(),FALSE),\"\")=0,\"\",IFERROR(VLOOKUP($A51,STEP_ALL!$A:$AH,COLUMN(),FALSE),\"\"))","v":""},{"$f":"IF(IFERROR(VLOOKUP($A51,STEP_ALL!$A:$AH,COLUMN(),FALSE),\"\")=0,\"\",IFERROR(VLOOKUP($A51,STEP_ALL!$A:$AH,COLUMN(),FALSE),\"\"))","v":""},{"$f":"IF(IFERROR(VLOOKUP($A51,STEP_ALL!$A:$AH,COLUMN(),FALSE),\"\")=0,\"\",IFERROR(VLOOKUP($A51,STEP_ALL!$A:$AH,COLUMN(),FALSE),\"\"))","v":""},{"$f":"IF(IFERROR(VLOOKUP($A51,STEP_ALL!$A:$AH,COLUMN(),FALSE),\"\")=0,\"\",IFERROR(VLOOKUP($A51,STEP_ALL!$A:$AH,COLUMN(),FALSE),\"\"))","v":""},{"$f":"IF(IFERROR(VLOOKUP($A51,STEP_ALL!$A:$AH,COLUMN(),FALSE),\"\")=0,\"\",IFERROR(VLOOKUP($A51,STEP_ALL!$A:$AH,COLUMN(),FALSE),\"\"))","v":""},{"$f":"IF(IFERROR(VLOOKUP($A51,STEP_ALL!$A:$AH,COLUMN(),FALSE),\"\")=0,\"\",IFERROR(VLOOKUP($A51,STEP_ALL!$A:$AH,COLUMN(),FALSE),\"\"))","v":""},{"$f":"IF(IFERROR(VLOOKUP($A51,STEP_ALL!$A:$AH,COLUMN(),FALSE),\"\")=0,\"\",IFERROR(VLOOKUP($A51,STEP_ALL!$A:$AH,COLUMN(),FALSE),\"\"))","v":""},{"$f":"IF(IFERROR(VLOOKUP($A51,STEP_ALL!$A:$AH,COLUMN(),FALSE),\"\")=0,\"\",IFERROR(VLOOKUP($A51,STEP_ALL!$A:$AH,COLUMN(),FALSE),\"\"))","v":""},{"$f":"IF(IFERROR(VLOOKUP($A51,STEP_ALL!$A:$AH,COLUMN(),FALSE),\"\")=0,\"\",IFERROR(VLOOKUP($A51,STEP_ALL!$A:$AH,COLUMN(),FALSE),\"\"))","v":""},{"$f":"IF(IFERROR(VLOOKUP($A51,STEP_ALL!$A:$AH,COLUMN(),FALSE),\"\")=0,\"\",IFERROR(VLOOKUP($A51,STEP_ALL!$A:$AH,COLUMN(),FALSE),\"\"))","v":""},{"$f":"IF(IFERROR(VLOOKUP($A51,STEP_ALL!$A:$AH,COLUMN(),FALSE),\"\")=0,\"\",IFERROR(VLOOKUP($A51,STEP_ALL!$A:$AH,COLUMN(),FALSE),\"\"))","v":""},{"$f":"IF(IFERROR(VLOOKUP($A51,STEP_ALL!$A:$AH,COLUMN(),FALSE),\"\")=0,\"\",IFERROR(VLOOKUP($A51,STEP_ALL!$A:$AH,COLUMN(),FALSE),\"\"))","v":""},{"$f":"IF(IFERROR(VLOOKUP($A51,STEP_ALL!$A:$AH,COLUMN(),FALSE),\"\")=0,\"\",IFERROR(VLOOKUP($A51,STEP_ALL!$A:$AH,COLUMN(),FALSE),\"\"))","v":""}]
["1-46",1,46,{"$f":"IF(IFERROR(VLOOKUP($A52,STEP_ALL!$A:$AH,COLUMN(),FALSE),\"\")=0,\"\",IFERROR(VLOOKUP($A52,STEP_ALL!$A:$AH,COLUMN(),FALSE),\"\"))","v":""},{"$f":"IF(IFERROR(VLOOKUP($A52,STEP_ALL!$A:$AH,COLUMN(),FALSE),\"\")=0,\"\",IFERROR(VLOOKUP($A52,STEP_ALL!$A:$AH,COLUMN(),FALSE),\"\"))","v":""},{"$f":"IF(IFERROR(VLOOKUP($A52,STEP_ALL!$A:$AH,COLUMN(),FALSE),\"\")=0,\"\",IFERROR(VLOOKUP($A52,STEP_ALL!$A:$AH,COLUMN(),FALSE),\"\"))","v":""},{"$f":"IF(IFERROR(VLOOKUP($A52,STEP_ALL!$A:$AH,COLUMN(),FALSE),\"\")=0,\"\",IFERROR(VLOOKUP($A52,STEP_ALL!$A:$AH,COLUMN(),FALSE),\"\"))","v":""},{"$f":"IF(IFERROR(VLOOKUP($A52,STEP_ALL!$A:$AH,COLUMN(),FALSE),\"\")=0,\"\",IFERROR(VLOOKUP($A52,STEP_ALL!$A:$AH,COLUMN(),FALSE),\"\"))","v":""},{"$f":"IF(IFERROR(VLOOKUP($A52,STEP_ALL!$A:$AH,COLUMN(),FALSE),\"\")=0,\"\",IFERROR(VLOOKUP($A52,STEP_ALL!$A:$AH,COLUMN(),FALSE),\"\"))","v":""},{"$f":"IF(IFERROR(VLOOKUP($A52,STEP_ALL!$A:$AH,COLUMN(),FALSE),\"\")=0,\"\",IFERROR(VLOOKUP($A52,STEP_ALL!$A:$AH,COLUMN(),FALSE),\"\"))","v":""},{"$f":"IF(IFERROR(VLOOKUP($A52,STEP_ALL!$A:$AH,COLUMN(),FALSE),\"\")=0,\"\",IFERROR(VLOOKUP($A52,STEP_ALL!$A:$AH,COLUMN(),FALSE),\"\"))","v":""},{"$f":"IF(IFERROR(VLOOKUP($A52,STEP_ALL!$A:$AH,COLUMN(),FALSE),\"\")=0,\"\",IFERROR(VLOOKUP($A52,STEP_ALL!$A:$AH,COLUMN(),FALSE),\"\"))","v":""},{"$f":"IF(IFERROR(VLOOKUP($A52,STEP_ALL!$A:$AH,COLUMN(),FALSE),\"\")=0,\"\",IFERROR(VLOOKUP($A52,STEP_ALL!$A:$AH,COLUMN(),FALSE),\"\"))","v":""},{"$f":"IF(IFERROR(VLOOKUP($A52,STEP_ALL!$A:$AH,COLUMN(),FALSE),\"\")=0,\"\",IFERROR(VLOOKUP($A52,STEP_ALL!$A:$AH,COLUMN(),FALSE),\"\"))","v":""},{"$f":"IF(IFERROR(VLOOKUP($A52,STEP_ALL!$A:$AH,COLUMN(),FALSE),\"\")=0,\"\",IFERROR(VLOOKUP($A52,STEP_ALL!$A:$AH,COLUMN(),FALSE),\"\"))","v":""},{"$f":"IF(IFERROR(VLOOKUP($A52,STEP_ALL!$A:$AH,COLUMN(),FALSE),\"\")=0,\"\",IFERROR(VLOOKUP($A52,STEP_ALL!$A:$AH,COLUMN(),FALSE),\"\"))","v":""},{"$f":"IF(IFERROR(VLOOKUP($A52,STEP_ALL!$A:$AH,COLUMN(),FALSE),\"\")=0,\"\",IFERROR(VLOOKUP($A52,STEP_ALL!$A:$AH,COLUMN(),FALSE),\"\"))","v":""},{"$f":"IF(IFERROR(VLOOKUP($A52,STEP_ALL!$A:$AH,COLUMN(),FALSE),\"\")=0,\"\",IFERROR(VLOOKUP($A52,STEP_ALL!$A:$AH,COLUMN(),FALSE),\"\"))","v":""},{"$f":"IF(IFERROR(VLOOKUP($A52,STEP_ALL!$A:$AH,COLUMN(),FALSE),\"\")=0,\"\",IFERROR(VLOOKUP($A52,STEP_ALL!$A:$AH,COLUMN(),FALSE),\"\"))","v":""},{"$f":"IF(IFERROR(VLOOKUP($A52,STEP_ALL!$A:$AH,COLUMN(),FALSE),\"\")=0,\"\",IFERROR(VLOOKUP($A52,STEP_ALL!$A:$AH,COLUMN(),FALSE),\"\"))","v":""},{"$f":"IF(IFERROR(VLOOKUP($A52,STEP_ALL!$A:$AH,COLUMN(),FALSE),\"\")=0,\"\",IFERROR(VLOOKUP($A52,STEP_ALL!$A:$AH,COLUMN(),FALSE),\"\"))","v":""},{"$f":"IF(IFERROR(VLOOKUP($A52,STEP_ALL!$A:$AH,COLUMN(),FALSE),\"\")=0,\"\",IFERROR(VLOOKUP($A52,STEP_ALL!$A:$AH,COLUMN(),FALSE),\"\"))","v":""},{"$f":"IF(IFERROR(VLOOKUP($A52,STEP_ALL!$A:$AH,COLUMN(),FALSE),\"\")=0,\"\",IFERROR(VLOOKUP($A52,STEP_ALL!$A:$AH,COLUMN(),FALSE),\"\"))","v":""},{"$f":"IF(IFERROR(VLOOKUP($A52,STEP_ALL!$A:$AH,COLUMN(),FALSE),\"\")=0,\"\",IFERROR(VLOOKUP($A52,STEP_ALL!$A:$AH,COLUMN(),FALSE),\"\"))","v":""},{"$f":"IF(IFERROR(VLOOKUP($A52,STEP_ALL!$A:$AH,COLUMN(),FALSE),\"\")=0,\"\",IFERROR(VLOOKUP($A52,STEP_ALL!$A:$AH,COLUMN(),FALSE),\"\"))","v":""},{"$f":"IF(IFERROR(VLOOKUP($A52,STEP_ALL!$A:$AH,COLUMN(),FALSE),\"\")=0,\"\",IFERROR(VLOOKUP($A52,STEP_ALL!$A:$AH,COLUMN(),FALSE),\"\"))","v":""},{"$f":"IF(IFERROR(VLOOKUP($A52,STEP_ALL!$A:$AH,COLUMN(),FALSE),\"\")=0,\"\",IFERROR(VLOOKUP($A52,STEP_ALL!$A:$AH,COLUMN(),FALSE),\"\"))","v":""},{"$f":"IF(IFERROR(VLOOKUP($A52,STEP_ALL!$A:$AH,COLUMN(),FALSE),\"\")=0,\"\",IFERROR(VLOOKUP($A52,STEP_ALL!$A:$AH,COLUMN(),FALSE),\"\"))","v":""},{"$f":"IF(IFERROR(VLOOKUP($A52,STEP_ALL!$A:$AH,COLUMN(),FALSE),\"\")=0,\"\",IFERROR(VLOOKUP($A52,STEP_ALL!$A:$AH,COLUMN(),FALSE),\"\"))","v":""},{"$f":"IF(IFERROR(VLOOKUP($A52,STEP_ALL!$A:$AH,COLUMN(),FALSE),\"\")=0,\"\",IFERROR(VLOOKUP($A52,STEP_ALL!$A:$AH,COLUMN(),FALSE),\"\"))","v":""},{"$f":"IF(IFERROR(VLOOKUP($A52,STEP_ALL!$A:$AH,COLUMN(),FALSE),\"\")=0,\"\",IFERROR(VLOOKUP($A52,STEP_ALL!$A:$AH,COLUMN(),FALSE),\"\"))","v":""},{"$f":"IF(IFERROR(VLOOKUP($A52,STEP_ALL!$A:$AH,COLUMN(),FALSE),\"\")=0,\"\",IFERROR(VLOOKUP($A52,STEP_ALL!$A:$AH,COLUMN(),FALSE),\"\"))","v":""},{"$f":"IF(IFERROR(VLOOKUP($A52,STEP_ALL!$A:$AH,COLUMN(),FALSE),\"\")=0,\"\",IFERROR(VLOOKUP($A52,STEP_ALL!$A:$AH,COLUMN(),FALSE),\"\"))","v":""},{"$f":"IF(IFERROR(VLOOKUP($A52,STEP_ALL!$A:$AH,COLUMN(),FALSE),\"\")=0,\"\",IFERROR(VLOOKUP($A52,STEP_ALL!$A:$AH,COLUMN(),FALSE),\"\"))","v":""}]
["1-47",1,47,{"$f":"IF(IFERROR(VLOOKUP($A53,STEP_ALL!$A:$AH,COLUMN(),FALSE),\"\")=0,\"\",IFERROR(VLOOKUP($A53,STEP_ALL!$A:$AH,COLUMN(),FALSE),\"\"))","v":""},{"$f":"IF(IFERROR(VLOOKUP($A53,STEP_ALL!$A:$AH,COLUMN(),FALSE),\"\")=0,\"\",IFERROR(VLOOKUP($A53,STEP_ALL!$A:$AH,COLUMN(),FALSE),\"\"))","v":""},{"$f":"IF(IFERROR(VLOOKUP($A53,STEP_ALL!$A:$AH,COLUMN(),FALSE),\"\")=0,\"\",IFERROR(VLOOKUP($A53,STEP_ALL!$A:$AH,COLUMN(),FALSE),\"\"))","v":""},{"$f":"IF(IFERROR(VLOOKUP($A53,STEP_ALL!$A:$AH,COLUMN(),FALSE),\"\")=0,\"\",IFERROR(VLOOKUP($A53,STEP_ALL!$A:$AH,COLUMN(),FALSE),\"\"))","v":""},{"$f":"IF(IFERROR(VLOOKUP($A53,STEP_ALL!$A:$AH,COLUMN(),FALSE),\"\")=0,\"\",IFERROR(VLOOKUP($A53,STEP_ALL!$A:$AH,COLUMN(),FALSE),\"\"))","v":""},{"$f":"IF(IFERROR(VLOOKUP($A53,STEP_ALL!$A:$AH,COLUMN(),FALSE),\"\")=0,\"\",IFERROR(VLOOKUP($A53,STEP_ALL!$A:$AH,COLUMN(),FALSE),\"\"))","v":""},{"$f":"IF(IFERROR(VLOOKUP($A53,STEP_ALL!$A:$AH,COLUMN(),FALSE),\"\")=0,\"\",IFERROR(VLOOKUP($A53,STEP_ALL!$A:$AH,COLUMN(),FALSE),\"\"))","v":""},{"$f":"IF(IFERROR(VLOOKUP($A53,STEP_ALL!$A:$AH,COLUMN(),FALSE),\"\")=0,\"\",IFERROR(VLOOKUP($A53,STEP_ALL!$A:$AH,COLUMN(),FALSE),\"\"))","v":""},{"$f":"IF(IFERROR(VLOOKUP($A53,STEP_ALL!$A:$AH,COLUMN(),FALSE),\"\")=0,\"\",IFERROR(VLOOKUP($A53,STEP_ALL!$A:$AH,COLUMN(),FALSE),\"\"))","v":""},{"$f":"IF(IFERROR(VLOOKUP($A53,STEP_ALL!$A:$AH,COLUMN(),FALSE),\"\")=0,\"\",IFERROR(VLOOKUP($A53,STEP_ALL!$A:$AH,COLUMN(),FALSE),\"\"))","v":""},{"$f":"IF(IFERROR(VLOOKUP($A53,STEP_ALL!$A:$AH,COLUMN(),FALSE),\"\")=0,\"\",IFERROR(VLOOKUP($A53,STEP_ALL!$A:$AH,COLUMN(),FALSE),\"\"))","v":""},{"$f":"IF(IFERROR(VLOOKUP($A53,STEP_ALL!$A:$AH,COLUMN(),FALSE),\"\")=0,\"\",IFERROR(VLOOKUP($A53,STEP_ALL!$A:$AH,COLUMN(),FALSE),\"\"))","v":""},{"$f":"IF(IFERROR(VLOOKUP($A53,STEP_ALL!$A:$AH,COLUMN(),FALSE),\"\")=0,\"\",IFERROR(VLOOKUP($A53,STEP_ALL!$A:$AH,COLUMN(),FALSE),\"\"))","v":""},{"$f":"IF(IFERROR(VLOOKUP($A53,STEP_ALL!$A:$AH,COLUMN(),FALSE),\"\")=0,\"\",IFERROR(VLOOKUP($A53,STEP_ALL!$A:$AH,COLUMN(),FALSE),\"\"))","v":""},{"$f":"IF(IFERROR(VLOOKUP($A53,STEP_ALL!$A:$AH,COLUMN(),FALSE),\"\")=0,\"\",IFERROR(VLOOKUP($A53,STEP_ALL!$A:$AH,COLUMN(),FALSE),\"\"))","v":""},{"$f":"IF(IFERROR(VLOOKUP($A53,STEP_ALL!$A:$AH,COLUMN(),FALSE),\"\")=0,\"\",IFERROR(VLOOKUP($A53,STEP_ALL!$A:$AH,COLUMN(),FALSE),\"\"))","v":""},{"$f":"IF(IFERROR(VLOOKUP($A53,STEP_ALL!$A:$AH,COLUMN(),FALSE),\"\")=0,\"\",IFERROR(VLOOKUP($A53,STEP_ALL!$A:$AH,COLUMN(),FALSE),\"\"))","v":""},{"$f":"IF(IFERROR(VLOOKUP($A53,STEP_ALL!$A:$AH,COLUMN(),FALSE),\"\")=0,\"\",IFERROR(VLOOKUP($A53,STEP_ALL!$A:$AH,COLUMN(),FALSE),\"\"))","v":""},{"$f":"IF(IFERROR(VLOOKUP($A53,STEP_ALL!$A:$AH,COLUMN(),FALSE),\"\")=0,\"\",IFERROR(VLOOKUP($A53,STEP_ALL!$A:$AH,COLUMN(),FALSE),\"\"))","v":""},{"$f":"IF(IFERROR(VLOOKUP($A53,STEP_ALL!$A:$AH,COLUMN(),FALSE),\"\")=0,\"\",IFERROR(VLOOKUP($A53,STEP_ALL!$A:$AH,COLUMN(),FALSE),\"\"))","v":""},{"$f":"IF(IFERROR(VLOOKUP($A53,STEP_ALL!$A:$AH,COLUMN(),FALSE),\"\")=0,\"\",IFERROR(VLOOKUP($A53,STEP_ALL!$A:$AH,COLUMN(),FALSE),\"\"))","v":""},{"$f":"IF(IFERROR(VLOOKUP($A53,STEP_ALL!$A:$AH,COLUMN(),FALSE),\"\")=0,\"\",IFERROR(VLOOKUP($A53,STEP_ALL!$A:$AH,COLUMN(),FALSE),\"\"))","v":""},{"$f":"IF(IFERROR(VLOOKUP($A53,STEP_ALL!$A:$AH,COLUMN(),FALSE),\"\")=0,\"\",IFERROR(VLOOKUP($A53,STEP_ALL!$A:$AH,COLUMN(),FALSE),\"\"))","v":""},{"$f":"IF(IFERROR(VLOOKUP($A53,STEP_ALL!$A:$AH,COLUMN(),FALSE),\"\")=0,\"\",IFERROR(VLOOKUP($A53,STEP_ALL!$A:$AH,COLUMN(),FALSE),\"\"))","v":""},{"$f":"IF(IFERROR(VLOOKUP($A53,STEP_ALL!$A:$AH,COLUMN(),FALSE),\"\")=0,\"\",IFERROR(VLOOKUP($A53,STEP_ALL!$A:$AH,COLUMN(),FALSE),\"\"))","v":""},{"$f":"IF(IFERROR(VLOOKUP($A53,STEP_ALL!$A:$AH,COLUMN(),FALSE),\"\")=0,\"\",IFERROR(VLOOKUP($A53,STEP_ALL!$A:$AH,COLUMN(),FALSE),\"\"))","v":""},{"$f":"IF(IFERROR(VLOOKUP($A53,STEP_ALL!$A:$AH,COLUMN(),FALSE),\"\")=0,\"\",IFERROR(VLOOKUP($A53,STEP_ALL!$A:$AH,COLUMN(),FALSE),\"\"))","v":""},{"$f":"IF(IFERROR(VLOOKUP($A53,STEP_ALL!$A:$AH,COLUMN(),FALSE),\"\")=0,\"\",IFERROR(VLOOKUP($A53,STEP_ALL!$A:$AH,COLUMN(),FALSE),\"\"))","v":""},{"$f":"IF(IFERROR(VLOOKUP($A53,STEP_ALL!$A:$AH,COLUMN(),FALSE),\"\")=0,\"\",IFERROR(VLOOKUP($A53,STEP_ALL!$A:$AH,COLUMN(),FALSE),\"\"))","v":""},{"$f":"IF(IFERROR(VLOOKUP($A53,STEP_ALL!$A:$AH,COLUMN(),FALSE),\"\")=0,\"\",IFERROR(VLOOKUP($A53,STEP_ALL!$A:$AH,COLUMN(),FALSE),\"\"))","v":""},{"$f":"IF(IFERROR(VLOOKUP($A53,STEP_ALL!$A:$AH,COLUMN(),FALSE),\"\")=0,\"\",IFERROR(VLOOKUP($A53,STEP_ALL!$A:$AH,COLUMN(),FALSE),\"\"))","v":""}]
["1-48",1,48,{"$f":"IF(IFERROR(VLOOKUP($A54,STEP_ALL!$A:$AH,COLUMN(),FALSE),\"\")=0,\"\",IFERROR(VLOOKUP($A54,STEP_ALL!$A:$AH,COLUMN(),FALSE),\"\"))","v":""},{"$f":"IF(IFERROR(VLOOKUP($A54,STEP_ALL!$A:$AH,COLUMN(),FALSE),\"\")=0,\"\",IFERROR(VLOOKUP($A54,STEP_ALL!$A:$AH,COLUMN(),FALSE),\"\"))","v":""},{"$f":"IF(IFERROR(VLOOKUP($A54,STEP_ALL!$A:$AH,COLUMN(),FALSE),\"\")=0,\"\",IFERROR(VLOOKUP($A54,STEP_ALL!$A:$AH,COLUMN(),FALSE),\"\"))","v":""},{"$f":"IF(IFERROR(VLOOKUP($A54,STEP_ALL!$A:$AH,COLUMN(),FALSE),\"\")=0,\"\",IFERROR(VLOOKUP($A54,STEP_ALL!$A:$AH,COLUMN(),FALSE),\"\"))","v":""},{"$f":"IF(IFERROR(VLOOKUP($A54,STEP_ALL!$A:$AH,COLUMN(),FALSE),\"\")=0,\"\",IFERROR(VLOOKUP($A54,STEP_ALL!$A:$AH,COLUMN(),FALSE),\"\"))","v":""},{"$f":"IF(IFERROR(VLOOKUP($A54,STEP_ALL!$A:$AH,COLUMN(),FALSE),\"\")=0,\"\",IFERROR(VLOOKUP($A54,STEP_ALL!$A:$AH,COLUMN(),FALSE),\"\"))","v":""},{"$f":"IF(IFERROR(VLOOKUP($A54,STEP_ALL!$A:$AH,COLUMN(),FALSE),\"\")=0,\"\",IFERROR(VLOOKUP($A54,STEP_ALL!$A:$AH,COLUMN(),FALSE),\"\"))","v":""},{"$f":"IF(IFERROR(VLOOKUP($A54,STEP_ALL!$A:$AH,COLUMN(),FALSE),\"\")=0,\"\",IFERROR(VLOOKUP($A54,STEP_ALL!$A:$AH,COLUMN(),FALSE),\"\"))","v":""},{"$f":"IF(IFERROR(VLOOKUP($A54,STEP_ALL!$A:$AH,COLUMN(),FALSE),\"\")=0,\"\",IFERROR(VLOOKUP($A54,STEP_ALL!$A:$AH,COLUMN(),FALSE),\"\"))","v":""},{"$f":"IF(IFERROR(VLOOKUP($A54,STEP_ALL!$A:$AH,COLUMN(),FALSE),\"\")=0,\"\",IFERROR(VLOOKUP($A54,STEP_ALL!$A:$AH,COLUMN(),FALSE),\"\"))","v":""},{"$f":"IF(IFERROR(VLOOKUP($A54,STEP_ALL!$A:$AH,COLUMN(),FALSE),\"\")=0,\"\",IFERROR(VLOOKUP($A54,STEP_ALL!$A:$AH,COLUMN(),FALSE),\"\"))","v":""},{"$f":"IF(IFERROR(VLOOKUP($A54,STEP_ALL!$A:$AH,COLUMN(),FALSE),\"\")=0,\"\",IFERROR(VLOOKUP($A54,STEP_ALL!$A:$AH,COLUMN(),FALSE),\"\"))","v":""},{"$f":"IF(IFERROR(VLOOKUP($A54,STEP_ALL!$A:$AH,COLUMN(),FALSE),\"\")=0,\"\",IFERROR(VLOOKUP($A54,STEP_ALL!$A:$AH,COLUMN(),FALSE),\"\"))","v":""},{"$f":"IF(IFERROR(VLOOKUP($A54,STEP_ALL!$A:$AH,COLUMN(),FALSE),\"\")=0,\"\",IFERROR(VLOOKUP($A54,STEP_ALL!$A:$AH,COLUMN(),FALSE),\"\"))","v":""},{"$f":"IF(IFERROR(VLOOKUP($A54,STEP_ALL!$A:$AH,COLUMN(),FALSE),\"\")=0,\"\",IFERROR(VLOOKUP($A54,STEP_ALL!$A:$AH,COLUMN(),FALSE),\"\"))","v":""},{"$f":"IF(IFERROR(VLOOKUP($A54,STEP_ALL!$A:$AH,COLUMN(),FALSE),\"\")=0,\"\",IFERROR(VLOOKUP($A54,STEP_ALL!$A:$AH,COLUMN(),FALSE),\"\"))","v":""},{"$f":"IF(IFERROR(VLOOKUP($A54,STEP_ALL!$A:$AH,COLUMN(),FALSE),\"\")=0,\"\",IFERROR(VLOOKUP($A54,STEP_ALL!$A:$AH,COLUMN(),FALSE),\"\"))","v":""},{"$f":"IF(IFERROR(VLOOKUP($A54,STEP_ALL!$A:$AH,COLUMN(),FALSE),\"\")=0,\"\",IFERROR(VLOOKUP($A54,STEP_ALL!$A:$AH,COLUMN(),FALSE),\"\"))","v":""},{"$f":"IF(IFERROR(VLOOKUP($A54,STEP_ALL!$A:$AH,COLUMN(),FALSE),\"\")=0,\"\",IFERROR(VLOOKUP($A54,STEP_ALL!$A:$AH,COLUMN(),FALSE),\"\"))","v":""},{"$f":"IF(IFERROR(VLOOKUP($A54,STEP_ALL!$A:$AH,COLUMN(),FALSE),\"\")=0,\"\",IFERROR(VLOOKUP($A54,STEP_ALL!$A:$AH,COLUMN(),FALSE),\"\"))","v":""},{"$f":"IF(IFERROR(VLOOKUP($A54,STEP_ALL!$A:$AH,COLUMN(),FALSE),\"\")=0,\"\",IFERROR(VLOOKUP($A54,STEP_ALL!$A:$AH,COLUMN(),FALSE),\"\"))","v":""},{"$f":"IF(IFERROR(VLOOKUP($A54,STEP_ALL!$A:$AH,COLUMN(),FALSE),\"\")=0,\"\",IFERROR(VLOOKUP($A54,STEP_ALL!$A:$AH,COLUMN(),FALSE),\"\"))","v":""},{"$f":"IF(IFERROR(VLOOKUP($A54,STEP_ALL!$A:$AH,COLUMN(),FALSE),\"\")=0,\"\",IFERROR(VLOOKUP($A54,STEP_ALL!$A:$AH,COLUMN(),FALSE),\"\"))","v":""},{"$f":"IF(IFERROR(VLOOKUP($A54,STEP_ALL!$A:$AH,COLUMN(),FALSE),\"\")=0,\"\",IFERROR(VLOOKUP($A54,STEP_ALL!$A:$AH,COLUMN(),FALSE),\"\"))","v":""},{"$f":"IF(IFERROR(VLOOKUP($A54,STEP_ALL!$A:$AH,COLUMN(),FALSE),\"\")=0,\"\",IFERROR(VLOOKUP($A54,STEP_ALL!$A:$AH,COLUMN(),FALSE),\"\"))","v":""},{"$f":"IF(IFERROR(VLOOKUP($A54,STEP_ALL!$A:$AH,COLUMN(),FALSE),\"\")=0,\"\",IFERROR(VLOOKUP($A54,STEP_ALL!$A:$AH,COLUMN(),FALSE),\"\"))","v":""},{"$f":"IF(IFERROR(VLOOKUP($A54,STEP_ALL!$A:$AH,COLUMN(),FALSE),\"\")=0,\"\",IFERROR(VLOOKUP($A54,STEP_ALL!$A:$AH,COLUMN(),FALSE),\"\"))","v":""},{"$f":"IF(IFERROR(VLOOKUP($A54,STEP_ALL!$A:$AH,COLUMN(),FALSE),\"\")=0,\"\",IFERROR(VLOOKUP($A54,STEP_ALL!$A:$AH,COLUMN(),FALSE),\"\"))","v":""},{"$f":"IF(IFERROR(VLOOKUP($A54,STEP_ALL!$A:$AH,COLUMN(),FALSE),\"\")=0,\"\",IFERROR(VLOOKUP($A54,STEP_ALL!$A:$AH,COLUMN(),FALSE),\"\"))","v":""},{"$f":"IF(IFERROR(VLOOKUP($A54,STEP_ALL!$A:$AH,COLUMN(),FALSE),\"\")=0,\"\",IFERROR(VLOOKUP($A54,STEP_ALL!$A:$AH,COLUMN(),FALSE),\"\"))","v":""},{"$f":"IF(IFERROR(VLOOKUP($A54,STEP_ALL!$A:$AH,COLUMN(),FALSE),\"\")=0,\"\",IFERROR(VLOOKUP($A54,STEP_ALL!$A:$AH,COLUMN(),FALSE),\"\"))","v":""}]
["1-49",1,49,{"$f":"IF(IFERROR(VLOOKUP($A55,STEP_ALL!$A:$AH,COLUMN(),FALSE),\"\")=0,\"\",IFERROR(VLOOKUP($A55,STEP_ALL!$A:$AH,COLUMN(),FALSE),\"\"))","v":""},{"$f":"IF(IFERROR(VLOOKUP($A55,STEP_ALL!$A:$AH,COLUMN(),FALSE),\"\")=0,\"\",IFERROR(VLOOKUP($A55,STEP_ALL!$A:$AH,COLUMN(),FALSE),\"\"))","v":""},{"$f":"IF(IFERROR(VLOOKUP($A55,STEP_ALL!$A:$AH,COLUMN(),FALSE),\"\")=0,\"\",IFERROR(VLOOKUP($A55,STEP_ALL!$A:$AH,COLUMN(),FALSE),\"\"))","v":""},{"$f":"IF(IFERROR(VLOOKUP($A55,STEP_ALL!$A:$AH,COLUMN(),FALSE),\"\")=0,\"\",IFERROR(VLOOKUP($A55,STEP_ALL!$A:$AH,COLUMN(),FALSE),\"\"))","v":""},{"$f":"IF(IFERROR(VLOOKUP($A55,STEP_ALL!$A:$AH,COLUMN(),FALSE),\"\")=0,\"\",IFERROR(VLOOKUP($A55,STEP_ALL!$A:$AH,COLUMN(),FALSE),\"\"))","v":""},{"$f":"IF(IFERROR(VLOOKUP($A55,STEP_ALL!$A:$AH,COLUMN(),FALSE),\"\")=0,\"\",IFERROR(VLOOKUP($A55,STEP_ALL!$A:$AH,COLUMN(),FALSE),\"\"))","v":""},{"$f":"IF(IFERROR(VLOOKUP($A55,STEP_ALL!$A:$AH,COLUMN(),FALSE),\"\")=0,\"\",IFERROR(VLOOKUP($A55,STEP_ALL!$A:$AH,COLUMN(),FALSE),\"\"))","v":""},{"$f":"IF(IFERROR(VLOOKUP($A55,STEP_ALL!$A:$AH,COLUMN(),FALSE),\"\")=0,\"\",IFERROR(VLOOKUP($A55,STEP_ALL!$A:$AH,COLUMN(),FALSE),\"\"))","v":""},{"$f":"IF(IFERROR(VLOOKUP($A55,STEP_ALL!$A:$AH,COLUMN(),FALSE),\"\")=0,\"\",IFERROR(VLOOKUP($A55,STEP_ALL!$A:$AH,COLUMN(),FALSE),\"\"))","v":""},{"$f":"IF(IFERROR(VLOOKUP($A55,STEP_ALL!$A:$AH,COLUMN(),FALSE),\"\")=0,\"\",IFERROR(VLOOKUP($A55,STEP_ALL!$A:$AH,COLUMN(),FALSE),\"\"))","v":""},{"$f":"IF(IFERROR(VLOOKUP($A55,STEP_ALL!$A:$AH,COLUMN(),FALSE),\"\")=0,\"\",IFERROR(VLOOKUP($A55,STEP_ALL!$A:$AH,COLUMN(),FALSE),\"\"))","v":""},{"$f":"IF(IFERROR(VLOOKUP($A55,STEP_ALL!$A:$AH,COLUMN(),FALSE),\"\")=0,\"\",IFERROR(VLOOKUP($A55,STEP_ALL!$A:$AH,COLUMN(),FALSE),\"\"))","v":""},{"$f":"IF(IFERROR(VLOOKUP($A55,STEP_ALL!$A:$AH,COLUMN(),FALSE),\"\")=0,\"\",IFERROR(VLOOKUP($A55,STEP_ALL!$A:$AH,COLUMN(),FALSE),\"\"))","v":""},{"$f":"IF(IFERROR(VLOOKUP($A55,STEP_ALL!$A:$AH,COLUMN(),FALSE),\"\")=0,\"\",IFERROR(VLOOKUP($A55,STEP_ALL!$A:$AH,COLUMN(),FALSE),\"\"))","v":""},{"$f":"IF(IFERROR(VLOOKUP($A55,STEP_ALL!$A:$AH,COLUMN(),FALSE),\"\")=0,\"\",IFERROR(VLOOKUP($A55,STEP_ALL!$A:$AH,COLUMN(),FALSE),\"\"))","v":""},{"$f":"IF(IFERROR(VLOOKUP($A55,STEP_ALL!$A:$AH,COLUMN(),FALSE),\"\")=0,\"\",IFERROR(VLOOKUP($A55,STEP_ALL!$A:$AH,COLUMN(),FALSE),\"\"))","v":""},{"$f":"IF(IFERROR(VLOOKUP($A55,STEP_ALL!$A:$AH,COLUMN(),FALSE),\"\")=0,\"\",IFERROR(VLOOKUP($A55,STEP_ALL!$A:$AH,COLUMN(),FALSE),\"\"))","v":""},{"$f":"IF(IFERROR(VLOOKUP($A55,STEP_ALL!$A:$AH,COLUMN(),FALSE),\"\")=0,\"\",IFERROR(VLOOKUP($A55,STEP_ALL!$A:$AH,COLUMN(),FALSE),\"\"))","v":""},{"$f":"IF(IFERROR(VLOOKUP($A55,STEP_ALL!$A:$AH,COLUMN(),FALSE),\"\")=0,\"\",IFERROR(VLOOKUP($A55,STEP_ALL!$A:$AH,COLUMN(),FALSE),\"\"))","v":""},{"$f":"IF(IFERROR(VLOOKUP($A55,STEP_ALL!$A:$AH,COLUMN(),FALSE),\"\")=0,\"\",IFERROR(VLOOKUP($A55,STEP_ALL!$A:$AH,COLUMN(),FALSE),\"\"))","v":""},{"$f":"IF(IFERROR(VLOOKUP($A55,STEP_ALL!$A:$AH,COLUMN(),FALSE),\"\")=0,\"\",IFERROR(VLOOKUP($A55,STEP_ALL!$A:$AH,COLUMN(),FALSE),\"\"))","v":""},{"$f":"IF(IFERROR(VLOOKUP($A55,STEP_ALL!$A:$AH,COLUMN(),FALSE),\"\")=0,\"\",IFERROR(VLOOKUP($A55,STEP_ALL!$A:$AH,COLUMN(),FALSE),\"\"))","v":""},{"$f":"IF(IFERROR(VLOOKUP($A55,STEP_ALL!$A:$AH,COLUMN(),FALSE),\"\")=0,\"\",IFERROR(VLOOKUP($A55,STEP_ALL!$A:$AH,COLUMN(),FALSE),\"\"))","v":""},{"$f":"IF(IFERROR(VLOOKUP($A55,STEP_ALL!$A:$AH,COLUMN(),FALSE),\"\")=0,\"\",IFERROR(VLOOKUP($A55,STEP_ALL!$A:$AH,COLUMN(),FALSE),\"\"))","v":""},{"$f":"IF(IFERROR(VLOOKUP($A55,STEP_ALL!$A:$AH,COLUMN(),FALSE),\"\")=0,\"\",IFERROR(VLOOKUP($A55,STEP_ALL!$A:$AH,COLUMN(),FALSE),\"\"))","v":""},{"$f":"IF(IFERROR(VLOOKUP($A55,STEP_ALL!$A:$AH,COLUMN(),FALSE),\"\")=0,\"\",IFERROR(VLOOKUP($A55,STEP_ALL!$A:$AH,COLUMN(),FALSE),\"\"))","v":""},{"$f":"IF(IFERROR(VLOOKUP($A55,STEP_ALL!$A:$AH,COLUMN(),FALSE),\"\")=0,\"\",IFERROR(VLOOKUP($A55,STEP_ALL!$A:$AH,COLUMN(),FALSE),\"\"))","v":""},{"$f":"IF(IFERROR(VLOOKUP($A55,STEP_ALL!$A:$AH,COLUMN(),FALSE),\"\")=0,\"\",IFERROR(VLOOKUP($A55,STEP_ALL!$A:$AH,COLUMN(),FALSE),\"\"))","v":""},{"$f":"IF(IFERROR(VLOOKUP($A55,STEP_ALL!$A:$AH,COLUMN(),FALSE),\"\")=0,\"\",IFERROR(VLOOKUP($A55,STEP_ALL!$A:$AH,COLUMN(),FALSE),\"\"))","v":""},{"$f":"IF(IFERROR(VLOOKUP($A55,STEP_ALL!$A:$AH,COLUMN(),FALSE),\"\")=0,\"\",IFERROR(VLOOKUP($A55,STEP_ALL!$A:$AH,COLUMN(),FALSE),\"\"))","v":""},{"$f":"IF(IFERROR(VLOOKUP($A55,STEP_ALL!$A:$AH,COLUMN(),FALSE),\"\")=0,\"\",IFERROR(VLOOKUP($A55,STEP_ALL!$A:$AH,COLUMN(),FALSE),\"\"))","v":""}]
["1-50",1,50,{"$f":"IF(IFERROR(VLOOKUP($A56,STEP_ALL!$A:$AH,COLUMN(),FALSE),\"\")=0,\"\",IFERROR(VLOOKUP($A56,STEP_ALL!$A:$AH,COLUMN(),FALSE),\"\"))","v":""},{"$f":"IF(IFERROR(VLOOKUP($A56,STEP_ALL!$A:$AH,COLUMN(),FALSE),\"\")=0,\"\",IFERROR(VLOOKUP($A56,STEP_ALL!$A:$AH,COLUMN(),FALSE),\"\"))","v":""},{"$f":"IF(IFERROR(VLOOKUP($A56,STEP_ALL!$A:$AH,COLUMN(),FALSE),\"\")=0,\"\",IFERROR(VLOOKUP($A56,STEP_ALL!$A:$AH,COLUMN(),FALSE),\"\"))","v":""},{"$f":"IF(IFERROR(VLOOKUP($A56,STEP_ALL!$A:$AH,COLUMN(),FALSE),\"\")=0,\"\",IFERROR(VLOOKUP($A56,STEP_ALL!$A:$AH,COLUMN(),FALSE),\"\"))","v":""},{"$f":"IF(IFERROR(VLOOKUP($A56,STEP_ALL!$A:$AH,COLUMN(),FALSE),\"\")=0,\"\",IFERROR(VLOOKUP($A56,STEP_ALL!$A:$AH,COLUMN(),FALSE),\"\"))","v":""},{"$f":"IF(IFERROR(VLOOKUP($A56,STEP_ALL!$A:$AH,COLUMN(),FALSE),\"\")=0,\"\",IFERROR(VLOOKUP($A56,STEP_ALL!$A:$AH,COLUMN(),FALSE),\"\"))","v":""},{"$f":"IF(IFERROR(VLOOKUP($A56,STEP_ALL!$A:$AH,COLUMN(),FALSE),\"\")=0,\"\",IFERROR(VLOOKUP($A56,STEP_ALL!$A:$AH,COLUMN(),FALSE),\"\"))","v":""},{"$f":"IF(IFERROR(VLOOKUP($A56,STEP_ALL!$A:$AH,COLUMN(),FALSE),\"\")=0,\"\",IFERROR(VLOOKUP($A56,STEP_ALL!$A:$AH,COLUMN(),FALSE),\"\"))","v":""},{"$f":"IF(IFERROR(VLOOKUP($A56,STEP_ALL!$A:$AH,COLUMN(),FALSE),\"\")=0,\"\",IFERROR(VLOOKUP($A56,STEP_ALL!$A:$AH,COLUMN(),FALSE),\"\"))","v":""},{"$f":"IF(IFERROR(VLOOKUP($A56,STEP_ALL!$A:$AH,COLUMN(),FALSE),\"\")=0,\"\",IFERROR(VLOOKUP($A56,STEP_ALL!$A:$AH,COLUMN(),FALSE),\"\"))","v":""},{"$f":"IF(IFERROR(VLOOKUP($A56,STEP_ALL!$A:$AH,COLUMN(),FALSE),\"\")=0,\"\",IFERROR(VLOOKUP($A56,STEP_ALL!$A:$AH,COLUMN(),FALSE),\"\"))","v":""},{"$f":"IF(IFERROR(VLOOKUP($A56,STEP_ALL!$A:$AH,COLUMN(),FALSE),\"\")=0,\"\",IFERROR(VLOOKUP($A56,STEP_ALL!$A:$AH,COLUMN(),FALSE),\"\"))","v":""},{"$f":"IF(IFERROR(VLOOKUP($A56,STEP_ALL!$A:$AH,COLUMN(),FALSE),\"\")=0,\"\",IFERROR(VLOOKUP($A56,STEP_ALL!$A:$AH,COLUMN(),FALSE),\"\"))","v":""},{"$f":"IF(IFERROR(VLOOKUP($A56,STEP_ALL!$A:$AH,COLUMN(),FALSE),\"\")=0,\"\",IFERROR(VLOOKUP($A56,STEP_ALL!$A:$AH,COLUMN(),FALSE),\"\"))","v":""},{"$f":"IF(IFERROR(VLOOKUP($A56,STEP_ALL!$A:$AH,COLUMN(),FALSE),\"\")=0,\"\",IFERROR(VLOOKUP($A56,STEP_ALL!$A:$AH,COLUMN(),FALSE),\"\"))","v":""},{"$f":"IF(IFERROR(VLOOKUP($A56,STEP_ALL!$A:$AH,COLUMN(),FALSE),\"\")=0,\"\",IFERROR(VLOOKUP($A56,STEP_ALL!$A:$AH,COLUMN(),FALSE),\"\"))","v":""},{"$f":"IF(IFERROR(VLOOKUP($A56,STEP_ALL!$A:$AH,COLUMN(),FALSE),\"\")=0,\"\",IFERROR(VLOOKUP($A56,STEP_ALL!$A:$AH,COLUMN(),FALSE),\"\"))","v":""},{"$f":"IF(IFERROR(VLOOKUP($A56,STEP_ALL!$A:$AH,COLUMN(),FALSE),\"\")=0,\"\",IFERROR(VLOOKUP($A56,STEP_ALL!$A:$AH,COLUMN(),FALSE),\"\"))","v":""},{"$f":"IF(IFERROR(VLOOKUP($A56,STEP_ALL!$A:$AH,COLUMN(),FALSE),\"\")=0,\"\",IFERROR(VLOOKUP($A56,STEP_ALL!$A:$AH,COLUMN(),FALSE),\"\"))","v":""},{"$f":"IF(IFERROR(VLOOKUP($A56,STEP_ALL!$A:$AH,COLUMN(),FALSE),\"\")=0,\"\",IFERROR(VLOOKUP($A56,STEP_ALL!$A:$AH,COLUMN(),FALSE),\"\"))","v":""},{"$f":"IF(IFERROR(VLOOKUP($A56,STEP_ALL!$A:$AH,COLUMN(),FALSE),\"\")=0,\"\",IFERROR(VLOOKUP($A56,STEP_ALL!$A:$AH,COLUMN(),FALSE),\"\"))","v":""},{"$f":"IF(IFERROR(VLOOKUP($A56,STEP_ALL!$A:$AH,COLUMN(),FALSE),\"\")=0,\"\",IFERROR(VLOOKUP($A56,STEP_ALL!$A:$AH,COLUMN(),FALSE),\"\"))","v":""},{"$f":"IF(IFERROR(VLOOKUP($A56,STEP_ALL!$A:$AH,COLUMN(),FALSE),\"\")=0,\"\",IFERROR(VLOOKUP($A56,STEP_ALL!$A:$AH,COLUMN(),FALSE),\"\"))","v":""},{"$f":"IF(IFERROR(VLOOKUP($A56,STEP_ALL!$A:$AH,COLUMN(),FALSE),\"\")=0,\"\",IFERROR(VLOOKUP($A56,STEP_ALL!$A:$AH,COLUMN(),FALSE),\"\"))","v":""},{"$f":"IF(IFERROR(VLOOKUP($A56,STEP_ALL!$A:$AH,COLUMN(),FALSE),\"\")=0,\"\",IFERROR(VLOOKUP($A56,STEP_ALL!$A:$AH,COLUMN(),FALSE),\"\"))","v":""},{"$f":"IF(IFERROR(VLOOKUP($A56,STEP_ALL!$A:$AH,COLUMN(),FALSE),\"\")=0,\"\",IFERROR(VLOOKUP($A56,STEP_ALL!$A:$AH,COLUMN(),FALSE),\"\"))","v":""},{"$f":"IF(IFERROR(VLOOKUP($A56,STEP_ALL!$A:$AH,COLUMN(),FALSE),\"\")=0,\"\",IFERROR(VLOOKUP($A56,STEP_ALL!$A:$AH,COLUMN(),FALSE),\"\"))","v":""},{"$f":"IF(IFERROR(VLOOKUP($A56,STEP_ALL!$A:$AH,COLUMN(),FALSE),\"\")=0,\"\",IFERROR(VLOOKUP($A56,STEP_ALL!$A:$AH,COLUMN(),FALSE),\"\"))","v":""},{"$f":"IF(IFERROR(VLOOKUP($A56,STEP_ALL!$A:$AH,COLUMN(),FALSE),\"\")=0,\"\",IFERROR(VLOOKUP($A56,STEP_ALL!$A:$AH,COLUMN(),FALSE),\"\"))","v":""},{"$f":"IF(IFERROR(VLOOKUP($A56,STEP_ALL!$A:$AH,COLUMN(),FALSE),\"\")=0,\"\",IFERROR(VLOOKUP($A56,STEP_ALL!$A:$AH,COLUMN(),FALSE),\"\"))","v":""},{"$f":"IF(IFERROR(VLOOKUP($A56,STEP_ALL!$A:$AH,COLUMN(),FALSE),\"\")=0,\"\",IFERROR(VLOOKUP($A56,STEP_ALL!$A:$AH,COLUMN(),FALSE),\"\"))","v":""}]
["1-51",1,51,{"$f":"IF(IFERROR(VLOOKUP($A57,STEP_ALL!$A:$AH,COLUMN(),FALSE),\"\")=0,\"\",IFERROR(VLOOKUP($A57,STEP_ALL!$A:$AH,COLUMN(),FALSE),\"\"))","v":""},{"$f":"IF(IFERROR(VLOOKUP($A57,STEP_ALL!$A:$AH,COLUMN(),FALSE),\"\")=0,\"\",IFERROR(VLOOKUP($A57,STEP_ALL!$A:$AH,COLUMN(),FALSE),\"\"))","v":""},{"$f":"IF(IFERROR(VLOOKUP($A57,STEP_ALL!$A:$AH,COLUMN(),FALSE),\"\")=0,\"\",IFERROR(VLOOKUP($A57,STEP_ALL!$A:$AH,COLUMN(),FALSE),\"\"))","v":""},{"$f":"IF(IFERROR(VLOOKUP($A57,STEP_ALL!$A:$AH,COLUMN(),FALSE),\"\")=0,\"\",IFERROR(VLOOKUP($A57,STEP_ALL!$A:$AH,COLUMN(),FALSE),\"\"))","v":""},{"$f":"IF(IFERROR(VLOOKUP($A57,STEP_ALL!$A:$AH,COLUMN(),FALSE),\"\")=0,\"\",IFERROR(VLOOKUP($A57,STEP_ALL!$A:$AH,COLUMN(),FALSE),\"\"))","v":""},{"$f":"IF(IFERROR(VLOOKUP($A57,STEP_ALL!$A:$AH,COLUMN(),FALSE),\"\")=0,\"\",IFERROR(VLOOKUP($A57,STEP_ALL!$A:$AH,COLUMN(),FALSE),\"\"))","v":""},{"$f":"IF(IFERROR(VLOOKUP($A57,STEP_ALL!$A:$AH,COLUMN(),FALSE),\"\")=0,\"\",IFERROR(VLOOKUP($A57,STEP_ALL!$A:$AH,COLUMN(),FALSE),\"\"))","v":""},{"$f":"IF(IFERROR(VLOOKUP($A57,STEP_ALL!$A:$AH,COLUMN(),FALSE),\"\")=0,\"\",IFERROR(VLOOKUP($A57,STEP_ALL!$A:$AH,COLUMN(),FALSE),\"\"))","v":""},{"$f":"IF(IFERROR(VLOOKUP($A57,STEP_ALL!$A:$AH,COLUMN(),FALSE),\"\")=0,\"\",IFERROR(VLOOKUP($A57,STEP_ALL!$A:$AH,COLUMN(),FALSE),\"\"))","v":""},{"$f":"IF(IFERROR(VLOOKUP($A57,STEP_ALL!$A:$AH,COLUMN(),FALSE),\"\")=0,\"\",IFERROR(VLOOKUP($A57,STEP_ALL!$A:$AH,COLUMN(),FALSE),\"\"))","v":""},{"$f":"IF(IFERROR(VLOOKUP($A57,STEP_ALL!$A:$AH,COLUMN(),FALSE),\"\")=0,\"\",IFERROR(VLOOKUP($A57,STEP_ALL!$A:$AH,COLUMN(),FALSE),\"\"))","v":""},{"$f":"IF(IFERROR(VLOOKUP($A57,STEP_ALL!$A:$AH,COLUMN(),FALSE),\"\")=0,\"\",IFERROR(VLOOKUP($A57,STEP_ALL!$A:$AH,COLUMN(),FALSE),\"\"))","v":""},{"$f":"IF(IFERROR(VLOOKUP($A57,STEP_ALL!$A:$AH,COLUMN(),FALSE),\"\")=0,\"\",IFERROR(VLOOKUP($A57,STEP_ALL!$A:$AH,COLUMN(),FALSE),\"\"))","v":""},{"$f":"IF(IFERROR(VLOOKUP($A57,STEP_ALL!$A:$AH,COLUMN(),FALSE),\"\")=0,\"\",IFERROR(VLOOKUP($A57,STEP_ALL!$A:$AH,COLUMN(),FALSE),\"\"))","v":""},{"$f":"IF(IFERROR(VLOOKUP($A57,STEP_ALL!$A:$AH,COLUMN(),FALSE),\"\")=0,\"\",IFERROR(VLOOKUP($A57,STEP_ALL!$A:$AH,COLUMN(),FALSE),\"\"))","v":""},{"$f":"IF(IFERROR(VLOOKUP($A57,STEP_ALL!$A:$AH,COLUMN(),FALSE),\"\")=0,\"\",IFERROR(VLOOKUP($A57,STEP_ALL!$A:$AH,COLUMN(),FALSE),\"\"))","v":""},{"$f":"IF(IFERROR(VLOOKUP($A57,STEP_ALL!$A:$AH,COLUMN(),FALSE),\"\")=0,\"\",IFERROR(VLOOKUP($A57,STEP_ALL!$A:$AH,COLUMN(),FALSE),\"\"))","v":""},{"$f":"IF(IFERROR(VLOOKUP($A57,STEP_ALL!$A:$AH,COLUMN(),FALSE),\"\")=0,\"\",IFERROR(VLOOKUP($A57,STEP_ALL!$A:$AH,COLUMN(),FALSE),\"\"))","v":""},{"$f":"IF(IFERROR(VLOOKUP($A57,STEP_ALL!$A:$AH,COLUMN(),FALSE),\"\")=0,\"\",IFERROR(VLOOKUP($A57,STEP_ALL!$A:$AH,COLUMN(),FALSE),\"\"))","v":""},{"$f":"IF(IFERROR(VLOOKUP($A57,STEP_ALL!$A:$AH,COLUMN(),FALSE),\"\")=0,\"\",IFERROR(VLOOKUP($A57,STEP_ALL!$A:$AH,COLUMN(),FALSE),\"\"))","v":""},{"$f":"IF(IFERROR(VLOOKUP($A57,STEP_ALL!$A:$AH,COLUMN(),FALSE),\"\")=0,\"\",IFERROR(VLOOKUP($A57,STEP_ALL!$A:$AH,COLUMN(),FALSE),\"\"))","v":""},{"$f":"IF(IFERROR(VLOOKUP($A57,STEP_ALL!$A:$AH,COLUMN(),FALSE),\"\")=0,\"\",IFERROR(VLOOKUP($A57,STEP_ALL!$A:$AH,COLUMN(),FALSE),\"\"))","v":""},{"$f":"IF(IFERROR(VLOOKUP($A57,STEP_ALL!$A:$AH,COLUMN(),FALSE),\"\")=0,\"\",IFERROR(VLOOKUP($A57,STEP_ALL!$A:$AH,COLUMN(),FALSE),\"\"))","v":""},{"$f":"IF(IFERROR(VLOOKUP($A57,STEP_ALL!$A:$AH,COLUMN(),FALSE),\"\")=0,\"\",IFERROR(VLOOKUP($A57,STEP_ALL!$A:$AH,COLUMN(),FALSE),\"\"))","v":""},{"$f":"IF(IFERROR(VLOOKUP($A57,STEP_ALL!$A:$AH,COLUMN(),FALSE),\"\")=0,\"\",IFERROR(VLOOKUP($A57,STEP_ALL!$A:$AH,COLUMN(),FALSE),\"\"))","v":""},{"$f":"IF(IFERROR(VLOOKUP($A57,STEP_ALL!$A:$AH,COLUMN(),FALSE),\"\")=0,\"\",IFERROR(VLOOKUP($A57,STEP_ALL!$A:$AH,COLUMN(),FALSE),\"\"))","v":""},{"$f":"IF(IFERROR(VLOOKUP($A57,STEP_ALL!$A:$AH,COLUMN(),FALSE),\"\")=0,\"\",IFERROR(VLOOKUP($A57,STEP_ALL!$A:$AH,COLUMN(),FALSE),\"\"))","v":""},{"$f":"IF(IFERROR(VLOOKUP($A57,STEP_ALL!$A:$AH,COLUMN(),FALSE),\"\")=0,\"\",IFERROR(VLOOKUP($A57,STEP_ALL!$A:$AH,COLUMN(),FALSE),\"\"))","v":""},{"$f":"IF(IFERROR(VLOOKUP($A57,STEP_ALL!$A:$AH,COLUMN(),FALSE),\"\")=0,\"\",IFERROR(VLOOKUP($A57,STEP_ALL!$A:$AH,COLUMN(),FALSE),\"\"))","v":""},{"$f":"IF(IFERROR(VLOOKUP($A57,STEP_ALL!$A:$AH,COLUMN(),FALSE),\"\")=0,\"\",IFERROR(VLOOKUP($A57,STEP_ALL!$A:$AH,COLUMN(),FALSE),\"\"))","v":""},{"$f":"IF(IFERROR(VLOOKUP($A57,STEP_ALL!$A:$AH,COLUMN(),FALSE),\"\")=0,\"\",IFERROR(VLOOKUP($A57,STEP_ALL!$A:$AH,COLUMN(),FALSE),\"\"))","v":""}]

{"sheet":"標準ファイル名称","index":4,"n_rows":33,"n_cols":7,"rows_kept":33,"cut":false,"hidden":false,"merged":[[1,2,1,3]]}
[]
[null,null,"【標準ファイル名称】"]
[]
[null,null,"アクセス名","標準ファイル名称",null,"アクセス名","標準ファイル名称"]
[null,1,null,null,null,"CHIKULF",{"$f":"IFERROR(VLOOKUP(F5,C:D,2,FALSE),\"\")","v":""}]
[null,{"$f":"B5+1","v":2}]
[null,{"$f":"B6+1","v":3}]
[null,4]
[null,5]
[null,6]
[null,7]
[null,8]
[null,9]
[null,10]
[null,11]
[null,12]
[null,13]
[null,14]
[null,15]
[null,16]
[null,17]
[null,18]
[null,19]
[null,20]
[null,21]
[null,22]
[null,23]
[null,24]
[null,25]
[null,26]
[null,27]
[null,28]
[null,29]

{"sheet":"STEP_ALL","index":5,"n_rows":5,"n_cols":85,"rows_kept":5,"cut":false,"hidden":false,"merged":[[3,35,3,36],[3,34,4,34],[0,0,0,2],[1,0,1,2],[0,3,0,4],[1,3,1,4],[3,0,4,0],[3,1,4,1],[3,2,4,2],[3,4,4,4],[3,8,4,8],[3,11,4,11],[3,17,3,19],[3,24,3,27],[3,20,3,23],[3,9,4,9],[3,33,4,33],[3,12,4,12],[3,13,3,16],[3,10,4,10],[0,5,0,6],[1,5,1,6],[3,32,4,32],[3,28,3,31],[0,50,0,52],[0,53,0,54],[0,55,0,56],[1,50,1,52],[1,53,1,54],[1,55,1,56],[3,50,4,50],[3,51,4,51],[3,52,4,52],[3,54,4,54],[3,58,4,58],[3,59,4,59],[3,60,4,60],[3,61,4,61],[3,62,4,62],[3,63,3,66],[3,83,4,83],[3,84,4,84],[3,85,3,86],[3,67,3,69],[3,70,3,73],[3,74,3,77],[3,78,3,81],[3,82,4,82]]}
["会社名",null,null,"システム名",null,"サブシステム名",null,"機能名・他","作成者","次step",null,null,null,null,null,null,null,null,null,null,null,null,null,null,null,null,null,null,null,null,null,null,null,null,null,null,null,null,null,null,null,null,null,null,null,null,null,null,null,null,"会社名",null,null,"システム名",null,"サブシステム名",null,"機能名・他","作成者","次step"]
[null,null,null,null,null,null,null,null,null,{"$f":"MAX(B:B)+1","v":1},null,null,null,null,null,null,null,null,null,null,null,null,null,null,null,null,null,null,null,null,null,null,null,null,null,null,null,null,null,null,null,null,null,null,null,null,null,null,null,null,null,null,null,null,null,null,null,null,null,{"$f":"MAX(AZ:AZ)+1","v":1}]
[]
["検索キー","step","№","開始行","媒体","PG内容","PG名","その他作業","備考2","I/O","定義順","区切","段目","縦",null,null,null,"PG縦",null,null,"横",null,null,null,"引継(OUT先)",null,null,null,"引継(IN先)",null,null,null,"引継","１段目","DB\n最下段",null,null,null,null,null,null,null,null,null,null,null,null,null,null,null,"検索キー","step","№","開始行","媒体","PG内容","PG名","その他作業","備考2","I/O","定義順","区切","段目","縦",null,null,null,"PG縦",null,null,"横",null,null,null,"引継(OUT先)",null,null,null,"引継(IN先)",null,null,null,"引継","１段目","DB\n最下段"]
[null,null,null,"アクセス名",null,"ファイル名","FORM名","備考1",null,null,null,null,null,"位置","縦ｻｲｽﾞ","下位置","最下位","位置","縦ｻｲｽﾞ","下位置","位置","横ｻｲｽﾞ","基準位置","移動値","step","№","キー","相手行","step","№","キー","相手行",null,null,null,null,null,null,null,null,null,null,null,null,null,null,null,null,null,null,null,null,null,"アクセス名",null,"ファイル名","FORM名","備考1",null,null,null,null,null,"位置","縦ｻｲｽﾞ","下位置","最下位","位置","縦ｻｲｽﾞ","下位置","位置","横ｻｲｽﾞ","基準位置","移動値","step","№","キー","相手行","step","№","キー","相手行"]